Workbook

Sheet DCF (2012)
A1: DCF-Rechnung | B1: =[4]Brst!$B$4 -> Frankreich
A2: Jahr | G2: 2007-12-31 | H2: 2008-12-31 | I2: 2009-12-31 | J2: 2010-12-31 | K2: 2011-12-31 | L2: 2012-12-31 | M2: 2013-12-31 | N2: 2014-12-31 | O2: 2015-12-31 | P2: 2016-12-31 | Q2: 2017-12-31 | R2: 2018-12-31 | S2: 2019-12-31 | T2: 2020-12-31 | U2: 2021-12-31 | V2: 2022-12-31 | W2: 2023-12-31 | X2: 2024-12-31 | Y2: 2025-12-31 | Z2: 2026-12-31 | AA2: 2027-12-31 | AB2: 2028-12-31 | AC2: 2029-12-31 | AD2: 2030-12-31 | AE2: 2031-12-31 | AF2: 2032-12-31 | AG2: 2033-12-31 | AH2: 2034-12-31 | AI2: 2035-12-31 | AJ2: 2036-12-31 | AK2: 2037-12-31 | AL2: 2038-12-31 | AM2: 2039-12-31 | AN2: 2040-12-31 | AO2: 2041-12-31 | AP2: 2042-12-31 | AQ2: 2043-12-31 | AR2: 2044-12-31 | AS2: 2045-12-31 | AT2: 2046-12-31 | AU2: 2047-12-31 | AV2: 2048-12-31 | AW2: 2049-12-31 | AX2: 2050-12-31 | AY2: 2051-12-31 | AZ2: 2052-12-31 | BA2: 2053-12-31 | BB2: 2054-12-31 | BC2: 2055-12-31 | BD2: 2056-12-31 | BE2: 2057-12-31 | BF2: 2058-12-31 | BG2: 2059-12-31 | BH2: 2060-12-31 | BI2: 2061-12-31 | BJ2: 2062-12-31 | BK2: 2063-12-31 | BL2: 2064-12-31 | BM2: 2065-12-31 | BN2: 2066-12-31 | BO2: 2067-12-31 | BP2: 2068-12-31 | BQ2: 2069-12-31 | BR2: 2070-12-31
A3: Nominalzins n. St. | B3: 0.069 | G3: =IF(YEAR(G$2)>=YEAR($B$6),(1+$B3)^-(YEARFRAC($B$6-1,G$2,4)),(1+$B3)^(YEARFRAC($B$6-1,G$2,4))) -> 1.155111854 | H3: =IF(YEAR(H$2)>=YEAR($B$6),(1+$B3)^-(YEARFRAC($B$6-1,H$2,4)),(1+$B3)^(YEARFRAC($B$6-1,H$2,4))) -> 1.080553652 | I3: 1.010807906 | J3: 0.9455639911 | K3: 0.8845313294 | L3: 0.8274381004 | M3: 0.7740300285 | N3: 0.7240692502 | O3: 0.6773332556 | P3: 0.6336138967 | Q3: 0.5927164609 | R3: 0.5544588035 | S3: 0.5186705364 | T3: 0.4851922698 | U3: 0.4538749016 | V3: 0.4245789538 | W3: 0.3971739512 | X3: 0.3715378402 | Y3: 0.3475564455 | Z3: 0.3251229611 | AA3: 0.3041374753 | AB3: 0.2845065251 | AC3: 0.2661426802 | AD3: 0.2489641536 | AE3: 0.2328944374 | AF3: 0.217861962 | AG3: 0.2037997774 | AH3: 0.1906452548 | AI3: 0.178339808 | AJ3: 0.1668286324 | AK3: 0.1560604606 | AL3: 0.1459873345 | AM3: =IF(YEAR(AM$2)>=YEAR($B$6),(1+$B3)^-(YEARFRAC($B$6-1,AM$2,4)),(1+$B3)^(YEARFRAC($B$6-1,AM$2,4))) -> 0.1365643915 | AN3: 0.1277496647 | AO3: 0.1195038959 | AP3: 0.1117903609 | AQ3: 0.1045747062 | AR3: 0.09782479534 | AS3: 0.09151056627 | AT3: 0.08560389735 | AU3: 0.08007848209 | AV3: 0.07490971196 | AW3: 0.07007456685 | AX3: 0.06555151249 | AY3: 0.06132040457 | AZ3: 0.05736239904 | BA3: 0.05365986814 | BB3: 0.05019632192 | BC3: 0.04695633482 | BD3: 0.04392547691 | BE3: 0.04109024969 | BF3: 0.0384380259 | BG3: 0.03595699336 | BH3: 0.0336361023 | BI3: 0.03146501618 | BJ3: 0.02943406565 | BK3: 0.02753420547 | BL3: 0.02575697425 | BM3: 0.02409445674 | BN3: 0.02253924858 | BO3: 0.02108442337 | BP3: 0.01972350175 | BQ3: 0.01845042259 | BR3: 0.01725951599
A4: Inflation ab 2030 | B4: 0.024 | G4: 1 | H4: =(1+[5]Sonstiges!H$6)*G4 -> 1.02 | I4: =(1+[5]Sonstiges!I$6)*H4 -> 1.04142 | J4: =(1+[5]Sonstiges!J$6)*I4 -> 1.06120698 | K4: =(1+[5]Sonstiges!K$6)*J4 -> 1.082077384 | L4: =(1+[5]Sonstiges!L$6)*K4 -> 1.104079624 | M4: =(1+[5]Sonstiges!M$6)*L4 -> 1.127265296 | N4: =(1+[5]Sonstiges!N$6)*M4 -> 1.150937867 | O4: =(1+[5]Sonstiges!O$6)*N4 -> 1.1762585 | P4: =(1+[5]Sonstiges!P$6)*O4 -> 1.200959929 | Q4: =(1+[5]Sonstiges!Q$6)*P4 -> 1.226180088 | R4: =(1+[5]Sonstiges!R$6)*Q4 -> 1.252260938 | S4: =(1+[5]Sonstiges!S$6)*R4 -> 1.279234639 | T4: =(1+[5]Sonstiges!T$6)*S4 -> 1.307134746 | U4: =(1+[5]Sonstiges!U$6)*T4 -> 1.335996281 | V4: =(1+[5]Sonstiges!V$6)*U4 -> 1.365855798 | W4: =(1+[5]Sonstiges!W$6)*V4 -> 1.396751456 | X4: =(1+[5]Sonstiges!X$6)*W4 -> 1.428723097 | Y4: =(1+[5]Sonstiges!Y$6)*X4 -> 1.461812324 | Z4: =(1+[5]Sonstiges!Z$6)*Y4 -> 1.496062587 | AA4: =(1+[5]Sonstiges!AA$6)*Z4 -> 1.53151927 | AB4: =(1+[5]Sonstiges!AB$6)*AA4 -> 1.568229787 | AC4: =(1+[5]Sonstiges!AC$6)*AB4 -> 1.605867302 | AD4: =(1+[5]Sonstiges!AD$6)*AC4 -> 1.644408117 | AE4: =(1+$B$4)*AD4 -> 1.683873912 | AF4: =(1+$B$4)*AE4 -> 1.724286886 | AG4: 1.765669771 | AH4: 1.808045846 | AI4: 1.851438946 | AJ4: 1.895873481 | AK4: 1.941374444 | AL4: 1.987967431 | AM4: 2.035678649 | AN4: 2.084534937 | AO4: 2.134563775 | AP4: 2.185793306 | AQ4: 2.238252345 | AR4: 2.291970401 | AS4: 2.346977691 | AT4: 2.403305156 | AU4: 2.460984479 | AV4: 2.520048107 | AW4: 2.580529261 | AX4: 2.642461964 | AY4: 2.705881051 | AZ4: 2.770822196 | BA4: 2.837321929 | BB4: 2.905417655 | BC4: 2.975147679 | BD4: 3.046551223 | BE4: 3.119668452 | BF4: 3.194540495 | BG4: 3.271209467 | BH4: 3.349718494 | BI4: 3.430111738 | BJ4: 3.51243442 | BK4: 3.596732846 | BL4: 3.683054434 | BM4: 3.771447741 | BN4: 3.861962487 | BO4: 3.954649586 | BP4: 4.049561176 | BQ4: 4.146750645 | BR4: 4.24627266
A5: GuD | G5: =1/G4 -> 1 | H5: =1/H4 -> 0.9803921569 | I5: 0.9602273818 | J5: 0.9423232403 | K5: 0.9241483233 | L5: =1/L4 -> 0.9057317771 | M5: 0.8871026221 | N5: 0.8688566328 | O5: 0.850153261 | P5: 0.8326672488 | Q5: 0.8155408901 | R5: 0.7985556122 | S5: 0.781717419 | T5: 0.7650320696 | U5: 0.7485050775 | V5: 0.7321417103 | W5: 0.7159469894 | X5: 0.6999256903 | Y5: 0.6840823432 | Z5: 0.6684212337 | AA5: 0.652946404 | AB5: 0.6376616541 | AC5: 0.6227164591 | AD5: 0.6081215421
A6: IBN | B6: 2010-03-01
A7: Abschlag für DB nach 15a Betrieb | B7: =VLOOKUP($A$5,[4]Sonstiges!$A$16:$B$28,2,FALSE) -> 0.01
A8: Efficiency [%] | E8: =56.9% -> 0.569 | F8: =E8 -> 0.569 | G8: 0.569 | H8: 0.569 | I8: 0.569 | J8: 0.569 | K8: 0.569 | L8: 0.569 | M8: 0.569 | N8: 0.569 | O8: 0.569 | P8: 0.569 | Q8: 0.569 | R8: 0.569 | S8: 0.569 | T8: 0.569 | U8: 0.569 | V8: 0.569 | W8: 0.569 | X8: 0.569 | Y8: 0.569 | Z8: 0.569 | AA8: 0.569 | AB8: 0.569 | AC8: 0.569 | AD8: 0.569
A9: Availability | B9: 0.921
K10: =4200*K33 -> 4200 | L10: =4200*L33 -> 4200
A11: Anteil CO2 Freizertifikate (%) | G11: =IF(ISNUMBER('[5]CO2 frei'!H10),'[5]CO2 frei'!H10, IF(G34=0,"",G$12*G36/1000000/G$37)) -> 1 | H11: =IF(ISNUMBER('[5]CO2 frei'!I10),'[5]CO2 frei'!I10, IF(H34=0,"",H$12*H36/1000000/H$37)) -> 1 | I11: =IF(ISNUMBER('[5]CO2 frei'!J10),'[5]CO2 frei'!J10, IF(I34=0,"",I$12*I36/1000000/I$37)) -> 1 | J11: =IF(ISNUMBER('[5]CO2 frei'!K10),'[5]CO2 frei'!K10, IF(J34=0,"",J$12*J36/1000000/J$37)) -> 1 | K11: =K10/K35 -> 0.7070171452 | L11: =L10/L35 -> 0.6868896801 | M11: =IF(ISNUMBER('[5]CO2 frei'!N10),'[5]CO2 frei'!N10, IF(M34=0,"",M$12*M36/1000000/M$37)) -> 0.875 | N11: =IF(ISNUMBER('[5]CO2 frei'!O10),'[5]CO2 frei'!O10, IF(N34=0,"",N$12*N36/1000000/N$37)) -> 0.75 | O11: =IF(ISNUMBER('[5]CO2 frei'!P10),'[5]CO2 frei'!P10, IF(O34=0,"",O$12*O36/1000000/O$37)) -> 0.625 | P11: =IF(ISNUMBER('[5]CO2 frei'!Q10),'[5]CO2 frei'!Q10, IF(P34=0,"",P$12*P36/1000000/P$37)) -> 0.5 | Q11: =IF(ISNUMBER('[5]CO2 frei'!R10),'[5]CO2 frei'!R10, IF(Q34=0,"",Q$12*Q36/1000000/Q$37)) -> 0.375 | R11: =IF(ISNUMBER('[5]CO2 frei'!S10),'[5]CO2 frei'!S10, IF(R34=0,"",R$12*R36/1000000/R$37)) -> 0.25 | S11: =IF(ISNUMBER('[5]CO2 frei'!T10),'[5]CO2 frei'!T10, IF(S34=0,"",S$12*S36/1000000/S$37)) -> 0.125 | T11: =IF(ISNUMBER('[5]CO2 frei'!U10),'[5]CO2 frei'!U10, IF(T34=0,"",T$12*T36/1000000/T$37)) -> 0 | U11: =IF(ISNUMBER('[5]CO2 frei'!V10),'[5]CO2 frei'!V10, IF(U34=0,"",U$12*U36/1000000/U$37)) -> 0 | V11: =IF(ISNUMBER('[5]CO2 frei'!W10),'[5]CO2 frei'!W10, IF(V34=0,"",V$12*V36/1000000/V$37)) -> 0 | W11: =IF(ISNUMBER('[5]CO2 frei'!X10),'[5]CO2 frei'!X10, IF(W34=0,"",W$12*W36/1000000/W$37)) -> 0 | X11: =IF(ISNUMBER('[5]CO2 frei'!Y10),'[5]CO2 frei'!Y10, IF(X34=0,"",X$12*X36/1000000/X$37)) -> 0 | Y11: =IF(ISNUMBER('[5]CO2 frei'!Z10),'[5]CO2 frei'!Z10, IF(Y34=0,"",Y$12*Y36/1000000/Y$37)) -> 0 | Z11: =IF(ISNUMBER('[5]CO2 frei'!AA10),'[5]CO2 frei'!AA10, IF(Z34=0,"",Z$12*Z36/1000000/Z$37)) -> 0 | AA11: =IF(ISNUMBER('[5]CO2 frei'!AB10),'[5]CO2 frei'!AB10, IF(AA34=0,"",AA$12*AA36/1000000/AA$37)) -> 0 | AB11: =IF(ISNUMBER('[5]CO2 frei'!AC10),'[5]CO2 frei'!AC10, IF(AB34=0,"",AB$12*AB36/1000000/AB$37)) -> 0 | AC11: =IF(ISNUMBER('[5]CO2 frei'!AD10),'[5]CO2 frei'!AD10, IF(AC34=0,"",AC$12*AC36/1000000/AC$37)) -> 0 | AD11: =IF(ISNUMBER('[5]CO2 frei'!AE10),'[5]CO2 frei'!AE10, IF(AD34=0,"",AD$12*AD36/1000000/AD$37)) -> 0
A12: Allokation nach Benchmark für GuD Anlagen [g CO2/KWh el] | G12: ='[5]CO2 frei'!H13 ->  | H12: ='[5]CO2 frei'!I13 ->  | I12: ='[5]CO2 frei'!J13 ->  | J12: ='[5]CO2 frei'!K13 ->  | K12: ='[5]CO2 frei'!L13 ->  | L12: ='[5]CO2 frei'!M13 ->  | M12: ='[5]CO2 frei'!N13 ->  | N12: ='[5]CO2 frei'!O13 ->  | O12: ='[5]CO2 frei'!P13 ->  | P12: ='[5]CO2 frei'!Q13 ->  | Q12: ='[5]CO2 frei'!R13 ->  | R12: ='[5]CO2 frei'!S13 ->  | S12: ='[5]CO2 frei'!T13 ->  | T12: ='[5]CO2 frei'!U13 ->  | U12: ='[5]CO2 frei'!V13 ->  | V12: ='[5]CO2 frei'!W13 ->  | W12: ='[5]CO2 frei'!X13 ->  | X12: ='[5]CO2 frei'!Y13 ->  | Y12: ='[5]CO2 frei'!Z13 ->  | Z12: ='[5]CO2 frei'!AA13 ->  | AA12: ='[5]CO2 frei'!AB13 ->  | AB12: ='[5]CO2 frei'!AC13 ->  | AC12: ='[5]CO2 frei'!AD13 ->  | AD12: ='[5]CO2 frei'!AE13 -> 
A14: Capacity [MW] | B14: =413.6*2 -> 827.2
A15: Invest costs [€/kW] | B15: =$D$100 -> 557.6031236
A16: Lifetime [years] | B16: 25
A17: Depreciation [yeras] | B17: 25
A18: Clean Spark spread [€/MWh] | I18: =I38-I22*0.375-I20*3.6/I8 -> 12.79100206 | J18: =J38-J22*0.375-J20*3.6/J8 -> 14.19423908 | K18: =K38-K22*0.375-K20*3.6/K8 -> 15.69677773 | L18: 16.91133503 | M18: 18.76108302 | N18: 19.56771975 | O18: 21.83350472 | P18: 22.62007916 | Q18: 22.87023913 | R18: 22.59890671 | S18: 23.59026268 | T18: 23.65399657 | U18: 24.66834843 | V18: 24.04688774 | W18: 24.8035444 | X18: 26.48637789 | Y18: 26.80846505 | Z18: 27.32169629 | AA18: 27.25819617 | AB18: 27.45878995 | AC18: 27.75877131 | AD18: 27.27344762
E19: =IF($B$20="Gas","Prix de gaz moyen pondéré pour les points de charge, dans lesquels la centrale électrique produit :","") -> Prix de gaz moyen pondéré pour les points de charge, dans lesquels la centrale électrique produit :
A20: Fuel Costs [€/GJ] | B20: =VLOOKUP($A$5,'[4]LTMP-GENKWDaten'!$E$5:$F$134,2,0) -> Gas | C20: 1 | I20: =Gaspreis_Durchschnitt(SUM(I26,I28)+(SUM(I23:I24)+I21)*3.6/I8,I$8*(1-$B$27),$B$20) -> 5.254214927 | J20: =Gaspreis_Durchschnitt(SUM(J26,J28)+(SUM(J23:J24)+J21)*3.6/J8,J$8*(1-$B$27),$B$20) -> 6.220444246 | K20: 6.67890141 | L20: 6.600743153 | M20: 6.538275337 | N20: 6.418783633 | O20: 6.274242626 | P20: 6.201390217 | Q20: 6.213740852 | R20: 6.237257619 | S20: 6.140493758 | T20: 6.056224503 | U20: 5.929953412 | V20: 6.088466812 | W20: 6.23919068 | X20: 6.737473291 | Y20: 7.191086109 | Z20: 7.61690997 | AA20: 7.745166843 | AB20: 7.910182453 | AC20: 8.103791202 | AD20: 8.241859422
A21: Transport costs [€/GJ]
A22: Certificate pricess [€/tCO2] | I22: 12.5 | J22: 14.375 | K22: 16.25 | L22: 18.125 | M22: 20 | N22: 20 | O22: 20 | P22: 20 | Q22: 20 | R22: 20 | S22: 20 | T22: 20 | U22: 24 | V22: 28 | W22: 32 | X22: 36 | Y22: 40 | Z22: 40 | AA22: 40 | AB22: 40 | AC22: 40 | AD22: 40
A23: CO2 Belastung [€/GJ] | B23: =IF($B$20="Gas",0.2, IF($B$20="Kohle",0.3384, IF($B$20="CCS Kohle",0.04,0.4))) -> 0.2 | I23: =I22*$B$23/3.6 -> 0.6944444444 | J23: 0.7986111111 | K23: 0.9027777778 | L23: 1.006944444 | M23: 1.111111111 | N23: 1.111111111 | O23: 1.111111111 | P23: 1.111111111 | Q23: 1.111111111 | R23: 1.111111111 | S23: 1.111111111 | T23: 1.111111111 | U23: 1.333333333 | V23: 1.555555556 | W23: 1.777777778 | X23: 2 | Y23: 2.222222222 | Z23: 2.222222222 | AA23: 2.222222222 | AB23: 2.222222222 | AC23: 2.222222222 | AD23: 2.222222222
A24: Taxes [€/GJ] | I24: =IF($B$20="Gas",[5]Brst!J$53,IF($B$20="Kohle",[5]Brst!J$29,0)) -> 0 | J24: =IF($B$20="Gas",[5]Brst!K$53,IF($B$20="Kohle",[5]Brst!K$29,0)) -> 0 | K24: =IF($B$20="Gas",[5]Brst!L$53,IF($B$20="Kohle",[5]Brst!L$29,0)) -> 0 | L24: =IF($B$20="Gas",[5]Brst!M$53,IF($B$20="Kohle",[5]Brst!M$29,0)) -> 0 | M24: =IF($B$20="Gas",[5]Brst!N$53,IF($B$20="Kohle",[5]Brst!N$29,0)) -> 0 | N24: =IF($B$20="Gas",[5]Brst!O$53,IF($B$20="Kohle",[5]Brst!O$29,0)) -> 0 | O24: =IF($B$20="Gas",[5]Brst!P$53,IF($B$20="Kohle",[5]Brst!P$29,0)) -> 0 | P24: =IF($B$20="Gas",[5]Brst!Q$53,IF($B$20="Kohle",[5]Brst!Q$29,0)) -> 0 | Q24: =IF($B$20="Gas",[5]Brst!R$53,IF($B$20="Kohle",[5]Brst!R$29,0)) -> 0 | R24: =IF($B$20="Gas",[5]Brst!S$53,IF($B$20="Kohle",[5]Brst!S$29,0)) -> 0 | S24: =IF($B$20="Gas",[5]Brst!T$53,IF($B$20="Kohle",[5]Brst!T$29,0)) -> 0 | T24: =IF($B$20="Gas",[5]Brst!U$53,IF($B$20="Kohle",[5]Brst!U$29,0)) -> 0 | U24: =IF($B$20="Gas",[5]Brst!V$53,IF($B$20="Kohle",[5]Brst!V$29,0)) -> 0 | V24: =IF($B$20="Gas",[5]Brst!W$53,IF($B$20="Kohle",[5]Brst!W$29,0)) -> 0 | W24: =IF($B$20="Gas",[5]Brst!X$53,IF($B$20="Kohle",[5]Brst!X$29,0)) -> 0 | X24: =IF($B$20="Gas",[5]Brst!Y$53,IF($B$20="Kohle",[5]Brst!Y$29,0)) -> 0 | Y24: =IF($B$20="Gas",[5]Brst!Z$53,IF($B$20="Kohle",[5]Brst!Z$29,0)) -> 0 | Z24: =IF($B$20="Gas",[5]Brst!AA$53,IF($B$20="Kohle",[5]Brst!AA$29,0)) -> 0 | AA24: =IF($B$20="Gas",[5]Brst!AB$53,IF($B$20="Kohle",[5]Brst!AB$29,0)) -> 0 | AB24: =IF($B$20="Gas",[5]Brst!AC$53,IF($B$20="Kohle",[5]Brst!AC$29,0)) -> 0 | AC24: =IF($B$20="Gas",[5]Brst!AD$53,IF($B$20="Kohle",[5]Brst!AD$29,0)) -> 0 | AD24: =IF($B$20="Gas",[5]Brst!AE$53,IF($B$20="Kohle",[5]Brst!AE$29,0)) -> 0
A25: Fuel Price [€/MWh Hu] | I25: =SUM(I20:I21,I23:I24)*3600/1000 -> 21.41517374 | J25: 25.26859929 | K25: 27.29404507 | L25: 27.38767535 | M25: 27.53779121 | N25: 27.10762108 | O25: 26.58727345 | P25: 26.32500478 | Q25: 26.36946707 | R25: 26.45412743 | S25: 26.10577753 | T25: 25.80240821 | U25: 26.14783228 | V25: 27.51848052 | W25: 28.86108645 | X25: 31.45490385 | Y25: 33.88790999 | Z25: 35.42087589 | AA25: 35.88260063 | AB25: 36.47665683 | AC25: 37.17364833 | AD25: 37.67069392
A26: Variable O&M (€/MWh) | B26: =([6]LTM_Hornaing!$B$26)/$H$4 -> 3.387065363 | I26: =$B26*I$4 -> 3.527357611 | J26: 3.594377405 | K26: 3.665066828 | L26: 3.739589853 | M26: 3.81812124 | N26: 3.898301786 | O26: 3.984064425 | P26: 4.067729778 | Q26: 4.153152104 | R26: 4.241489649 | S26: 4.332851336 | T26: 4.427350824 | U26: 4.52510673 | V26: 4.626242865 | W26: 4.730888479 | X26: 4.839178516 | Y26: 4.95125389 | Z26: 5.067261769 | AA26: 5.187355873 | AB26: 5.311696793 | AC26: 5.439177516 | AD26: 5.569717777
A27: Variable Starts/Stops | B27: 0.05 | C27: =SUMPRODUCT(H27:AD27,H5:AD5)/26 -> 1.370786075 | I27: =$B$27*I20*3.6/I8 -> 1.662141805 | J27: =$B$27*J20*3.6/J8 -> 1.967803101 | K27: 2.112833486 | L27: 2.088108555 | M27: 2.068347207 | N27: 2.030546668 | O27: 1.98482192 | P27: 1.961775464 | Q27: 1.965682519 | R27: 1.973121918 | S27: 1.942511206 | T27: 1.915853094 | U27: 1.875907934 | V27: 1.92605277 | W27: 1.973733431 | X27: 2.131362377 | Y27: 2.27486028 | Z27: 2.409567302 | AA27: 2.450140653 | AB27: 2.502342428 | AC27: 2.563589484 | AD27: 2.607266601
A28: Einsatzmarge [€/MWh] | I28: =[5]Sonstiges!I$9 -> 0 | J28: =[5]Sonstiges!J$9 -> 0 | K28: =[5]Sonstiges!K$9 -> 0 | L28: =[5]Sonstiges!L$9 -> 0.5 | M28: =[5]Sonstiges!M$9 -> 1 | N28: =[5]Sonstiges!N$9 -> 1.5 | O28: =[5]Sonstiges!O$9 -> 3 | P28: =[5]Sonstiges!P$9 -> 4 | Q28: =[5]Sonstiges!Q$9 -> 5 | R28: =[5]Sonstiges!R$9 -> 6 | S28: =[5]Sonstiges!S$9 -> 7 | T28: =[5]Sonstiges!T$9 -> 7.1 | U28: =[5]Sonstiges!U$9 -> 7.2 | V28: =[5]Sonstiges!V$9 -> 7.3 | W28: =[5]Sonstiges!W$9 -> 7.4 | X28: =[5]Sonstiges!X$9 -> 7.5 | Y28: =[5]Sonstiges!Y$9 -> 7.6 | Z28: =[5]Sonstiges!Z$9 -> 7.7 | AA28: =[5]Sonstiges!AA$9 -> 7.8 | AB28: =[5]Sonstiges!AB$9 -> 7.9 | AC28: =[5]Sonstiges!AC$9 -> 8 | AD28: =[5]Sonstiges!AD$9 -> 8.1
A29: EP ohne Brst [€/MWh] | I29: =SUM(I26:I28)+(SUM(I23:I24)+I21)*3.6/I8 -> 9.583172526 | J29: 10.61490458 | K29: 11.48967536 | L29: 12.69852442 | M29: 13.91634542 | N29: 14.45872543 | O29: 15.99876332 | P29: 17.05938222 | Q29: 18.1487116 | R29: 19.24448854 | S29: 20.30523952 | T29: 20.47308089 | U29: 22.03686704 | V29: 23.6941234 | W29: 25.35242507 | X29: 27.12431945 | Y29: 28.88586813 | Z29: 29.23658302 | AA29: 29.49725048 | AB29: 29.77379318 | AC29: 30.06252095 | AD29: 30.33673833
A30: EP [€/MWh] | I30: =I29+I20*3.6/I8 -> 42.82600862 | J30: 49.9709666 | K30: 53.74634508 | L30: 54.46069551 | M30: 55.28328956 | N30: 55.06965878 | O30: 55.69520173 | P30: 56.2948915 | Q30: 57.46236198 | R30: 58.70692691 | S30: 59.15546365 | T30: 58.79014277 | U30: 59.55502571 | V30: 62.2151788 | W30: 64.8270937 | X30: 69.75156699 | Y30: 74.38307373 | Z30: 77.42792906 | AA30: 78.50006354 | AB30: 79.82064174 | AC30: 81.33431063 | AD30: 82.48207035
A33: Part Year [%] | I33: =IF(YEAR(I$2)=YEAR($B$6),YEARFRAC($B6-1,I$2,4), IF(YEAR(I$2)=YEAR($B$6)+$B$16, 100%-(YEARFRAC($B6-1,I$2,4)-$B$16),100%)) -> 1 | J33: 0.8388888889 | K33: 1 | L33: =IF(YEAR(L$2)=YEAR($B$6),YEARFRAC($B6-1,L$2,4), IF(YEAR(L$2)=YEAR($B$6)+$B$16, 100%-(YEARFRAC($B6-1,L$2,4)-$B$16),100%)) -> 1 | M33: 1 | N33: 1 | O33: 1 | P33: 1 | Q33: 1 | R33: 1 | S33: 1 | T33: 1 | U33: 1 | V33: 1 | W33: 1 | X33: 1 | Y33: 1 | Z33: 1 | AA33: 1 | AB33: 1 | AC33: 1 | AD33: 1 | AE33: 1 | AF33: 1 | AG33: 1 | AH33: 1 | AI33: 0.1611111111 | AJ33: 1 | AK33: 1 | AL33: 1 | AM33: 1 | AN33: 1 | AO33: 1 | AP33: 1 | AQ33: 1 | AR33: 1 | AS33: =IF(YEAR(AS$2)=YEAR($B$6),YEARFRAC($B6-1,AS$2,4), IF(YEAR(AS$2)=YEAR($B$6)+$B$16, 100%-(YEARFRAC($B6-1,AS$2,4)-$B$16),100%)) -> 1 | AT33: 1 | AU33: 1 | AV33: 1 | AW33: 1 | AX33: 1 | AY33: 1 | AZ33: 1 | BA33: 1 | BB33: 1 | BC33: 1 | BD33: 1 | BE33: 1 | BF33: 1 | BG33: 1 | BH33: 1 | BI33: 1 | BJ33: 1 | BK33: 1 | BL33: 1 | BM33: 1 | BN33: 1
A34: Capacity [MW] | B34: 0.96 | I34: =IF(OR(I$2<$B$6,YEAR(I$2)>YEAR($B$6)+$B$16),0,$B$14)*$B$34 -> 0 | J34: 794.112 | K34: 794.112 | L34: =IF(OR(L$2<$B$6,YEAR(L$2)>YEAR($B$6)+$B$16),0,$B$14)*$B$34 -> 794.112 | M34: 794.112 | N34: =IF(OR(N$2<$B$6,YEAR(N$2)>YEAR($B$6)+$B$16),0,$B$14)*$B$34 -> 794.112 | O34: 794.112 | P34: 794.112 | Q34: 794.112 | R34: 794.112 | S34: 794.112 | T34: 794.112 | U34: 794.112 | V34: 794.112 | W34: 794.112 | X34: 794.112 | Y34: 794.112 | Z34: 794.112 | AA34: 794.112 | AB34: 794.112 | AC34: 794.112 | AD34: 794.112 | AE34: 794.112 | AF34: 794.112 | AG34: 794.112 | AH34: 794.112 | AI34: 794.112 | AJ34: 0 | AK34: 0 | AL34: 0 | AM34: 0 | AN34: =IF(OR(AN$2<$B$6,YEAR(AN$2)>YEAR($B$6)+$B$16),0,$B$14)*$B$34 -> 0 | AO34: 0 | AP34: 0 | AQ34: 0 | AR34: 0 | AS34: 0 | AT34: 0 | AU34: 0 | AV34: 0 | AW34: 0 | AX34: 0 | AY34: 0 | AZ34: 0 | BA34: 0 | BB34: 0 | BC34: 0 | BD34: 0 | BE34: 0 | BF34: 0 | BG34: 0 | BH34: 0 | BI34: 0 | BJ34: 0 | BK34: 0 | BL34: 0 | BM34: 0 | BN34: 0 | BO34: 0 | BP34: 0 | BQ34: 0 | BR34: 0
A35: Full load hours [h/a] | I35: =$B$9*vbh(I$29,I$8,$B$20)*I$33 -> 5567.445 | J35: 4670.46775 | K35: 5940.45 | L35: 6114.519 | M35: 5887.953 | N35: =$B$9*vbh(N$29,N$8,$B$20)*N$33 -> 6031.629 | O35: 5722.173 | P35: 5805.063 | Q35: 5548.104 | R35: 5257.989 | S35: 5257.989 | T35: 5548.104 | U35: 5465.214 | V35: 5722.173 | W35: 5257.989 | X35: 5257.989 | Y35: 5133.654 | Z35: 4926.429 | AA35: 4926.429 | AB35: 4752.36 | AC35: 4752.36 | AD35: 4669.47
A36: Production [GWh/a] | I36: =I35*I34/1000 -> 0 | J36: 3708.874486 | K36: 4717.38263 | L36: =L35*L34/1000 -> 4855.612912 | M36: 4675.694133 | N36: 4789.788968 | O36: 4544.046245 | P36: 4609.870189 | Q36: 4405.815964 | R36: 4175.432161 | S36: 4175.432161 | T36: 4405.815964 | U36: 4339.99202 | V36: 4544.046245 | W36: 4175.432161 | X36: 4175.432161 | Y36: 4076.696245 | Z36: 3912.136386 | AA36: 3912.136386 | AB36: 3773.906104 | AC36: 3773.906104 | AD36: 3708.082161
A37: Actual CO2 Emissionen [Mio t CO2] | I37: =IF(I34=0,"",$B$23/I8*$B$14*I35/1000000) ->  | J37: 1.357965175 | K37: 1.727219768 | L37: 1.777831324 | M37: 1.711955965 | N37: 1.753730583 | O37: 1.663754484 | P37: 1.687855224 | Q37: 1.613142928 | R37: 1.528790334 | S37: 1.528790334 | T37: 1.613142928 | U37: 1.589042187 | V37: 1.663754484 | W37: 1.528790334 | X37: 1.528790334 | Y37: 1.492639223 | Z37: 1.43238737 | AA37: 1.43238737 | AB37: 1.381775814 | AC37: 1.381775814 | AD37: 1.357675073
A38: Marktpreis [€/MWh] | B38: 1.5 | C38: 1 | I38: =Strompreis_Durchschnitt(I$29,I$8,$B$20) -> 50.72133815 | J38: =Strompreis_Durchschnitt(J$29,J$8,$B$20) -> 58.94092609 | K38: =Strompreis_Durchschnitt(K$29,K$8,$B$20) -> 64.04719746 | L38: =Strompreis_Durchschnitt(L$29,L$8,$B$20) -> 65.47038112 | M38: =Strompreis_Durchschnitt(M$29,M$8,$B$20)+($B$38+$C$38)/3 -> 67.62802716 | N38: =Strompreis_Durchschnitt(N$29,N$8,$B$20)+($B$38+$C$38)/3*2 -> 67.67865311 | O38: =Strompreis_Durchschnitt(O$29,O$8,$B$20)+$B$38+$C$38 -> 69.02994313 | P38: 69.35558844 | Q38: =Strompreis_Durchschnitt(Q$29,Q$8,$B$20)+$B$38+$C$38 -> 69.68388951 | R38: 69.56134508 | S38: 69.94048681 | T38: =Strompreis_Durchschnitt(T$29,T$8,$B$20)+$B$38+$C$38 -> 69.47105845 | U38: =Strompreis_Durchschnitt(U$29,U$8,$B$20)+$B$38+$C$38-$C$38/10 -> 71.1865071 | V38: =Strompreis_Durchschnitt(V$29,V$8,$B$20)+$B$38+$C$38-$C$38/10*2 -> 73.06794314 | W38: =Strompreis_Durchschnitt(W$29,W$8,$B$20)+$B$38+$C$38-$C$38/10*3 -> 76.27821303 | X38: =Strompreis_Durchschnitt(X$29,X$8,$B$20)+$B$38+$C$38-$C$38/10*4 -> 82.61362543 | Y38: =Strompreis_Durchschnitt(Y$29,Y$8,$B$20)+$B$38+$C$38-$C$38/10*5 -> 87.30567066 | Z38: =Strompreis_Durchschnitt(Z$29,Z$8,$B$20)+$B$38+$C$38-$C$38/10*6 -> 90.51304232 | AA38: =Strompreis_Durchschnitt(AA$29,AA$8,$B$20)+$B$38+$C$38-$C$38/10*7 -> 91.26100923 | AB38: =Strompreis_Durchschnitt(AB$29,AB$8,$B$20)+$B$38+$C$38-$C$38/10*8 -> 92.50563851 | AC38: =Strompreis_Durchschnitt(AC$29,AC$8,$B$20)+$B$38+$C$38-$C$38/10*9 -> 94.03056099 | AD38: =Strompreis_Durchschnitt(AD$29,AD$8,$B$20)+$B$38+$C$38-$C$38/10*10 -> 94.41877964
A39: Income from Electricity [Mio €] | I39: =I36*I38/1000 -> 0 | J39: 218.604497 | K39: 302.1351368 | L39: =L36*L38/1000 -> 317.8988279 | M39: 316.2079698 | N39: 324.166466 | O39: 313.6752539 | P39: 319.7202596 | Q39: 307.0143928 | R39: 290.4486774 | S39: 292.031758 | T39: 306.0766983 | U39: 308.9488728 | V39: 332.0241127 | W39: 318.4945039 | X39: 344.9475885 | Y39: 355.9186998 | Z39: 354.0993663 | AA39: 357.0255149 | AB39: 349.1075939 | AC39: 354.8625081 | AD39: 350.1125924
A41: spec. var. expenditure [€/MWh] | I41: =I30 -> 42.82600862 | J41: 49.9709666 | K41: 53.74634508 | L41: 54.46069551 | M41: 55.28328956 | N41: 55.06965878 | O41: 55.69520173 | P41: 56.2948915 | Q41: 57.46236198 | R41: 58.70692691 | S41: 59.15546365 | T41: 58.79014277 | U41: 59.55502571 | V41: 62.2151788 | W41: 64.8270937 | X41: 69.75156699 | Y41: 74.38307373 | Z41: 77.42792906 | AA41: 78.50006354 | AB41: 79.82064174 | AC41: 81.33431063 | AD41: 82.48207035
A42: variable expenditure [Mio €] | I42: =I41*I36/1000 -> 0 | J42: =J41*J36/1000 -> 185.336043 | K42: 253.5420747 | L42: =L41*L36/1000 -> 264.4400563 | M42: 258.4877526 | N42: 263.7720441 | O42: 253.0815723 | P42: 259.5121421 | Q42: 253.1685917 | R42: 245.1267907 | S42: 246.9996254 | T42: 259.0185495 | U42: 258.4683363 | V42: 282.7086496 | W42: 270.6811319 | X42: 291.2429361 | Y42: 303.2371974 | Z42: 302.9086186 | AA42: 307.1029549 | AB42: 301.2356071 | AC42: 306.9480514 | AD42: 305.8502936
A43: Credit Einsatzmarge [Mio €] | I43: =I$28*I$35*I34/1000000 -> 0 | J43: 0 | K43: 0 | L43: =L$28*L$35*L34/1000000 -> 2.427806456 | M43: 4.675694133 | N43: 7.184683453 | O43: 13.63213874 | P43: 18.43948076 | Q43: 22.02907982 | R43: 25.05259296 | S43: 29.22802513 | T43: 31.28129334 | U43: 31.24794254 | V43: 33.17153759 | W43: 30.89819799 | X43: 31.31574121 | Y43: 30.98289146 | Z43: 30.12345017 | AA43: 30.51466381 | AB43: 29.81385822 | AC43: 30.19124883 | AD43: 30.0354655
A44: SDL=Service Systemes + Ajustement [Mio. €] | B44: =[6]LTM_Hornaing!B43/$H$4+0.7/250*846 -> 5.040566565 | I44: =IF(I34=0,0,$B$44*I$4) -> 0 | J44: 5.349084422 | K44: 5.454283082 | L44: 5.565186838 | M44: 5.682055762 | N44: 5.801378933 | O44: 5.929009269 | P44: 6.053518464 | Q44: 6.180642352 | R44: 6.312104615 | S44: 6.448067348 | T44: 6.588699697 | U44: 6.734178186 | V44: 6.884687069 | W44: 7.04041869 | X44: 7.201573874 | Y44: 7.368362325 | Z44: 7.541003054 | AA44: 7.719724826 | AB44: 7.904766631 | AC44: 8.09448103 | AD44: 8.288748574
A45: CO2 free certificates [Mio €] | I45: =IF(I34=0,0,I$11*I$37*I$22) -> 0 | J45: 19.52074939 | K45: 19.84407733 | L45: 22.13377856 | M45: 29.95922939 | N45: 26.30595875 | O45: 20.79693104 | P45: 16.87855224 | Q45: 12.09857196 | R45: 7.643951671 | S45: 3.821975836 | T45: 0 | U45: 0 | V45: 0 | W45: 0 | X45: 0 | Y45: 0 | Z45: 0 | AA45: 0 | AB45: 0 | AC45: 0 | AD45: 0
A46: Gross margin [Mio €] | I46: =I39-I42+SUM(I43:I45) -> 0 | J46: 58.13828772 | K46: 73.89142247 | L46: 83.58554346 | M46: 98.03719646 | N46: 99.68644304 | O46: 100.9517606 | P46: 101.5796689 | Q46: 94.1540952 | R46: 84.33053596 | S46: 84.53020089 | T46: 84.92814184 | U46: 88.46265718 | V46: 89.37168768 | W46: 85.75198861 | X46: 92.22196754 | Y46: 91.03275616 | Z46: 88.85520094 | AA46: 88.15694859 | AB46: 85.59061163 | AC46: 86.20018658 | AD46: =AD39-AD42+SUM(AD43:AD45) -> 82.58651285 | AE46: =IF(AE$34>0,(AD46*(IF(YEAR(AE$2)>=YEAR($B$6)+15,(1+2.25%)/(1+$B$7),1+2.25%))))*IF((YEAR(AE2)-YEAR($B$6))>=$B$16+1,0,1)*AE$33 -> 83.60862316 | AF46: 84.64338334 | AG46: 85.69094997 | AH46: 86.75148153 | AI46: 14.14960564 | AJ46: 0 | AK46: 0 | AL46: 0 | AM46: 0 | AN46: 0 | AO46: 0 | AP46: 0 | AQ46: 0 | AR46: 0 | AS46: 0 | AT46: 0 | AU46: 0 | AV46: 0 | AW46: 0 | AX46: 0 | AY46: 0 | AZ46: 0 | BA46: 0 | BB46: 0 | BC46: 0 | BD46: 0 | BE46: 0 | BF46: 0 | BG46: 0 | BH46: 0 | BI46: 0 | BJ46: 0 | BK46: 0 | BL46: 0 | BM46: 0 | BN46: 0 | BO46: 0 | BP46: 0 | BQ46: 0 | BR46: 0
A47: Fixed costs [Mio €] | B47: 15.18 | I47: =IF(I34>0,$B$47*$B$14/1000*I$4*I33,0) -> 0 | J47: 11.1785851 | K47: 13.58753317 | L47: 13.86381302 | M47: 14.15495309 | N47: 14.4522071 | O47: 14.77015566 | P47: 15.08032893 | Q47: 15.39701584 | R47: 15.72451036 | S47: 16.06321632 | T47: 16.41355506 | U47: 16.77596636 | V47: 17.15090921 | W47: 17.53886277 | X47: 17.94032734 | Y47: 18.35582532 | Z47: 18.78590231 | AA47: 19.2311282 | AB47: 19.69209834 | AC47: 20.1647087 | AD47: 20.64866171 | AE47: 21.14422959 | AF47: 21.6516911 | AG47: 22.17133169 | AH47: 22.70344365 | AI47: 3.745563681 | AJ47: 0 | AK47: 0 | AL47: 0 | AM47: 0 | AN47: =IF(AN34>0,$B$47*$B$14/1000*AN$4*AN33,0) -> 0 | AO47: 0 | AP47: 0 | AQ47: 0 | AR47: 0 | AS47: 0 | AT47: 0 | AU47: 0 | AV47: 0 | AW47: 0 | AX47: 0 | AY47: 0 | AZ47: 0 | BA47: 0 | BB47: 0 | BC47: 0 | BD47: 0 | BE47: 0 | BF47: 0 | BG47: 0 | BH47: 0 | BI47: 0 | BJ47: 0 | BK47: 0 | BL47: 0 | BM47: 0 | BN47: 0 | BO47: 0 | BP47: 0 | BQ47: 0 | BR47: 0
A48: Fixed gas costs [Mio. €] | B48: =2.3-2.0525 -> 0.2475 | D48: =1700/423*E8 -> 2.286761229 | E48: =1525.875/423*E8 -> 2.052536348 | I48: =IF(AND(I34>0,$A$5="GuD"),$B$48/I$8*$B$14/1000,0)*I$33*I$4 -> 0 | J48: 0.3203155355 | K48: 0.3893424727 | L48: 0.397259103 | M48: 0.4056015441 | N48: 0.4141191766 | O48: 0.4232297985 | P48: 0.4321176242 | Q48: 0.4411920943 | R48: 0.4505762502 | S48: 0.4602816626 | T48: 0.4703204057 | U48: 0.4807050802 | V48: 0.4914488388 | W48: 0.5025654115 | X48: 0.5140691338 | Y48: 0.5259749749 | Z48: 0.5382985686 | AA48: 0.5510562446 | AB48: 0.5642650628 | AC48: 0.5778074243 | AD48: 0.5916748025 | AE48: =IF(AE34>0,$AD48*AE$4/$AD$4,0)*AE33 -> 0.6058749978 | AF48: 0.6204159977 | AG48: 0.6353059817 | AH48: 0.6505533252 | AI48: 0.1073268419 | AJ48: 0 | AK48: 0 | AL48: 0 | AM48: 0 | AN48: 0 | AO48: 0 | AP48: 0 | AQ48: 0 | AR48: 0 | AS48: 0 | AT48: 0 | AU48: 0 | AV48: 0 | AW48: 0 | AX48: 0 | AY48: 0 | AZ48: 0 | BA48: 0 | BB48: 0 | BC48: 0 | BD48: 0 | BE48: 0 | BF48: 0 | BG48: 0 | BH48: 0 | BI48: 0 | BJ48: 0 | BK48: 0 | BL48: 0 | BM48: 0 | BN48: 0 | BO48: 0 | BP48: 0 | BQ48: 0 | BR48: 0
A49: Cash Flow before tax [Mio €] w/o invest | I49: =I46-I47-I48 -> 0 | J49: 46.63938709 | K49: 59.91454683 | L49: 69.32447134 | M49: 83.47664183 | N49: 84.82011676 | O49: 85.75837518 | P49: 86.06722238 | Q49: 78.31588727 | R49: 68.15544934 | S49: 68.00670291 | T49: 68.04426637 | U49: 71.20598574 | V49: 71.72932963 | W49: 67.71056042 | X49: 73.76757106 | Y49: 72.15095586 | Z49: 69.53100006 | AA49: 68.37476415 | AB49: 65.33424823 | AC49: 65.45767045 | AD49: 61.34617634 | AE49: 61.85851857 | AF49: 62.37127625 | AG49: 62.8843123 | AH49: 63.39748456 | AI49: 10.29671512 | AJ49: 0 | AK49: 0 | AL49: 0 | AM49: 0 | AN49: =AN46-AN47-AN48 -> 0 | AO49: 0 | AP49: 0 | AQ49: 0 | AR49: 0 | AS49: 0 | AT49: 0 | AU49: 0 | AV49: 0 | AW49: 0 | AX49: 0 | AY49: 0 | AZ49: 0 | BA49: 0 | BB49: 0 | BC49: 0 | BD49: 0 | BE49: 0 | BF49: 0 | BG49: 0 | BH49: 0 | BI49: 0 | BJ49: 0 | BK49: 0 | BL49: 0 | BM49: 0 | BN49: 0 | BO49: 0 | BP49: 0 | BQ49: 0 | BR49: 0
A51: Invest [Mio €] | F51: =F92 -> 6.456776419 | G51: 92.0317991 | H51: 213.1359894 | I51: 160.1744325 | J51: 0 | K51: 0 | L51: 0 | M51: 0 | N51: 0 | O51: 0 | P51: 0 | Q51: 0 | R51: 0 | S51: 0 | T51: 0 | U51: 0 | V51: 0 | W51: 0 | X51: 0 | Y51: 0 | Z51: 0 | AA51: 0 | AB51: 0 | AC51: 0 | AD51: 0 | AE51: 0 | AF51: 0 | AG51: 0 | AH51: 0 | AI51: 0 | AJ51: 0 | AK51: 0 | AL51: 0 | AM51: =AM92 -> 0 | AN51: 0 | AO51: 0 | AP51: 0 | AQ51: 0 | AR51: 0 | AS51: 0 | AT51: 0 | AU51: 0 | AV51: 0 | AW51: 0 | AX51: 0 | AY51: 0 | AZ51: 0 | BA51: 0 | BB51: 0 | BC51: 0 | BD51: 0 | BE51: 0 | BF51: 0 | BG51: 0 | BH51: 0 | BI51: 0 | BJ51: 0 | BK51: 0 | BL51: 0 | BM51: 0 | BN51: 0 | BO51: 0 | BP51: 0 | BQ51: 0 | BR51: 0
A52: Sunk Kosten [Mio €]
A53: Grid Connection [Mio €] | G53: =IF($B$6=G$2,$B53*G$4,0) -> 0 | H53: 0 | I53: 0 | J53: 0 | K53: 0 | L53: 0 | M53: 0 | N53: 0 | O53: 0 | P53: 0 | Q53: 0 | R53: 0 | S53: 0 | T53: 0 | U53: 0 | V53: 0 | W53: 0 | X53: 0 | Y53: 0 | Z53: 0 | AA53: 0 | AB53: 0 | AC53: 0 | AD53: 0 | AE53: 0 | AF53: 0 | AG53: 0 | AH53: 0 | AI53: 0 | AJ53: 0 | AK53: 0 | AL53: 0 | AM53: =IF($B$6=AM$2,$B53*AM$4,0) -> 0 | AN53: 0 | AO53: 0 | AP53: 0 | AQ53: 0 | AR53: 0 | AS53: 0 | AT53: 0 | AU53: 0 | AV53: 0 | AW53: 0 | AX53: 0 | AY53: 0 | AZ53: 0 | BA53: 0 | BB53: 0 | BC53: 0 | BD53: 0 | BE53: 0 | BF53: 0 | BG53: 0 | BH53: 0 | BI53: 0 | BJ53: 0 | BK53: 0 | BL53: 0 | BM53: 0 | BN53: 0 | BO53: 0 | BP53: 0 | BQ53: 0 | BR53: 0
A54: Demolition [Mio €] | B54: =IF($A$5="GuD",0.8%,1%)*$B$15*$B$14/1000 -> 3.689994431 | G54: =IF(YEAR($B$6)+$B$16+1=YEAR(G$2),$B54*G$4,0) -> 0 | H54: 0 | I54: 0 | J54: 0 | K54: 0 | L54: 0 | M54: 0 | N54: 0 | O54: 0 | P54: 0 | Q54: 0 | R54: 0 | S54: 0 | T54: 0 | U54: 0 | V54: 0 | W54: 0 | X54: 0 | Y54: 0 | Z54: 0 | AA54: 0 | AB54: 0 | AC54: 0 | AD54: 0 | AE54: 0 | AF54: 0 | AG54: 0 | AH54: 0 | AI54: 0 | AJ54: 6.995762584 | AK54: 0 | AL54: 0 | AM54: 0 | AN54: 0 | AO54: 0 | AP54: 0 | AQ54: 0 | AR54: 0 | AS54: 0 | AT54: 0 | AU54: 0 | AV54: 0 | AW54: 0 | AX54: 0 | AY54: 0 | AZ54: 0 | BA54: 0 | BB54: 0 | BC54: 0 | BD54: 0 | BE54: 0 | BF54: 0 | BG54: 0 | BH54: 0 | BI54: 0 | BJ54: 0 | BK54: 0 | BL54: 0 | BM54: 0 | BN54: 0 | BO54: 0 | BP54: 0 | BQ54: 0 | BR54: 0
A55: Cash Flow before tax [Mio €] with invest | G55: =G49-SUM(G51:G54) -> -92.0317991 | H55: =H49-SUM(H51:H54) -> -213.1359894 | I55: -160.1744325 | J55: 46.63938709 | K55: 59.91454683 | L55: 69.32447134 | M55: 83.47664183 | N55: 84.82011676 | O55: 85.75837518 | P55: 86.06722238 | Q55: 78.31588727 | R55: 68.15544934 | S55: 68.00670291 | T55: 68.04426637 | U55: 71.20598574 | V55: 71.72932963 | W55: 67.71056042 | X55: 73.76757106 | Y55: 72.15095586 | Z55: 69.53100006 | AA55: 68.37476415 | AB55: 65.33424823 | AC55: 65.45767045 | AD55: 61.34617634 | AE55: 61.85851857 | AF55: 62.37127625 | AG55: 62.8843123 | AH55: 63.39748456 | AI55: 10.29671512 | AJ55: -6.995762584 | AK55: 0 | AL55: 0 | AM55: =AM49-SUM(AM51:AM54) -> 0 | AN55: 0 | AO55: 0 | AP55: 0 | AQ55: 0 | AR55: 0 | AS55: 0 | AT55: 0 | AU55: 0 | AV55: 0 | AW55: 0 | AX55: 0 | AY55: 0 | AZ55: 0 | BA55: 0 | BB55: 0 | BC55: 0 | BD55: 0 | BE55: 0 | BF55: 0 | BG55: 0 | BH55: 0 | BI55: 0 | BJ55: 0 | BK55: 0 | BL55: 0 | BM55: 0 | BN55: 0 | BO55: 0 | BP55: 0 | BQ55: 0 | BR55: 0
A57: =B20 -> Gas | G57: =IF(AND((G$2)>=($B$6),YEAR(G$2)<YEAR($B$6)+$B$17),SUM($C$51:$AJ$51)/$B$17,0)*IF(AND((H$2)>=($B$6),YEAR(H$2)=YEAR($B$6)+$B$17),G$33-75%,G33) -> 0 | H57: 0 | I57: 0 | J57: 15.83147747 | K57: 18.8719599 | L57: 18.8719599 | M57: 18.8719599 | N57: 18.8719599 | O57: 18.8719599 | P57: 18.8719599 | Q57: 18.8719599 | R57: 18.8719599 | S57: 18.8719599 | T57: 18.8719599 | U57: 18.8719599 | V57: 18.8719599 | W57: 18.8719599 | X57: 18.8719599 | Y57: 18.8719599 | Z57: 18.8719599 | AA57: 18.8719599 | AB57: 18.8719599 | AC57: 18.8719599 | AD57: 18.8719599 | AE57: 18.8719599 | AF57: 18.8719599 | AG57: 18.8719599 | AH57: 4.717989974 | AI57: 0 | AJ57: 0 | AK57: 0 | AL57: 0 | AM57: =IF(AND((AM$2)>=($B$6),YEAR(AM$2)<YEAR($B$6)+$B$17),SUM($C$51:$AJ$51)/$B$17,0)*IF(AND((AN$2)>=($B$6),YEAR(AN$2)=YEAR($B$6)+$B$17),AM$33-75%,AM33) -> 0 | AN57: 0 | AO57: 0 | AP57: 0 | AQ57: 0 | AR57: 0 | AS57: 0 | AT57: 0 | AU57: 0 | AV57: 0 | AW57: 0 | AX57: 0 | AY57: 0 | AZ57: 0 | BA57: 0 | BB57: 0 | BC57: 0 | BD57: 0 | BE57: 0 | BF57: 0 | BG57: 0 | BH57: 0 | BI57: 0 | BJ57: 0 | BK57: 0 | BL57: 0 | BM57: 0 | BN57: 0 | BO57: 0 | BP57: 0 | BQ57: 0 | BR57: 0
A59: EBIT [Mio €] | G59: =G49-G57 -> 0 | H59: 0 | I59: 0 | J59: 30.80790962 | K59: 41.04258693 | L59: 50.45251145 | M59: 64.60468193 | N59: 65.94815687 | O59: 66.88641528 | P59: 67.19526249 | Q59: 59.44392738 | R59: 49.28348945 | S59: 49.13474301 | T59: 49.17230648 | U59: 52.33402584 | V59: 52.85736973 | W59: 48.83860053 | X59: 54.89561117 | Y59: 53.27899596 | Z59: 50.65904016 | AA59: 49.50280425 | AB59: 46.46228833 | AC59: 46.58571056 | AD59: 42.47421644 | AE59: 42.98655867 | AF59: 43.49931635 | AG59: 44.01235241 | AH59: 58.67949458 | AI59: 10.29671512 | AJ59: 0 | AK59: 0 | AL59: 0 | AM59: =AM49-AM57 -> 0 | AN59: 0 | AO59: 0 | AP59: 0 | AQ59: 0 | AR59: 0 | AS59: 0 | AT59: 0 | AU59: 0 | AV59: 0 | AW59: 0 | AX59: 0 | AY59: 0 | AZ59: 0 | BA59: 0 | BB59: 0 | BC59: 0 | BD59: 0 | BE59: 0 | BF59: 0 | BG59: 0 | BH59: 0 | BI59: 0 | BJ59: 0 | BK59: 0 | BL59: 0 | BM59: 0 | BN59: 0 | BO59: 0 | BP59: 0 | BQ59: 0 | BR59: 0
A60: Carryover [Mio €] | G60: =IF(AND(G59>0,F60>0),0,IF(AND(G59<=0,F60<=0),G59+F60,IF(AND(G59>0,F60<0,G59+F60<0),G59+F60,0))) -> 0 | H60: 0 | I60: =IF(AND(I59>0,H60>0),0,IF(AND(I59<=0,H60<=0),I59+H60,IF(AND(I59>0,H60<0,I59+H60<0),I59+H60,0))) -> 0 | J60: =IF(AND(J59>0,I60>0),0,IF(AND(J59<=0,I60<=0),J59+I60,IF(AND(J59>0,I60<0,J59+I60<0),J59+I60,0))) -> 0 | K60: 0 | L60: 0 | M60: 0 | N60: 0 | O60: 0 | P60: 0 | Q60: 0 | R60: 0 | S60: 0 | T60: 0 | U60: 0 | V60: 0 | W60: 0 | X60: 0 | Y60: 0 | Z60: 0 | AA60: 0 | AB60: 0 | AC60: 0 | AD60: 0 | AE60: 0 | AF60: 0 | AG60: 0 | AH60: 0 | AI60: 0 | AJ60: 0 | AK60: 0 | AL60: 0 | AM60: =IF(AND(AM59>0,AL60>0),0,IF(AND(AM59<=0,AL60<=0),AM59+AL60,IF(AND(AM59>0,AL60<0,AM59+AL60<0),AM59+AL60,0))) -> 0 | AN60: 0 | AO60: 0 | AP60: 0 | AQ60: 0 | AR60: 0 | AS60: 0 | AT60: 0 | AU60: 0 | AV60: 0 | AW60: 0 | AX60: 0 | AY60: 0 | AZ60: 0 | BA60: 0 | BB60: 0 | BC60: 0 | BD60: 0 | BE60: 0 | BF60: 0 | BG60: 0 | BH60: 0 | BI60: 0 | BJ60: 0 | BK60: 0 | BL60: 0 | BM60: 0 | BN60: 0 | BO60: 0 | BP60: 0 | BQ60: 0 | BR60: 0
A61: EBIT for taxes with loss carryover [Mio €] | G61: =IF(G59<0,0,IF(AND(G59>=0,F60>=0),G59,IF(G59+F60<0,0,G59+F60))) -> 0 | H61: 0 | I61: 0 | J61: 30.80790962 | K61: 41.04258693 | L61: 50.45251145 | M61: 64.60468193 | N61: 65.94815687 | O61: 66.88641528 | P61: 67.19526249 | Q61: 59.44392738 | R61: 49.28348945 | S61: 49.13474301 | T61: 49.17230648 | U61: 52.33402584 | V61: 52.85736973 | W61: 48.83860053 | X61: 54.89561117 | Y61: 53.27899596 | Z61: 50.65904016 | AA61: 49.50280425 | AB61: 46.46228833 | AC61: 46.58571056 | AD61: 42.47421644 | AE61: 42.98655867 | AF61: 43.49931635 | AG61: 44.01235241 | AH61: 58.67949458 | AI61: 10.29671512 | AJ61: 0 | AK61: 0 | AL61: 0 | AM61: =IF(AM59<0,0,IF(AND(AM59>=0,AL60>=0),AM59,IF(AM59+AL60<0,0,AM59+AL60))) -> 0 | AN61: 0 | AO61: 0 | AP61: 0 | AQ61: 0 | AR61: 0 | AS61: 0 | AT61: 0 | AU61: 0 | AV61: 0 | AW61: 0 | AX61: 0 | AY61: 0 | AZ61: 0 | BA61: 0 | BB61: 0 | BC61: 0 | BD61: 0 | BE61: 0 | BF61: 0 | BG61: 0 | BH61: 0 | BI61: 0 | BJ61: 0 | BK61: 0 | BL61: 0 | BM61: 0 | BN61: 0 | BO61: 0 | BP61: 0 | BQ61: 0 | BR61: 0
A62: Carryover ja=1 (für IPP); nein=0 (für Portfolio KW) | B62: 0
A63: Taxes | B63: 0.344 | G63: =IF($B$62=0,G59,G61)*$B$63 -> 0 | H63: 0 | I63: 0 | J63: 10.59792091 | K63: 14.1186499 | L63: 17.35566394 | M63: 22.22401058 | N63: 22.68616596 | O63: 23.00892686 | P63: 23.1151703 | Q63: 20.44871102 | R63: 16.95352037 | S63: 16.9023516 | T63: 16.91527343 | U63: 18.00290489 | V63: 18.18293519 | W63: 16.80047858 | X63: 18.88409024 | Y63: 18.32797461 | Z63: 17.42670982 | AA63: 17.02896466 | AB63: 15.98302719 | AC63: 16.02548443 | AD63: 14.61113046 | AE63: 14.78737618 | AF63: 14.96376482 | AG63: 15.14024923 | AH63: 20.18574614 | AI63: 3.542070002 | AJ63: 0 | AK63: 0 | AL63: 0 | AM63: =IF($B$62=0,AM59,AM61)*$B$63 -> 0 | AN63: 0 | AO63: 0 | AP63: 0 | AQ63: 0 | AR63: 0 | AS63: 0 | AT63: 0 | AU63: 0 | AV63: 0 | AW63: 0 | AX63: 0 | AY63: 0 | AZ63: 0 | BA63: 0 | BB63: 0 | BC63: 0 | BD63: 0 | BE63: 0 | BF63: 0 | BG63: 0 | BH63: 0 | BI63: 0 | BJ63: 0 | BK63: 0 | BL63: 0 | BM63: 0 | BN63: 0 | BO63: 0 | BP63: 0 | BQ63: 0 | BR63: 0
A64: Cash Flow after taxes [Mio €] w/o invest | G64: =G49-G63 -> 0 | H64: 0 | I64: 0 | J64: 36.04146618 | K64: 45.79589692 | L64: 51.96880741 | M64: 61.25263124 | N64: 62.1339508 | O64: 62.74944832 | P64: =P49-P63 -> 62.95205209 | Q64: 57.86717626 | R64: 51.20192897 | S64: 51.10435131 | T64: 51.12899294 | U64: 53.20308085 | V64: 53.54639444 | W64: 50.91008184 | X64: 54.88348082 | Y64: 53.82298125 | Z64: 52.10429024 | AA64: 51.34579949 | AB64: 49.35122104 | AC64: 49.43218602 | AD64: 46.73504588 | AE64: 47.07114239 | AF64: 47.40751142 | AG64: 47.74406307 | AH64: 43.21173842 | AI64: 6.75464512 | AJ64: 0 | AK64: 0 | AL64: 0 | AM64: =AM49-AM63 -> 0 | AN64: 0 | AO64: 0 | AP64: 0 | AQ64: 0 | AR64: 0 | AS64: 0 | AT64: 0 | AU64: 0 | AV64: 0 | AW64: 0 | AX64: 0 | AY64: 0 | AZ64: 0 | BA64: 0 | BB64: 0 | BC64: 0 | BD64: 0 | BE64: 0 | BF64: 0 | BG64: 0 | BH64: 0 | BI64: 0 | BJ64: 0 | BK64: 0 | BL64: 0 | BM64: 0 | BN64: 0 | BO64: 0 | BP64: 0 | BQ64: 0 | BR64: 0
A65: Discounted Cash Flow at start of operation | G65: =G64*G$3 -> 0 | H65: 0 | I65: 0 | J65: 34.0795126 | K65: 40.50790558 | L65: 43.00097128 | M65: 47.4113759 | N65: 44.98928317 | O65: 42.50228812 | P65: =P64*P$3 -> 39.88729503 | Q65: 34.29882791 | R65: 28.38936027 | S65: 26.50632131 | T65: 24.80739214 | U65: 24.14754309 | V65: 22.73467213 | W65: 20.22015836 | X65: 20.39128993 | Y65: 18.70652405 | Z65: 16.94030113 | AA65: 15.61618183 | AB65: 14.04074441 | AC65: 13.15601447 | AD65: 11.63535114 | AE65: 10.96260722 | AF65: 10.32829345 | AG65: 9.730229426 | AH65: 8.238112882 | AI65: 1.204622114 | AJ65: 0 | AK65: 0 | AL65: 0 | AM65: =AM64*AM$3 -> 0 | AN65: 0 | AO65: 0 | AP65: 0 | AQ65: 0 | AR65: 0 | AS65: 0 | AT65: 0 | AU65: 0 | AV65: 0 | AW65: 0 | AX65: 0 | AY65: 0 | AZ65: 0 | BA65: 0 | BB65: 0 | BC65: 0 | BD65: 0 | BE65: 0 | BF65: 0 | BG65: 0 | BH65: 0 | BI65: 0 | BJ65: 0 | BK65: 0 | BL65: 0 | BM65: 0 | BN65: 0 | BO65: 0 | BP65: 0 | BQ65: 0 | BR65: 0
A67: Cash Flow after taxes [Mio €] with invest | G67: =G64-SUM(G$51:G$54) -> -92.0317991 | H67: =H64-SUM(H$51:H$54) -> -213.1359894 | I67: =I64-SUM(I$51:I$54) -> -160.1744325 | J67: =J64-SUM(J$51:J$54) -> 36.04146618 | K67: 45.79589692 | L67: 51.96880741 | M67: 61.25263124 | N67: 62.1339508 | O67: 62.74944832 | P67: =P64-SUM(P$51:P$54) -> 62.95205209 | Q67: 57.86717626 | R67: 51.20192897 | S67: 51.10435131 | T67: 51.12899294 | U67: 53.20308085 | V67: 53.54639444 | W67: 50.91008184 | X67: 54.88348082 | Y67: 53.82298125 | Z67: 52.10429024 | AA67: 51.34579949 | AB67: 49.35122104 | AC67: 49.43218602 | AD67: 46.73504588 | AE67: 47.07114239 | AF67: 47.40751142 | AG67: 47.74406307 | AH67: 43.21173842 | AI67: 6.75464512 | AJ67: -6.995762584 | AK67: 0 | AL67: 0 | AM67: =AM64-SUM(AM$51:AM$54) -> 0 | AN67: 0 | AO67: 0 | AP67: 0 | AQ67: 0 | AR67: 0 | AS67: 0 | AT67: 0 | AU67: 0 | AV67: 0 | AW67: 0 | AX67: 0 | AY67: 0 | AZ67: 0 | BA67: 0 | BB67: 0 | BC67: 0 | BD67: 0 | BE67: 0 | BF67: 0 | BG67: 0 | BH67: 0 | BI67: 0 | BJ67: 0 | BK67: 0 | BL67: 0 | BM67: 0 | BN67: 0 | BO67: 0 | BP67: 0 | BQ67: 0 | BR67: 0
A68: Discounted Cash Flow at start of operation | G68: =G67*G$3 -> -106.3070221 | H68: -230.3048718 | I68: -161.9055827 | J68: 34.0795126 | K68: 40.50790558 | L68: 43.00097128 | M68: 47.4113759 | N68: 44.98928317 | O68: 42.50228812 | P68: =P67*P$3 -> 39.88729503 | Q68: 34.29882791 | R68: 28.38936027 | S68: 26.50632131 | T68: 24.80739214 | U68: 24.14754309 | V68: 22.73467213 | W68: 20.22015836 | X68: 20.39128993 | Y68: 18.70652405 | Z68: 16.94030113 | AA68: 15.61618183 | AB68: 14.04074441 | AC68: 13.15601447 | AD68: 11.63535114 | AE68: 10.96260722 | AF68: 10.32829345 | AG68: 9.730229426 | AH68: 8.238112882 | AI68: 1.204622114 | AJ68: -1.167093505 | AK68: 0 | AL68: 0 | AM68: =AM67*AM$3 -> 0 | AN68: 0 | AO68: 0 | AP68: 0 | AQ68: 0 | AR68: 0 | AS68: 0 | AT68: 0 | AU68: 0 | AV68: 0 | AW68: 0 | AX68: 0 | AY68: 0 | AZ68: 0 | BA68: 0 | BB68: 0 | BC68: 0 | BD68: 0 | BE68: 0 | BF68: 0 | BG68: 0 | BH68: 0 | BI68: 0 | BJ68: 0 | BK68: 0 | BL68: 0 | BM68: 0 | BN68: 0 | BO68: 0 | BP68: 0 | BQ68: 0 | BR68: 0
B71: n.St
A72: Net Present Value at start of operation
A73: NPV from operation at start of operation | B73: =SUM(C65:BR65) -> 624.433179
A74: NPV Invest at start of operation | B74: =SUMPRODUCT($C$51:$BR$51,$C$3:$BR$3)+SUMPRODUCT($C$52:$BR$52,$C$3:$BR$3)+SUMPRODUCT($C$54:$BR$54,$C$3:$BR$3) -> 499.6845701
A75: Net Present Value at start of operation | B75: =B73-B74 -> 124.7486089
B76: =SUM(C68:BR68) -> 124.7486089
A77: 2009-01-01
A78: NPV from operation at 1.1.2009 | B78: =B73*(1+$B$3)^(($A$77-$B$6)/365) -> 577.8620826
A79: NPV Invest at 1.1.2009 | B79: =B74*(1+$B$3)^(($A$77-$B$6)/365) -> 462.4173987
A80: Net Present Value at 01.01.2009 | B80: =B75*(1+$B$3)^(($A$77-$B$6)/365) -> 115.4446838
A82: IRR | B82: =IRR($D$67:$BR$67,-0.1) -> 0.09298318616
A83: VAN @ 6% | B83: =NPV(6%,G67:BR67) -> 151.4258252
A85: IBN=0 | C85: -5 | D85: -4 | E85: -3 | F85: -2 | G85: -1 | H85: 0 | I85: 1
A86: Variable Payment Schedule | B86: SK | C86: 0.1 | D86: 0.215 | E86: 0.26 | F86: 0.235 | G86: 0.14 | H86: 0.05 | I86: 0
B87: GuD | C87: 0 | D87: =F98/$C$98 -> 0.01399845239 | E87: =G98/$C$98 -> 0.1995272369 | F87: 0.45302367 | G87: 0.3334506408 | H87: =J98/G98 -> 0 | I87: 0
B88: BK | C88: 0.1 | D88: 0.215 | E88: 0.26 | F88: 0.235 | G88: 0.14 | H88: 0.05 | I88: 0
A89: NPV of invest at start of operation
A90: Order Value | F90: =G90 -> 461.2493038 | G90: =$B$15*$B$14/1000*G$4 -> 461.2493038 | H90: =$B$15*$B$14/1000*H$4 -> 470.4742899 | I90: 480.35425 | J90: 489.4809807 | K90: 499.10744 | L90: 509.255958 | M90: 519.9503331 | N90: 530.8692901 | O90: 542.5484145 | P90: 553.9419312 | Q90: 565.5747117 | R90: 577.6044858 | S90: 590.0460865 | T90: 602.9149916 | U90: 616.2273546 | V90: 630.000036 | W90: 644.2506368 | X90: 658.9975339 | Y90: 674.2599168 | Z90: 690.0578266 | AA90: 706.4121971 | AB90: 723.3448975 | AC90: 740.705175 | AD90: 758.4820992 | AE90: 776.6856696 | AF90: 795.3261257 | AG90: 814.4139527 | AH90: 833.9598875 | AI90: 853.9749248 | AJ90: 874.470323 | AK90: 895.4576108 | AL90: 916.9485935 | AM90: 938.9553597 | AN90: 961.4902883 | AO90: 984.5660553 | AP90: 1008.195641 | AQ90: 1032.392336 | AR90: 1057.169752 | AS90: 1082.541826 | AT90: 1108.52283 | AU90: 1135.127378 | AV90: 1162.370435 | AW90: 1190.267325 | AX90: 1218.833741 | AY90: 1248.085751 | AZ90: 1278.039809 | BA90: 1308.712764 | BB90: 1340.121871 | BC90: 1372.284796 | BD90: 1405.219631 | BE90: 1438.944902 | BF90: 1473.479579 | BG90: 1508.843089 | BH90: 1545.055324 | BI90: 1582.136651 | BJ90: 1620.107931 | BK90: 1658.990521 | BL90: 1698.806294 | BM90: 1739.577645 | BN90: 1781.327508 | BO90: 1824.079368 | BP90: 1867.857273 | BQ90: 1912.685848 | BR90: 1958.590308
A91: Payment schedule | F91: =D87 -> 0.01399845239 | G91: =G$106+IF(OR(YEAR(G$2)-YEAR($B$6)<=-6,YEAR(G$2)-YEAR($B$6)>=2),0, HLOOKUP(YEAR(G$2)-YEAR($B$6),$C$85:$I$88, IF($B16="Kohle",2, IF($B$20="Gas",3, 4)))) -> 0.1995272369 | H91: =H$106+IF(OR(YEAR(H$2)-YEAR($B$6)<=-6,YEAR(H$2)-YEAR($B$6)>=2),0, HLOOKUP(YEAR(H$2)-YEAR($B$6),$C$85:$I$88, IF($B16="Kohle",2, IF($B$20="Gas",3, 4)))) -> 0.45302367 | I91: =I$106+IF(OR(YEAR(I$2)-YEAR($B$6)<=-6,YEAR(I$2)-YEAR($B$6)>=2),0, HLOOKUP(YEAR(I$2)-YEAR($B$6),$C$85:$I$88, IF($B16="Kohle",2, IF($B$20="Gas",3, 4)))) -> 0.3334506408 | J91: =IF(OR(YEAR(J$2)-YEAR($B$6)<=-6,YEAR(J$2)-YEAR($B$6)>=2),0, HLOOKUP(YEAR(J$2)-YEAR($B$6),$C$85:$I$88, IF($B16="Kohle",2, IF($B$20="Gas",3, 4)))) -> 0 | K91: =IF(OR(YEAR(K$2)-YEAR($B$6)<=-6,YEAR(K$2)-YEAR($B$6)>=2),0, HLOOKUP(YEAR(K$2)-YEAR($B$6),$C$85:$I$88, IF($B16="Kohle",2, IF($B$20="Gas",3, 4)))) -> 0 | L91: 0 | M91: 0 | N91: 0 | O91: 0 | P91: 0 | Q91: 0 | R91: 0 | S91: 0 | T91: 0 | U91: 0 | V91: 0 | W91: 0 | X91: 0 | Y91: 0 | Z91: 0 | AA91: 0 | AB91: 0 | AC91: 0 | AD91: 0 | AE91: 0 | AF91: 0 | AG91: 0 | AH91: 0 | AI91: 0 | AJ91: 0 | AK91: 0 | AL91: 0 | AM91: 0 | AN91: 0 | AO91: 0 | AP91: 0 | AQ91: 0 | AR91: 0 | AS91: 0 | AT91: 0 | AU91: 0 | AV91: 0 | AW91: 0 | AX91: 0 | AY91: 0 | AZ91: 0 | BA91: 0 | BB91: 0 | BC91: 0 | BD91: 0 | BE91: 0 | BF91: 0 | BG91: 0 | BH91: 0 | BI91: 0 | BJ91: 0 | BK91: 0 | BL91: 0 | BM91: 0 | BN91: 0 | BO91: 0 | BP91: 0 | BQ91: 0 | BR91: 0
A92: Expenditure nominal | F92: =F91*F90 -> 6.456776419 | G92: =G91*G90 -> 92.0317991 | H92: =H91*H90 -> 213.1359894 | I92: 160.1744325 | J92: 0 | K92: 0 | L92: 0 | M92: 0 | N92: 0 | O92: 0 | P92: 0 | Q92: 0 | R92: 0 | S92: 0 | T92: 0 | U92: 0 | V92: 0 | W92: 0 | X92: 0 | Y92: 0 | Z92: 0 | AA92: 0 | AB92: 0 | AC92: 0 | AD92: 0 | AE92: 0 | AF92: 0 | AG92: 0 | AH92: 0 | AI92: 0 | AJ92: 0 | AK92: 0 | AL92: 0 | AM92: 0 | AN92: 0 | AO92: 0 | AP92: 0 | AQ92: 0 | AR92: 0 | AS92: 0 | AT92: 0 | AU92: 0 | AV92: 0 | AW92: 0 | AX92: 0 | AY92: 0 | AZ92: 0 | BA92: 0 | BB92: 0 | BC92: 0 | BD92: 0 | BE92: 0 | BF92: 0 | BG92: 0 | BH92: 0 | BI92: 0 | BJ92: 0 | BK92: 0 | BL92: 0 | BM92: 0 | BN92: =BN91*BN90 -> 0 | BO92: =BO91*BO90 -> 0 | BP92: =BP91*BP90 -> 0 | BQ92: =BQ91*BQ90 -> 0 | BR92: =BR91*BR90 -> 0
E93: Invest | F93: =SUM(C92:AX92) -> 471.7989974
E94: Abschreibung | F94: =F93/$B$17 -> 18.8719599
A96: Ursprüngliches Invest nominal | F96: 6.603 | G96: 94.116 | H96: 213.689 | I96: 157.287 | J96: 0 | K96: 0 | L96: 0
A97: Zusatz Invest nominal (Siemens & CMI)
A98: Gesamt Invest | B98: Mio € | C98: =SUM(F98:P98) -> 471.695 | F98: =SUM(F96:F97) -> 6.603 | G98: 94.116 | H98: 213.689 | I98: 157.287 | J98: 0 | K98: 0 | L98: =SUM(L96:L97) -> 0 | M98: 0 | N98: =SUM(N96:N97) -> 0 | O98: 0 | P98: 0
A99: gesamt Invest GW 2007 | B99: Mio € | C99: =SUM(F99:P99) -> 461.2493038 | F99: =F98 -> 6.603 | G99: =G98/G4 -> 94.116 | H99: =H98/H4 -> 209.4990196 | I99: =I98/I4 -> 151.0312842 | J99: =J98/J4 -> 0 | K99: =K98/K4 -> 0 | L99: =L98/L4 -> 0 | M99: =M98/M4 -> 0 | N99: =N98/N4 -> 0 | O99: 0 | P99: 0
D100: =C99/413.6/2*1000 -> 557.6031236
A101: Invest Fix | F101: =-F52 -> 0 | G101: =-G52 -> 0 | H101: =-H52/H$4 -> 0 | I101: =-I52/I$4 -> 0
A102: Zahlplan Fix | F102: =F101/SUM($F$99:$M$99) -> 0 | G102: =G101/SUM($F$99:$M$99) -> 0 | H102: 0 | I102: 0
A103: Zahlplan Variable | F103: =(F99-F101)/SUM($F$99:$P$99) -> 0.01431546876 | G103: 0.2040458364 | H103: =(H99-H101)/SUM($F$99:$P$99) -> 0.454199102 | I103: =(I99-I101)/SUM($F$99:$P$99) -> 0.3274395928 | J103: 0 | K103: 0 | L103: 0 | M103: 0 | N103: 0 | O103: 0 | P103: 0 | Q103: =SUM(F103:P103) -> 1
B106: Mio € | C106: =$B$15*413.6/1000*2 -> 461.2493038 | F106: =F101/$C$106 -> 0 | G106: =G101/$C$106 -> 0 | H106: =H101/$C$106 -> 0 | I106: 0
F107: =F103/$Q$103*(100%-SUM($G$106:$I$106)) -> 0.01431546876 | G107: 0.2040458364 | H107: =H103/$Q$103*(100%-SUM($G$106:$I$106)) -> 0.454199102 | I107: 0.3274395928 | J107: 0 | K107: 0 | L107: 0 | M107: 0 | N107: 0 | O107: 0 | P107: 0 | Q107: =SUM(F107:P107) -> 1

Sheet Strompreise
A1: Strompreise
A2: [EUR/MWh] | C2: Base price Poyry | G2: 44.56828308 | H2: 51.79074478 | I2: 56.94295883 | J2: 58.5908432 | K2: 59.42261505 | L2: 58.99443436 | M2: 58.98564529 | N2: 59.38744736 | O2: 59.13591385 | P2: 58.36896515 | Q2: 58.69896317 | R2: 58.94857788 | S2: 60.49742889 | T2: 62.7430687 | U2: 64.47631836 | V2: 70.07758331 | W2: 73.89997864 | X2: 76.44523621 | Y2: 77.17676544 | Z2: 77.8287735 | AA2: 79.22148132 | AB2: 79.14295959
A4: Lastpunkt | B4: Dauer [h] | C4: LowCut | D4: Peak | E4: 2007 | F4: 2008 | G4: 2009 | H4: 2010 | I4: 2011 | J4: 2012 | K4: 2013 | L4: 2014 | M4: 2015 | N4: 2016 | O4: 2017 | P4: 2018 | Q4: 2019 | R4: 2020 | S4: 2021 | T4: 2022 | U4: 2023 | V4: 2024 | W4: 2025 | X4: 2026 | Y4: 2027 | Z4: 2028 | AA4: 2029 | AB4: 2030 | AC4: 2031 | AD4: 2032 | AE4: 2033 | AF4: 2034 | AG4: 2035
A7: Peakprices LTM | G7: 102.16 | H7: 102.9 | I7: 103.16 | J7: 87.18137822 | K7: 71.20275644 | L7: 55.22413466 | M7: 58.94550422 | N7: 65.40694477 | O7: 66.76374957 | P7: 71.24480203 | Q7: 80.75839761 | R7: 84.80848198 | S7: 87.28995149 | T7: 89.25368653 | U7: 96.80475938 | V7: 99.80663804 | W7: 104.9253344 | X7: 108.0118461 | Y7: 109.4395939 | Z7: 112.1256582 | AA7: 113.2665819 | AB7: 116.7246312
A8: Baseprices LTM | G8: 73.35 | H8: 72.16 | I8: 72.75 | J8: 63.56589808 | K8: 54.38179615 | L8: 45.19769423 | M8: 48.15095525 | N8: 51.95469334 | O8: 53.5612295 | P8: 57.27953897 | Q8: 62.97058631 | R8: 65.5868037 | S8: 66.83737434 | T8: 69.02643078 | U8: 74.80566208 | V8: 77.6009183 | W8: 80.46901836 | X8: 82.99098509 | Y8: 83.51366658 | Z8: 84.83045094 | AA8: 85.40365683 | AB8: 87.59979785
A9: 1 | B9: =[4]Strompreise!B4 -> 164 | C9: =[4]Strompreise!C4 -> 0.86 | D9: =[4]Strompreise!D4 -> 0 | G9: =G$2*'Load point'!$G3/'Load point'!$D$1 -> 40.02792889 | H9: =H$2*'Load point'!$G3/'Load point'!$D$1 -> 46.51460873 | I9: =I$2*'Load point'!$G3/'Load point'!$D$1 -> 51.14194556 | J9: =J$2*'Load point'!$G3/'Load point'!$D$1 -> 52.62195317 | K9: =K$2*'Load point'!$G3/'Load point'!$D$1 -> 53.368989 | L9: =L$2*'Load point'!$G3/'Load point'!$D$1 -> 52.98442884 | M9: =M$2*'Load point'!$G3/'Load point'!$D$1 -> 52.97653515 | N9: =N$2*'Load point'!$G3/'Load point'!$D$1 -> 53.33740399 | O9: =O$2*'Load point'!$G3/'Load point'!$D$1 -> 53.11149523 | P9: =P$2*'Load point'!$G3/'Load point'!$D$1 -> 52.42267875 | Q9: =Q$2*'Load point'!$G3/'Load point'!$D$1 -> 52.71905851 | R9: =R$2*'Load point'!$G3/'Load point'!$D$1 -> 52.94324395 | S9: =S$2*'Load point'!$G3/'Load point'!$D$1 -> 54.33430714 | T9: =T$2*'Load point'!$G3/'Load point'!$D$1 -> 56.35117439 | U9: =U$2*'Load point'!$G3/'Load point'!$D$1 -> 57.90785078 | V9: =V$2*'Load point'!$G3/'Load point'!$D$1 -> 62.93849185 | W9: =W$2*'Load point'!$G3/'Load point'!$D$1 -> 66.37148405 | X9: =X$2*'Load point'!$G3/'Load point'!$D$1 -> 68.65744577 | Y9: =Y$2*'Load point'!$G3/'Load point'!$D$1 -> 69.31445112 | Z9: =Z$2*'Load point'!$G3/'Load point'!$D$1 -> 69.90003643 | AA9: =AA$2*'Load point'!$G3/'Load point'!$D$1 -> 71.15086339 | AB9: =AB$2*'Load point'!$G3/'Load point'!$D$1 -> 71.08034099
A10: 2 | B10: =[4]Strompreise!B5 -> 82 | C10: =[4]Strompreise!C5 -> 1 | D10: =[4]Strompreise!D5 -> 0 | G10: =G$2*'Load point'!$G4/'Load point'!$D$1 -> 34.44129367 | H10: =H$2*'Load point'!$G4/'Load point'!$D$1 -> 40.02263779 | I10: =I$2*'Load point'!$G4/'Load point'!$D$1 -> 44.00414447 | J10: =J$2*'Load point'!$G4/'Load point'!$D$1 -> 45.27758975 | K10: =K$2*'Load point'!$G4/'Load point'!$D$1 -> 45.92036296 | L10: =L$2*'Load point'!$G4/'Load point'!$D$1 -> 45.58947526 | M10: =M$2*'Load point'!$G4/'Load point'!$D$1 -> 45.58268328 | N10: =N$2*'Load point'!$G4/'Load point'!$D$1 -> 45.89318622 | O10: =O$2*'Load point'!$G4/'Load point'!$D$1 -> 45.69880719 | P10: =P$2*'Load point'!$G4/'Load point'!$D$1 -> 45.10612775 | Q10: =Q$2*'Load point'!$G4/'Load point'!$D$1 -> 45.36114225 | R10: =R$2*'Load point'!$G4/'Load point'!$D$1 -> 45.55403848 | S10: =S$2*'Load point'!$G4/'Load point'!$D$1 -> 46.75095316 | T10: =T$2*'Load point'!$G4/'Load point'!$D$1 -> 48.48632941 | U10: =U$2*'Load point'!$G4/'Load point'!$D$1 -> 49.82574293 | V10: =V$2*'Load point'!$G4/'Load point'!$D$1 -> 54.15426532 | W10: =W$2*'Load point'!$G4/'Load point'!$D$1 -> 57.10812018 | X10: =X$2*'Load point'!$G4/'Load point'!$D$1 -> 59.07503381 | Y10: =Y$2*'Load point'!$G4/'Load point'!$D$1 -> 59.64034195 | Z10: =Z$2*'Load point'!$G4/'Load point'!$D$1 -> 60.14419805 | AA10: =AA$2*'Load point'!$G4/'Load point'!$D$1 -> 61.22044905 | AB10: =AB$2*'Load point'!$G4/'Load point'!$D$1 -> 61.15976935
A11: 3 | B11: =[4]Strompreise!B6 -> 82 | C11: =[4]Strompreise!C6 -> 1 | D11: =[4]Strompreise!D6 -> 0 | G11: =G$2*'Load point'!$G5/'Load point'!$D$1 -> 46.25800531 | H11: =H$2*'Load point'!$G5/'Load point'!$D$1 -> 53.754293 | I11: =I$2*'Load point'!$G5/'Load point'!$D$1 -> 59.10184351 | J11: =J$2*'Load point'!$G5/'Load point'!$D$1 -> 60.8122043 | K11: =K$2*'Load point'!$G5/'Load point'!$D$1 -> 61.67551121 | L11: =L$2*'Load point'!$G5/'Load point'!$D$1 -> 61.23109685 | M11: =M$2*'Load point'!$G5/'Load point'!$D$1 -> 61.22197457 | N11: =N$2*'Load point'!$G5/'Load point'!$D$1 -> 61.6390102 | O11: =O$2*'Load point'!$G5/'Load point'!$D$1 -> 61.37794027 | P11: =P$2*'Load point'!$G5/'Load point'!$D$1 -> 60.58191416 | Q11: =Q$2*'Load point'!$G5/'Load point'!$D$1 -> 60.92442343 | R11: =R$2*'Load point'!$G5/'Load point'!$D$1 -> 61.18350181 | S11: =S$2*'Load point'!$G5/'Load point'!$D$1 -> 62.79107459 | T11: =T$2*'Load point'!$G5/'Load point'!$D$1 -> 65.12185358 | U11: =U$2*'Load point'!$G5/'Load point'!$D$1 -> 66.92081613 | V11: =V$2*'Load point'!$G5/'Load point'!$D$1 -> 72.73444246 | W11: =W$2*'Load point'!$G5/'Load point'!$D$1 -> 76.70175668 | X11: =X$2*'Load point'!$G5/'Load point'!$D$1 -> 79.34351287 | Y11: =Y$2*'Load point'!$G5/'Load point'!$D$1 -> 80.10277666 | Z11: =Z$2*'Load point'!$G5/'Load point'!$D$1 -> 80.77950437 | AA11: =AA$2*'Load point'!$G5/'Load point'!$D$1 -> 82.22501408 | AB11: =AB$2*'Load point'!$G5/'Load point'!$D$1 -> 82.14351535
A12: 4 | B12: =[4]Strompreise!B7 -> 82 | C12: =[4]Strompreise!C7 -> 1 | D12: =[4]Strompreise!D7 -> 1 | G12: =G$2*'Load point'!$G6/'Load point'!$D$1 -> 63.34601277 | H12: =H$2*'Load point'!$G6/'Load point'!$D$1 -> 73.61147779 | I12: =I$2*'Load point'!$G6/'Load point'!$D$1 -> 80.93444817 | J12: =J$2*'Load point'!$G6/'Load point'!$D$1 -> 83.27662734 | K12: =K$2*'Load point'!$G6/'Load point'!$D$1 -> 84.45884543 | L12: =L$2*'Load point'!$G6/'Load point'!$D$1 -> 83.85026152 | M12: =M$2*'Load point'!$G6/'Load point'!$D$1 -> 83.83776941 | N12: =N$2*'Load point'!$G6/'Load point'!$D$1 -> 84.40886071 | O12: =O$2*'Load point'!$G6/'Load point'!$D$1 -> 84.05134986 | P12: =P$2*'Load point'!$G6/'Load point'!$D$1 -> 82.96126653 | Q12: =Q$2*'Load point'!$G6/'Load point'!$D$1 -> 83.43030095 | R12: =R$2*'Load point'!$G6/'Load point'!$D$1 -> 83.78508457 | S12: =S$2*'Load point'!$G6/'Load point'!$D$1 -> 85.98650516 | T12: =T$2*'Load point'!$G6/'Load point'!$D$1 -> 89.17828904 | U12: =U$2*'Load point'!$G6/'Load point'!$D$1 -> 91.64180003 | V12: =V$2*'Load point'!$G6/'Load point'!$D$1 -> 99.60301767 | W12: =W$2*'Load point'!$G6/'Load point'!$D$1 -> 105.0358835 | X12: =X$2*'Load point'!$G6/'Load point'!$D$1 -> 108.6535216 | Y12: =Y$2*'Load point'!$G6/'Load point'!$D$1 -> 109.6932624 | Z12: =Z$2*'Load point'!$G6/'Load point'!$D$1 -> 110.6199777 | AA12: =AA$2*'Load point'!$G6/'Load point'!$D$1 -> 112.5994681 | AB12: =AB$2*'Load point'!$G6/'Load point'!$D$1 -> 112.4878632
A13: 5 | B13: =[4]Strompreise!B8 -> 82 | C13: =[4]Strompreise!C8 -> 1 | D13: =[4]Strompreise!D8 -> 1 | G13: =G$2*'Load point'!$G7/'Load point'!$D$1 -> 68.08648562 | H13: =H$2*'Load point'!$G7/'Load point'!$D$1 -> 79.1201625 | I13: =I$2*'Load point'!$G7/'Load point'!$D$1 -> 86.99114436 | J13: =J$2*'Load point'!$G7/'Load point'!$D$1 -> 89.50859955 | K13: =K$2*'Load point'!$G7/'Load point'!$D$1 -> 90.77928844 | L13: =L$2*'Load point'!$G7/'Load point'!$D$1 -> 90.12516141 | M13: =M$2*'Load point'!$G7/'Load point'!$D$1 -> 90.11173445 | N13: =N$2*'Load point'!$G7/'Load point'!$D$1 -> 90.72556313 | O13: =O$2*'Load point'!$G7/'Load point'!$D$1 -> 90.3412981 | P13: =P$2*'Load point'!$G7/'Load point'!$D$1 -> 89.16963884 | Q13: =Q$2*'Load point'!$G7/'Load point'!$D$1 -> 89.67377325 | R13: =R$2*'Load point'!$G7/'Load point'!$D$1 -> 90.05510696 | S13: =S$2*'Load point'!$G7/'Load point'!$D$1 -> 92.42126996 | T13: =T$2*'Load point'!$G7/'Load point'!$D$1 -> 95.85190968 | U13: =U$2*'Load point'!$G7/'Load point'!$D$1 -> 98.49977651 | V13: =V$2*'Load point'!$G7/'Load point'!$D$1 -> 107.0567686 | W13: =W$2*'Load point'!$G7/'Load point'!$D$1 -> 112.8962007 | X13: =X$2*'Load point'!$G7/'Load point'!$D$1 -> 116.7845633 | Y13: =Y$2*'Load point'!$G7/'Load point'!$D$1 -> 117.9021126 | Z13: =Z$2*'Load point'!$G7/'Load point'!$D$1 -> 118.8981783 | AA13: =AA$2*'Load point'!$G7/'Load point'!$D$1 -> 121.025803 | AB13: =AB$2*'Load point'!$G7/'Load point'!$D$1 -> 120.9058462
A14: 6 | B14: =[4]Strompreise!B9 -> 82 | C14: =[4]Strompreise!C9 -> 1 | D14: =[4]Strompreise!D9 -> 1 | G14: =G$2*'Load point'!$G8/'Load point'!$D$1 -> 63.87436401 | H14: =H$2*'Load point'!$G8/'Load point'!$D$1 -> 74.22545039 | I14: =I$2*'Load point'!$G8/'Load point'!$D$1 -> 81.6094996 | J14: =J$2*'Load point'!$G8/'Load point'!$D$1 -> 83.97121423 | K14: =K$2*'Load point'!$G8/'Load point'!$D$1 -> 85.16329286 | L14: =L$2*'Load point'!$G8/'Load point'!$D$1 -> 84.54963293 | M14: =M$2*'Load point'!$G8/'Load point'!$D$1 -> 84.53703662 | N14: =N$2*'Load point'!$G8/'Load point'!$D$1 -> 85.11289123 | O14: =O$2*'Load point'!$G8/'Load point'!$D$1 -> 84.75239848 | P14: =P$2*'Load point'!$G8/'Load point'!$D$1 -> 83.65322308 | Q14: =Q$2*'Load point'!$G8/'Load point'!$D$1 -> 84.12616958 | R14: =R$2*'Load point'!$G8/'Load point'!$D$1 -> 84.48391235 | S14: =S$2*'Load point'!$G8/'Load point'!$D$1 -> 86.70369437 | T14: =T$2*'Load point'!$G8/'Load point'!$D$1 -> 89.92210002 | U14: =U$2*'Load point'!$G8/'Load point'!$D$1 -> 92.40615847 | V14: =V$2*'Load point'!$G8/'Load point'!$D$1 -> 100.4337784 | W14: =W$2*'Load point'!$G8/'Load point'!$D$1 -> 105.9119582 | X14: =X$2*'Load point'!$G8/'Load point'!$D$1 -> 109.55977 | Y14: =Y$2*'Load point'!$G8/'Load point'!$D$1 -> 110.608183 | Z14: =Z$2*'Load point'!$G8/'Load point'!$D$1 -> 111.5426277 | AA14: =AA$2*'Load point'!$G8/'Load point'!$D$1 -> 113.5386285 | AB14: =AB$2*'Load point'!$G8/'Load point'!$D$1 -> 113.4260927
A15: 7 | B15: =[4]Strompreise!B10 -> 123 | C15: =[4]Strompreise!C10 -> 1 | D15: =[4]Strompreise!D10 -> 1 | G15: =G$2*'Load point'!$G9/'Load point'!$D$1 -> 54.67962784 | H15: =H$2*'Load point'!$G9/'Load point'!$D$1 -> 63.54067185 | I15: =I$2*'Load point'!$G9/'Load point'!$D$1 -> 69.8617847 | J15: =J$2*'Load point'!$G9/'Load point'!$D$1 -> 71.88352971 | K15: =K$2*'Load point'!$G9/'Load point'!$D$1 -> 72.90400822 | L15: =L$2*'Load point'!$G9/'Load point'!$D$1 -> 72.37868485 | M15: =M$2*'Load point'!$G9/'Load point'!$D$1 -> 72.36790178 | N15: =N$2*'Load point'!$G9/'Load point'!$D$1 -> 72.86086193 | O15: =O$2*'Load point'!$G9/'Load point'!$D$1 -> 72.55226223 | P15: =P$2*'Load point'!$G9/'Load point'!$D$1 -> 71.6113135 | Q15: =Q$2*'Load point'!$G9/'Load point'!$D$1 -> 72.01617919 | R15: =R$2*'Load point'!$G9/'Load point'!$D$1 -> 72.32242477 | S15: =S$2*'Load point'!$G9/'Load point'!$D$1 -> 74.22266842 | T15: =T$2*'Load point'!$G9/'Load point'!$D$1 -> 76.9777835 | U15: =U$2*'Load point'!$G9/'Load point'!$D$1 -> 79.10426089 | V15: =V$2*'Load point'!$G9/'Load point'!$D$1 -> 85.97630222 | W15: =W$2*'Load point'!$G9/'Load point'!$D$1 -> 90.66589624 | X15: =X$2*'Load point'!$G9/'Load point'!$D$1 -> 93.78860429 | Y15: =Y$2*'Load point'!$G9/'Load point'!$D$1 -> 94.68609784 | Z15: =Z$2*'Load point'!$G9/'Load point'!$D$1 -> 95.48602899 | AA15: =AA$2*'Load point'!$G9/'Load point'!$D$1 -> 97.19470476 | AB15: =AB$2*'Load point'!$G9/'Load point'!$D$1 -> 97.09836856
A16: 8 | B16: =[4]Strompreise!B11 -> 123 | C16: =[4]Strompreise!C11 -> 1 | D16: =[4]Strompreise!D11 -> 1 | G16: =G$2*'Load point'!$G10/'Load point'!$D$1 -> 67.80011643 | H16: =H$2*'Load point'!$G10/'Load point'!$D$1 -> 78.78738609 | I16: =I$2*'Load point'!$G10/'Load point'!$D$1 -> 86.6252629 | J16: =J$2*'Load point'!$G10/'Load point'!$D$1 -> 89.13212976 | K16: =K$2*'Load point'!$G10/'Load point'!$D$1 -> 90.39747418 | L16: =L$2*'Load point'!$G10/'Load point'!$D$1 -> 89.74609839 | M16: =M$2*'Load point'!$G10/'Load point'!$D$1 -> 89.7327279 | N16: =N$2*'Load point'!$G10/'Load point'!$D$1 -> 90.34397484 | O16: =O$2*'Load point'!$G10/'Load point'!$D$1 -> 89.96132602 | P16: =P$2*'Load point'!$G10/'Load point'!$D$1 -> 88.79459471 | Q16: =Q$2*'Load point'!$G10/'Load point'!$D$1 -> 89.29660875 | R16: =R$2*'Load point'!$G10/'Load point'!$D$1 -> 89.67633859 | S16: =S$2*'Load point'!$G10/'Load point'!$D$1 -> 92.03254959 | T16: =T$2*'Load point'!$G10/'Load point'!$D$1 -> 95.44876017 | U16: =U$2*'Load point'!$G10/'Load point'!$D$1 -> 98.08549017 | V16: =V$2*'Load point'!$G10/'Load point'!$D$1 -> 106.6064919 | W16: =W$2*'Load point'!$G10/'Load point'!$D$1 -> 112.4213636 | X16: =X$2*'Load point'!$G10/'Load point'!$D$1 -> 116.2933718 | Y16: =Y$2*'Load point'!$G10/'Load point'!$D$1 -> 117.4062208 | Z16: =Z$2*'Load point'!$G10/'Load point'!$D$1 -> 118.398097 | AA16: =AA$2*'Load point'!$G10/'Load point'!$D$1 -> 120.5167731 | AB16: =AB$2*'Load point'!$G10/'Load point'!$D$1 -> 120.3973208
A17: 9 | B17: =[4]Strompreise!B12 -> 82 | C17: =[4]Strompreise!C12 -> 1 | D17: =[4]Strompreise!D12 -> 0 | G17: =G$2*'Load point'!$G11/'Load point'!$D$1 -> 55.42001823 | H17: =H$2*'Load point'!$G11/'Load point'!$D$1 -> 64.40104535 | I17: =I$2*'Load point'!$G11/'Load point'!$D$1 -> 70.80774933 | J17: =J$2*'Load point'!$G11/'Load point'!$D$1 -> 72.85686981 | K17: =K$2*'Load point'!$G11/'Load point'!$D$1 -> 73.89116613 | L17: =L$2*'Load point'!$G11/'Load point'!$D$1 -> 73.3587296 | M17: =M$2*'Load point'!$G11/'Load point'!$D$1 -> 73.34780053 | N17: =N$2*'Load point'!$G11/'Load point'!$D$1 -> 73.84743561 | O17: =O$2*'Load point'!$G11/'Load point'!$D$1 -> 73.53465731 | P17: =P$2*'Load point'!$G11/'Load point'!$D$1 -> 72.58096765 | Q17: =Q$2*'Load point'!$G11/'Load point'!$D$1 -> 72.99131543 | R17: =R$2*'Load point'!$G11/'Load point'!$D$1 -> 73.30170773 | S17: =S$2*'Load point'!$G11/'Load point'!$D$1 -> 75.22768167 | T17: =T$2*'Load point'!$G11/'Load point'!$D$1 -> 78.02010242 | U17: =U$2*'Load point'!$G11/'Load point'!$D$1 -> 80.17537342 | V17: =V$2*'Load point'!$G11/'Load point'!$D$1 -> 87.14046573 | W17: =W$2*'Load point'!$G11/'Load point'!$D$1 -> 91.89355928 | X17: =X$2*'Load point'!$G11/'Load point'!$D$1 -> 95.05855041 | Y17: =Y$2*'Load point'!$G11/'Load point'!$D$1 -> 95.96819648 | Z17: =Z$2*'Load point'!$G11/'Load point'!$D$1 -> 96.77895911 | AA17: =AA$2*'Load point'!$G11/'Load point'!$D$1 -> 98.51077124 | AB17: =AB$2*'Load point'!$G11/'Load point'!$D$1 -> 98.4131306
A18: 10 | B18: =[4]Strompreise!B13 -> 82 | C18: =[4]Strompreise!C13 -> 0.83 | D18: =[4]Strompreise!D13 -> 0 | G18: =G$2*'Load point'!$G12/'Load point'!$D$1 -> 49.13097935 | H18: =H$2*'Load point'!$G12/'Load point'!$D$1 -> 57.09284353 | I18: =I$2*'Load point'!$G12/'Load point'!$D$1 -> 62.7725176 | J18: =J$2*'Load point'!$G12/'Load point'!$D$1 -> 64.58910481 | K18: =K$2*'Load point'!$G12/'Load point'!$D$1 -> 65.50602965 | L18: =L$2*'Load point'!$G12/'Load point'!$D$1 -> 65.03401378 | M18: =M$2*'Load point'!$G12/'Load point'!$D$1 -> 65.02432493 | N18: =N$2*'Load point'!$G12/'Load point'!$D$1 -> 65.46726164 | O18: =O$2*'Load point'!$G12/'Load point'!$D$1 -> 65.18997729 | P18: =P$2*'Load point'!$G12/'Load point'!$D$1 -> 64.3445119 | Q18: =Q$2*'Load point'!$G12/'Load point'!$D$1 -> 64.7082936 | R18: =R$2*'Load point'!$G12/'Load point'!$D$1 -> 64.98346273 | S18: =S$2*'Load point'!$G12/'Load point'!$D$1 -> 66.690878 | T18: =T$2*'Load point'!$G12/'Load point'!$D$1 -> 69.16641609 | U18: =U$2*'Load point'!$G12/'Load point'!$D$1 -> 71.0771079 | V18: =V$2*'Load point'!$G12/'Load point'!$D$1 -> 77.25180466 | W18: =W$2*'Load point'!$G12/'Load point'!$D$1 -> 81.46551927 | X18: =X$2*'Load point'!$G12/'Load point'!$D$1 -> 84.27134863 | Y18: =Y$2*'Load point'!$G12/'Load point'!$D$1 -> 85.07776847 | Z18: =Z$2*'Load point'!$G12/'Load point'!$D$1 -> 85.79652612 | AA18: =AA$2*'Load point'!$G12/'Load point'!$D$1 -> 87.33181298 | AB18: =AB$2*'Load point'!$G12/'Load point'!$D$1 -> 87.24525255
A19: 11 | B19: =[4]Strompreise!B14 -> 96 | C19: =[4]Strompreise!C14 -> 0.523 | D19: =[4]Strompreise!D14 -> 0 | G19: =G$2*'Load point'!$G13/'Load point'!$D$1 -> 41.68196717 | H19: =H$2*'Load point'!$G13/'Load point'!$D$1 -> 48.43669027 | I19: =I$2*'Load point'!$G13/'Load point'!$D$1 -> 53.2552384 | J19: =J$2*'Load point'!$G13/'Load point'!$D$1 -> 54.79640304 | K19: =K$2*'Load point'!$G13/'Load point'!$D$1 -> 55.57430797 | L19: =L$2*'Load point'!$G13/'Load point'!$D$1 -> 55.17385697 | M19: =M$2*'Load point'!$G13/'Load point'!$D$1 -> 55.1656371 | N19: =N$2*'Load point'!$G13/'Load point'!$D$1 -> 55.54141779 | O19: =O$2*'Load point'!$G13/'Load point'!$D$1 -> 55.30617401 | P19: =P$2*'Load point'!$G13/'Load point'!$D$1 -> 54.58889418 | Q19: =Q$2*'Load point'!$G13/'Load point'!$D$1 -> 54.89752098 | R19: =R$2*'Load point'!$G13/'Load point'!$D$1 -> 55.13097023 | S19: =S$2*'Load point'!$G13/'Load point'!$D$1 -> 56.57951509 | T19: =T$2*'Load point'!$G13/'Load point'!$D$1 -> 58.67972353 | U19: =U$2*'Load point'!$G13/'Load point'!$D$1 -> 60.30072507 | V19: =V$2*'Load point'!$G13/'Load point'!$D$1 -> 65.53924282 | W19: =W$2*'Load point'!$G13/'Load point'!$D$1 -> 69.11409349 | X19: =X$2*'Load point'!$G13/'Load point'!$D$1 -> 71.49451595 | Y19: =Y$2*'Load point'!$G13/'Load point'!$D$1 -> 72.17867014 | Z19: =Z$2*'Load point'!$G13/'Load point'!$D$1 -> 72.78845308 | AA19: =AA$2*'Load point'!$G13/'Load point'!$D$1 -> 74.09096683 | AB19: =AB$2*'Load point'!$G13/'Load point'!$D$1 -> 74.0175303
A20: 12 | B20: =[4]Strompreise!B15 -> 48 | C20: =[4]Strompreise!C15 -> 1 | D20: =[4]Strompreise!D15 -> 0 | G20: =G$2*'Load point'!$G14/'Load point'!$D$1 -> 61.63912587 | H20: =H$2*'Load point'!$G14/'Load point'!$D$1 -> 71.62798331 | I20: =I$2*'Load point'!$G14/'Load point'!$D$1 -> 78.75363295 | J20: =J$2*'Load point'!$G14/'Load point'!$D$1 -> 81.03270105 | K20: =K$2*'Load point'!$G14/'Load point'!$D$1 -> 82.18306373 | L20: =L$2*'Load point'!$G14/'Load point'!$D$1 -> 81.5908784 | M20: =M$2*'Load point'!$G14/'Load point'!$D$1 -> 81.57872289 | N20: =N$2*'Load point'!$G14/'Load point'!$D$1 -> 82.13442587 | O20: =O$2*'Load point'!$G14/'Load point'!$D$1 -> 81.78654831 | P20: =P$2*'Load point'!$G14/'Load point'!$D$1 -> 80.72583778 | Q20: =Q$2*'Load point'!$G14/'Load point'!$D$1 -> 81.18223385 | R20: =R$2*'Load point'!$G14/'Load point'!$D$1 -> 81.52745767 | S20: =S$2*'Load point'!$G14/'Load point'!$D$1 -> 83.66955998 | T20: =T$2*'Load point'!$G14/'Load point'!$D$1 -> 86.77533981 | U20: =U$2*'Load point'!$G14/'Load point'!$D$1 -> 89.17247039 | V20: =V$2*'Load point'!$G14/'Load point'!$D$1 -> 96.91916942 | W20: =W$2*'Load point'!$G14/'Load point'!$D$1 -> 102.2056442 | X20: =X$2*'Load point'!$G14/'Load point'!$D$1 -> 105.7258034 | Y20: =Y$2*'Load point'!$G14/'Load point'!$D$1 -> 106.7375279 | Z20: =Z$2*'Load point'!$G14/'Load point'!$D$1 -> 107.6392725 | AA20: =AA$2*'Load point'!$G14/'Load point'!$D$1 -> 109.5654246 | AB20: =AB$2*'Load point'!$G14/'Load point'!$D$1 -> 109.4568269
A21: 13 | B21: =[4]Strompreise!B16 -> 32 | C21: =[4]Strompreise!C16 -> 1 | D21: =[4]Strompreise!D16 -> 0 | G21: =G$2*'Load point'!$G15/'Load point'!$D$1 -> 79.80686126 | H21: =H$2*'Load point'!$G15/'Load point'!$D$1 -> 92.73987009 | I21: =I$2*'Load point'!$G15/'Load point'!$D$1 -> 101.9657591 | J21: =J$2*'Load point'!$G15/'Load point'!$D$1 -> 104.9165678 | K21: =K$2*'Load point'!$G15/'Load point'!$D$1 -> 106.4059925 | L21: =L$2*'Load point'!$G15/'Load point'!$D$1 -> 105.6392643 | M21: =M$2*'Load point'!$G15/'Load point'!$D$1 -> 105.6235261 | N21: =N$2*'Load point'!$G15/'Load point'!$D$1 -> 106.3430189 | O21: =O$2*'Load point'!$G15/'Load point'!$D$1 -> 105.8926067 | P21: =P$2*'Load point'!$G15/'Load point'!$D$1 -> 104.5192586 | Q21: =Q$2*'Load point'!$G15/'Load point'!$D$1 -> 105.1101744 | R21: =R$2*'Load point'!$G15/'Load point'!$D$1 -> 105.5571508 | S21: =S$2*'Load point'!$G15/'Load point'!$D$1 -> 108.3306239 | T21: =T$2*'Load point'!$G15/'Load point'!$D$1 -> 112.3518124 | U21: =U$2*'Load point'!$G15/'Load point'!$D$1 -> 115.4554817 | V21: =V$2*'Load point'!$G15/'Load point'!$D$1 -> 125.4854704 | W21: =W$2*'Load point'!$G15/'Load point'!$D$1 -> 132.3300997 | X21: =X$2*'Load point'!$G15/'Load point'!$D$1 -> 136.8878031 | Y21: =Y$2*'Load point'!$G15/'Load point'!$D$1 -> 138.1977269 | Z21: =Z$2*'Load point'!$G15/'Load point'!$D$1 -> 139.3652548 | AA21: =AA$2*'Load point'!$G15/'Load point'!$D$1 -> 141.8591279 | AB21: =AB$2*'Load point'!$G15/'Load point'!$D$1 -> 141.7185218
A22: 14 | B22: =[4]Strompreise!B17 -> 32 | C22: =[4]Strompreise!C17 -> 1 | D22: =[4]Strompreise!D17 -> 0 | G22: =G$2*'Load point'!$G16/'Load point'!$D$1 -> 76.52150057 | H22: =H$2*'Load point'!$G16/'Load point'!$D$1 -> 88.92210407 | I22: =I$2*'Load point'!$G16/'Load point'!$D$1 -> 97.76819648 | J22: =J$2*'Load point'!$G16/'Load point'!$D$1 -> 100.5975311 | K22: =K$2*'Load point'!$G16/'Load point'!$D$1 -> 102.0256415 | L22: =L$2*'Load point'!$G16/'Load point'!$D$1 -> 101.2904768 | M22: =M$2*'Load point'!$G16/'Load point'!$D$1 -> 101.2753864 | N22: =N$2*'Load point'!$G16/'Load point'!$D$1 -> 101.9652603 | O22: =O$2*'Load point'!$G16/'Load point'!$D$1 -> 101.53339 | P22: =P$2*'Load point'!$G16/'Load point'!$D$1 -> 100.2165776 | Q22: =Q$2*'Load point'!$G16/'Load point'!$D$1 -> 100.7831676 | R22: =R$2*'Load point'!$G16/'Load point'!$D$1 -> 101.2117435 | S22: =S$2*'Load point'!$G16/'Load point'!$D$1 -> 103.8710428 | T22: =T$2*'Load point'!$G16/'Load point'!$D$1 -> 107.7266934 | U22: =U$2*'Load point'!$G16/'Load point'!$D$1 -> 110.7025959 | V22: =V$2*'Load point'!$G16/'Load point'!$D$1 -> 120.3196861 | W22: =W$2*'Load point'!$G16/'Load point'!$D$1 -> 126.8825467 | X22: =X$2*'Load point'!$G16/'Load point'!$D$1 -> 131.2526259 | Y22: =Y$2*'Load point'!$G16/'Load point'!$D$1 -> 132.5086248 | Z22: =Z$2*'Load point'!$G16/'Load point'!$D$1 -> 133.6280898 | AA22: =AA$2*'Load point'!$G16/'Load point'!$D$1 -> 136.0192991 | AB22: =AB$2*'Load point'!$G16/'Load point'!$D$1 -> 135.8844813
A23: 15 | B23: =[4]Strompreise!B18 -> 64 | C23: =[4]Strompreise!C18 -> 1 | D23: =[4]Strompreise!D18 -> 0 | G23: =G$2*'Load point'!$G17/'Load point'!$D$1 -> 68.56918569 | H23: =H$2*'Load point'!$G17/'Load point'!$D$1 -> 79.68108597 | I23: =I$2*'Load point'!$G17/'Load point'!$D$1 -> 87.60786927 | J23: =J$2*'Load point'!$G17/'Load point'!$D$1 -> 90.14317199 | K23: =K$2*'Load point'!$G17/'Load point'!$D$1 -> 91.42286944 | L23: =L$2*'Load point'!$G17/'Load point'!$D$1 -> 90.76410497 | M23: =M$2*'Load point'!$G17/'Load point'!$D$1 -> 90.75058282 | N23: =N$2*'Load point'!$G17/'Load point'!$D$1 -> 91.36876325 | O23: =O$2*'Load point'!$G17/'Load point'!$D$1 -> 90.98177397 | P23: =P$2*'Load point'!$G17/'Load point'!$D$1 -> 89.80180821 | Q23: =Q$2*'Load point'!$G17/'Load point'!$D$1 -> 90.30951669 | R23: =R$2*'Load point'!$G17/'Load point'!$D$1 -> 90.69355387 | S23: =S$2*'Load point'!$G17/'Load point'!$D$1 -> 93.07649181 | T23: =T$2*'Load point'!$G17/'Load point'!$D$1 -> 96.5314531 | U23: =U$2*'Load point'!$G17/'Load point'!$D$1 -> 99.19809201 | V23: =V$2*'Load point'!$G17/'Load point'!$D$1 -> 107.815749 | W23: =W$2*'Load point'!$G17/'Load point'!$D$1 -> 113.6965799 | X23: =X$2*'Load point'!$G17/'Load point'!$D$1 -> 117.612509 | Y23: =Y$2*'Load point'!$G17/'Load point'!$D$1 -> 118.7379812 | Z23: =Z$2*'Load point'!$G17/'Load point'!$D$1 -> 119.7411085 | AA23: =AA$2*'Load point'!$G17/'Load point'!$D$1 -> 121.8838171 | AB23: =AB$2*'Load point'!$G17/'Load point'!$D$1 -> 121.7630099
A24: 16 | B24: =[4]Strompreise!B19 -> 48 | C24: =[4]Strompreise!C19 -> 1 | D24: =[4]Strompreise!D19 -> 0 | G24: =G$2*'Load point'!$G18/'Load point'!$D$1 -> 83.89596544 | H24: =H$2*'Load point'!$G18/'Load point'!$D$1 -> 97.49162933 | I24: =I$2*'Load point'!$G18/'Load point'!$D$1 -> 107.1902298 | J24: =J$2*'Load point'!$G18/'Load point'!$D$1 -> 110.2922306 | K24: =K$2*'Load point'!$G18/'Load point'!$D$1 -> 111.8579697 | L24: =L$2*'Load point'!$G18/'Load point'!$D$1 -> 111.0519563 | M24: =M$2*'Load point'!$G18/'Load point'!$D$1 -> 111.0354117 | N24: =N$2*'Load point'!$G18/'Load point'!$D$1 -> 111.7917695 | O24: =O$2*'Load point'!$G18/'Load point'!$D$1 -> 111.3182793 | P24: =P$2*'Load point'!$G18/'Load point'!$D$1 -> 109.8745642 | Q24: =Q$2*'Load point'!$G18/'Load point'!$D$1 -> 110.4957572 | R24: =R$2*'Load point'!$G18/'Load point'!$D$1 -> 110.9656354 | S24: =S$2*'Load point'!$G18/'Load point'!$D$1 -> 113.8812145 | T24: =T$2*'Load point'!$G18/'Load point'!$D$1 -> 118.1084385 | U24: =U$2*'Load point'!$G18/'Load point'!$D$1 -> 121.3711322 | V24: =V$2*'Load point'!$G18/'Load point'!$D$1 -> 131.9150324 | W24: =W$2*'Load point'!$G18/'Load point'!$D$1 -> 139.1103634 | X24: =X$2*'Load point'!$G18/'Load point'!$D$1 -> 143.9015921 | Y24: =Y$2*'Load point'!$G18/'Load point'!$D$1 -> 145.2786331 | Z24: =Z$2*'Load point'!$G18/'Load point'!$D$1 -> 146.5059823 | AA24: =AA$2*'Load point'!$G18/'Load point'!$D$1 -> 149.1276352 | AB24: =AB$2*'Load point'!$G18/'Load point'!$D$1 -> 148.9798247
A25: 17 | B25: =[4]Strompreise!B20 -> 64 | C25: =[4]Strompreise!C20 -> 0.773 | D25: =[4]Strompreise!D20 -> 0 | G25: =G$2*'Load point'!$G19/'Load point'!$D$1 -> 56.40438847 | H25: =H$2*'Load point'!$G19/'Load point'!$D$1 -> 65.54493657 | I25: =I$2*'Load point'!$G19/'Load point'!$D$1 -> 72.06543641 | J25: =J$2*'Load point'!$G19/'Load point'!$D$1 -> 74.15095337 | K25: =K$2*'Load point'!$G19/'Load point'!$D$1 -> 75.20362085 | L25: =L$2*'Load point'!$G19/'Load point'!$D$1 -> 74.66172719 | M25: =M$2*'Load point'!$G19/'Load point'!$D$1 -> 74.650604 | N25: =N$2*'Load point'!$G19/'Load point'!$D$1 -> 75.15911359 | O25: =O$2*'Load point'!$G19/'Load point'!$D$1 -> 74.84077973 | P25: =P$2*'Load point'!$G19/'Load point'!$D$1 -> 73.87015063 | Q25: =Q$2*'Load point'!$G19/'Load point'!$D$1 -> 74.28778701 | R25: =R$2*'Load point'!$G19/'Load point'!$D$1 -> 74.6036925 | S25: =S$2*'Load point'!$G19/'Load point'!$D$1 -> 76.56387558 | T25: =T$2*'Load point'!$G19/'Load point'!$D$1 -> 79.4058953 | U25: =U$2*'Load point'!$G19/'Load point'!$D$1 -> 81.59944822 | V25: =V$2*'Load point'!$G19/'Load point'!$D$1 -> 88.68825449 | W25: =W$2*'Load point'!$G19/'Load point'!$D$1 -> 93.52577247 | X25: =X$2*'Load point'!$G19/'Load point'!$D$1 -> 96.74698017 | Y25: =Y$2*'Load point'!$G19/'Load point'!$D$1 -> 97.67278337 | Z25: =Z$2*'Load point'!$G19/'Load point'!$D$1 -> 98.49794676 | AA25: =AA$2*'Load point'!$G19/'Load point'!$D$1 -> 100.2605193 | AB25: =AB$2*'Load point'!$G19/'Load point'!$D$1 -> 100.1611444
A26: 18 | B26: =[4]Strompreise!B21 -> 180 | C26: =[4]Strompreise!C21 -> 0.846 | D26: =[4]Strompreise!D21 -> 0 | G26: =G$2*'Load point'!$G20/'Load point'!$D$1 -> 29.68406979 | H26: =H$2*'Load point'!$G20/'Load point'!$D$1 -> 34.49448748 | I26: =I$2*'Load point'!$G20/'Load point'!$D$1 -> 37.92604622 | J26: =J$2*'Load point'!$G20/'Load point'!$D$1 -> 39.02359612 | K26: =K$2*'Load point'!$G20/'Load point'!$D$1 -> 39.57758591 | L26: =L$2*'Load point'!$G20/'Load point'!$D$1 -> 39.29240226 | M26: =M$2*'Load point'!$G20/'Load point'!$D$1 -> 39.28654843 | N26: =N$2*'Load point'!$G20/'Load point'!$D$1 -> 39.55416297 | O26: =O$2*'Load point'!$G20/'Load point'!$D$1 -> 39.38663266 | P26: =P$2*'Load point'!$G20/'Load point'!$D$1 -> 38.87581741 | Q26: =Q$2*'Load point'!$G20/'Load point'!$D$1 -> 39.09560788 | R26: =R$2*'Load point'!$G20/'Load point'!$D$1 -> 39.26186021 | S26: =S$2*'Load point'!$G20/'Load point'!$D$1 -> 40.29345035 | T26: =T$2*'Load point'!$G20/'Load point'!$D$1 -> 41.78912674 | U26: =U$2*'Load point'!$G20/'Load point'!$D$1 -> 42.94353298 | V26: =V$2*'Load point'!$G20/'Load point'!$D$1 -> 46.67417567 | W26: =W$2*'Load point'!$G20/'Load point'!$D$1 -> 49.22002761 | X26: =X$2*'Load point'!$G20/'Load point'!$D$1 -> 50.91526014 | Y26: =Y$2*'Load point'!$G20/'Load point'!$D$1 -> 51.40248476 | Z26: =Z$2*'Load point'!$G20/'Load point'!$D$1 -> 51.83674543 | AA26: =AA$2*'Load point'!$G20/'Load point'!$D$1 -> 52.76433863 | AB26: =AB$2*'Load point'!$G20/'Load point'!$D$1 -> 52.71204035
A27: 19 | B27: =[4]Strompreise!B22 -> 90 | C27: =[4]Strompreise!C22 -> 1 | D27: =[4]Strompreise!D22 -> 0 | G27: =G$2*'Load point'!$G21/'Load point'!$D$1 -> 26.38885565 | H27: =H$2*'Load point'!$G21/'Load point'!$D$1 -> 30.66527121 | I27: =I$2*'Load point'!$G21/'Load point'!$D$1 -> 33.71589428 | J27: =J$2*'Load point'!$G21/'Load point'!$D$1 -> 34.6916057 | K27: =K$2*'Load point'!$G21/'Load point'!$D$1 -> 35.18409735 | L27: =L$2*'Load point'!$G21/'Load point'!$D$1 -> 34.9305718 | M27: =M$2*'Load point'!$G21/'Load point'!$D$1 -> 34.9253678 | N27: =N$2*'Load point'!$G21/'Load point'!$D$1 -> 35.16327458 | O27: =O$2*'Load point'!$G21/'Load point'!$D$1 -> 35.01434173 | P27: =P$2*'Load point'!$G21/'Load point'!$D$1 -> 34.56023183 | Q27: =Q$2*'Load point'!$G21/'Load point'!$D$1 -> 34.75562347 | R27: =R$2*'Load point'!$G21/'Load point'!$D$1 -> 34.90342021 | S27: =S$2*'Load point'!$G21/'Load point'!$D$1 -> 35.82049403 | T27: =T$2*'Load point'!$G21/'Load point'!$D$1 -> 37.15013611 | U27: =U$2*'Load point'!$G21/'Load point'!$D$1 -> 38.17639227 | V27: =V$2*'Load point'!$G21/'Load point'!$D$1 -> 41.49289814 | W27: =W$2*'Load point'!$G21/'Load point'!$D$1 -> 43.75613629 | X27: =X$2*'Load point'!$G21/'Load point'!$D$1 -> 45.26318188 | Y27: =Y$2*'Load point'!$G21/'Load point'!$D$1 -> 45.69631994 | Z27: =Z$2*'Load point'!$G21/'Load point'!$D$1 -> 46.08237354 | AA27: =AA$2*'Load point'!$G21/'Load point'!$D$1 -> 46.90699507 | AB27: =AB$2*'Load point'!$G21/'Load point'!$D$1 -> 46.8605024
A28: 20 | B28: =[4]Strompreise!B23 -> 90 | C28: =[4]Strompreise!C23 -> 1 | D28: =[4]Strompreise!D23 -> 0 | G28: =G$2*'Load point'!$G22/'Load point'!$D$1 -> 36.23224879 | H28: =H$2*'Load point'!$G22/'Load point'!$D$1 -> 42.10382407 | I28: =I$2*'Load point'!$G22/'Load point'!$D$1 -> 46.29237002 | J28: =J$2*'Load point'!$G22/'Load point'!$D$1 -> 47.63203474 | K28: =K$2*'Load point'!$G22/'Load point'!$D$1 -> 48.30823231 | L28: =L$2*'Load point'!$G22/'Load point'!$D$1 -> 47.96013836 | M28: =M$2*'Load point'!$G22/'Load point'!$D$1 -> 47.9529932 | N28: =N$2*'Load point'!$G22/'Load point'!$D$1 -> 48.27964236 | O28: =O$2*'Load point'!$G22/'Load point'!$D$1 -> 48.07515558 | P28: =P$2*'Load point'!$G22/'Load point'!$D$1 -> 47.45165667 | Q28: =Q$2*'Load point'!$G22/'Load point'!$D$1 -> 47.71993199 | R28: =R$2*'Load point'!$G22/'Load point'!$D$1 -> 47.92285886 | S28: =S$2*'Load point'!$G22/'Load point'!$D$1 -> 49.18201339 | T28: =T$2*'Load point'!$G22/'Load point'!$D$1 -> 51.00762959 | U28: =U$2*'Load point'!$G22/'Load point'!$D$1 -> 52.41669292 | V28: =V$2*'Load point'!$G22/'Load point'!$D$1 -> 56.97029946 | W28: =W$2*'Load point'!$G22/'Load point'!$D$1 -> 60.07775545 | X28: =X$2*'Load point'!$G22/'Load point'!$D$1 -> 62.14694904 | Y28: =Y$2*'Load point'!$G22/'Load point'!$D$1 -> 62.74165333 | Z28: =Z$2*'Load point'!$G22/'Load point'!$D$1 -> 63.27171005 | AA28: =AA$2*'Load point'!$G22/'Load point'!$D$1 -> 64.40392635 | AB28: =AB$2*'Load point'!$G22/'Load point'!$D$1 -> 64.3400913
A29: 21 | B29: =[4]Strompreise!B24 -> 90 | C29: =[4]Strompreise!C24 -> 1 | D29: =[4]Strompreise!D24 -> 1 | G29: =G$2*'Load point'!$G23/'Load point'!$D$1 -> 51.99886311 | H29: =H$2*'Load point'!$G23/'Load point'!$D$1 -> 60.42547889 | I29: =I$2*'Load point'!$G23/'Load point'!$D$1 -> 66.43668808 | J29: =J$2*'Load point'!$G23/'Load point'!$D$1 -> 68.3593135 | K29: =K$2*'Load point'!$G23/'Load point'!$D$1 -> 69.32976126 | L29: =L$2*'Load point'!$G23/'Load point'!$D$1 -> 68.83019278 | M29: =M$2*'Load point'!$G23/'Load point'!$D$1 -> 68.81993838 | N29: =N$2*'Load point'!$G23/'Load point'!$D$1 -> 69.28873028 | O29: =O$2*'Load point'!$G23/'Load point'!$D$1 -> 68.99526023 | P29: =P$2*'Load point'!$G23/'Load point'!$D$1 -> 68.10044316 | Q29: =Q$2*'Load point'!$G23/'Load point'!$D$1 -> 68.4854596 | R29: =R$2*'Load point'!$G23/'Load point'!$D$1 -> 68.77669095 | S29: =S$2*'Load point'!$G23/'Load point'!$D$1 -> 70.58377183 | T29: =T$2*'Load point'!$G23/'Load point'!$D$1 -> 73.20381255 | U29: =U$2*'Load point'!$G23/'Load point'!$D$1 -> 75.22603566 | V29: =V$2*'Load point'!$G23/'Load point'!$D$1 -> 81.76116309 | W29: =W$2*'Load point'!$G23/'Load point'!$D$1 -> 86.22084154 | X29: =X$2*'Load point'!$G23/'Load point'!$D$1 -> 89.19045335 | Y29: =Y$2*'Load point'!$G23/'Load point'!$D$1 -> 90.0439457 | Z29: =Z$2*'Load point'!$G23/'Load point'!$D$1 -> 90.80465882 | AA29: =AA$2*'Load point'!$G23/'Load point'!$D$1 -> 92.42956376 | AB29: =AB$2*'Load point'!$G23/'Load point'!$D$1 -> 92.33795062
A30: 22 | B30: =[4]Strompreise!B25 -> 90 | C30: =[4]Strompreise!C25 -> 1 | D30: =[4]Strompreise!D25 -> 1 | G30: =G$2*'Load point'!$G24/'Load point'!$D$1 -> 53.30515138 | H30: =H$2*'Load point'!$G24/'Load point'!$D$1 -> 61.9434562 | I30: =I$2*'Load point'!$G24/'Load point'!$D$1 -> 68.10567585 | J30: =J$2*'Load point'!$G24/'Load point'!$D$1 -> 70.07660046 | K30: =K$2*'Load point'!$G24/'Load point'!$D$1 -> 71.0714273 | L30: =L$2*'Load point'!$G24/'Load point'!$D$1 -> 70.55930892 | M30: =M$2*'Load point'!$G24/'Load point'!$D$1 -> 70.54879691 | N30: =N$2*'Load point'!$G24/'Load point'!$D$1 -> 71.02936557 | O30: =O$2*'Load point'!$G24/'Load point'!$D$1 -> 70.72852311 | P30: =P$2*'Load point'!$G24/'Load point'!$D$1 -> 69.81122691 | Q30: =Q$2*'Load point'!$G24/'Load point'!$D$1 -> 70.20591554 | R30: =R$2*'Load point'!$G24/'Load point'!$D$1 -> 70.50446305 | S30: =S$2*'Load point'!$G24/'Load point'!$D$1 -> 72.35694046 | T30: =T$2*'Load point'!$G24/'Load point'!$D$1 -> 75.04280048 | U30: =U$2*'Load point'!$G24/'Load point'!$D$1 -> 77.11582482 | V30: =V$2*'Load point'!$G24/'Load point'!$D$1 -> 83.81512432 | W30: =W$2*'Load point'!$G24/'Load point'!$D$1 -> 88.38683647 | X30: =X$2*'Load point'!$G24/'Load point'!$D$1 -> 91.43104932 | Y30: =Y$2*'Load point'!$G24/'Load point'!$D$1 -> 92.30598266 | Z30: =Z$2*'Load point'!$G24/'Load point'!$D$1 -> 93.08580602 | AA30: =AA$2*'Load point'!$G24/'Load point'!$D$1 -> 94.75153097 | AB30: =AB$2*'Load point'!$G24/'Load point'!$D$1 -> 94.65761637
A31: 23 | B31: =[4]Strompreise!B26 -> 90 | C31: =[4]Strompreise!C26 -> 1 | D31: =[4]Strompreise!D26 -> 1 | G31: =G$2*'Load point'!$G25/'Load point'!$D$1 -> 49.93928695 | H31: =H$2*'Load point'!$G25/'Load point'!$D$1 -> 58.03214049 | I31: =I$2*'Load point'!$G25/'Load point'!$D$1 -> 63.80525711 | J31: =J$2*'Load point'!$G25/'Load point'!$D$1 -> 65.65173099 | K31: =K$2*'Load point'!$G25/'Load point'!$D$1 -> 66.58374116 | L31: =L$2*'Load point'!$G25/'Load point'!$D$1 -> 66.10395964 | M31: =M$2*'Load point'!$G25/'Load point'!$D$1 -> 66.09411139 | N31: =N$2*'Load point'!$G25/'Load point'!$D$1 -> 66.54433534 | O31: =O$2*'Load point'!$G25/'Load point'!$D$1 -> 66.26248908 | P31: =P$2*'Load point'!$G25/'Load point'!$D$1 -> 65.40311402 | Q31: =Q$2*'Load point'!$G25/'Load point'!$D$1 -> 65.77288069 | R31: =R$2*'Load point'!$G25/'Load point'!$D$1 -> 66.05257692 | S31: =S$2*'Load point'!$G25/'Load point'!$D$1 -> 67.78808275 | T31: =T$2*'Load point'!$G25/'Load point'!$D$1 -> 70.30434864 | U31: =U$2*'Load point'!$G25/'Load point'!$D$1 -> 72.24647533 | V31: =V$2*'Load point'!$G25/'Load point'!$D$1 -> 78.52275879 | W31: =W$2*'Load point'!$G25/'Load point'!$D$1 -> 82.80579785 | X31: =X$2*'Load point'!$G25/'Load point'!$D$1 -> 85.65778898 | Y31: =Y$2*'Load point'!$G25/'Load point'!$D$1 -> 86.47747612 | Z31: =Z$2*'Load point'!$G25/'Load point'!$D$1 -> 87.20805883 | AA31: =AA$2*'Load point'!$G25/'Load point'!$D$1 -> 88.76860438 | AB31: =AB$2*'Load point'!$G25/'Load point'!$D$1 -> 88.68061986
A32: 24 | B32: =[4]Strompreise!B27 -> 135 | C32: =[4]Strompreise!C27 -> 1 | D32: =[4]Strompreise!D27 -> 1 | G32: =G$2*'Load point'!$G26/'Load point'!$D$1 -> 46.08949812 | H32: =H$2*'Load point'!$G26/'Load point'!$D$1 -> 53.55847856 | I32: =I$2*'Load point'!$G26/'Load point'!$D$1 -> 58.88654919 | J32: =J$2*'Load point'!$G26/'Load point'!$D$1 -> 60.59067953 | K32: =K$2*'Load point'!$G26/'Load point'!$D$1 -> 61.45084161 | L32: =L$2*'Load point'!$G26/'Load point'!$D$1 -> 61.00804615 | M32: =M$2*'Load point'!$G26/'Load point'!$D$1 -> 60.9989571 | N32: =N$2*'Load point'!$G26/'Load point'!$D$1 -> 61.41447357 | O32: =O$2*'Load point'!$G26/'Load point'!$D$1 -> 61.15435466 | P32: =P$2*'Load point'!$G26/'Load point'!$D$1 -> 60.36122828 | Q32: =Q$2*'Load point'!$G26/'Load point'!$D$1 -> 60.70248987 | R32: =R$2*'Load point'!$G26/'Load point'!$D$1 -> 60.96062449 | S32: =S$2*'Load point'!$G26/'Load point'!$D$1 -> 62.56234125 | T32: =T$2*'Load point'!$G26/'Load point'!$D$1 -> 64.88462975 | U32: =U$2*'Load point'!$G26/'Load point'!$D$1 -> 66.6770391 | V32: =V$2*'Load point'!$G26/'Load point'!$D$1 -> 72.46948774 | W32: =W$2*'Load point'!$G26/'Load point'!$D$1 -> 76.42234995 | X32: =X$2*'Load point'!$G26/'Load point'!$D$1 -> 79.05448284 | Y32: =Y$2*'Load point'!$G26/'Load point'!$D$1 -> 79.8109808 | Z32: =Z$2*'Load point'!$G26/'Load point'!$D$1 -> 80.48524335 | AA32: =AA$2*'Load point'!$G26/'Load point'!$D$1 -> 81.92548741 | AB32: =AB$2*'Load point'!$G26/'Load point'!$D$1 -> 81.84428556
A33: 25 | B33: =[4]Strompreise!B28 -> 135 | C33: =[4]Strompreise!C28 -> 1 | D33: =[4]Strompreise!D28 -> 1 | G33: =G$2*'Load point'!$G27/'Load point'!$D$1 -> 47.33488094 | H33: =H$2*'Load point'!$G27/'Load point'!$D$1 -> 55.00568046 | I33: =I$2*'Load point'!$G27/'Load point'!$D$1 -> 60.47772071 | J33: =J$2*'Load point'!$G27/'Load point'!$D$1 -> 62.2278983 | K33: =K$2*'Load point'!$G27/'Load point'!$D$1 -> 63.11130279 | L33: =L$2*'Load point'!$G27/'Load point'!$D$1 -> 62.65654257 | M33: =M$2*'Load point'!$G27/'Load point'!$D$1 -> 62.64720793 | N33: =N$2*'Load point'!$G27/'Load point'!$D$1 -> 63.07395205 | O33: =O$2*'Load point'!$G27/'Load point'!$D$1 -> 62.80680447 | P33: =P$2*'Load point'!$G27/'Load point'!$D$1 -> 61.99224706 | Q33: =Q$2*'Load point'!$G27/'Load point'!$D$1 -> 62.34272986 | R33: =R$2*'Load point'!$G27/'Load point'!$D$1 -> 62.60783953 | S33: =S$2*'Load point'!$G27/'Load point'!$D$1 -> 64.25283623 | T33: =T$2*'Load point'!$G27/'Load point'!$D$1 -> 66.63787521 | U33: =U$2*'Load point'!$G27/'Load point'!$D$1 -> 68.47871719 | V33: =V$2*'Load point'!$G27/'Load point'!$D$1 -> 74.42768339 | W33: =W$2*'Load point'!$G27/'Load point'!$D$1 -> 78.48735577 | X33: =X$2*'Load point'!$G27/'Load point'!$D$1 -> 81.19061144 | Y33: =Y$2*'Load point'!$G27/'Load point'!$D$1 -> 81.96755071 | Z33: =Z$2*'Load point'!$G27/'Load point'!$D$1 -> 82.66003248 | AA33: =AA$2*'Load point'!$G27/'Load point'!$D$1 -> 84.13919332 | AB33: =AB$2*'Load point'!$G27/'Load point'!$D$1 -> 84.05579732
A34: 26 | B34: =[4]Strompreise!B29 -> 90 | C34: =[4]Strompreise!C29 -> 1 | D34: =[4]Strompreise!D29 -> 0 | G34: =G$2*'Load point'!$G28/'Load point'!$D$1 -> 43.56499524 | H34: =H$2*'Load point'!$G28/'Load point'!$D$1 -> 50.62487029 | I34: =I$2*'Load point'!$G28/'Load point'!$D$1 -> 55.66110156 | J34: =J$2*'Load point'!$G28/'Load point'!$D$1 -> 57.27188998 | K34: =K$2*'Load point'!$G28/'Load point'!$D$1 -> 58.08493761 | L34: =L$2*'Load point'!$G28/'Load point'!$D$1 -> 57.6663958 | M34: =M$2*'Load point'!$G28/'Load point'!$D$1 -> 57.65780459 | N34: =N$2*'Load point'!$G28/'Load point'!$D$1 -> 58.05056158 | O34: =O$2*'Load point'!$G28/'Load point'!$D$1 -> 57.80469041 | P34: =P$2*'Load point'!$G28/'Load point'!$D$1 -> 57.05500669 | Q34: =Q$2*'Load point'!$G28/'Load point'!$D$1 -> 57.37757603 | R34: =R$2*'Load point'!$G28/'Load point'!$D$1 -> 57.62157161 | S34: =S$2*'Load point'!$G28/'Load point'!$D$1 -> 59.13555605 | T34: =T$2*'Load point'!$G28/'Load point'!$D$1 -> 61.33064369 | U34: =U$2*'Load point'!$G28/'Load point'!$D$1 -> 63.02487573 | V34: =V$2*'Load point'!$G28/'Load point'!$D$1 -> 68.5000492 | W34: =W$2*'Load point'!$G28/'Load point'!$D$1 -> 72.23639762 | X34: =X$2*'Load point'!$G28/'Load point'!$D$1 -> 74.72435826 | Y34: =Y$2*'Load point'!$G28/'Load point'!$D$1 -> 75.43941985 | Z34: =Z$2*'Load point'!$G28/'Load point'!$D$1 -> 76.07675039 | AA34: =AA$2*'Load point'!$G28/'Load point'!$D$1 -> 77.43810662 | AB34: =AB$2*'Load point'!$G28/'Load point'!$D$1 -> 77.36135251
A35: 27 | B35: =[4]Strompreise!B30 -> 90 | C35: =[4]Strompreise!C30 -> 0.804 | D35: =[4]Strompreise!D30 -> 0 | G35: =G$2*'Load point'!$G29/'Load point'!$D$1 -> 37.53731954 | H35: =H$2*'Load point'!$G29/'Load point'!$D$1 -> 43.62038656 | I35: =I$2*'Load point'!$G29/'Load point'!$D$1 -> 47.95980221 | J35: =J$2*'Load point'!$G29/'Load point'!$D$1 -> 49.3477211 | K35: =K$2*'Load point'!$G29/'Load point'!$D$1 -> 50.04827503 | L35: =L$2*'Load point'!$G29/'Load point'!$D$1 -> 49.68764288 | M35: =M$2*'Load point'!$G29/'Load point'!$D$1 -> 49.68024036 | N35: =N$2*'Load point'!$G29/'Load point'!$D$1 -> 50.01865529 | O35: =O$2*'Load point'!$G29/'Load point'!$D$1 -> 49.80680298 | P35: =P$2*'Load point'!$G29/'Load point'!$D$1 -> 49.16084589 | Q35: =Q$2*'Load point'!$G29/'Load point'!$D$1 -> 49.43878437 | R35: =R$2*'Load point'!$G29/'Load point'!$D$1 -> 49.64902059 | S35: =S$2*'Load point'!$G29/'Load point'!$D$1 -> 50.95352934 | T35: =T$2*'Load point'!$G29/'Load point'!$D$1 -> 52.8449035 | U35: =U$2*'Load point'!$G29/'Load point'!$D$1 -> 54.30472071 | V35: =V$2*'Load point'!$G29/'Load point'!$D$1 -> 59.02234629 | W35: =W$2*'Load point'!$G29/'Load point'!$D$1 -> 62.24173157 | X35: =X$2*'Load point'!$G29/'Load point'!$D$1 -> 64.38545666 | Y35: =Y$2*'Load point'!$G29/'Load point'!$D$1 -> 65.00158196 | Z35: =Z$2*'Load point'!$G29/'Load point'!$D$1 -> 65.55073111 | AA35: =AA$2*'Load point'!$G29/'Load point'!$D$1 -> 66.72372937 | AB35: =AB$2*'Load point'!$G29/'Load point'!$D$1 -> 66.65759501
A36: 28 | B36: =[4]Strompreise!B31 -> 108 | C36: =[4]Strompreise!C31 -> 0.496 | D36: =[4]Strompreise!D31 -> 0 | G36: =G$2*'Load point'!$G30/'Load point'!$D$1 -> 30.7382325 | H36: =H$2*'Load point'!$G30/'Load point'!$D$1 -> 35.71948131 | I36: =I$2*'Load point'!$G30/'Load point'!$D$1 -> 39.27290411 | J36: =J$2*'Load point'!$G30/'Load point'!$D$1 -> 40.40943101 | K36: =K$2*'Load point'!$G30/'Load point'!$D$1 -> 40.9830945 | L36: =L$2*'Load point'!$G30/'Load point'!$D$1 -> 40.6877832 | M36: =M$2*'Load point'!$G30/'Load point'!$D$1 -> 40.68172148 | N36: =N$2*'Load point'!$G30/'Load point'!$D$1 -> 40.95883974 | O36: =O$2*'Load point'!$G30/'Load point'!$D$1 -> 40.78535997 | P36: =P$2*'Load point'!$G30/'Load point'!$D$1 -> 40.25640427 | Q36: =Q$2*'Load point'!$G30/'Load point'!$D$1 -> 40.48400011 | R36: =R$2*'Load point'!$G30/'Load point'!$D$1 -> 40.65615651 | S36: =S$2*'Load point'!$G30/'Load point'!$D$1 -> 41.72438125 | T36: =T$2*'Load point'!$G30/'Load point'!$D$1 -> 43.27317321 | U36: =U$2*'Load point'!$G30/'Load point'!$D$1 -> 44.46857557 | V36: =V$2*'Load point'!$G30/'Load point'!$D$1 -> 48.33170362 | W36: =W$2*'Load point'!$G30/'Load point'!$D$1 -> 50.96796574 | X36: =X$2*'Load point'!$G30/'Load point'!$D$1 -> 52.72340062 | Y36: =Y$2*'Load point'!$G30/'Load point'!$D$1 -> 53.22792793 | Z36: =Z$2*'Load point'!$G30/'Load point'!$D$1 -> 53.67761039 | AA36: =AA$2*'Load point'!$G30/'Load point'!$D$1 -> 54.63814496 | AB36: =AB$2*'Load point'!$G30/'Load point'!$D$1 -> 54.58398943
A37: 29 | B37: =[4]Strompreise!B32 -> 54 | C37: =[4]Strompreise!C32 -> 1 | D37: =[4]Strompreise!D32 -> 0 | G37: =G$2*'Load point'!$G31/'Load point'!$D$1 -> 49.43189858 | H37: =H$2*'Load point'!$G31/'Load point'!$D$1 -> 57.44252788 | I37: =I$2*'Load point'!$G31/'Load point'!$D$1 -> 63.15698903 | J37: =J$2*'Load point'!$G31/'Load point'!$D$1 -> 64.98470254 | K37: =K$2*'Load point'!$G31/'Load point'!$D$1 -> 65.90724339 | L37: =L$2*'Load point'!$G31/'Load point'!$D$1 -> 65.4323365 | M37: =M$2*'Load point'!$G31/'Load point'!$D$1 -> 65.42258831 | N37: =N$2*'Load point'!$G31/'Load point'!$D$1 -> 65.86823794 | O37: =O$2*'Load point'!$G31/'Load point'!$D$1 -> 65.58925527 | P37: =P$2*'Load point'!$G31/'Load point'!$D$1 -> 64.73861154 | Q37: =Q$2*'Load point'!$G31/'Load point'!$D$1 -> 65.10462134 | R37: =R$2*'Load point'!$G31/'Load point'!$D$1 -> 65.38147583 | S37: =S$2*'Load point'!$G31/'Load point'!$D$1 -> 67.09934874 | T37: =T$2*'Load point'!$G31/'Load point'!$D$1 -> 69.59004911 | U37: =U$2*'Load point'!$G31/'Load point'!$D$1 -> 71.51244359 | V37: =V$2*'Load point'!$G31/'Load point'!$D$1 -> 77.72495936 | W37: =W$2*'Load point'!$G31/'Load point'!$D$1 -> 81.96448228 | X37: =X$2*'Load point'!$G31/'Load point'!$D$1 -> 84.78749689 | Y37: =Y$2*'Load point'!$G31/'Load point'!$D$1 -> 85.59885592 | Z37: =Z$2*'Load point'!$G31/'Load point'!$D$1 -> 86.32201584 | AA37: =AA$2*'Load point'!$G31/'Load point'!$D$1 -> 87.86670608 | AB37: =AB$2*'Load point'!$G31/'Load point'!$D$1 -> 87.77961549
A38: 30 | B38: =[4]Strompreise!B33 -> 36 | C38: =[4]Strompreise!C33 -> 1 | D38: =[4]Strompreise!D33 -> 0 | G38: =G$2*'Load point'!$G32/'Load point'!$D$1 -> 64.45286185 | H38: =H$2*'Load point'!$G32/'Load point'!$D$1 -> 74.89769602 | I38: =I$2*'Load point'!$G32/'Load point'!$D$1 -> 82.34862115 | J38: =J$2*'Load point'!$G32/'Load point'!$D$1 -> 84.73172538 | K38: =K$2*'Load point'!$G32/'Load point'!$D$1 -> 85.93460044 | L38: =L$2*'Load point'!$G32/'Load point'!$D$1 -> 85.3153827 | M38: =M$2*'Load point'!$G32/'Load point'!$D$1 -> 85.30267231 | N38: =N$2*'Load point'!$G32/'Load point'!$D$1 -> 85.88374233 | O38: =O$2*'Load point'!$G32/'Load point'!$D$1 -> 85.51998467 | P38: =P$2*'Load point'!$G32/'Load point'!$D$1 -> 84.41085424 | Q38: =Q$2*'Load point'!$G32/'Load point'!$D$1 -> 84.88808413 | R38: =R$2*'Load point'!$G32/'Load point'!$D$1 -> 85.24906691 | S38: =S$2*'Load point'!$G32/'Load point'!$D$1 -> 87.48895307 | T38: =T$2*'Load point'!$G32/'Load point'!$D$1 -> 90.7365072 | U38: =U$2*'Load point'!$G32/'Load point'!$D$1 -> 93.24306328 | V38: =V$2*'Load point'!$G32/'Load point'!$D$1 -> 101.3433878 | W38: =W$2*'Load point'!$G32/'Load point'!$D$1 -> 106.8711825 | X38: =X$2*'Load point'!$G32/'Load point'!$D$1 -> 110.5520318 | Y38: =Y$2*'Load point'!$G32/'Load point'!$D$1 -> 111.60994 | Z38: =Z$2*'Load point'!$G32/'Load point'!$D$1 -> 112.5528479 | AA38: =AA$2*'Load point'!$G32/'Load point'!$D$1 -> 114.566926 | AB38: =AB$2*'Load point'!$G32/'Load point'!$D$1 -> 114.4533711
A39: 31 | B39: =[4]Strompreise!B34 -> 36 | C39: =[4]Strompreise!C34 -> 1 | D39: =[4]Strompreise!D34 -> 0 | G39: =G$2*'Load point'!$G33/'Load point'!$D$1 -> 64.18604752 | H39: =H$2*'Load point'!$G33/'Load point'!$D$1 -> 74.58764341 | I39: =I$2*'Load point'!$G33/'Load point'!$D$1 -> 82.00772408 | J39: =J$2*'Load point'!$G33/'Load point'!$D$1 -> 84.38096301 | K39: =K$2*'Load point'!$G33/'Load point'!$D$1 -> 85.57885855 | L39: =L$2*'Load point'!$G33/'Load point'!$D$1 -> 84.96220418 | M39: =M$2*'Load point'!$G33/'Load point'!$D$1 -> 84.94954641 | N39: =N$2*'Load point'!$G33/'Load point'!$D$1 -> 85.52821098 | O39: =O$2*'Load point'!$G33/'Load point'!$D$1 -> 85.16595916 | P39: =P$2*'Load point'!$G33/'Load point'!$D$1 -> 84.06142018 | Q39: =Q$2*'Load point'!$G33/'Load point'!$D$1 -> 84.53667449 | R39: =R$2*'Load point'!$G33/'Load point'!$D$1 -> 84.89616292 | S39: =S$2*'Load point'!$G33/'Load point'!$D$1 -> 87.12677666 | T39: =T$2*'Load point'!$G33/'Load point'!$D$1 -> 90.36088695 | U39: =U$2*'Load point'!$G33/'Load point'!$D$1 -> 92.85706669 | V39: =V$2*'Load point'!$G33/'Load point'!$D$1 -> 100.9238584 | W39: =W$2*'Load point'!$G33/'Load point'!$D$1 -> 106.4287698 | X39: =X$2*'Load point'!$G33/'Load point'!$D$1 -> 110.0943816 | Y39: =Y$2*'Load point'!$G33/'Load point'!$D$1 -> 111.1479104 | Z39: =Z$2*'Load point'!$G33/'Load point'!$D$1 -> 112.0869149 | AA39: =AA$2*'Load point'!$G33/'Load point'!$D$1 -> 114.0926554 | AB39: =AB$2*'Load point'!$G33/'Load point'!$D$1 -> 113.9795706
A40: 32 | B40: =[4]Strompreise!B35 -> 72 | C40: =[4]Strompreise!C35 -> 1 | D40: =[4]Strompreise!D35 -> 0 | G40: =G$2*'Load point'!$G34/'Load point'!$D$1 -> 56.33827591 | H40: =H$2*'Load point'!$G34/'Load point'!$D$1 -> 65.46811022 | I40: =I$2*'Load point'!$G34/'Load point'!$D$1 -> 71.98096727 | J40: =J$2*'Load point'!$G34/'Load point'!$D$1 -> 74.06403976 | K40: =K$2*'Load point'!$G34/'Load point'!$D$1 -> 75.1154734 | L40: =L$2*'Load point'!$G34/'Load point'!$D$1 -> 74.57421489 | M40: =M$2*'Load point'!$G34/'Load point'!$D$1 -> 74.56310474 | N40: =N$2*'Load point'!$G34/'Load point'!$D$1 -> 75.0710183 | O40: =O$2*'Load point'!$G34/'Load point'!$D$1 -> 74.75305756 | P40: =P$2*'Load point'!$G34/'Load point'!$D$1 -> 73.78356616 | Q40: =Q$2*'Load point'!$G34/'Load point'!$D$1 -> 74.20071301 | R40: =R$2*'Load point'!$G34/'Load point'!$D$1 -> 74.51624823 | S40: =S$2*'Load point'!$G34/'Load point'!$D$1 -> 76.47413374 | T40: =T$2*'Load point'!$G34/'Load point'!$D$1 -> 79.31282229 | U40: =U$2*'Load point'!$G34/'Load point'!$D$1 -> 81.5038041 | V40: =V$2*'Load point'!$G34/'Load point'!$D$1 -> 88.58430145 | W40: =W$2*'Load point'!$G34/'Load point'!$D$1 -> 93.4161493 | X40: =X$2*'Load point'!$G34/'Load point'!$D$1 -> 96.63358136 | Y40: =Y$2*'Load point'!$G34/'Load point'!$D$1 -> 97.55829942 | Z40: =Z$2*'Load point'!$G34/'Load point'!$D$1 -> 98.38249562 | AA40: =AA$2*'Load point'!$G34/'Load point'!$D$1 -> 100.1430022 | AB40: =AB$2*'Load point'!$G34/'Load point'!$D$1 -> 100.0437438
A41: 33 | B41: =[4]Strompreise!B36 -> 54 | C41: =[4]Strompreise!C36 -> 1 | D41: =[4]Strompreise!D36 -> 0 | G41: =G$2*'Load point'!$G35/'Load point'!$D$1 -> 56.27012879 | H41: =H$2*'Load point'!$G35/'Load point'!$D$1 -> 65.3889196 | I41: =I$2*'Load point'!$G35/'Load point'!$D$1 -> 71.89389866 | J41: =J$2*'Load point'!$G35/'Load point'!$D$1 -> 73.97445144 | K41: =K$2*'Load point'!$G35/'Load point'!$D$1 -> 75.02461326 | L41: =L$2*'Load point'!$G35/'Load point'!$D$1 -> 74.48400947 | M41: =M$2*'Load point'!$G35/'Load point'!$D$1 -> 74.47291275 | N41: =N$2*'Load point'!$G35/'Load point'!$D$1 -> 74.98021194 | O41: =O$2*'Load point'!$G35/'Load point'!$D$1 -> 74.66263581 | P41: =P$2*'Load point'!$G35/'Load point'!$D$1 -> 73.6943171 | Q41: =Q$2*'Load point'!$G35/'Load point'!$D$1 -> 74.11095938 | R41: =R$2*'Load point'!$G35/'Load point'!$D$1 -> 74.42611292 | S41: =S$2*'Load point'!$G35/'Load point'!$D$1 -> 76.38163016 | T41: =T$2*'Load point'!$G35/'Load point'!$D$1 -> 79.21688501 | U41: =U$2*'Load point'!$G35/'Load point'!$D$1 -> 81.4052166 | V41: =V$2*'Load point'!$G35/'Load point'!$D$1 -> 88.47714934 | W41: =W$2*'Load point'!$G35/'Load point'!$D$1 -> 93.30315255 | X41: =X$2*'Load point'!$G35/'Load point'!$D$1 -> 96.5166928 | Y41: =Y$2*'Load point'!$G35/'Load point'!$D$1 -> 97.4402923 | Z41: =Z$2*'Load point'!$G35/'Load point'!$D$1 -> 98.26349156 | AA41: =AA$2*'Load point'!$G35/'Load point'!$D$1 -> 100.0218687 | AB41: =AB$2*'Load point'!$G35/'Load point'!$D$1 -> 99.92273027
A42: 34 | B42: =[4]Strompreise!B37 -> 72 | C42: =[4]Strompreise!C37 -> 0.767 | D42: =[4]Strompreise!D37 -> 0 | G42: =G$2*'Load point'!$G36/'Load point'!$D$1 -> 43.0455141 | H42: =H$2*'Load point'!$G36/'Load point'!$D$1 -> 50.02120523 | I42: =I$2*'Load point'!$G36/'Load point'!$D$1 -> 54.99738307 | J42: =J$2*'Load point'!$G36/'Load point'!$D$1 -> 56.58896401 | K42: =K$2*'Load point'!$G36/'Load point'!$D$1 -> 57.39231663 | L42: =L$2*'Load point'!$G36/'Load point'!$D$1 -> 56.97876563 | M42: =M$2*'Load point'!$G36/'Load point'!$D$1 -> 56.97027686 | N42: =N$2*'Load point'!$G36/'Load point'!$D$1 -> 57.35835051 | O42: =O$2*'Load point'!$G36/'Load point'!$D$1 -> 57.11541118 | P42: =P$2*'Load point'!$G36/'Load point'!$D$1 -> 56.37466689 | Q42: =Q$2*'Load point'!$G36/'Load point'!$D$1 -> 56.69338983 | R42: =R$2*'Load point'!$G36/'Load point'!$D$1 -> 56.93447593 | S42: =S$2*'Load point'!$G36/'Load point'!$D$1 -> 58.4304072 | T42: =T$2*'Load point'!$G36/'Load point'!$D$1 -> 60.59932 | U42: =U$2*'Load point'!$G36/'Load point'!$D$1 -> 62.27334955 | V42: =V$2*'Load point'!$G36/'Load point'!$D$1 -> 67.68323553 | W42: =W$2*'Load point'!$G36/'Load point'!$D$1 -> 71.37503069 | X42: =X$2*'Load point'!$G36/'Load point'!$D$1 -> 73.83332419 | Y42: =Y$2*'Load point'!$G36/'Load point'!$D$1 -> 74.53985919 | Z42: =Z$2*'Load point'!$G36/'Load point'!$D$1 -> 75.16959002 | AA42: =AA$2*'Load point'!$G36/'Load point'!$D$1 -> 76.51471306 | AB42: =AB$2*'Load point'!$G36/'Load point'!$D$1 -> 76.43887419
A43: 35 | B43: =[4]Strompreise!B38 -> 180 | C43: =[4]Strompreise!C38 -> 0.834 | D43: =[4]Strompreise!D38 -> 0 | G43: =G$2*'Load point'!$G37/'Load point'!$D$1 -> 22.82031232 | H43: =H$2*'Load point'!$G37/'Load point'!$D$1 -> 26.51843171 | I43: =I$2*'Load point'!$G37/'Load point'!$D$1 -> 29.15652152 | J43: =J$2*'Load point'!$G37/'Load point'!$D$1 -> 30.00028829 | K43: =K$2*'Load point'!$G37/'Load point'!$D$1 -> 30.4261807 | L43: =L$2*'Load point'!$G37/'Load point'!$D$1 -> 30.2069392 | M43: =M$2*'Load point'!$G37/'Load point'!$D$1 -> 30.20243893 | N43: =N$2*'Load point'!$G37/'Load point'!$D$1 -> 30.40817377 | O43: =O$2*'Load point'!$G37/'Load point'!$D$1 -> 30.27938099 | P43: =P$2*'Load point'!$G37/'Load point'!$D$1 -> 29.88668 | Q43: =Q$2*'Load point'!$G37/'Load point'!$D$1 -> 30.05564899 | R43: =R$2*'Load point'!$G37/'Load point'!$D$1 -> 30.18345929 | S43: =S$2*'Load point'!$G37/'Load point'!$D$1 -> 30.97651797 | T43: =T$2*'Load point'!$G37/'Load point'!$D$1 -> 32.12635364 | U43: =U$2*'Load point'!$G37/'Load point'!$D$1 -> 33.01383003 | V43: =V$2*'Load point'!$G37/'Load point'!$D$1 -> 35.88184752 | W43: =W$2*'Load point'!$G37/'Load point'!$D$1 -> 37.83902983 | X43: =X$2*'Load point'!$G37/'Load point'!$D$1 -> 39.14227888 | Y43: =Y$2*'Load point'!$G37/'Load point'!$D$1 -> 39.51684403 | Z43: =Z$2*'Load point'!$G37/'Load point'!$D$1 -> 39.85069193 | AA43: =AA$2*'Load point'!$G37/'Load point'!$D$1 -> 40.56380056 | AB43: =AB$2*'Load point'!$G37/'Load point'!$D$1 -> 40.52359505
A44: 36 | B44: =[4]Strompreise!B39 -> 90 | C44: =[4]Strompreise!C39 -> 1 | D44: =[4]Strompreise!D39 -> 0 | G44: =G$2*'Load point'!$G38/'Load point'!$D$1 -> 19.03050416 | H44: =H$2*'Load point'!$G38/'Load point'!$D$1 -> 22.11447055 | I44: =I$2*'Load point'!$G38/'Load point'!$D$1 -> 24.3144483 | J44: =J$2*'Load point'!$G38/'Load point'!$D$1 -> 25.01808928 | K44: =K$2*'Load point'!$G38/'Load point'!$D$1 -> 25.37325301 | L44: =L$2*'Load point'!$G38/'Load point'!$D$1 -> 25.19042132 | M44: =M$2*'Load point'!$G38/'Load point'!$D$1 -> 25.18666842 | N44: =N$2*'Load point'!$G38/'Load point'!$D$1 -> 25.35823652 | O44: =O$2*'Load point'!$G38/'Load point'!$D$1 -> 25.25083258 | P44: =P$2*'Load point'!$G38/'Load point'!$D$1 -> 24.92334811 | Q44: =Q$2*'Load point'!$G38/'Load point'!$D$1 -> 25.06425613 | R44: =R$2*'Load point'!$G38/'Load point'!$D$1 -> 25.17084076 | S44: =S$2*'Load point'!$G38/'Load point'!$D$1 -> 25.83219483 | T44: =T$2*'Load point'!$G38/'Load point'!$D$1 -> 26.79107533 | U44: =U$2*'Load point'!$G38/'Load point'!$D$1 -> 27.531167 | V44: =V$2*'Load point'!$G38/'Load point'!$D$1 -> 29.92288794 | W44: =W$2*'Load point'!$G38/'Load point'!$D$1 -> 31.55503765 | X44: =X$2*'Load point'!$G38/'Load point'!$D$1 -> 32.64185391 | Y44: =Y$2*'Load point'!$G38/'Load point'!$D$1 -> 32.95421439 | Z44: =Z$2*'Load point'!$G38/'Load point'!$D$1 -> 33.23261959 | AA44: =AA$2*'Load point'!$G38/'Load point'!$D$1 -> 33.82730106 | AB44: =AB$2*'Load point'!$G38/'Load point'!$D$1 -> 33.79377255
A45: 37 | B45: =[4]Strompreise!B40 -> 90 | C45: =[4]Strompreise!C40 -> 1 | D45: =[4]Strompreise!D40 -> 0 | G45: =G$2*'Load point'!$G39/'Load point'!$D$1 -> 27.84434015 | H45: =H$2*'Load point'!$G39/'Load point'!$D$1 -> 32.35662257 | I45: =I$2*'Load point'!$G39/'Load point'!$D$1 -> 35.57550359 | J45: =J$2*'Load point'!$G39/'Load point'!$D$1 -> 36.60503064 | K45: =K$2*'Load point'!$G39/'Load point'!$D$1 -> 37.1246858 | L45: =L$2*'Load point'!$G39/'Load point'!$D$1 -> 36.85717698 | M45: =M$2*'Load point'!$G39/'Load point'!$D$1 -> 36.85168595 | N45: =N$2*'Load point'!$G39/'Load point'!$D$1 -> 37.10271454 | O45: =O$2*'Load point'!$G39/'Load point'!$D$1 -> 36.94556726 | P45: =P$2*'Load point'!$G39/'Load point'!$D$1 -> 36.46641081 | Q45: =Q$2*'Load point'!$G39/'Load point'!$D$1 -> 36.67257933 | R45: =R$2*'Load point'!$G39/'Load point'!$D$1 -> 36.82852783 | S45: =S$2*'Load point'!$G39/'Load point'!$D$1 -> 37.79618311 | T45: =T$2*'Load point'!$G39/'Load point'!$D$1 -> 39.19916196 | U45: =U$2*'Load point'!$G39/'Load point'!$D$1 -> 40.28202156 | V45: =V$2*'Load point'!$G39/'Load point'!$D$1 -> 43.78145021 | W45: =W$2*'Load point'!$G39/'Load point'!$D$1 -> 46.16951787 | X45: =X$2*'Load point'!$G39/'Load point'!$D$1 -> 47.75968497 | Y45: =Y$2*'Load point'!$G39/'Load point'!$D$1 -> 48.21671287 | Z45: =Z$2*'Load point'!$G39/'Load point'!$D$1 -> 48.62405937 | AA45: =AA$2*'Load point'!$G39/'Load point'!$D$1 -> 49.49416313 | AB45: =AB$2*'Load point'!$G39/'Load point'!$D$1 -> 49.44510614
A46: 38 | B46: =[4]Strompreise!B41 -> 90 | C46: =[4]Strompreise!C41 -> 1 | D46: =[4]Strompreise!D41 -> 1 | G46: =G$2*'Load point'!$G40/'Load point'!$D$1 -> 40.25400027 | H46: =H$2*'Load point'!$G40/'Load point'!$D$1 -> 46.77731585 | I46: =I$2*'Load point'!$G40/'Load point'!$D$1 -> 51.43078714 | J46: =J$2*'Load point'!$G40/'Load point'!$D$1 -> 52.9191536 | K46: =K$2*'Load point'!$G40/'Load point'!$D$1 -> 53.67040858 | L46: =L$2*'Load point'!$G40/'Load point'!$D$1 -> 53.28367648 | M46: =M$2*'Load point'!$G40/'Load point'!$D$1 -> 53.27573821 | N46: =N$2*'Load point'!$G40/'Load point'!$D$1 -> 53.63864517 | O46: =O$2*'Load point'!$G40/'Load point'!$D$1 -> 53.41146052 | P46: =P$2*'Load point'!$G40/'Load point'!$D$1 -> 52.71875371 | Q46: =Q$2*'Load point'!$G40/'Load point'!$D$1 -> 53.01680738 | R46: =R$2*'Load point'!$G40/'Load point'!$D$1 -> 53.24225898 | S46: =S$2*'Load point'!$G40/'Load point'!$D$1 -> 54.64117868 | T46: =T$2*'Load point'!$G40/'Load point'!$D$1 -> 56.66943687 | U46: =U$2*'Load point'!$G40/'Load point'!$D$1 -> 58.23490513 | V46: =V$2*'Load point'!$G40/'Load point'!$D$1 -> 63.29395846 | W46: =W$2*'Load point'!$G40/'Load point'!$D$1 -> 66.74633965 | X46: =X$2*'Load point'!$G40/'Load point'!$D$1 -> 69.04521212 | Y46: =Y$2*'Load point'!$G40/'Load point'!$D$1 -> 69.70592813 | Z46: =Z$2*'Load point'!$G40/'Load point'!$D$1 -> 70.29482074 | AA46: =AA$2*'Load point'!$G40/'Load point'!$D$1 -> 71.55271216 | AB46: =AB$2*'Load point'!$G40/'Load point'!$D$1 -> 71.48179147
A47: 39 | B47: =[4]Strompreise!B42 -> 90 | C47: =[4]Strompreise!C42 -> 1 | D47: =[4]Strompreise!D42 -> 1 | G47: =G$2*'Load point'!$G41/'Load point'!$D$1 -> 46.56648439 | H47: =H$2*'Load point'!$G41/'Load point'!$D$1 -> 54.1127623 | I47: =I$2*'Load point'!$G41/'Load point'!$D$1 -> 59.49597382 | J47: =J$2*'Load point'!$G41/'Load point'!$D$1 -> 61.21774043 | K47: =K$2*'Load point'!$G41/'Load point'!$D$1 -> 62.08680445 | L47: =L$2*'Load point'!$G41/'Load point'!$D$1 -> 61.63942644 | M47: =M$2*'Load point'!$G41/'Load point'!$D$1 -> 61.63024332 | N47: =N$2*'Load point'!$G41/'Load point'!$D$1 -> 62.05006002 | O47: =O$2*'Load point'!$G41/'Load point'!$D$1 -> 61.78724911 | P47: =P$2*'Load point'!$G41/'Load point'!$D$1 -> 60.98591457 | Q47: =Q$2*'Load point'!$G41/'Load point'!$D$1 -> 61.33070791 | R47: =R$2*'Load point'!$G41/'Load point'!$D$1 -> 61.59151401 | S47: =S$2*'Load point'!$G41/'Load point'!$D$1 -> 63.20980714 | T47: =T$2*'Load point'!$G41/'Load point'!$D$1 -> 65.55612931 | U47: =U$2*'Load point'!$G41/'Load point'!$D$1 -> 67.36708854 | V47: =V$2*'Load point'!$G41/'Load point'!$D$1 -> 73.21948399 | W47: =W$2*'Load point'!$G41/'Load point'!$D$1 -> 77.21325489 | X47: =X$2*'Load point'!$G41/'Load point'!$D$1 -> 79.87262807 | Y47: =Y$2*'Load point'!$G41/'Load point'!$D$1 -> 80.63695513 | Z47: =Z$2*'Load point'!$G41/'Load point'!$D$1 -> 81.31819571 | AA47: =AA$2*'Load point'!$G41/'Load point'!$D$1 -> 82.77334504 | AB47: =AB$2*'Load point'!$G41/'Load point'!$D$1 -> 82.69130282
A48: 40 | B48: =[4]Strompreise!B43 -> 90 | C48: =[4]Strompreise!C43 -> 1 | D48: =[4]Strompreise!D43 -> 1 | G48: =G$2*'Load point'!$G42/'Load point'!$D$1 -> 45.23428841 | H48: =H$2*'Load point'!$G42/'Load point'!$D$1 -> 52.56467883 | I48: =I$2*'Load point'!$G42/'Load point'!$D$1 -> 57.7938849 | J48: =J$2*'Load point'!$G42/'Load point'!$D$1 -> 59.4663944 | K48: =K$2*'Load point'!$G42/'Load point'!$D$1 -> 60.31059582 | L48: =L$2*'Load point'!$G42/'Load point'!$D$1 -> 59.87601661 | M48: =M$2*'Load point'!$G42/'Load point'!$D$1 -> 59.86709621 | N48: =N$2*'Load point'!$G42/'Load point'!$D$1 -> 60.27490259 | O48: =O$2*'Load point'!$G42/'Load point'!$D$1 -> 60.0196103 | P48: =P$2*'Load point'!$G42/'Load point'!$D$1 -> 59.24120072 | Q48: =Q$2*'Load point'!$G42/'Load point'!$D$1 -> 59.57613005 | R48: =R$2*'Load point'!$G42/'Load point'!$D$1 -> 59.82947488 | S48: =S$2*'Load point'!$G42/'Load point'!$D$1 -> 61.40147112 | T48: =T$2*'Load point'!$G42/'Load point'!$D$1 -> 63.6806686 | U48: =U$2*'Load point'!$G42/'Load point'!$D$1 -> 65.43981905 | V48: =V$2*'Load point'!$G42/'Load point'!$D$1 -> 71.1247864 | W48: =W$2*'Load point'!$G42/'Load point'!$D$1 -> 75.00430162 | X48: =X$2*'Load point'!$G42/'Load point'!$D$1 -> 77.5875942 | Y48: =Y$2*'Load point'!$G42/'Load point'!$D$1 -> 78.33005503 | Z48: =Z$2*'Load point'!$G42/'Load point'!$D$1 -> 78.99180636 | AA48: =AA$2*'Load point'!$G42/'Load point'!$D$1 -> 80.40532609 | AB48: =AB$2*'Load point'!$G42/'Load point'!$D$1 -> 80.32563097
A49: 41 | B49: =[4]Strompreise!B44 -> 135 | C49: =[4]Strompreise!C44 -> 1 | D49: =[4]Strompreise!D44 -> 1 | G49: =G$2*'Load point'!$G43/'Load point'!$D$1 -> 39.99705608 | H49: =H$2*'Load point'!$G43/'Load point'!$D$1 -> 46.47873286 | I49: =I$2*'Load point'!$G43/'Load point'!$D$1 -> 51.1025007 | J49: =J$2*'Load point'!$G43/'Load point'!$D$1 -> 52.58136682 | K49: =K$2*'Load point'!$G43/'Load point'!$D$1 -> 53.32782647 | L49: =L$2*'Load point'!$G43/'Load point'!$D$1 -> 52.94356291 | M49: =M$2*'Load point'!$G43/'Load point'!$D$1 -> 52.93567531 | N49: =N$2*'Load point'!$G43/'Load point'!$D$1 -> 53.29626582 | O49: =O$2*'Load point'!$G43/'Load point'!$D$1 -> 53.0705313 | P49: =P$2*'Load point'!$G43/'Load point'!$D$1 -> 52.38224609 | Q49: =Q$2*'Load point'!$G43/'Load point'!$D$1 -> 52.67839726 | R49: =R$2*'Load point'!$G43/'Load point'!$D$1 -> 52.90240979 | S49: =S$2*'Load point'!$G43/'Load point'!$D$1 -> 54.29240008 | T49: =T$2*'Load point'!$G43/'Load point'!$D$1 -> 56.30771175 | U49: =U$2*'Load point'!$G43/'Load point'!$D$1 -> 57.86318751 | V49: =V$2*'Load point'!$G43/'Load point'!$D$1 -> 62.88994854 | W49: =W$2*'Load point'!$G43/'Load point'!$D$1 -> 66.32029294 | X49: =X$2*'Load point'!$G43/'Load point'!$D$1 -> 68.60449153 | Y49: =Y$2*'Load point'!$G43/'Load point'!$D$1 -> 69.26099014 | Z49: =Z$2*'Load point'!$G43/'Load point'!$D$1 -> 69.84612381 | AA49: =AA$2*'Load point'!$G43/'Load point'!$D$1 -> 71.09598602 | AB49: =AB$2*'Load point'!$G43/'Load point'!$D$1 -> 71.02551802
A50: 42 | B50: =[4]Strompreise!B45 -> 135 | C50: =[4]Strompreise!C45 -> 1 | D50: =[4]Strompreise!D45 -> 1 | G50: =G$2*'Load point'!$G44/'Load point'!$D$1 -> 36.65767607 | H50: =H$2*'Load point'!$G44/'Load point'!$D$1 -> 42.59819347 | I50: =I$2*'Load point'!$G44/'Load point'!$D$1 -> 46.83591996 | J50: =J$2*'Load point'!$G44/'Load point'!$D$1 -> 48.19131459 | K50: =K$2*'Load point'!$G44/'Load point'!$D$1 -> 48.87545185 | L50: =L$2*'Load point'!$G44/'Load point'!$D$1 -> 48.5232707 | M50: =M$2*'Load point'!$G44/'Load point'!$D$1 -> 48.51604164 | N50: =N$2*'Load point'!$G44/'Load point'!$D$1 -> 48.84652621 | O50: =O$2*'Load point'!$G44/'Load point'!$D$1 -> 48.63963841 | P50: =P$2*'Load point'!$G44/'Load point'!$D$1 -> 48.00881858 | Q50: =Q$2*'Load point'!$G44/'Load point'!$D$1 -> 48.2802439 | R50: =R$2*'Load point'!$G44/'Load point'!$D$1 -> 48.48555347 | S50: =S$2*'Load point'!$G44/'Load point'!$D$1 -> 49.75949258 | T50: =T$2*'Load point'!$G44/'Load point'!$D$1 -> 51.60654458 | U50: =U$2*'Load point'!$G44/'Load point'!$D$1 -> 53.03215267 | V50: =V$2*'Load point'!$G44/'Load point'!$D$1 -> 57.63922617 | W50: =W$2*'Load point'!$G44/'Load point'!$D$1 -> 60.7831689 | X50: =X$2*'Load point'!$G44/'Load point'!$D$1 -> 62.87665829 | Y50: =Y$2*'Load point'!$G44/'Load point'!$D$1 -> 63.4783454 | Z50: =Z$2*'Load point'!$G44/'Load point'!$D$1 -> 64.01462588 | AA50: =AA$2*'Load point'!$G44/'Load point'!$D$1 -> 65.16013629 | AB50: =AB$2*'Load point'!$G44/'Load point'!$D$1 -> 65.09555171
A51: 43 | B51: =[4]Strompreise!B46 -> 90 | C51: =[4]Strompreise!C46 -> 1 | D51: =[4]Strompreise!D46 -> 0 | G51: =G$2*'Load point'!$G45/'Load point'!$D$1 -> 33.86941123 | H51: =H$2*'Load point'!$G45/'Load point'!$D$1 -> 39.35807959 | I51: =I$2*'Load point'!$G45/'Load point'!$D$1 -> 43.27347512 | J51: =J$2*'Load point'!$G45/'Load point'!$D$1 -> 44.5257754 | K51: =K$2*'Load point'!$G45/'Load point'!$D$1 -> 45.15787565 | L51: =L$2*'Load point'!$G45/'Load point'!$D$1 -> 44.83248219 | M51: =M$2*'Load point'!$G45/'Load point'!$D$1 -> 44.82580299 | N51: =N$2*'Load point'!$G45/'Load point'!$D$1 -> 45.13115016 | O51: =O$2*'Load point'!$G45/'Load point'!$D$1 -> 44.93999872 | P51: =P$2*'Load point'!$G45/'Load point'!$D$1 -> 44.35716045 | Q51: =Q$2*'Load point'!$G45/'Load point'!$D$1 -> 44.60794055 | R51: =R$2*'Load point'!$G45/'Load point'!$D$1 -> 44.79763382 | S51: =S$2*'Load point'!$G45/'Load point'!$D$1 -> 45.97467427 | T51: =T$2*'Load point'!$G45/'Load point'!$D$1 -> 47.68123536 | U51: =U$2*'Load point'!$G45/'Load point'!$D$1 -> 48.99840851 | V51: =V$2*'Load point'!$G45/'Load point'!$D$1 -> 53.2550577 | W51: =W$2*'Load point'!$G45/'Load point'!$D$1 -> 56.15986511 | X51: =X$2*'Load point'!$G45/'Load point'!$D$1 -> 58.09411901 | Y51: =Y$2*'Load point'!$G45/'Load point'!$D$1 -> 58.65004046 | Z51: =Z$2*'Load point'!$G45/'Load point'!$D$1 -> 59.14553024 | AA51: =AA$2*'Load point'!$G45/'Load point'!$D$1 -> 60.20391057 | AB51: =AB$2*'Load point'!$G45/'Load point'!$D$1 -> 60.14423843
A52: 44 | B52: =[4]Strompreise!B47 -> 90 | C52: =[4]Strompreise!C47 -> 0.775 | D52: =[4]Strompreise!D47 -> 0 | G52: =G$2*'Load point'!$G46/'Load point'!$D$1 -> 33.60518467 | H52: =H$2*'Load point'!$G46/'Load point'!$D$1 -> 39.05103411 | I52: =I$2*'Load point'!$G46/'Load point'!$D$1 -> 42.93588433 | J52: =J$2*'Load point'!$G46/'Load point'!$D$1 -> 44.178415 | K52: =K$2*'Load point'!$G46/'Load point'!$D$1 -> 44.80558403 | L52: =L$2*'Load point'!$G46/'Load point'!$D$1 -> 44.48272907 | M52: =M$2*'Load point'!$G46/'Load point'!$D$1 -> 44.47610197 | N52: =N$2*'Load point'!$G46/'Load point'!$D$1 -> 44.77906703 | O52: =O$2*'Load point'!$G46/'Load point'!$D$1 -> 44.58940682 | P52: =P$2*'Load point'!$G46/'Load point'!$D$1 -> 44.01111547 | Q52: =Q$2*'Load point'!$G46/'Load point'!$D$1 -> 44.25993915 | R52: =R$2*'Load point'!$G46/'Load point'!$D$1 -> 44.44815256 | S52: =S$2*'Load point'!$G46/'Load point'!$D$1 -> 45.61601053 | T52: =T$2*'Load point'!$G46/'Load point'!$D$1 -> 47.30925817 | U52: =U$2*'Load point'!$G46/'Load point'!$D$1 -> 48.61615561 | V52: =V$2*'Load point'!$G46/'Load point'!$D$1 -> 52.83959726 | W52: =W$2*'Load point'!$G46/'Load point'!$D$1 -> 55.72174331 | X52: =X$2*'Load point'!$G46/'Load point'!$D$1 -> 57.64090744 | Y52: =Y$2*'Load point'!$G46/'Load point'!$D$1 -> 58.19249197 | Z52: =Z$2*'Load point'!$G46/'Load point'!$D$1 -> 58.68411627 | AA52: =AA$2*'Load point'!$G46/'Load point'!$D$1 -> 59.73423982 | AB52: =AB$2*'Load point'!$G46/'Load point'!$D$1 -> 59.6750332
A53: 45 | B53: =[4]Strompreise!B48 -> 108 | C53: =[4]Strompreise!C48 -> 0.372 | D53: =[4]Strompreise!D48 -> 0 | G53: =G$2*'Load point'!$G47/'Load point'!$D$1 -> 23.64037415 | H53: =H$2*'Load point'!$G47/'Load point'!$D$1 -> 27.47138771 | I53: =I$2*'Load point'!$G47/'Load point'!$D$1 -> 30.2042789 | J53: =J$2*'Load point'!$G47/'Load point'!$D$1 -> 31.07836693 | K53: =K$2*'Load point'!$G47/'Load point'!$D$1 -> 31.51956404 | L53: =L$2*'Load point'!$G47/'Load point'!$D$1 -> 31.29244397 | M53: =M$2*'Load point'!$G47/'Load point'!$D$1 -> 31.28778198 | N53: =N$2*'Load point'!$G47/'Load point'!$D$1 -> 31.50091003 | O53: =O$2*'Load point'!$G47/'Load point'!$D$1 -> 31.367489 | P53: =P$2*'Load point'!$G47/'Load point'!$D$1 -> 30.96067606 | Q53: =Q$2*'Load point'!$G47/'Load point'!$D$1 -> 31.13571705 | R53: =R$2*'Load point'!$G47/'Load point'!$D$1 -> 31.2681203 | S53: =S$2*'Load point'!$G47/'Load point'!$D$1 -> 32.08967803 | T53: =T$2*'Load point'!$G47/'Load point'!$D$1 -> 33.28083374 | U53: =U$2*'Load point'!$G47/'Load point'!$D$1 -> 34.20020213 | V53: =V$2*'Load point'!$G47/'Load point'!$D$1 -> 37.17128358 | W53: =W$2*'Load point'!$G47/'Load point'!$D$1 -> 39.19879843 | X53: =X$2*'Load point'!$G47/'Load point'!$D$1 -> 40.54888053 | Y53: =Y$2*'Load point'!$G47/'Load point'!$D$1 -> 40.9369059 | Z53: =Z$2*'Load point'!$G47/'Load point'!$D$1 -> 41.28275083 | AA53: =AA$2*'Load point'!$G47/'Load point'!$D$1 -> 42.02148546 | AB53: =AB$2*'Load point'!$G47/'Load point'!$D$1 -> 41.97983514
A54: 46 | B54: =[4]Strompreise!B49 -> 54 | C54: =[4]Strompreise!C49 -> 1 | D54: =[4]Strompreise!D49 -> 0 | G54: =G$2*'Load point'!$G48/'Load point'!$D$1 -> 38.65766999 | H54: =H$2*'Load point'!$G48/'Load point'!$D$1 -> 44.9222941 | I54: =I$2*'Load point'!$G48/'Load point'!$D$1 -> 49.39122529 | J54: =J$2*'Load point'!$G48/'Load point'!$D$1 -> 50.82056844 | K54: =K$2*'Load point'!$G48/'Load point'!$D$1 -> 51.54203132 | L54: =L$2*'Load point'!$G48/'Load point'!$D$1 -> 51.17063563 | M54: =M$2*'Load point'!$G48/'Load point'!$D$1 -> 51.16301217 | N54: =N$2*'Load point'!$G48/'Load point'!$D$1 -> 51.51152754 | O54: =O$2*'Load point'!$G48/'Load point'!$D$1 -> 51.29335222 | P54: =P$2*'Load point'!$G48/'Load point'!$D$1 -> 50.62811569 | Q54: =Q$2*'Load point'!$G48/'Load point'!$D$1 -> 50.91434962 | R54: =R$2*'Load point'!$G48/'Load point'!$D$1 -> 51.13086061 | S54: =S$2*'Load point'!$G48/'Load point'!$D$1 -> 52.47430414 | T54: =T$2*'Load point'!$G48/'Load point'!$D$1 -> 54.42212883 | U54: =U$2*'Load point'!$G48/'Load point'!$D$1 -> 55.92551619 | V54: =V$2*'Load point'!$G48/'Load point'!$D$1 -> 60.78394548 | W54: =W$2*'Load point'!$G48/'Load point'!$D$1 -> 64.09941754 | X54: =X$2*'Load point'!$G48/'Load point'!$D$1 -> 66.30712491 | Y54: =Y$2*'Load point'!$G48/'Load point'!$D$1 -> 66.94163927 | Z54: =Z$2*'Load point'!$G48/'Load point'!$D$1 -> 67.5071785 | AA54: =AA$2*'Load point'!$G48/'Load point'!$D$1 -> 68.71518643 | AB54: =AB$2*'Load point'!$G48/'Load point'!$D$1 -> 68.6470782
A55: 47 | B55: =[4]Strompreise!B50 -> 36 | C55: =[4]Strompreise!C50 -> 1 | D55: =[4]Strompreise!D50 -> 0 | G55: =G$2*'Load point'!$G49/'Load point'!$D$1 -> 55.78375719 | H55: =H$2*'Load point'!$G49/'Load point'!$D$1 -> 64.82372961 | I55: =I$2*'Load point'!$G49/'Load point'!$D$1 -> 71.27248279 | J55: =J$2*'Load point'!$G49/'Load point'!$D$1 -> 73.3350523 | K55: =K$2*'Load point'!$G49/'Load point'!$D$1 -> 74.37613703 | L55: =L$2*'Load point'!$G49/'Load point'!$D$1 -> 73.84020595 | M55: =M$2*'Load point'!$G49/'Load point'!$D$1 -> 73.82920515 | N55: =N$2*'Load point'!$G49/'Load point'!$D$1 -> 74.33211949 | O55: =O$2*'Load point'!$G49/'Load point'!$D$1 -> 74.01728833 | P55: =P$2*'Load point'!$G49/'Load point'!$D$1 -> 73.0573393 | Q55: =Q$2*'Load point'!$G49/'Load point'!$D$1 -> 73.47038033 | R55: =R$2*'Load point'!$G49/'Load point'!$D$1 -> 73.78280983 | S55: =S$2*'Load point'!$G49/'Load point'!$D$1 -> 75.72142454 | T55: =T$2*'Load point'!$G49/'Load point'!$D$1 -> 78.53217282 | U55: =U$2*'Load point'!$G49/'Load point'!$D$1 -> 80.70158954 | V55: =V$2*'Load point'!$G49/'Load point'!$D$1 -> 87.71239594 | W55: =W$2*'Load point'!$G49/'Load point'!$D$1 -> 92.49668553 | X55: =X$2*'Load point'!$G49/'Load point'!$D$1 -> 95.68244949 | Y55: =Y$2*'Load point'!$G49/'Load point'!$D$1 -> 96.59806585 | Z55: =Z$2*'Load point'!$G49/'Load point'!$D$1 -> 97.41414977 | AA55: =AA$2*'Load point'!$G49/'Load point'!$D$1 -> 99.15732832 | AB55: =AB$2*'Load point'!$G49/'Load point'!$D$1 -> 99.05904684
A56: 48 | B56: =[4]Strompreise!B51 -> 36 | C56: =[4]Strompreise!C51 -> 1 | D56: =[4]Strompreise!D51 -> 0 | G56: =G$2*'Load point'!$G50/'Load point'!$D$1 -> 59.79038963 | H56: =H$2*'Load point'!$G50/'Load point'!$D$1 -> 69.47965224 | I56: =I$2*'Load point'!$G50/'Load point'!$D$1 -> 76.39158298 | J56: =J$2*'Load point'!$G50/'Load point'!$D$1 -> 78.60229521 | K56: =K$2*'Load point'!$G50/'Load point'!$D$1 -> 79.71815518 | L56: =L$2*'Load point'!$G50/'Load point'!$D$1 -> 79.1437312 | M56: =M$2*'Load point'!$G50/'Load point'!$D$1 -> 79.13194027 | N56: =N$2*'Load point'!$G50/'Load point'!$D$1 -> 79.67097611 | O56: =O$2*'Load point'!$G50/'Load point'!$D$1 -> 79.3335324 | P56: =P$2*'Load point'!$G50/'Load point'!$D$1 -> 78.30463566 | Q56: =Q$2*'Load point'!$G50/'Load point'!$D$1 -> 78.74734308 | R56: =R$2*'Load point'!$G50/'Load point'!$D$1 -> 79.08221264 | S56: =S$2*'Load point'!$G50/'Load point'!$D$1 -> 81.16006709 | T56: =T$2*'Load point'!$G50/'Load point'!$D$1 -> 84.17269557 | U56: =U$2*'Load point'!$G50/'Load point'!$D$1 -> 86.49792924 | V56: =V$2*'Load point'!$G50/'Load point'!$D$1 -> 94.0122823 | W56: =W$2*'Load point'!$G50/'Load point'!$D$1 -> 99.1402004 | X56: =X$2*'Load point'!$G50/'Load point'!$D$1 -> 102.5547798 | Y56: =Y$2*'Load point'!$G50/'Load point'!$D$1 -> 103.5361597 | Z56: =Z$2*'Load point'!$G50/'Load point'!$D$1 -> 104.4108584 | AA56: =AA$2*'Load point'!$G50/'Load point'!$D$1 -> 106.2792396 | AB56: =AB$2*'Load point'!$G50/'Load point'!$D$1 -> 106.1738991
A57: 49 | B57: =[4]Strompreise!B52 -> 72 | C57: =[4]Strompreise!C52 -> 1 | D57: =[4]Strompreise!D52 -> 0 | G57: =G$2*'Load point'!$G51/'Load point'!$D$1 -> 53.18197115 | H57: =H$2*'Load point'!$G51/'Load point'!$D$1 -> 61.80031414 | I57: =I$2*'Load point'!$G51/'Load point'!$D$1 -> 67.94829382 | J57: =J$2*'Load point'!$G51/'Load point'!$D$1 -> 69.91466392 | K57: =K$2*'Load point'!$G51/'Load point'!$D$1 -> 70.90719186 | L57: =L$2*'Load point'!$G51/'Load point'!$D$1 -> 70.39625692 | M57: =M$2*'Load point'!$G51/'Load point'!$D$1 -> 70.3857692 | N57: =N$2*'Load point'!$G51/'Load point'!$D$1 -> 70.86522733 | O57: =O$2*'Load point'!$G51/'Load point'!$D$1 -> 70.56508007 | P57: =P$2*'Load point'!$G51/'Load point'!$D$1 -> 69.64990361 | Q57: =Q$2*'Load point'!$G51/'Load point'!$D$1 -> 70.04368017 | R57: =R$2*'Load point'!$G51/'Load point'!$D$1 -> 70.34153778 | S57: =S$2*'Load point'!$G51/'Load point'!$D$1 -> 72.1897344 | T57: =T$2*'Load point'!$G51/'Load point'!$D$1 -> 74.86938779 | U57: =U$2*'Load point'!$G51/'Load point'!$D$1 -> 76.93762169 | V57: =V$2*'Load point'!$G51/'Load point'!$D$1 -> 83.6214401 | W57: =W$2*'Load point'!$G51/'Load point'!$D$1 -> 88.18258771 | X57: =X$2*'Load point'!$G51/'Load point'!$D$1 -> 91.21976584 | Y57: =Y$2*'Load point'!$G51/'Load point'!$D$1 -> 92.09267734 | Z57: =Z$2*'Load point'!$G51/'Load point'!$D$1 -> 92.87069864 | AA57: =AA$2*'Load point'!$G51/'Load point'!$D$1 -> 94.53257436 | AB57: =AB$2*'Load point'!$G51/'Load point'!$D$1 -> 94.43887678
A58: 50 | B58: =[4]Strompreise!B53 -> 54 | C58: =[4]Strompreise!C53 -> 1 | D58: =[4]Strompreise!D53 -> 0 | G58: =G$2*'Load point'!$G52/'Load point'!$D$1 -> 42.42059549 | H58: =H$2*'Load point'!$G52/'Load point'!$D$1 -> 49.29501616 | I58: =I$2*'Load point'!$G52/'Load point'!$D$1 -> 54.19895172 | J58: =J$2*'Load point'!$G52/'Load point'!$D$1 -> 55.76742668 | K58: =K$2*'Load point'!$G52/'Load point'!$D$1 -> 56.55911653 | L58: =L$2*'Load point'!$G52/'Load point'!$D$1 -> 56.15156931 | M58: =M$2*'Load point'!$G52/'Load point'!$D$1 -> 56.14320378 | N58: =N$2*'Load point'!$G52/'Load point'!$D$1 -> 56.52564352 | O58: =O$2*'Load point'!$G52/'Load point'!$D$1 -> 56.28623108 | P58: =P$2*'Load point'!$G52/'Load point'!$D$1 -> 55.55624064 | Q58: =Q$2*'Load point'!$G52/'Load point'!$D$1 -> 55.87033649 | R58: =R$2*'Load point'!$G52/'Load point'!$D$1 -> 56.10792259 | S58: =S$2*'Load point'!$G52/'Load point'!$D$1 -> 57.58213649 | T58: =T$2*'Load point'!$G52/'Load point'!$D$1 -> 59.71956183 | U58: =U$2*'Load point'!$G52/'Load point'!$D$1 -> 61.36928845 | V58: =V$2*'Load point'!$G52/'Load point'!$D$1 -> 66.70063573 | W58: =W$2*'Load point'!$G52/'Load point'!$D$1 -> 70.3388348 | X58: =X$2*'Load point'!$G52/'Load point'!$D$1 -> 72.76143971 | Y58: =Y$2*'Load point'!$G52/'Load point'!$D$1 -> 73.45771751 | Z58: =Z$2*'Load point'!$G52/'Load point'!$D$1 -> 74.07830614 | AA58: =AA$2*'Load point'!$G52/'Load point'!$D$1 -> 75.40390119 | AB58: =AB$2*'Load point'!$G52/'Load point'!$D$1 -> 75.32916332
A59: 51 | B59: =[4]Strompreise!B54 -> 72 | C59: =[4]Strompreise!C54 -> 0.758 | D59: =[4]Strompreise!D54 -> 0 | G59: =G$2*'Load point'!$G53/'Load point'!$D$1 -> 36.8302258 | H59: =H$2*'Load point'!$G53/'Load point'!$D$1 -> 42.79870556 | I59: =I$2*'Load point'!$G53/'Load point'!$D$1 -> 47.05637926 | J59: =J$2*'Load point'!$G53/'Load point'!$D$1 -> 48.41815381 | K59: =K$2*'Load point'!$G53/'Load point'!$D$1 -> 49.10551134 | L59: =L$2*'Load point'!$G53/'Load point'!$D$1 -> 48.75167245 | M59: =M$2*'Load point'!$G53/'Load point'!$D$1 -> 48.74440937 | N59: =N$2*'Load point'!$G53/'Load point'!$D$1 -> 49.07644955 | O59: =O$2*'Load point'!$G53/'Load point'!$D$1 -> 48.86858792 | P59: =P$2*'Load point'!$G53/'Load point'!$D$1 -> 48.23479878 | Q59: =Q$2*'Load point'!$G53/'Load point'!$D$1 -> 48.50750171 | R59: =R$2*'Load point'!$G53/'Load point'!$D$1 -> 48.71377769 | S59: =S$2*'Load point'!$G53/'Load point'!$D$1 -> 49.9937133 | T59: =T$2*'Load point'!$G53/'Load point'!$D$1 -> 51.84945948 | U59: =U$2*'Load point'!$G53/'Load point'!$D$1 -> 53.28177798 | V59: =V$2*'Load point'!$G53/'Load point'!$D$1 -> 57.91053724 | W59: =W$2*'Load point'!$G53/'Load point'!$D$1 -> 61.06927869 | X59: =X$2*'Load point'!$G53/'Load point'!$D$1 -> 63.17262224 | Y59: =Y$2*'Load point'!$G53/'Load point'!$D$1 -> 63.77714153 | Z59: =Z$2*'Load point'!$G53/'Load point'!$D$1 -> 64.31594631 | AA59: =AA$2*'Load point'!$G53/'Load point'!$D$1 -> 65.46684871 | AB59: =AB$2*'Load point'!$G53/'Load point'!$D$1 -> 65.40196012
A60: 52 | B60: =[4]Strompreise!B55 -> 180 | C60: =[4]Strompreise!C55 -> 0.827 | D60: =[4]Strompreise!D55 -> 0 | G60: =G$2*'Load point'!$G54/'Load point'!$D$1 -> 23.0543509 | H60: =H$2*'Load point'!$G54/'Load point'!$D$1 -> 26.79039714 | I60: =I$2*'Load point'!$G54/'Load point'!$D$1 -> 29.45554245 | J60: =J$2*'Load point'!$G54/'Load point'!$D$1 -> 30.30796264 | K60: =K$2*'Load point'!$G54/'Load point'!$D$1 -> 30.73822288 | L60: =L$2*'Load point'!$G54/'Load point'!$D$1 -> 30.5167329 | M60: =M$2*'Load point'!$G54/'Load point'!$D$1 -> 30.51218648 | N60: =N$2*'Load point'!$G54/'Load point'!$D$1 -> 30.72003128 | O60: =O$2*'Load point'!$G54/'Load point'!$D$1 -> 30.58991764 | P60: =P$2*'Load point'!$G54/'Load point'!$D$1 -> 30.19318922 | Q60: =Q$2*'Load point'!$G54/'Load point'!$D$1 -> 30.36389111 | R60: =R$2*'Load point'!$G54/'Load point'!$D$1 -> 30.49301219 | S60: =S$2*'Load point'!$G54/'Load point'!$D$1 -> 31.29420426 | T60: =T$2*'Load point'!$G54/'Load point'!$D$1 -> 32.45583231 | U60: =U$2*'Load point'!$G54/'Load point'!$D$1 -> 33.3524104 | V60: =V$2*'Load point'!$G54/'Load point'!$D$1 -> 36.24984146 | W60: =W$2*'Load point'!$G54/'Load point'!$D$1 -> 38.22709607 | X60: =X$2*'Load point'!$G54/'Load point'!$D$1 -> 39.54371087 | Y60: =Y$2*'Load point'!$G54/'Load point'!$D$1 -> 39.92211745 | Z60: =Z$2*'Load point'!$G54/'Load point'!$D$1 -> 40.25938919 | AA60: =AA$2*'Load point'!$G54/'Load point'!$D$1 -> 40.97981127 | AB60: =AB$2*'Load point'!$G54/'Load point'!$D$1 -> 40.93919343
A61: 53 | B61: =[4]Strompreise!B56 -> 90 | C61: =[4]Strompreise!C56 -> 1 | D61: =[4]Strompreise!D56 -> 0 | G61: =G$2*'Load point'!$G55/'Load point'!$D$1 -> 17.97321084 | H61: =H$2*'Load point'!$G55/'Load point'!$D$1 -> 20.88583878 | I61: =I$2*'Load point'!$G55/'Load point'!$D$1 -> 22.96359056 | J61: =J$2*'Load point'!$G55/'Load point'!$D$1 -> 23.62813878 | K61: =K$2*'Load point'!$G55/'Load point'!$D$1 -> 23.96357039 | L61: =L$2*'Load point'!$G55/'Load point'!$D$1 -> 23.79089643 | M61: =M$2*'Load point'!$G55/'Load point'!$D$1 -> 23.78735203 | N61: =N$2*'Load point'!$G55/'Load point'!$D$1 -> 23.94938819 | O61: =O$2*'Load point'!$G55/'Load point'!$D$1 -> 23.84795137 | P61: =P$2*'Load point'!$G55/'Load point'!$D$1 -> 23.53866123 | Q61: =Q$2*'Load point'!$G55/'Load point'!$D$1 -> 23.67174071 | R61: =R$2*'Load point'!$G55/'Load point'!$D$1 -> 23.77240373 | S61: =S$2*'Load point'!$G55/'Load point'!$D$1 -> 24.39701441 | T61: =T$2*'Load point'!$G55/'Load point'!$D$1 -> 25.3026216 | U61: =U$2*'Load point'!$G55/'Load point'!$D$1 -> 26.00159539 | V61: =V$2*'Load point'!$G55/'Load point'!$D$1 -> 28.26043753 | W61: =W$2*'Load point'!$G55/'Load point'!$D$1 -> 29.80190855 | X61: =X$2*'Load point'!$G55/'Load point'!$D$1 -> 30.82834367 | Y61: =Y$2*'Load point'!$G55/'Load point'!$D$1 -> 31.12335008 | Z61: =Z$2*'Load point'!$G55/'Load point'!$D$1 -> 31.3862877 | AA61: =AA$2*'Load point'!$G55/'Load point'!$D$1 -> 31.94792997 | AB61: =AB$2*'Load point'!$G55/'Load point'!$D$1 -> 31.91626423
A62: 54 | B62: =[4]Strompreise!B57 -> 90 | C62: =[4]Strompreise!C57 -> 1 | D62: =[4]Strompreise!D57 -> 0 | G62: =G$2*'Load point'!$G56/'Load point'!$D$1 -> 25.36522555 | H62: =H$2*'Load point'!$G56/'Load point'!$D$1 -> 29.47575792 | I62: =I$2*'Load point'!$G56/'Load point'!$D$1 -> 32.40804659 | J62: =J$2*'Load point'!$G56/'Load point'!$D$1 -> 33.34590992 | K62: =K$2*'Load point'!$G56/'Load point'!$D$1 -> 33.8192977 | L62: =L$2*'Load point'!$G56/'Load point'!$D$1 -> 33.57560647 | M62: =M$2*'Load point'!$G56/'Load point'!$D$1 -> 33.57060434 | N62: =N$2*'Load point'!$G56/'Load point'!$D$1 -> 33.79928265 | O62: =O$2*'Load point'!$G56/'Load point'!$D$1 -> 33.65612694 | P62: =P$2*'Load point'!$G56/'Load point'!$D$1 -> 33.21963208 | Q62: =Q$2*'Load point'!$G56/'Load point'!$D$1 -> 33.40744443 | R62: =R$2*'Load point'!$G56/'Load point'!$D$1 -> 33.54950809 | S62: =S$2*'Load point'!$G56/'Load point'!$D$1 -> 34.4310084 | T62: =T$2*'Load point'!$G56/'Load point'!$D$1 -> 35.70907334 | U62: =U$2*'Load point'!$G56/'Load point'!$D$1 -> 36.69552078 | V62: =V$2*'Load point'!$G56/'Load point'!$D$1 -> 39.88337858 | W62: =W$2*'Load point'!$G56/'Load point'!$D$1 -> 42.05882518 | X62: =X$2*'Load point'!$G56/'Load point'!$D$1 -> 43.5074121 | Y62: =Y$2*'Load point'!$G56/'Load point'!$D$1 -> 43.92374863 | Z62: =Z$2*'Load point'!$G56/'Load point'!$D$1 -> 44.29482712 | AA62: =AA$2*'Load point'!$G56/'Load point'!$D$1 -> 45.08746138 | AB62: =AB$2*'Load point'!$G56/'Load point'!$D$1 -> 45.04277217
A63: 55 | B63: =[4]Strompreise!B58 -> 90 | C63: =[4]Strompreise!C58 -> 1 | D63: =[4]Strompreise!D58 -> 1 | G63: =G$2*'Load point'!$G57/'Load point'!$D$1 -> 40.70103167 | H63: =H$2*'Load point'!$G57/'Load point'!$D$1 -> 47.29679041 | I63: =I$2*'Load point'!$G57/'Load point'!$D$1 -> 52.00193973 | J63: =J$2*'Load point'!$G57/'Load point'!$D$1 -> 53.5068349 | K63: =K$2*'Load point'!$G57/'Load point'!$D$1 -> 54.26643276 | L63: =L$2*'Load point'!$G57/'Load point'!$D$1 -> 53.8754059 | M63: =M$2*'Load point'!$G57/'Load point'!$D$1 -> 53.86737947 | N63: =N$2*'Load point'!$G57/'Load point'!$D$1 -> 54.23431662 | O63: =O$2*'Load point'!$G57/'Load point'!$D$1 -> 54.00460902 | P63: =P$2*'Load point'!$G57/'Load point'!$D$1 -> 53.30420952 | Q63: =Q$2*'Load point'!$G57/'Load point'!$D$1 -> 53.60557315 | R63: =R$2*'Load point'!$G57/'Load point'!$D$1 -> 53.83352845 | S63: =S$2*'Load point'!$G57/'Load point'!$D$1 -> 55.24798353 | T63: =T$2*'Load point'!$G57/'Load point'!$D$1 -> 57.29876606 | U63: =U$2*'Load point'!$G57/'Load point'!$D$1 -> 58.88161926 | V63: =V$2*'Load point'!$G57/'Load point'!$D$1 -> 63.99685473 | W63: =W$2*'Load point'!$G57/'Load point'!$D$1 -> 67.48757554 | X63: =X$2*'Load point'!$G57/'Load point'!$D$1 -> 69.8119776 | Y63: =Y$2*'Load point'!$G57/'Load point'!$D$1 -> 70.48003103 | Z63: =Z$2*'Load point'!$G57/'Load point'!$D$1 -> 71.07546345 | AA63: =AA$2*'Load point'!$G57/'Load point'!$D$1 -> 72.34732409 | AB63: =AB$2*'Load point'!$G57/'Load point'!$D$1 -> 72.2756158
A64: 56 | B64: =[4]Strompreise!B59 -> 90 | C64: =[4]Strompreise!C59 -> 1 | D64: =[4]Strompreise!D59 -> 1 | G64: =G$2*'Load point'!$G58/'Load point'!$D$1 -> 49.57615927 | H64: =H$2*'Load point'!$G58/'Load point'!$D$1 -> 57.61016657 | I64: =I$2*'Load point'!$G58/'Load point'!$D$1 -> 63.34130465 | J64: =J$2*'Load point'!$G58/'Load point'!$D$1 -> 65.17435211 | K64: =K$2*'Load point'!$G58/'Load point'!$D$1 -> 66.09958527 | L64: =L$2*'Load point'!$G58/'Load point'!$D$1 -> 65.62329243 | M64: =M$2*'Load point'!$G58/'Load point'!$D$1 -> 65.61351579 | N64: =N$2*'Load point'!$G58/'Load point'!$D$1 -> 66.06046599 | O64: =O$2*'Load point'!$G58/'Load point'!$D$1 -> 65.78066914 | P64: =P$2*'Load point'!$G58/'Load point'!$D$1 -> 64.92754292 | Q64: =Q$2*'Load point'!$G58/'Load point'!$D$1 -> 65.29462088 | R64: =R$2*'Load point'!$G58/'Load point'!$D$1 -> 65.57228333 | S64: =S$2*'Load point'!$G58/'Load point'!$D$1 -> 67.29516963 | T64: =T$2*'Load point'!$G58/'Load point'!$D$1 -> 69.79313879 | U64: =U$2*'Load point'!$G58/'Load point'!$D$1 -> 71.72114354 | V64: =V$2*'Load point'!$G58/'Load point'!$D$1 -> 77.95178973 | W64: =W$2*'Load point'!$G58/'Load point'!$D$1 -> 82.20368517 | X64: =X$2*'Load point'!$G58/'Load point'!$D$1 -> 85.03493838 | Y64: =Y$2*'Load point'!$G58/'Load point'!$D$1 -> 85.84866526 | Z64: =Z$2*'Load point'!$G58/'Load point'!$D$1 -> 86.57393563 | AA64: =AA$2*'Load point'!$G58/'Load point'!$D$1 -> 88.12313386 | AB64: =AB$2*'Load point'!$G58/'Load point'!$D$1 -> 88.0357891
A65: 57 | B65: =[4]Strompreise!B60 -> 90 | C65: =[4]Strompreise!C60 -> 1 | D65: =[4]Strompreise!D60 -> 1 | G65: =G$2*'Load point'!$G59/'Load point'!$D$1 -> 47.84877634 | H65: =H$2*'Load point'!$G59/'Load point'!$D$1 -> 55.60285459 | I65: =I$2*'Load point'!$G59/'Load point'!$D$1 -> 61.13430253 | J65: =J$2*'Load point'!$G59/'Load point'!$D$1 -> 62.90348109 | K65: =K$2*'Load point'!$G59/'Load point'!$D$1 -> 63.79647634 | L65: =L$2*'Load point'!$G59/'Load point'!$D$1 -> 63.33677897 | M65: =M$2*'Load point'!$G59/'Load point'!$D$1 -> 63.32734298 | N65: =N$2*'Load point'!$G59/'Load point'!$D$1 -> 63.75872009 | O65: =O$2*'Load point'!$G59/'Load point'!$D$1 -> 63.48867221 | P65: =P$2*'Load point'!$G59/'Load point'!$D$1 -> 62.66527148 | Q65: =Q$2*'Load point'!$G59/'Load point'!$D$1 -> 63.01955933 | R65: =R$2*'Load point'!$G59/'Load point'!$D$1 -> 63.28754719 | S65: =S$2*'Load point'!$G59/'Load point'!$D$1 -> 64.95040293 | T65: =T$2*'Load point'!$G59/'Load point'!$D$1 -> 67.36133531 | U65: =U$2*'Load point'!$G59/'Load point'!$D$1 -> 69.22216256 | V65: =V$2*'Load point'!$G59/'Load point'!$D$1 -> 75.23571425 | W65: =W$2*'Load point'!$G59/'Load point'!$D$1 -> 79.33946082 | X65: =X$2*'Load point'!$G59/'Load point'!$D$1 -> 82.07206463 | Y65: =Y$2*'Load point'!$G59/'Load point'!$D$1 -> 82.85743881 | Z65: =Z$2*'Load point'!$G59/'Load point'!$D$1 -> 83.55743857 | AA65: =AA$2*'Load point'!$G59/'Load point'!$D$1 -> 85.05265806 | AB65: =AB$2*'Load point'!$G59/'Load point'!$D$1 -> 84.96835666
A66: 58 | B66: =[4]Strompreise!B61 -> 135 | C66: =[4]Strompreise!C61 -> 1 | D66: =[4]Strompreise!D61 -> 1 | G66: =G$2*'Load point'!$G60/'Load point'!$D$1 -> 42.47046054 | H66: =H$2*'Load point'!$G60/'Load point'!$D$1 -> 49.35296203 | I66: =I$2*'Load point'!$G60/'Load point'!$D$1 -> 54.26266212 | J66: =J$2*'Load point'!$G60/'Load point'!$D$1 -> 55.83298081 | K66: =K$2*'Load point'!$G60/'Load point'!$D$1 -> 56.62560128 | L66: =L$2*'Load point'!$G60/'Load point'!$D$1 -> 56.21757499 | M66: =M$2*'Load point'!$G60/'Load point'!$D$1 -> 56.20919963 | N66: =N$2*'Load point'!$G60/'Load point'!$D$1 -> 56.59208893 | O66: =O$2*'Load point'!$G60/'Load point'!$D$1 -> 56.35239507 | P66: =P$2*'Load point'!$G60/'Load point'!$D$1 -> 55.62154653 | Q66: =Q$2*'Load point'!$G60/'Load point'!$D$1 -> 55.93601159 | R66: =R$2*'Load point'!$G60/'Load point'!$D$1 -> 56.17387697 | S66: =S$2*'Load point'!$G60/'Load point'!$D$1 -> 57.6498238 | T66: =T$2*'Load point'!$G60/'Load point'!$D$1 -> 59.78976166 | U66: =U$2*'Load point'!$G60/'Load point'!$D$1 -> 61.44142752 | V66: =V$2*'Load point'!$G60/'Load point'!$D$1 -> 66.77904175 | W66: =W$2*'Load point'!$G60/'Load point'!$D$1 -> 70.42151749 | X66: =X$2*'Load point'!$G60/'Load point'!$D$1 -> 72.84697016 | Y66: =Y$2*'Load point'!$G60/'Load point'!$D$1 -> 73.54406642 | Z66: =Z$2*'Load point'!$G60/'Load point'!$D$1 -> 74.16538456 | AA66: =AA$2*'Load point'!$G60/'Load point'!$D$1 -> 75.49253783 | AB66: =AB$2*'Load point'!$G60/'Load point'!$D$1 -> 75.41771211
A67: 59 | B67: =[4]Strompreise!B62 -> 135 | C67: =[4]Strompreise!C62 -> 1 | D67: =[4]Strompreise!D62 -> 1 | G67: =G$2*'Load point'!$G61/'Load point'!$D$1 -> 38.62066571 | H67: =H$2*'Load point'!$G61/'Load point'!$D$1 -> 44.87929314 | I67: =I$2*'Load point'!$G61/'Load point'!$D$1 -> 49.34394653 | J67: =J$2*'Load point'!$G61/'Load point'!$D$1 -> 50.77192147 | K67: =K$2*'Load point'!$G61/'Load point'!$D$1 -> 51.49269374 | L67: =L$2*'Load point'!$G61/'Load point'!$D$1 -> 51.12165357 | M67: =M$2*'Load point'!$G61/'Load point'!$D$1 -> 51.1140374 | N67: =N$2*'Load point'!$G61/'Load point'!$D$1 -> 51.46221916 | O67: =O$2*'Load point'!$G61/'Load point'!$D$1 -> 51.24425269 | P67: =P$2*'Load point'!$G61/'Load point'!$D$1 -> 50.57965295 | Q67: =Q$2*'Load point'!$G61/'Load point'!$D$1 -> 50.86561288 | R67: =R$2*'Load point'!$G61/'Load point'!$D$1 -> 51.08191662 | S67: =S$2*'Load point'!$G61/'Load point'!$D$1 -> 52.42407416 | T67: =T$2*'Load point'!$G61/'Load point'!$D$1 -> 54.37003434 | U67: =U$2*'Load point'!$G61/'Load point'!$D$1 -> 55.87198261 | V67: =V$2*'Load point'!$G61/'Load point'!$D$1 -> 60.72576127 | W67: =W$2*'Load point'!$G61/'Load point'!$D$1 -> 64.03805966 | X67: =X$2*'Load point'!$G61/'Load point'!$D$1 -> 66.24365374 | Y67: =Y$2*'Load point'!$G61/'Load point'!$D$1 -> 66.87756073 | Z67: =Z$2*'Load point'!$G61/'Load point'!$D$1 -> 67.44255861 | AA67: =AA$2*'Load point'!$G61/'Load point'!$D$1 -> 68.6494102 | AB67: =AB$2*'Load point'!$G61/'Load point'!$D$1 -> 68.58136716
A68: 60 | B68: =[4]Strompreise!B63 -> 90 | C68: =[4]Strompreise!C63 -> 1 | D68: =[4]Strompreise!D63 -> 0 | G68: =G$2*'Load point'!$G62/'Load point'!$D$1 -> 35.31566382 | H68: =H$2*'Load point'!$G62/'Load point'!$D$1 -> 41.03870298 | I68: =I$2*'Load point'!$G62/'Load point'!$D$1 -> 45.12128922 | J68: =J$2*'Load point'!$G62/'Load point'!$D$1 -> 46.42706378 | K68: =K$2*'Load point'!$G62/'Load point'!$D$1 -> 47.08615525 | L68: =L$2*'Load point'!$G62/'Load point'!$D$1 -> 46.74686721 | M68: =M$2*'Load point'!$G62/'Load point'!$D$1 -> 46.7399028 | N68: =N$2*'Load point'!$G62/'Load point'!$D$1 -> 47.05828856 | O68: =O$2*'Load point'!$G62/'Load point'!$D$1 -> 46.85897479 | P68: =P$2*'Load point'!$G62/'Load point'!$D$1 -> 46.25124883 | Q68: =Q$2*'Load point'!$G62/'Load point'!$D$1 -> 46.51273745 | R68: =R$2*'Load point'!$G62/'Load point'!$D$1 -> 46.71053079 | S68: =S$2*'Load point'!$G62/'Load point'!$D$1 -> 47.93783186 | T68: =T$2*'Load point'!$G62/'Load point'!$D$1 -> 49.71726456 | U68: =U$2*'Load point'!$G62/'Load point'!$D$1 -> 51.09068212 | V68: =V$2*'Load point'!$G62/'Load point'!$D$1 -> 55.52909384 | W68: =W$2*'Load point'!$G62/'Load point'!$D$1 -> 58.557939 | X68: =X$2*'Load point'!$G62/'Load point'!$D$1 -> 60.57478718 | Y68: =Y$2*'Load point'!$G62/'Load point'!$D$1 -> 61.15444694 | Z68: =Z$2*'Load point'!$G62/'Load point'!$D$1 -> 61.67109456 | AA68: =AA$2*'Load point'!$G62/'Load point'!$D$1 -> 62.77466863 | AB68: =AB$2*'Load point'!$G62/'Load point'!$D$1 -> 62.71244844
A69: 61 | B69: =[4]Strompreise!B64 -> 90 | C69: =[4]Strompreise!C64 -> 0.778 | D69: =[4]Strompreise!D64 -> 0 | G69: =G$2*'Load point'!$G63/'Load point'!$D$1 -> 34.17247497 | H69: =H$2*'Load point'!$G63/'Load point'!$D$1 -> 39.71025598 | I69: =I$2*'Load point'!$G63/'Load point'!$D$1 -> 43.6606865 | J69: =J$2*'Load point'!$G63/'Load point'!$D$1 -> 44.92419237 | K69: =K$2*'Load point'!$G63/'Load point'!$D$1 -> 45.56194866 | L69: =L$2*'Load point'!$G63/'Load point'!$D$1 -> 45.23364357 | M69: =M$2*'Load point'!$G63/'Load point'!$D$1 -> 45.22690461 | N69: =N$2*'Load point'!$G63/'Load point'!$D$1 -> 45.53498403 | O69: =O$2*'Load point'!$G63/'Load point'!$D$1 -> 45.34212216 | P69: =P$2*'Load point'!$G63/'Load point'!$D$1 -> 44.75406865 | Q69: =Q$2*'Load point'!$G63/'Load point'!$D$1 -> 45.00709274 | R69: =R$2*'Load point'!$G63/'Load point'!$D$1 -> 45.19848338 | S69: =S$2*'Load point'!$G63/'Load point'!$D$1 -> 46.386056 | T69: =T$2*'Load point'!$G63/'Load point'!$D$1 -> 48.10788741 | U69: =U$2*'Load point'!$G63/'Load point'!$D$1 -> 49.43684664 | V69: =V$2*'Load point'!$G63/'Load point'!$D$1 -> 53.73158436 | W69: =W$2*'Load point'!$G63/'Load point'!$D$1 -> 56.66238401 | X69: =X$2*'Load point'!$G63/'Load point'!$D$1 -> 58.61394562 | Y69: =Y$2*'Load point'!$G63/'Load point'!$D$1 -> 59.17484146 | Z69: =Z$2*'Load point'!$G63/'Load point'!$D$1 -> 59.67476489 | AA69: =AA$2*'Load point'!$G63/'Load point'!$D$1 -> 60.74261562 | AB69: =AB$2*'Load point'!$G63/'Load point'!$D$1 -> 60.68240953
A70: 62 | B70: =[4]Strompreise!B65 -> 108 | C70: =[4]Strompreise!C65 -> 0.246 | D70: =[4]Strompreise!D65 -> 0 | G70: =G$2*'Load point'!$G64/'Load point'!$D$1 -> 21.53968325 | H70: =H$2*'Load point'!$G64/'Load point'!$D$1 -> 25.03027177 | I70: =I$2*'Load point'!$G64/'Load point'!$D$1 -> 27.5203174 | J70: =J$2*'Load point'!$G64/'Load point'!$D$1 -> 28.31673371 | K70: =K$2*'Load point'!$G64/'Load point'!$D$1 -> 28.71872591 | L70: =L$2*'Load point'!$G64/'Load point'!$D$1 -> 28.51178779 | M70: =M$2*'Load point'!$G64/'Load point'!$D$1 -> 28.50754007 | N70: =N$2*'Load point'!$G64/'Load point'!$D$1 -> 28.70172949 | O70: =O$2*'Load point'!$G64/'Load point'!$D$1 -> 28.5801643 | P70: =P$2*'Load point'!$G64/'Load point'!$D$1 -> 28.20950088 | Q70: =Q$2*'Load point'!$G64/'Load point'!$D$1 -> 28.36898768 | R70: =R$2*'Load point'!$G64/'Load point'!$D$1 -> 28.48962553 | S70: =S$2*'Load point'!$G64/'Load point'!$D$1 -> 29.23817939 | T70: =T$2*'Load point'!$G64/'Load point'!$D$1 -> 30.32348864 | U70: =U$2*'Load point'!$G64/'Load point'!$D$1 -> 31.16116167 | V70: =V$2*'Load point'!$G64/'Load point'!$D$1 -> 33.86823191 | W70: =W$2*'Load point'!$G64/'Load point'!$D$1 -> 35.71558117 | X70: =X$2*'Load point'!$G64/'Load point'!$D$1 -> 36.94569456 | Y70: =Y$2*'Load point'!$G64/'Load point'!$D$1 -> 37.29923988 | Z70: =Z$2*'Load point'!$G64/'Load point'!$D$1 -> 37.61435292 | AA70: =AA$2*'Load point'!$G64/'Load point'!$D$1 -> 38.28744336 | AB70: =AB$2*'Load point'!$G64/'Load point'!$D$1 -> 38.24949411
A71: 63 | B71: =[4]Strompreise!B66 -> 54 | C71: =[4]Strompreise!C66 -> 1 | D71: =[4]Strompreise!D66 -> 0 | G71: =G$2*'Load point'!$G65/'Load point'!$D$1 -> 35.82111348 | H71: =H$2*'Load point'!$G65/'Load point'!$D$1 -> 41.6260627 | I71: =I$2*'Load point'!$G65/'Load point'!$D$1 -> 45.76708029 | J71: =J$2*'Load point'!$G65/'Load point'!$D$1 -> 47.09154354 | K71: =K$2*'Load point'!$G65/'Load point'!$D$1 -> 47.76006815 | L71: =L$2*'Load point'!$G65/'Load point'!$D$1 -> 47.4159241 | M71: =M$2*'Load point'!$G65/'Load point'!$D$1 -> 47.40886002 | N71: =N$2*'Load point'!$G65/'Load point'!$D$1 -> 47.73180262 | O71: =O$2*'Load point'!$G65/'Load point'!$D$1 -> 47.5296362 | P71: =P$2*'Load point'!$G65/'Load point'!$D$1 -> 46.91321226 | Q71: =Q$2*'Load point'!$G65/'Load point'!$D$1 -> 47.1784434 | R71: =R$2*'Load point'!$G65/'Load point'!$D$1 -> 47.37906762 | S71: =S$2*'Load point'!$G65/'Load point'!$D$1 -> 48.62393424 | T71: =T$2*'Load point'!$G65/'Load point'!$D$1 -> 50.42883478 | U71: =U$2*'Load point'!$G65/'Load point'!$D$1 -> 51.82190915 | V71: =V$2*'Load point'!$G65/'Load point'!$D$1 -> 56.32384491 | W71: =W$2*'Load point'!$G65/'Load point'!$D$1 -> 59.39603992 | X71: =X$2*'Load point'!$G65/'Load point'!$D$1 -> 61.44175391 | Y71: =Y$2*'Load point'!$G65/'Load point'!$D$1 -> 62.02970996 | Z71: =Z$2*'Load point'!$G65/'Load point'!$D$1 -> 62.55375201 | AA71: =AA$2*'Load point'!$G65/'Load point'!$D$1 -> 63.6731208 | AB71: =AB$2*'Load point'!$G65/'Load point'!$D$1 -> 63.6100101
A72: 64 | B72: =[4]Strompreise!B67 -> 36 | C72: =[4]Strompreise!C67 -> 1 | D72: =[4]Strompreise!D67 -> 0 | G72: =G$2*'Load point'!$G66/'Load point'!$D$1 -> 55.6880165 | H72: =H$2*'Load point'!$G66/'Load point'!$D$1 -> 64.71247378 | I72: =I$2*'Load point'!$G66/'Load point'!$D$1 -> 71.15015908 | J72: =J$2*'Load point'!$G66/'Load point'!$D$1 -> 73.20918863 | K72: =K$2*'Load point'!$G66/'Load point'!$D$1 -> 74.24848657 | L72: =L$2*'Load point'!$G66/'Load point'!$D$1 -> 73.7134753 | M72: =M$2*'Load point'!$G66/'Load point'!$D$1 -> 73.70249338 | N72: =N$2*'Load point'!$G66/'Load point'!$D$1 -> 74.20454458 | O72: =O$2*'Load point'!$G66/'Load point'!$D$1 -> 73.89025376 | P72: =P$2*'Load point'!$G66/'Load point'!$D$1 -> 72.93195227 | Q72: =Q$2*'Load point'!$G66/'Load point'!$D$1 -> 73.3442844 | R72: =R$2*'Load point'!$G66/'Load point'!$D$1 -> 73.65617769 | S72: =S$2*'Load point'!$G66/'Load point'!$D$1 -> 75.59146518 | T72: =T$2*'Load point'!$G66/'Load point'!$D$1 -> 78.39738943 | U72: =U$2*'Load point'!$G66/'Load point'!$D$1 -> 80.56308282 | V72: =V$2*'Load point'!$G66/'Load point'!$D$1 -> 87.56185669 | W72: =W$2*'Load point'!$G66/'Load point'!$D$1 -> 92.33793509 | X72: =X$2*'Load point'!$G66/'Load point'!$D$1 -> 95.51823138 | Y72: =Y$2*'Load point'!$G66/'Load point'!$D$1 -> 96.43227629 | Z72: =Z$2*'Load point'!$G66/'Load point'!$D$1 -> 97.24695957 | AA72: =AA$2*'Load point'!$G66/'Load point'!$D$1 -> 98.98714634 | AB72: =AB$2*'Load point'!$G66/'Load point'!$D$1 -> 98.88903353
A73: 65 | B73: =[4]Strompreise!B68 -> 36 | C73: =[4]Strompreise!C68 -> 1 | D73: =[4]Strompreise!D68 -> 0 | G73: =G$2*'Load point'!$G67/'Load point'!$D$1 -> 60.5660867 | H73: =H$2*'Load point'!$G67/'Load point'!$D$1 -> 70.38105401 | I73: =I$2*'Load point'!$G67/'Load point'!$D$1 -> 77.38265742 | J73: =J$2*'Load point'!$G67/'Load point'!$D$1 -> 79.62205057 | K73: =K$2*'Load point'!$G67/'Load point'!$D$1 -> 80.75238727 | L73: =L$2*'Load point'!$G67/'Load point'!$D$1 -> 80.17051093 | M73: =M$2*'Load point'!$G67/'Load point'!$D$1 -> 80.15856703 | N73: =N$2*'Load point'!$G67/'Load point'!$D$1 -> 80.70459611 | O73: =O$2*'Load point'!$G67/'Load point'!$D$1 -> 80.36277455 | P73: =P$2*'Load point'!$G67/'Load point'!$D$1 -> 79.3205293 | Q73: =Q$2*'Load point'!$G67/'Load point'!$D$1 -> 79.76898024 | R73: =R$2*'Load point'!$G67/'Load point'!$D$1 -> 80.10819426 | S73: =S$2*'Load point'!$G67/'Load point'!$D$1 -> 82.21300598 | T73: =T$2*'Load point'!$G67/'Load point'!$D$1 -> 85.26471912 | U73: =U$2*'Load point'!$G67/'Load point'!$D$1 -> 87.62011946 | V73: =V$2*'Load point'!$G67/'Load point'!$D$1 -> 95.23196079 | W73: =W$2*'Load point'!$G67/'Load point'!$D$1 -> 100.4264065 | X73: =X$2*'Load point'!$G67/'Load point'!$D$1 -> 103.8852853 | Y73: =Y$2*'Load point'!$G67/'Load point'!$D$1 -> 104.8793973 | Z73: =Z$2*'Load point'!$G67/'Load point'!$D$1 -> 105.7654439 | AA73: =AA$2*'Load point'!$G67/'Load point'!$D$1 -> 107.6580648 | AB73: =AB$2*'Load point'!$G67/'Load point'!$D$1 -> 107.5513576
A74: 66 | B74: =[4]Strompreise!B69 -> 72 | C74: =[4]Strompreise!C69 -> 1 | D74: =[4]Strompreise!D69 -> 0 | G74: =G$2*'Load point'!$G68/'Load point'!$D$1 -> 53.40868631 | H74: =H$2*'Load point'!$G68/'Load point'!$D$1 -> 62.06376936 | I74: =I$2*'Load point'!$G68/'Load point'!$D$1 -> 68.23795793 | J74: =J$2*'Load point'!$G68/'Load point'!$D$1 -> 70.21271067 | K74: =K$2*'Load point'!$G68/'Load point'!$D$1 -> 71.20946978 | L74: =L$2*'Load point'!$G68/'Load point'!$D$1 -> 70.69635671 | M74: =M$2*'Load point'!$G68/'Load point'!$D$1 -> 70.68582428 | N74: =N$2*'Load point'!$G68/'Load point'!$D$1 -> 71.16732635 | O74: =O$2*'Load point'!$G68/'Load point'!$D$1 -> 70.86589956 | P74: =P$2*'Load point'!$G68/'Load point'!$D$1 -> 69.94682169 | Q74: =Q$2*'Load point'!$G68/'Load point'!$D$1 -> 70.34227692 | R74: =R$2*'Load point'!$G68/'Load point'!$D$1 -> 70.64140431 | S74: =S$2*'Load point'!$G68/'Load point'!$D$1 -> 72.4974798 | T74: =T$2*'Load point'!$G68/'Load point'!$D$1 -> 75.18855658 | U74: =U$2*'Load point'!$G68/'Load point'!$D$1 -> 77.26560737 | V74: =V$2*'Load point'!$G68/'Load point'!$D$1 -> 83.97791896 | W74: =W$2*'Load point'!$G68/'Load point'!$D$1 -> 88.55851077 | X74: =X$2*'Load point'!$G68/'Load point'!$D$1 -> 91.60863642 | Y74: =Y$2*'Load point'!$G68/'Load point'!$D$1 -> 92.48526914 | Z74: =Z$2*'Load point'!$G68/'Load point'!$D$1 -> 93.26660716 | AA74: =AA$2*'Load point'!$G68/'Load point'!$D$1 -> 94.93556746 | AB74: =AB$2*'Load point'!$G68/'Load point'!$D$1 -> 94.84147045
A75: 67 | B75: =[4]Strompreise!B70 -> 54 | C75: =[4]Strompreise!C70 -> 1 | D75: =[4]Strompreise!D70 -> 0 | G75: =G$2*'Load point'!$G69/'Load point'!$D$1 -> 45.23054128 | H75: =H$2*'Load point'!$G69/'Load point'!$D$1 -> 52.56032447 | I75: =I$2*'Load point'!$G69/'Load point'!$D$1 -> 57.78909735 | J75: =J$2*'Load point'!$G69/'Load point'!$D$1 -> 59.46146831 | K75: =K$2*'Load point'!$G69/'Load point'!$D$1 -> 60.30559979 | L75: =L$2*'Load point'!$G69/'Load point'!$D$1 -> 59.87105659 | M75: =M$2*'Load point'!$G69/'Load point'!$D$1 -> 59.86213692 | N75: =N$2*'Load point'!$G69/'Load point'!$D$1 -> 60.26990953 | O75: =O$2*'Load point'!$G69/'Load point'!$D$1 -> 60.01463838 | P75: =P$2*'Load point'!$G69/'Load point'!$D$1 -> 59.23629328 | Q75: =Q$2*'Load point'!$G69/'Load point'!$D$1 -> 59.57119487 | R75: =R$2*'Load point'!$G69/'Load point'!$D$1 -> 59.82451871 | S75: =S$2*'Load point'!$G69/'Load point'!$D$1 -> 61.39638473 | T75: =T$2*'Load point'!$G69/'Load point'!$D$1 -> 63.6753934 | U75: =U$2*'Load point'!$G69/'Load point'!$D$1 -> 65.43439813 | V75: =V$2*'Load point'!$G69/'Load point'!$D$1 -> 71.11889455 | W75: =W$2*'Load point'!$G69/'Load point'!$D$1 -> 74.9980884 | X75: =X$2*'Load point'!$G69/'Load point'!$D$1 -> 77.58116698 | Y75: =Y$2*'Load point'!$G69/'Load point'!$D$1 -> 78.3235663 | Z75: =Z$2*'Load point'!$G69/'Load point'!$D$1 -> 78.98526281 | AA75: =AA$2*'Load point'!$G69/'Load point'!$D$1 -> 80.39866545 | AB75: =AB$2*'Load point'!$G69/'Load point'!$D$1 -> 80.31897693
A76: 68 | B76: =[4]Strompreise!B71 -> 72 | C76: =[4]Strompreise!C71 -> 0.761 | D76: =[4]Strompreise!D71 -> 0 | G76: =G$2*'Load point'!$G70/'Load point'!$D$1 -> 38.27594568 | H76: =H$2*'Load point'!$G70/'Load point'!$D$1 -> 44.4787099 | I76: =I$2*'Load point'!$G70/'Load point'!$D$1 -> 48.90351273 | J76: =J$2*'Load point'!$G70/'Load point'!$D$1 -> 50.31874186 | K76: =K$2*'Load point'!$G70/'Load point'!$D$1 -> 51.03308067 | L76: =L$2*'Load point'!$G70/'Load point'!$D$1 -> 50.66535232 | M76: =M$2*'Load point'!$G70/'Load point'!$D$1 -> 50.65780414 | N76: =N$2*'Load point'!$G70/'Load point'!$D$1 -> 51.0028781 | O76: =O$2*'Load point'!$G70/'Load point'!$D$1 -> 50.78685715 | P76: =P$2*'Load point'!$G70/'Load point'!$D$1 -> 50.12818949 | Q76: =Q$2*'Load point'!$G70/'Load point'!$D$1 -> 50.411597 | R76: =R$2*'Load point'!$G70/'Load point'!$D$1 -> 50.62597006 | S76: =S$2*'Load point'!$G70/'Load point'!$D$1 -> 51.95614778 | T76: =T$2*'Load point'!$G70/'Load point'!$D$1 -> 53.88473872 | U76: =U$2*'Load point'!$G70/'Load point'!$D$1 -> 55.37328092 | V76: =V$2*'Load point'!$G70/'Load point'!$D$1 -> 60.18373576 | W76: =W$2*'Load point'!$G70/'Load point'!$D$1 -> 63.46646926 | X76: =X$2*'Load point'!$G70/'Load point'!$D$1 -> 65.65237667 | Y76: =Y$2*'Load point'!$G70/'Load point'!$D$1 -> 66.28062554 | Z76: =Z$2*'Load point'!$G70/'Load point'!$D$1 -> 66.84058036 | AA76: =AA$2*'Load point'!$G70/'Load point'!$D$1 -> 68.03665984 | AB76: =AB$2*'Load point'!$G70/'Load point'!$D$1 -> 67.96922414
A77: 69 | B77: =[4]Strompreise!B72 -> 160 | C77: =[4]Strompreise!C72 -> 0.849 | D77: =[4]Strompreise!D72 -> 0 | G77: =G$2*'Load point'!$G71/'Load point'!$D$1 -> 26.23774039 | H77: =H$2*'Load point'!$G71/'Load point'!$D$1 -> 30.48966714 | I77: =I$2*'Load point'!$G71/'Load point'!$D$1 -> 33.52282088 | J77: =J$2*'Load point'!$G71/'Load point'!$D$1 -> 34.49294491 | K77: =K$2*'Load point'!$G71/'Load point'!$D$1 -> 34.98261631 | L77: =L$2*'Load point'!$G71/'Load point'!$D$1 -> 34.73054257 | M77: =M$2*'Load point'!$G71/'Load point'!$D$1 -> 34.72536837 | N77: =N$2*'Load point'!$G71/'Load point'!$D$1 -> 34.96191278 | O77: =O$2*'Load point'!$G71/'Load point'!$D$1 -> 34.81383279 | P77: =P$2*'Load point'!$G71/'Load point'!$D$1 -> 34.36232335 | Q77: =Q$2*'Load point'!$G71/'Load point'!$D$1 -> 34.55659608 | R77: =R$2*'Load point'!$G71/'Load point'!$D$1 -> 34.70354646 | S77: =S$2*'Load point'!$G71/'Load point'!$D$1 -> 35.61536868 | T77: =T$2*'Load point'!$G71/'Load point'!$D$1 -> 36.93739659 | U77: =U$2*'Load point'!$G71/'Load point'!$D$1 -> 37.95777592 | V77: =V$2*'Load point'!$G71/'Load point'!$D$1 -> 41.25528988 | W77: =W$2*'Load point'!$G71/'Load point'!$D$1 -> 43.50556764 | X77: =X$2*'Load point'!$G71/'Load point'!$D$1 -> 45.00398316 | Y77: =Y$2*'Load point'!$G71/'Load point'!$D$1 -> 45.43464086 | Z77: =Z$2*'Load point'!$G71/'Load point'!$D$1 -> 45.81848374 | AA77: =AA$2*'Load point'!$G71/'Load point'!$D$1 -> 46.63838309 | AB77: =AB$2*'Load point'!$G71/'Load point'!$D$1 -> 46.59215666
A78: 70 | B78: =[4]Strompreise!B73 -> 80 | C78: =[4]Strompreise!C73 -> 1 | D78: =[4]Strompreise!D73 -> 0 | G78: =G$2*'Load point'!$G72/'Load point'!$D$1 -> 19.79758383 | H78: =H$2*'Load point'!$G72/'Load point'!$D$1 -> 23.00585844 | I78: =I$2*'Load point'!$G72/'Load point'!$D$1 -> 25.29451267 | J78: =J$2*'Load point'!$G72/'Load point'!$D$1 -> 26.02651594 | K78: =K$2*'Load point'!$G72/'Load point'!$D$1 -> 26.39599557 | L78: =L$2*'Load point'!$G72/'Load point'!$D$1 -> 26.20579432 | M78: =M$2*'Load point'!$G72/'Load point'!$D$1 -> 26.20189015 | N78: =N$2*'Load point'!$G72/'Load point'!$D$1 -> 26.3803738 | O78: =O$2*'Load point'!$G72/'Load point'!$D$1 -> 26.26864063 | P78: =P$2*'Load point'!$G72/'Load point'!$D$1 -> 25.92795595 | Q78: =Q$2*'Load point'!$G72/'Load point'!$D$1 -> 26.07454368 | R78: =R$2*'Load point'!$G72/'Load point'!$D$1 -> 26.18542451 | S78: =S$2*'Load point'!$G72/'Load point'!$D$1 -> 26.87343638 | T78: =T$2*'Load point'!$G72/'Load point'!$D$1 -> 27.87096734 | U78: =U$2*'Load point'!$G72/'Load point'!$D$1 -> 28.64089055 | V78: =V$2*'Load point'!$G72/'Load point'!$D$1 -> 31.12901674 | W78: =W$2*'Load point'!$G72/'Load point'!$D$1 -> 32.82695498 | X78: =X$2*'Load point'!$G72/'Load point'!$D$1 -> 33.95757852 | Y78: =Y$2*'Load point'!$G72/'Load point'!$D$1 -> 34.28252959 | Z78: =Z$2*'Load point'!$G72/'Load point'!$D$1 -> 34.57215673 | AA78: =AA$2*'Load point'!$G72/'Load point'!$D$1 -> 35.19080856 | AB78: =AB$2*'Load point'!$G72/'Load point'!$D$1 -> 35.15592858
A79: 71 | B79: =[4]Strompreise!B74 -> 80 | C79: =[4]Strompreise!C74 -> 1 | D79: =[4]Strompreise!D74 -> 0 | G79: =G$2*'Load point'!$G73/'Load point'!$D$1 -> 35.95616392 | H79: =H$2*'Load point'!$G73/'Load point'!$D$1 -> 41.78299859 | I79: =I$2*'Load point'!$G73/'Load point'!$D$1 -> 45.93962837 | J79: =J$2*'Load point'!$G73/'Load point'!$D$1 -> 47.26908503 | K79: =K$2*'Load point'!$G73/'Load point'!$D$1 -> 47.94013006 | L79: =L$2*'Load point'!$G73/'Load point'!$D$1 -> 47.59468854 | M79: =M$2*'Load point'!$G73/'Load point'!$D$1 -> 47.58759783 | N79: =N$2*'Load point'!$G73/'Load point'!$D$1 -> 47.91175797 | O79: =O$2*'Load point'!$G73/'Load point'!$D$1 -> 47.70882935 | P79: =P$2*'Load point'!$G73/'Load point'!$D$1 -> 47.09008141 | Q79: =Q$2*'Load point'!$G73/'Load point'!$D$1 -> 47.35631251 | R79: =R$2*'Load point'!$G73/'Load point'!$D$1 -> 47.55769311 | S79: =S$2*'Load point'!$G73/'Load point'!$D$1 -> 48.80725304 | T79: =T$2*'Load point'!$G73/'Load point'!$D$1 -> 50.6189583 | U79: =U$2*'Load point'!$G73/'Load point'!$D$1 -> 52.01728475 | V79: =V$2*'Load point'!$G73/'Load point'!$D$1 -> 56.53619342 | W79: =W$2*'Load point'!$G73/'Load point'!$D$1 -> 59.61997102 | X79: =X$2*'Load point'!$G73/'Load point'!$D$1 -> 61.67339763 | Y79: =Y$2*'Load point'!$G73/'Load point'!$D$1 -> 62.26357035 | Z79: =Z$2*'Load point'!$G73/'Load point'!$D$1 -> 62.78958812 | AA79: =AA$2*'Load point'!$G73/'Load point'!$D$1 -> 63.91317708 | AB79: =AB$2*'Load point'!$G73/'Load point'!$D$1 -> 63.84982844
A80: 72 | B80: =[4]Strompreise!B75 -> 80 | C80: =[4]Strompreise!C75 -> 1 | D80: =[4]Strompreise!D75 -> 1 | G80: =G$2*'Load point'!$G74/'Load point'!$D$1 -> 48.49719784 | H80: =H$2*'Load point'!$G74/'Load point'!$D$1 -> 56.35635529 | I80: =I$2*'Load point'!$G74/'Load point'!$D$1 -> 61.96276251 | J80: =J$2*'Load point'!$G74/'Load point'!$D$1 -> 63.75591604 | K80: =K$2*'Load point'!$G74/'Load point'!$D$1 -> 64.6610127 | L80: =L$2*'Load point'!$G74/'Load point'!$D$1 -> 64.19508576 | M80: =M$2*'Load point'!$G74/'Load point'!$D$1 -> 64.18552189 | N80: =N$2*'Load point'!$G74/'Load point'!$D$1 -> 64.6227448 | O80: =O$2*'Load point'!$G74/'Load point'!$D$1 -> 64.34903736 | P80: =P$2*'Load point'!$G74/'Load point'!$D$1 -> 63.51447834 | Q80: =Q$2*'Load point'!$G74/'Load point'!$D$1 -> 63.87356732 | R80: =R$2*'Load point'!$G74/'Load point'!$D$1 -> 64.1451868 | S80: =S$2*'Load point'!$G74/'Load point'!$D$1 -> 65.8305767 | T80: =T$2*'Load point'!$G74/'Load point'!$D$1 -> 68.27418077 | U80: =U$2*'Load point'!$G74/'Load point'!$D$1 -> 70.16022497 | V80: =V$2*'Load point'!$G74/'Load point'!$D$1 -> 76.25526915 | W80: =W$2*'Load point'!$G74/'Load point'!$D$1 -> 80.41462754 | X80: =X$2*'Load point'!$G74/'Load point'!$D$1 -> 83.18426217 | Y80: =Y$2*'Load point'!$G74/'Load point'!$D$1 -> 83.98027932 | Z80: =Z$2*'Load point'!$G74/'Load point'!$D$1 -> 84.68976512 | AA80: =AA$2*'Load point'!$G74/'Load point'!$D$1 -> 86.20524703 | AB80: =AB$2*'Load point'!$G74/'Load point'!$D$1 -> 86.11980322
A81: 73 | B81: =[4]Strompreise!B76 -> 80 | C81: =[4]Strompreise!C76 -> 1 | D81: =[4]Strompreise!D76 -> 1 | G81: =G$2*'Load point'!$G75/'Load point'!$D$1 -> 54.84251459 | H81: =H$2*'Load point'!$G75/'Load point'!$D$1 -> 63.72995503 | I81: =I$2*'Load point'!$G75/'Load point'!$D$1 -> 70.06989802 | J81: =J$2*'Load point'!$G75/'Load point'!$D$1 -> 72.09766567 | K81: =K$2*'Load point'!$G75/'Load point'!$D$1 -> 73.12118412 | L81: =L$2*'Load point'!$G75/'Load point'!$D$1 -> 72.59429584 | M81: =M$2*'Load point'!$G75/'Load point'!$D$1 -> 72.58348065 | N81: =N$2*'Load point'!$G75/'Load point'!$D$1 -> 73.07790929 | O81: =O$2*'Load point'!$G75/'Load point'!$D$1 -> 72.7683903 | P81: =P$2*'Load point'!$G75/'Load point'!$D$1 -> 71.82463854 | Q81: =Q$2*'Load point'!$G75/'Load point'!$D$1 -> 72.2307103 | R81: =R$2*'Load point'!$G75/'Load point'!$D$1 -> 72.53786817 | S81: =S$2*'Load point'!$G75/'Load point'!$D$1 -> 74.44377251 | T81: =T$2*'Load point'!$G75/'Load point'!$D$1 -> 77.20709488 | U81: =U$2*'Load point'!$G75/'Load point'!$D$1 -> 79.3399069 | V81: =V$2*'Load point'!$G75/'Load point'!$D$1 -> 86.23241955 | W81: =W$2*'Load point'!$G75/'Load point'!$D$1 -> 90.93598354 | X81: =X$2*'Load point'!$G75/'Load point'!$D$1 -> 94.06799392 | Y81: =Y$2*'Load point'!$G75/'Load point'!$D$1 -> 94.96816104 | Z81: =Z$2*'Load point'!$G75/'Load point'!$D$1 -> 95.77047513 | AA81: =AA$2*'Load point'!$G75/'Load point'!$D$1 -> 97.48424092 | AB81: =AB$2*'Load point'!$G75/'Load point'!$D$1 -> 97.38761775
A82: 74 | B82: =[4]Strompreise!B77 -> 80 | C82: =[4]Strompreise!C77 -> 1 | D82: =[4]Strompreise!D77 -> 1 | G82: =G$2*'Load point'!$G76/'Load point'!$D$1 -> 52.56466104 | H82: =H$2*'Load point'!$G76/'Load point'!$D$1 -> 61.08296655 | I82: =I$2*'Load point'!$G76/'Load point'!$D$1 -> 67.15958352 | J82: =J$2*'Load point'!$G76/'Load point'!$D$1 -> 69.10312895 | K82: =K$2*'Load point'!$G76/'Load point'!$D$1 -> 70.08413613 | L82: =L$2*'Load point'!$G76/'Load point'!$D$1 -> 69.57913186 | M82: =M$2*'Load point'!$G76/'Load point'!$D$1 -> 69.56876588 | N82: =N$2*'Load point'!$G76/'Load point'!$D$1 -> 70.0426587 | O82: =O$2*'Load point'!$G76/'Load point'!$D$1 -> 69.7459954 | P82: =P$2*'Load point'!$G76/'Load point'!$D$1 -> 68.84144186 | Q82: =Q$2*'Load point'!$G76/'Load point'!$D$1 -> 69.23064765 | R82: =R$2*'Load point'!$G76/'Load point'!$D$1 -> 69.52504788 | S82: =S$2*'Load point'!$G76/'Load point'!$D$1 -> 71.35179154 | T82: =T$2*'Load point'!$G76/'Load point'!$D$1 -> 74.00034084 | U82: =U$2*'Load point'!$G76/'Load point'!$D$1 -> 76.04456769 | V82: =V$2*'Load point'!$G76/'Load point'!$D$1 -> 82.65080364 | W82: =W$2*'Load point'!$G76/'Load point'!$D$1 -> 87.1590077 | X82: =X$2*'Load point'!$G76/'Load point'!$D$1 -> 90.16093176 | Y82: =Y$2*'Load point'!$G76/'Load point'!$D$1 -> 91.02371093 | Z82: =Z$2*'Load point'!$G76/'Load point'!$D$1 -> 91.79270134 | AA82: =AA$2*'Load point'!$G76/'Load point'!$D$1 -> 93.43528683 | AB82: =AB$2*'Load point'!$G76/'Load point'!$D$1 -> 93.34267684
A83: 75 | B83: =[4]Strompreise!B78 -> 120 | C83: =[4]Strompreise!C78 -> 1 | D83: =[4]Strompreise!D78 -> 1 | G83: =G$2*'Load point'!$G77/'Load point'!$D$1 -> 45.9429064 | H83: =H$2*'Load point'!$G77/'Load point'!$D$1 -> 53.38813109 | I83: =I$2*'Load point'!$G77/'Load point'!$D$1 -> 58.69925531 | J83: =J$2*'Load point'!$G77/'Load point'!$D$1 -> 60.39796552 | K83: =K$2*'Load point'!$G77/'Load point'!$D$1 -> 61.25539178 | L83: =L$2*'Load point'!$G77/'Load point'!$D$1 -> 60.81400467 | M83: =M$2*'Load point'!$G77/'Load point'!$D$1 -> 60.80494453 | N83: =N$2*'Load point'!$G77/'Load point'!$D$1 -> 61.21913941 | O83: =O$2*'Load point'!$G77/'Load point'!$D$1 -> 60.95984783 | P83: =P$2*'Load point'!$G77/'Load point'!$D$1 -> 60.16924406 | Q83: =Q$2*'Load point'!$G77/'Load point'!$D$1 -> 60.50942024 | R83: =R$2*'Load point'!$G77/'Load point'!$D$1 -> 60.76673384 | S83: =S$2*'Load point'!$G77/'Load point'!$D$1 -> 62.3633562 | T83: =T$2*'Load point'!$G77/'Load point'!$D$1 -> 64.67825846 | U83: =U$2*'Load point'!$G77/'Load point'!$D$1 -> 66.46496689 | V83: =V$2*'Load point'!$G77/'Load point'!$D$1 -> 72.23899213 | W83: =W$2*'Load point'!$G77/'Load point'!$D$1 -> 76.17928191 | X83: =X$2*'Load point'!$G77/'Load point'!$D$1 -> 78.80304307 | Y83: =Y$2*'Load point'!$G77/'Load point'!$D$1 -> 79.55713493 | Z83: =Z$2*'Load point'!$G77/'Load point'!$D$1 -> 80.22925292 | AA83: =AA$2*'Load point'!$G77/'Load point'!$D$1 -> 81.66491615 | AB83: =AB$2*'Load point'!$G77/'Load point'!$D$1 -> 81.58397257
A84: 76 | B84: =[4]Strompreise!B79 -> 120 | C84: =[4]Strompreise!C79 -> 1 | D84: =[4]Strompreise!D79 -> 1 | G84: =G$2*'Load point'!$G78/'Load point'!$D$1 -> 48.1033124 | H84: =H$2*'Load point'!$G78/'Load point'!$D$1 -> 55.8986392 | I84: =I$2*'Load point'!$G78/'Load point'!$D$1 -> 61.4595122 | J84: =J$2*'Load point'!$G78/'Load point'!$D$1 -> 63.23810207 | K84: =K$2*'Load point'!$G78/'Load point'!$D$1 -> 64.13584769 | L84: =L$2*'Load point'!$G78/'Load point'!$D$1 -> 63.67370492 | M84: =M$2*'Load point'!$G78/'Load point'!$D$1 -> 63.66421874 | N84: =N$2*'Load point'!$G78/'Load point'!$D$1 -> 64.0978906 | O84: =O$2*'Load point'!$G78/'Load point'!$D$1 -> 63.82640617 | P84: =P$2*'Load point'!$G78/'Load point'!$D$1 -> 62.99862528 | Q84: =Q$2*'Load point'!$G78/'Load point'!$D$1 -> 63.3547978 | R84: =R$2*'Load point'!$G78/'Load point'!$D$1 -> 63.62421124 | S84: =S$2*'Load point'!$G78/'Load point'!$D$1 -> 65.29591271 | T84: =T$2*'Load point'!$G78/'Load point'!$D$1 -> 67.71967027 | U84: =U$2*'Load point'!$G78/'Load point'!$D$1 -> 69.59039636 | V84: =V$2*'Load point'!$G78/'Load point'!$D$1 -> 75.6359377 | W84: =W$2*'Load point'!$G78/'Load point'!$D$1 -> 79.76151454 | X84: =X$2*'Load point'!$G78/'Load point'!$D$1 -> 82.50865469 | Y84: =Y$2*'Load point'!$G78/'Load point'!$D$1 -> 83.29820674 | Z84: =Z$2*'Load point'!$G78/'Load point'!$D$1 -> 84.00193022 | AA84: =AA$2*'Load point'!$G78/'Load point'!$D$1 -> 85.50510367 | AB84: =AB$2*'Load point'!$G78/'Load point'!$D$1 -> 85.42035382
A85: 77 | B85: =[4]Strompreise!B80 -> 80 | C85: =[4]Strompreise!C80 -> 1 | D85: =[4]Strompreise!D80 -> 0 | G85: =G$2*'Load point'!$G79/'Load point'!$D$1 -> 47.38407179 | H85: =H$2*'Load point'!$G79/'Load point'!$D$1 -> 55.06284288 | I85: =I$2*'Load point'!$G79/'Load point'!$D$1 -> 60.54056972 | J85: =J$2*'Load point'!$G79/'Load point'!$D$1 -> 62.29256611 | K85: =K$2*'Load point'!$G79/'Load point'!$D$1 -> 63.17688865 | L85: =L$2*'Load point'!$G79/'Load point'!$D$1 -> 62.72165583 | M85: =M$2*'Load point'!$G79/'Load point'!$D$1 -> 62.71231149 | N85: =N$2*'Load point'!$G79/'Load point'!$D$1 -> 63.13949908 | O85: =O$2*'Load point'!$G79/'Load point'!$D$1 -> 62.87207389 | P85: =P$2*'Load point'!$G79/'Load point'!$D$1 -> 62.05666998 | Q85: =Q$2*'Load point'!$G79/'Load point'!$D$1 -> 62.40751701 | R85: =R$2*'Load point'!$G79/'Load point'!$D$1 -> 62.67290218 | S85: =S$2*'Load point'!$G79/'Load point'!$D$1 -> 64.31960837 | T85: =T$2*'Load point'!$G79/'Load point'!$D$1 -> 66.70712591 | U85: =U$2*'Load point'!$G79/'Load point'!$D$1 -> 68.54988091 | V85: =V$2*'Load point'!$G79/'Load point'!$D$1 -> 74.50502933 | W85: =W$2*'Load point'!$G79/'Load point'!$D$1 -> 78.56892056 | X85: =X$2*'Load point'!$G79/'Load point'!$D$1 -> 81.27498548 | Y85: =Y$2*'Load point'!$G79/'Load point'!$D$1 -> 82.05273215 | Z85: =Z$2*'Load point'!$G79/'Load point'!$D$1 -> 82.74593355 | AA85: =AA$2*'Load point'!$G79/'Load point'!$D$1 -> 84.22663155 | AB85: =AB$2*'Load point'!$G79/'Load point'!$D$1 -> 84.14314888
A86: 78 | B86: =[4]Strompreise!B81 -> 80 | C86: =[4]Strompreise!C81 -> 0.788 | D86: =[4]Strompreise!D81 -> 0 | G86: =G$2*'Load point'!$G80/'Load point'!$D$1 -> 38.51088364 | H86: =H$2*'Load point'!$G80/'Load point'!$D$1 -> 44.75172047 | I86: =I$2*'Load point'!$G80/'Load point'!$D$1 -> 49.20368276 | J86: =J$2*'Load point'!$G80/'Load point'!$D$1 -> 50.62759858 | K86: =K$2*'Load point'!$G80/'Load point'!$D$1 -> 51.346322 | L86: =L$2*'Load point'!$G80/'Load point'!$D$1 -> 50.97633653 | M86: =M$2*'Load point'!$G80/'Load point'!$D$1 -> 50.96874202 | N86: =N$2*'Load point'!$G80/'Load point'!$D$1 -> 51.31593404 | O86: =O$2*'Load point'!$G80/'Load point'!$D$1 -> 51.09858716 | P86: =P$2*'Load point'!$G80/'Load point'!$D$1 -> 50.43587659 | Q86: =Q$2*'Load point'!$G80/'Load point'!$D$1 -> 50.72102366 | R86: =R$2*'Load point'!$G80/'Load point'!$D$1 -> 50.93671254 | S86: =S$2*'Load point'!$G80/'Load point'!$D$1 -> 52.2750549 | T86: =T$2*'Load point'!$G80/'Load point'!$D$1 -> 54.21548354 | U86: =U$2*'Load point'!$G80/'Load point'!$D$1 -> 55.71316242 | V86: =V$2*'Load point'!$G80/'Load point'!$D$1 -> 60.55314386 | W86: =W$2*'Load point'!$G80/'Load point'!$D$1 -> 63.85602679 | X86: =X$2*'Load point'!$G80/'Load point'!$D$1 -> 66.05535132 | Y86: =Y$2*'Load point'!$G80/'Load point'!$D$1 -> 66.68745638 | Z86: =Z$2*'Load point'!$G80/'Load point'!$D$1 -> 67.25084821 | AA86: =AA$2*'Load point'!$G80/'Load point'!$D$1 -> 68.45426923 | AB86: =AB$2*'Load point'!$G80/'Load point'!$D$1 -> 68.38641961
A87: 79 | B87: =[4]Strompreise!B82 -> 96 | C87: =[4]Strompreise!C82 -> 0.426 | D87: =[4]Strompreise!D82 -> 0 | G87: =G$2*'Load point'!$G81/'Load point'!$D$1 -> 26.90793939 | H87: =H$2*'Load point'!$G81/'Load point'!$D$1 -> 31.26847447 | I87: =I$2*'Load point'!$G81/'Load point'!$D$1 -> 34.37910503 | J87: =J$2*'Load point'!$G81/'Load point'!$D$1 -> 35.37400925 | K87: =K$2*'Load point'!$G81/'Load point'!$D$1 -> 35.87618849 | L87: =L$2*'Load point'!$G81/'Load point'!$D$1 -> 35.61767594 | M87: =M$2*'Load point'!$G81/'Load point'!$D$1 -> 35.61236958 | N87: =N$2*'Load point'!$G81/'Load point'!$D$1 -> 35.85495612 | O87: =O$2*'Load point'!$G81/'Load point'!$D$1 -> 35.70309367 | P87: =P$2*'Load point'!$G81/'Load point'!$D$1 -> 35.24005118 | Q87: =Q$2*'Load point'!$G81/'Load point'!$D$1 -> 35.43928628 | R87: =R$2*'Load point'!$G81/'Load point'!$D$1 -> 35.58999026 | S87: =S$2*'Load point'!$G81/'Load point'!$D$1 -> 36.52510345 | T87: =T$2*'Load point'!$G81/'Load point'!$D$1 -> 37.88090034 | U87: =U$2*'Load point'!$G81/'Load point'!$D$1 -> 38.92734354 | V87: =V$2*'Load point'!$G81/'Load point'!$D$1 -> 42.30908696 | W87: =W$2*'Load point'!$G81/'Load point'!$D$1 -> 44.61684428 | X87: =X$2*'Load point'!$G81/'Load point'!$D$1 -> 46.15353432 | Y87: =Y$2*'Load point'!$G81/'Load point'!$D$1 -> 46.59519244 | Z87: =Z$2*'Load point'!$G81/'Load point'!$D$1 -> 46.98883994 | AA87: =AA$2*'Load point'!$G81/'Load point'!$D$1 -> 47.82968224 | AB87: =AB$2*'Load point'!$G81/'Load point'!$D$1 -> 47.78227504
A88: 80 | B88: =[4]Strompreise!B83 -> 48 | C88: =[4]Strompreise!C83 -> 1 | D88: =[4]Strompreise!D83 -> 0 | G88: =G$2*'Load point'!$G82/'Load point'!$D$1 -> 51.20637976 | H88: =H$2*'Load point'!$G82/'Load point'!$D$1 -> 59.50457056 | I88: =I$2*'Load point'!$G82/'Load point'!$D$1 -> 65.42416654 | J88: =J$2*'Load point'!$G82/'Load point'!$D$1 -> 67.31749037 | K88: =K$2*'Load point'!$G82/'Load point'!$D$1 -> 68.27314813 | L88: =L$2*'Load point'!$G82/'Load point'!$D$1 -> 67.78119327 | M88: =M$2*'Load point'!$G82/'Load point'!$D$1 -> 67.77109515 | N88: =N$2*'Load point'!$G82/'Load point'!$D$1 -> 68.23274248 | O88: =O$2*'Load point'!$G82/'Load point'!$D$1 -> 67.94374503 | P88: =P$2*'Load point'!$G82/'Load point'!$D$1 -> 67.06256532 | Q88: =Q$2*'Load point'!$G82/'Load point'!$D$1 -> 67.44171396 | R88: =R$2*'Load point'!$G82/'Load point'!$D$1 -> 67.72850683 | S88: =S$2*'Load point'!$G82/'Load point'!$D$1 -> 69.50804707 | T88: =T$2*'Load point'!$G82/'Load point'!$D$1 -> 72.08815733 | U88: =U$2*'Load point'!$G82/'Load point'!$D$1 -> 74.07956096 | V88: =V$2*'Load point'!$G82/'Load point'!$D$1 -> 80.51509045 | W88: =W$2*'Load point'!$G82/'Load point'!$D$1 -> 84.90680162 | X88: =X$2*'Load point'!$G82/'Load point'!$D$1 -> 87.83115537 | Y88: =Y$2*'Load point'!$G82/'Load point'!$D$1 -> 88.67164016 | Z88: =Z$2*'Load point'!$G82/'Load point'!$D$1 -> 89.42075971 | AA88: =AA$2*'Load point'!$G82/'Load point'!$D$1 -> 91.02090045 | AB88: =AB$2*'Load point'!$G82/'Load point'!$D$1 -> 90.93068353
A89: 81 | B89: =[4]Strompreise!B84 -> 32 | C89: =[4]Strompreise!C84 -> 1 | D89: =[4]Strompreise!D84 -> 0 | G89: =G$2*'Load point'!$G83/'Load point'!$D$1 -> 63.80932974 | H89: =H$2*'Load point'!$G83/'Load point'!$D$1 -> 74.14987705 | I89: =I$2*'Load point'!$G83/'Load point'!$D$1 -> 81.52640813 | J89: =J$2*'Load point'!$G83/'Load point'!$D$1 -> 83.88571816 | K89: =K$2*'Load point'!$G83/'Load point'!$D$1 -> 85.07658306 | L89: =L$2*'Load point'!$G83/'Load point'!$D$1 -> 84.46354794 | M89: =M$2*'Load point'!$G83/'Load point'!$D$1 -> 84.45096445 | N89: =N$2*'Load point'!$G83/'Load point'!$D$1 -> 85.02623275 | O89: =O$2*'Load point'!$G83/'Load point'!$D$1 -> 84.66610704 | P89: =P$2*'Load point'!$G83/'Load point'!$D$1 -> 83.56805078 | Q89: =Q$2*'Load point'!$G83/'Load point'!$D$1 -> 84.04051574 | R89: =R$2*'Load point'!$G83/'Load point'!$D$1 -> 84.39789427 | S89: =S$2*'Load point'!$G83/'Load point'!$D$1 -> 86.6154162 | T89: =T$2*'Load point'!$G83/'Load point'!$D$1 -> 89.830545 | U89: =U$2*'Load point'!$G83/'Load point'!$D$1 -> 92.31207428 | V89: =V$2*'Load point'!$G83/'Load point'!$D$1 -> 100.3315208 | W89: =W$2*'Load point'!$G83/'Load point'!$D$1 -> 105.804123 | X89: =X$2*'Load point'!$G83/'Load point'!$D$1 -> 109.4482207 | Y89: =Y$2*'Load point'!$G83/'Load point'!$D$1 -> 110.4955662 | Z89: =Z$2*'Load point'!$G83/'Load point'!$D$1 -> 111.4290596 | AA89: =AA$2*'Load point'!$G83/'Load point'!$D$1 -> 113.4230281 | AB89: =AB$2*'Load point'!$G83/'Load point'!$D$1 -> 113.3106069
A90: 82 | B90: =[4]Strompreise!B85 -> 32 | C90: =[4]Strompreise!C85 -> 1 | D90: =[4]Strompreise!D85 -> 0 | G90: =G$2*'Load point'!$G84/'Load point'!$D$1 -> 66.07797301 | H90: =H$2*'Load point'!$G84/'Load point'!$D$1 -> 76.7861627 | I90: =I$2*'Load point'!$G84/'Load point'!$D$1 -> 84.42495508 | J90: =J$2*'Load point'!$G84/'Load point'!$D$1 -> 86.86814677 | K90: =K$2*'Load point'!$G84/'Load point'!$D$1 -> 88.10135106 | L90: =L$2*'Load point'!$G84/'Load point'!$D$1 -> 87.4665204 | M90: =M$2*'Load point'!$G84/'Load point'!$D$1 -> 87.45348953 | N90: =N$2*'Load point'!$G84/'Load point'!$D$1 -> 88.04921062 | O90: =O$2*'Load point'!$G84/'Load point'!$D$1 -> 87.67628119 | P90: =P$2*'Load point'!$G84/'Load point'!$D$1 -> 86.53918521 | Q90: =Q$2*'Load point'!$G84/'Load point'!$D$1 -> 87.02844794 | R90: =R$2*'Load point'!$G84/'Load point'!$D$1 -> 87.39853252 | S90: =S$2*'Load point'!$G84/'Load point'!$D$1 -> 89.69489506 | T90: =T$2*'Load point'!$G84/'Load point'!$D$1 -> 93.02433285 | U90: =U$2*'Load point'!$G84/'Load point'!$D$1 -> 95.59408912 | V90: =V$2*'Load point'!$G84/'Load point'!$D$1 -> 103.8986548 | W90: =W$2*'Load point'!$G84/'Load point'!$D$1 -> 109.565827 | X90: =X$2*'Load point'!$G84/'Load point'!$D$1 -> 113.3394851 | Y90: =Y$2*'Load point'!$G84/'Load point'!$D$1 -> 114.4240673 | Z90: =Z$2*'Load point'!$G84/'Load point'!$D$1 -> 115.3907496 | AA90: =AA$2*'Load point'!$G84/'Load point'!$D$1 -> 117.4556107 | AB90: =AB$2*'Load point'!$G84/'Load point'!$D$1 -> 117.3391925
A91: 83 | B91: =[4]Strompreise!B86 -> 64 | C91: =[4]Strompreise!C86 -> 1 | D91: =[4]Strompreise!D86 -> 0 | G91: =G$2*'Load point'!$G85/'Load point'!$D$1 -> 59.48820125 | H91: =H$2*'Load point'!$G85/'Load point'!$D$1 -> 69.12849307 | I91: =I$2*'Load point'!$G85/'Load point'!$D$1 -> 76.00549001 | J91: =J$2*'Load point'!$G85/'Load point'!$D$1 -> 78.20502902 | K91: =K$2*'Load point'!$G85/'Load point'!$D$1 -> 79.31524928 | L91: =L$2*'Load point'!$G85/'Load point'!$D$1 -> 78.74372852 | M91: =M$2*'Load point'!$G85/'Load point'!$D$1 -> 78.73199718 | N91: =N$2*'Load point'!$G85/'Load point'!$D$1 -> 79.26830866 | O91: =O$2*'Load point'!$G85/'Load point'!$D$1 -> 78.93257045 | P91: =P$2*'Load point'!$G85/'Load point'!$D$1 -> 77.90887387 | Q91: =Q$2*'Load point'!$G85/'Load point'!$D$1 -> 78.3493438 | R91: =R$2*'Load point'!$G85/'Load point'!$D$1 -> 78.68252088 | S91: =S$2*'Load point'!$G85/'Load point'!$D$1 -> 80.74987359 | T91: =T$2*'Load point'!$G85/'Load point'!$D$1 -> 83.74727585 | U91: =U$2*'Load point'!$G85/'Load point'!$D$1 -> 86.06075749 | V91: =V$2*'Load point'!$G85/'Load point'!$D$1 -> 93.53713203 | W91: =W$2*'Load point'!$G85/'Load point'!$D$1 -> 98.63913298 | X91: =X$2*'Load point'!$G85/'Load point'!$D$1 -> 102.0364547 | Y91: =Y$2*'Load point'!$G85/'Load point'!$D$1 -> 103.0128746 | Z91: =Z$2*'Load point'!$G85/'Load point'!$D$1 -> 103.8831523 | AA91: =AA$2*'Load point'!$G85/'Load point'!$D$1 -> 105.7420905 | AB91: =AB$2*'Load point'!$G85/'Load point'!$D$1 -> 105.6372824
A92: 84 | B92: =[4]Strompreise!B87 -> 48 | C92: =[4]Strompreise!C87 -> 1 | D92: =[4]Strompreise!D87 -> 0 | G92: =G$2*'Load point'!$G86/'Load point'!$D$1 -> 58.1101767 | H92: =H$2*'Load point'!$G86/'Load point'!$D$1 -> 67.52715435 | I92: =I$2*'Load point'!$G86/'Load point'!$D$1 -> 74.24484792 | J92: =J$2*'Load point'!$G86/'Load point'!$D$1 -> 76.39343533 | K92: =K$2*'Load point'!$G86/'Load point'!$D$1 -> 77.47793771 | L92: =L$2*'Load point'!$G86/'Load point'!$D$1 -> 76.91965603 | M92: =M$2*'Load point'!$G86/'Load point'!$D$1 -> 76.90819645 | N92: =N$2*'Load point'!$G86/'Load point'!$D$1 -> 77.43208445 | O92: =O$2*'Load point'!$G86/'Load point'!$D$1 -> 77.1041235 | P92: =P$2*'Load point'!$G86/'Load point'!$D$1 -> 76.10414052 | Q92: =Q$2*'Load point'!$G86/'Load point'!$D$1 -> 76.53440711 | R92: =R$2*'Load point'!$G86/'Load point'!$D$1 -> 76.85986625 | S92: =S$2*'Load point'!$G86/'Load point'!$D$1 -> 78.87932942 | T92: =T$2*'Load point'!$G86/'Load point'!$D$1 -> 81.80729784 | U92: =U$2*'Load point'!$G86/'Load point'!$D$1 -> 84.06718845 | V92: =V$2*'Load point'!$G86/'Load point'!$D$1 -> 91.37037524 | W92: =W$2*'Load point'!$G86/'Load point'!$D$1 -> 96.35419001 | X92: =X$2*'Load point'!$G86/'Load point'!$D$1 -> 99.67281386 | Y92: =Y$2*'Load point'!$G86/'Load point'!$D$1 -> 100.6266153 | Z92: =Z$2*'Load point'!$G86/'Load point'!$D$1 -> 101.4767334 | AA92: =AA$2*'Load point'!$G86/'Load point'!$D$1 -> 103.2926099 | AB92: =AB$2*'Load point'!$G86/'Load point'!$D$1 -> 103.1902297
A93: 85 | B93: =[4]Strompreise!B88 -> 64 | C93: =[4]Strompreise!C88 -> 0.772 | D93: =[4]Strompreise!D88 -> 0 | G93: =G$2*'Load point'!$G87/'Load point'!$D$1 -> 47.21945697 | H93: =H$2*'Load point'!$G87/'Load point'!$D$1 -> 54.8715516 | I93: =I$2*'Load point'!$G87/'Load point'!$D$1 -> 60.33024852 | J93: =J$2*'Load point'!$G87/'Load point'!$D$1 -> 62.07615839 | K93: =K$2*'Load point'!$G87/'Load point'!$D$1 -> 62.95740874 | L93: =L$2*'Load point'!$G87/'Load point'!$D$1 -> 62.50375743 | M93: =M$2*'Load point'!$G87/'Load point'!$D$1 -> 62.49444554 | N93: =N$2*'Load point'!$G87/'Load point'!$D$1 -> 62.92014907 | O93: =O$2*'Load point'!$G87/'Load point'!$D$1 -> 62.65365292 | P93: =P$2*'Load point'!$G87/'Load point'!$D$1 -> 61.84108177 | Q93: =Q$2*'Load point'!$G87/'Load point'!$D$1 -> 62.19070994 | R93: =R$2*'Load point'!$G87/'Load point'!$D$1 -> 62.45517315 | S93: =S$2*'Load point'!$G87/'Load point'!$D$1 -> 64.09615859 | T93: =T$2*'Load point'!$G87/'Load point'!$D$1 -> 66.47538177 | U93: =U$2*'Load point'!$G87/'Load point'!$D$1 -> 68.31173494 | V93: =V$2*'Load point'!$G87/'Load point'!$D$1 -> 74.24619486 | W93: =W$2*'Load point'!$G87/'Load point'!$D$1 -> 78.2959679 | X93: =X$2*'Load point'!$G87/'Load point'!$D$1 -> 80.99263181 | Y93: =Y$2*'Load point'!$G87/'Load point'!$D$1 -> 81.76767654 | Z93: =Z$2*'Load point'!$G87/'Load point'!$D$1 -> 82.45846973 | AA93: =AA$2*'Load point'!$G87/'Load point'!$D$1 -> 83.93402371 | AB93: =AB$2*'Load point'!$G87/'Load point'!$D$1 -> 83.85083106
A94: 86 | B94: =[4]Strompreise!B89 -> 180 | C94: =[4]Strompreise!C89 -> 0.868 | D94: =[4]Strompreise!D89 -> 0 | G94: =G$2*'Load point'!$G88/'Load point'!$D$1 -> 31.63074604 | H94: =H$2*'Load point'!$G88/'Load point'!$D$1 -> 36.7566301 | I94: =I$2*'Load point'!$G88/'Load point'!$D$1 -> 40.41322988 | J94: =J$2*'Load point'!$G88/'Load point'!$D$1 -> 41.58275691 | K94: =K$2*'Load point'!$G88/'Load point'!$D$1 -> 42.17307726 | L94: =L$2*'Load point'!$G88/'Load point'!$D$1 -> 41.86919131 | M94: =M$2*'Load point'!$G88/'Load point'!$D$1 -> 41.86295359 | N94: =N$2*'Load point'!$G88/'Load point'!$D$1 -> 42.14811824 | O94: =O$2*'Load point'!$G88/'Load point'!$D$1 -> 41.96960133 | P94: =P$2*'Load point'!$G88/'Load point'!$D$1 -> 41.4252869 | Q94: =Q$2*'Load point'!$G88/'Load point'!$D$1 -> 41.65949119 | R94: =R$2*'Load point'!$G88/'Load point'!$D$1 -> 41.83664632 | S94: =S$2*'Load point'!$G88/'Load point'!$D$1 -> 42.93588797 | T94: =T$2*'Load point'!$G88/'Load point'!$D$1 -> 44.52965056 | U94: =U$2*'Load point'!$G88/'Load point'!$D$1 -> 45.75976256 | V94: =V$2*'Load point'!$G88/'Load point'!$D$1 -> 49.73506017 | W94: =W$2*'Load point'!$G88/'Load point'!$D$1 -> 52.44786864 | X94: =X$2*'Load point'!$G88/'Load point'!$D$1 -> 54.25427423 | Y94: =Y$2*'Load point'!$G88/'Load point'!$D$1 -> 54.77345096 | Z94: =Z$2*'Load point'!$G88/'Load point'!$D$1 -> 55.23619038 | AA94: =AA$2*'Load point'!$G88/'Load point'!$D$1 -> 56.22461498 | AB94: =AB$2*'Load point'!$G88/'Load point'!$D$1 -> 56.16888699
A95: 87 | B95: =[4]Strompreise!B90 -> 90 | C95: =[4]Strompreise!C90 -> 1 | D95: =[4]Strompreise!D90 -> 0 | G95: =G$2*'Load point'!$G89/'Load point'!$D$1 -> 23.83953143 | H95: =H$2*'Load point'!$G89/'Load point'!$D$1 -> 27.70281919 | I95: =I$2*'Load point'!$G89/'Load point'!$D$1 -> 30.45873349 | J95: =J$2*'Load point'!$G89/'Load point'!$D$1 -> 31.34018524 | K95: =K$2*'Load point'!$G89/'Load point'!$D$1 -> 31.7850992 | L95: =L$2*'Load point'!$G89/'Load point'!$D$1 -> 31.55606576 | M95: =M$2*'Load point'!$G89/'Load point'!$D$1 -> 31.5513645 | N95: =N$2*'Load point'!$G89/'Load point'!$D$1 -> 31.76628803 | O95: =O$2*'Load point'!$G89/'Load point'!$D$1 -> 31.631743 | P95: =P$2*'Load point'!$G89/'Load point'!$D$1 -> 31.22150289 | Q95: =Q$2*'Load point'!$G89/'Load point'!$D$1 -> 31.39801851 | R95: =R$2*'Load point'!$G89/'Load point'!$D$1 -> 31.53153718 | S95: =S$2*'Load point'!$G89/'Load point'!$D$1 -> 32.36001608 | T95: =T$2*'Load point'!$G89/'Load point'!$D$1 -> 33.56120664 | U95: =U$2*'Load point'!$G89/'Load point'!$D$1 -> 34.4883202 | V95: =V$2*'Load point'!$G89/'Load point'!$D$1 -> 37.4844314 | W95: =W$2*'Load point'!$G89/'Load point'!$D$1 -> 39.52902695 | X95: =X$2*'Load point'!$G89/'Load point'!$D$1 -> 40.89048276 | Y95: =Y$2*'Load point'!$G89/'Load point'!$D$1 -> 41.28177704 | Z95: =Z$2*'Load point'!$G89/'Load point'!$D$1 -> 41.63053551 | AA95: =AA$2*'Load point'!$G89/'Load point'!$D$1 -> 42.37549358 | AB95: =AB$2*'Load point'!$G89/'Load point'!$D$1 -> 42.33349238
A96: 88 | B96: =[4]Strompreise!B91 -> 90 | C96: =[4]Strompreise!C91 -> 1 | D96: =[4]Strompreise!D91 -> 0 | G96: =G$2*'Load point'!$G90/'Load point'!$D$1 -> 44.81938831 | H96: =H$2*'Load point'!$G90/'Load point'!$D$1 -> 52.08254257 | I96: =I$2*'Load point'!$G90/'Load point'!$D$1 -> 57.26378507 | J96: =J$2*'Load point'!$G90/'Load point'!$D$1 -> 58.92095389 | K96: =K$2*'Load point'!$G90/'Load point'!$D$1 -> 59.75741209 | L96: =L$2*'Load point'!$G90/'Load point'!$D$1 -> 59.32681895 | M96: =M$2*'Load point'!$G90/'Load point'!$D$1 -> 59.31798037 | N96: =N$2*'Load point'!$G90/'Load point'!$D$1 -> 59.72204625 | O96: =O$2*'Load point'!$G90/'Load point'!$D$1 -> 59.46909556 | P96: =P$2*'Load point'!$G90/'Load point'!$D$1 -> 58.69782574 | Q96: =Q$2*'Load point'!$G90/'Load point'!$D$1 -> 59.02968302 | R96: =R$2*'Load point'!$G90/'Load point'!$D$1 -> 59.28070411 | S96: =S$2*'Load point'!$G90/'Load point'!$D$1 -> 60.83828161 | T96: =T$2*'Load point'!$G90/'Load point'!$D$1 -> 63.09657373 | U96: =U$2*'Load point'!$G90/'Load point'!$D$1 -> 64.83958881 | V96: =V$2*'Load point'!$G90/'Load point'!$D$1 -> 70.47241224 | W96: =W$2*'Load point'!$G90/'Load point'!$D$1 -> 74.31634358 | X96: =X$2*'Load point'!$G90/'Load point'!$D$1 -> 76.87594156 | Y96: =Y$2*'Load point'!$G90/'Load point'!$D$1 -> 77.61159236 | Z96: =Z$2*'Load point'!$G90/'Load point'!$D$1 -> 78.26727394 | AA96: =AA$2*'Load point'!$G90/'Load point'!$D$1 -> 79.66782851 | AB96: =AB$2*'Load point'!$G90/'Load point'!$D$1 -> 79.58886438
A97: 89 | B97: =[4]Strompreise!B92 -> 90 | C97: =[4]Strompreise!C92 -> 1 | D97: =[4]Strompreise!D92 -> 1 | G97: =G$2*'Load point'!$G91/'Load point'!$D$1 -> 60.84260554 | H97: =H$2*'Load point'!$G91/'Load point'!$D$1 -> 70.70238379 | I97: =I$2*'Load point'!$G91/'Load point'!$D$1 -> 77.73595353 | J97: =J$2*'Load point'!$G91/'Load point'!$D$1 -> 79.98557078 | K97: =K$2*'Load point'!$G91/'Load point'!$D$1 -> 81.12106812 | L97: =L$2*'Load point'!$G91/'Load point'!$D$1 -> 80.53653519 | M97: =M$2*'Load point'!$G91/'Load point'!$D$1 -> 80.52453675 | N97: =N$2*'Load point'!$G91/'Load point'!$D$1 -> 81.07305877 | O97: =O$2*'Load point'!$G91/'Load point'!$D$1 -> 80.72967659 | P97: =P$2*'Load point'!$G91/'Load point'!$D$1 -> 79.68267289 | Q97: =Q$2*'Load point'!$G91/'Load point'!$D$1 -> 80.13317127 | R97: =R$2*'Load point'!$G91/'Load point'!$D$1 -> 80.473934 | S97: =S$2*'Load point'!$G91/'Load point'!$D$1 -> 82.58835539 | T97: =T$2*'Load point'!$G91/'Load point'!$D$1 -> 85.65400134 | U97: =U$2*'Load point'!$G91/'Load point'!$D$1 -> 88.02015544 | V97: =V$2*'Load point'!$G91/'Load point'!$D$1 -> 95.66674917 | W97: =W$2*'Load point'!$G91/'Load point'!$D$1 -> 100.8849105 | X97: =X$2*'Load point'!$G91/'Load point'!$D$1 -> 104.3595811 | Y97: =Y$2*'Load point'!$G91/'Load point'!$D$1 -> 105.3582317 | Z97: =Z$2*'Load point'!$G91/'Load point'!$D$1 -> 106.2483237 | AA97: =AA$2*'Load point'!$G91/'Load point'!$D$1 -> 108.1495854 | AB97: =AB$2*'Load point'!$G91/'Load point'!$D$1 -> 108.0423911
A98: 90 | B98: =[4]Strompreise!B93 -> 90 | C98: =[4]Strompreise!C93 -> 1 | D98: =[4]Strompreise!D93 -> 1 | G98: =G$2*'Load point'!$G92/'Load point'!$D$1 -> 66.30281905 | H98: =H$2*'Load point'!$G92/'Load point'!$D$1 -> 77.04744591 | I98: =I$2*'Load point'!$G92/'Load point'!$D$1 -> 84.71223109 | J98: =J$2*'Load point'!$G92/'Load point'!$D$1 -> 87.16373632 | K98: =K$2*'Load point'!$G92/'Load point'!$D$1 -> 88.40113688 | L98: =L$2*'Load point'!$G92/'Load point'!$D$1 -> 87.76414607 | M98: =M$2*'Load point'!$G92/'Load point'!$D$1 -> 87.75107086 | N98: =N$2*'Load point'!$G92/'Load point'!$D$1 -> 88.34881902 | O98: =O$2*'Load point'!$G92/'Load point'!$D$1 -> 87.97462061 | P98: =P$2*'Load point'!$G92/'Load point'!$D$1 -> 86.83365539 | Q98: =Q$2*'Load point'!$G92/'Load point'!$D$1 -> 87.32458296 | R98: =R$2*'Load point'!$G92/'Load point'!$D$1 -> 87.69592684 | S98: =S$2*'Load point'!$G92/'Load point'!$D$1 -> 90.0001033 | T98: =T$2*'Load point'!$G92/'Load point'!$D$1 -> 93.3408703 | U98: =U$2*'Load point'!$G92/'Load point'!$D$1 -> 95.91937077 | V98: =V$2*'Load point'!$G92/'Load point'!$D$1 -> 104.2521947 | W98: =W$2*'Load point'!$G92/'Load point'!$D$1 -> 109.9386508 | X98: =X$2*'Load point'!$G92/'Load point'!$D$1 -> 113.7251497 | Y98: =Y$2*'Load point'!$G92/'Load point'!$D$1 -> 114.8134225 | Z98: =Z$2*'Load point'!$G92/'Load point'!$D$1 -> 115.7833941 | AA98: =AA$2*'Load point'!$G92/'Load point'!$D$1 -> 117.8552813 | AB98: =AB$2*'Load point'!$G92/'Load point'!$D$1 -> 117.7384671
A99: 91 | B99: =[4]Strompreise!B94 -> 90 | C99: =[4]Strompreise!C94 -> 1 | D99: =[4]Strompreise!D94 -> 1 | G99: =G$2*'Load point'!$G93/'Load point'!$D$1 -> 64.50690107 | H99: =H$2*'Load point'!$G93/'Load point'!$D$1 -> 74.96049251 | I99: =I$2*'Load point'!$G93/'Load point'!$D$1 -> 82.41766472 | J99: =J$2*'Load point'!$G93/'Load point'!$D$1 -> 84.80276701 | K99: =K$2*'Load point'!$G93/'Load point'!$D$1 -> 86.00665059 | L99: =L$2*'Load point'!$G93/'Load point'!$D$1 -> 85.38691369 | M99: =M$2*'Load point'!$G93/'Load point'!$D$1 -> 85.37419264 | N99: =N$2*'Load point'!$G93/'Load point'!$D$1 -> 85.95574984 | O99: =O$2*'Load point'!$G93/'Load point'!$D$1 -> 85.5916872 | P99: =P$2*'Load point'!$G93/'Load point'!$D$1 -> 84.48162685 | Q99: =Q$2*'Load point'!$G93/'Load point'!$D$1 -> 84.95925685 | R99: =R$2*'Load point'!$G93/'Load point'!$D$1 -> 85.32054229 | S99: =S$2*'Load point'!$G93/'Load point'!$D$1 -> 87.56230644 | T99: =T$2*'Load point'!$G93/'Load point'!$D$1 -> 90.81258342 | U99: =U$2*'Load point'!$G93/'Load point'!$D$1 -> 93.32124108 | V99: =V$2*'Load point'!$G93/'Load point'!$D$1 -> 101.4283572 | W99: =W$2*'Load point'!$G93/'Load point'!$D$1 -> 106.9607865 | X99: =X$2*'Load point'!$G93/'Load point'!$D$1 -> 110.6447219 | Y99: =Y$2*'Load point'!$G93/'Load point'!$D$1 -> 111.7035171 | Z99: =Z$2*'Load point'!$G93/'Load point'!$D$1 -> 112.6472156 | AA99: =AA$2*'Load point'!$G93/'Load point'!$D$1 -> 114.6629824 | AB99: =AB$2*'Load point'!$G93/'Load point'!$D$1 -> 114.5493322
A100: 92 | B100: =[4]Strompreise!B95 -> 135 | C100: =[4]Strompreise!C95 -> 1 | D100: =[4]Strompreise!D95 -> 1 | G100: =G$2*'Load point'!$G94/'Load point'!$D$1 -> 55.74658753 | H100: =H$2*'Load point'!$G94/'Load point'!$D$1 -> 64.78053646 | I100: =I$2*'Load point'!$G94/'Load point'!$D$1 -> 71.22499273 | J100: =J$2*'Load point'!$G94/'Load point'!$D$1 -> 73.28618791 | K100: =K$2*'Load point'!$G94/'Load point'!$D$1 -> 74.32657895 | L100: =L$2*'Load point'!$G94/'Load point'!$D$1 -> 73.79100497 | M100: =M$2*'Load point'!$G94/'Load point'!$D$1 -> 73.7800115 | N100: =N$2*'Load point'!$G94/'Load point'!$D$1 -> 74.28259074 | O100: =O$2*'Load point'!$G94/'Load point'!$D$1 -> 73.96796936 | P100: =P$2*'Load point'!$G94/'Load point'!$D$1 -> 73.00865996 | Q100: =Q$2*'Load point'!$G94/'Load point'!$D$1 -> 73.42142577 | R100: =R$2*'Load point'!$G94/'Load point'!$D$1 -> 73.73364709 | S100: =S$2*'Load point'!$G94/'Load point'!$D$1 -> 75.67097007 | T100: =T$2*'Load point'!$G94/'Load point'!$D$1 -> 78.4798455 | U100: =U$2*'Load point'!$G94/'Load point'!$D$1 -> 80.6478167 | V100: =V$2*'Load point'!$G94/'Load point'!$D$1 -> 87.65395168 | W100: =W$2*'Load point'!$G94/'Load point'!$D$1 -> 92.43505342 | X100: =X$2*'Load point'!$G94/'Load point'!$D$1 -> 95.61869465 | Y100: =Y$2*'Load point'!$G94/'Load point'!$D$1 -> 96.53370092 | Z100: =Z$2*'Load point'!$G94/'Load point'!$D$1 -> 97.34924107 | AA100: =AA$2*'Load point'!$G94/'Load point'!$D$1 -> 99.09125811 | AB100: =AB$2*'Load point'!$G94/'Load point'!$D$1 -> 98.99304212
A101: 93 | B101: =[4]Strompreise!B96 -> 135 | C101: =[4]Strompreise!C96 -> 1 | D101: =[4]Strompreise!D96 -> 1 | G101: =G$2*'Load point'!$G95/'Load point'!$D$1 -> 62.25233082 | H101: =H$2*'Load point'!$G95/'Load point'!$D$1 -> 72.34056048 | I101: =I$2*'Load point'!$G95/'Load point'!$D$1 -> 79.53709827 | J101: =J$2*'Load point'!$G95/'Load point'!$D$1 -> 81.83883924 | K101: =K$2*'Load point'!$G95/'Load point'!$D$1 -> 83.00064609 | L101: =L$2*'Load point'!$G95/'Load point'!$D$1 -> 82.40256951 | M101: =M$2*'Load point'!$G95/'Load point'!$D$1 -> 82.39029307 | N101: =N$2*'Load point'!$G95/'Load point'!$D$1 -> 82.95152436 | O101: =O$2*'Load point'!$G95/'Load point'!$D$1 -> 82.60018601 | P101: =P$2*'Load point'!$G95/'Load point'!$D$1 -> 81.5289232 | Q101: =Q$2*'Load point'!$G95/'Load point'!$D$1 -> 81.98985964 | R101: =R$2*'Load point'!$G95/'Load point'!$D$1 -> 82.33851785 | S101: =S$2*'Load point'!$G95/'Load point'!$D$1 -> 84.50193046 | T101: =T$2*'Load point'!$G95/'Load point'!$D$1 -> 87.63860753 | U101: =U$2*'Load point'!$G95/'Load point'!$D$1 -> 90.0595855 | V101: =V$2*'Load point'!$G95/'Load point'!$D$1 -> 97.88335108 | W101: =W$2*'Load point'!$G95/'Load point'!$D$1 -> 103.2224174 | X101: =X$2*'Load point'!$G95/'Load point'!$D$1 -> 106.7775962 | Y101: =Y$2*'Load point'!$G95/'Load point'!$D$1 -> 107.7993856 | Z101: =Z$2*'Load point'!$G95/'Load point'!$D$1 -> 108.710101 | AA101: =AA$2*'Load point'!$G95/'Load point'!$D$1 -> 110.6554151 | AB101: =AB$2*'Load point'!$G95/'Load point'!$D$1 -> 110.5457371
A102: 94 | B102: =[4]Strompreise!B97 -> 90 | C102: =[4]Strompreise!C97 -> 1 | D102: =[4]Strompreise!D97 -> 0 | G102: =G$2*'Load point'!$G96/'Load point'!$D$1 -> 58.80739393 | H102: =H$2*'Load point'!$G96/'Load point'!$D$1 -> 68.33735831 | I102: =I$2*'Load point'!$G96/'Load point'!$D$1 -> 75.13565208 | J102: =J$2*'Load point'!$G96/'Load point'!$D$1 -> 77.31001866 | K102: =K$2*'Load point'!$G96/'Load point'!$D$1 -> 78.40753311 | L102: =L$2*'Load point'!$G96/'Load point'!$D$1 -> 77.84255306 | M102: =M$2*'Load point'!$G96/'Load point'!$D$1 -> 77.83095598 | N102: =N$2*'Load point'!$G96/'Load point'!$D$1 -> 78.3611297 | O102: =O$2*'Load point'!$G96/'Load point'!$D$1 -> 78.02923381 | P102: =P$2*'Load point'!$G96/'Load point'!$D$1 -> 77.01725284 | Q102: =Q$2*'Load point'!$G96/'Load point'!$D$1 -> 77.45268185 | R102: =R$2*'Load point'!$G96/'Load point'!$D$1 -> 77.78204591 | S102: =S$2*'Load point'!$G96/'Load point'!$D$1 -> 79.82573899 | T102: =T$2*'Load point'!$G96/'Load point'!$D$1 -> 82.78883775 | U102: =U$2*'Load point'!$G96/'Load point'!$D$1 -> 85.07584297 | V102: =V$2*'Load point'!$G96/'Load point'!$D$1 -> 92.46665481 | W102: =W$2*'Load point'!$G96/'Load point'!$D$1 -> 97.51026637 | X102: =X$2*'Load point'!$G96/'Load point'!$D$1 -> 100.8687077 | Y102: =Y$2*'Load point'!$G96/'Load point'!$D$1 -> 101.8339531 | Z102: =Z$2*'Load point'!$G96/'Load point'!$D$1 -> 102.694271 | AA102: =AA$2*'Load point'!$G96/'Load point'!$D$1 -> 104.5319348 | AB102: =AB$2*'Load point'!$G96/'Load point'!$D$1 -> 104.4283261
A103: 95 | B103: =[4]Strompreise!B98 -> 90 | C103: =[4]Strompreise!C98 -> 0.894 | D103: =[4]Strompreise!D98 -> 0 | G103: =G$2*'Load point'!$G97/'Load point'!$D$1 -> 47.92285122 | H103: =H$2*'Load point'!$G97/'Load point'!$D$1 -> 55.68893359 | I103: =I$2*'Load point'!$G97/'Load point'!$D$1 -> 61.22894479 | J103: =J$2*'Load point'!$G97/'Load point'!$D$1 -> 63.00086221 | K103: =K$2*'Load point'!$G97/'Load point'!$D$1 -> 63.89523992 | L103: =L$2*'Load point'!$G97/'Load point'!$D$1 -> 63.43483089 | M103: =M$2*'Load point'!$G97/'Load point'!$D$1 -> 63.42538029 | N103: =N$2*'Load point'!$G97/'Load point'!$D$1 -> 63.85742522 | O103: =O$2*'Load point'!$G97/'Load point'!$D$1 -> 63.58695927 | P103: =P$2*'Load point'!$G97/'Load point'!$D$1 -> 62.76228383 | Q103: =Q$2*'Load point'!$G97/'Load point'!$D$1 -> 63.11712016 | R103: =R$2*'Load point'!$G97/'Load point'!$D$1 -> 63.38552289 | S103: =S$2*'Load point'!$G97/'Load point'!$D$1 -> 65.05095291 | T103: =T$2*'Load point'!$G97/'Load point'!$D$1 -> 67.46561766 | U103: =U$2*'Load point'!$G97/'Load point'!$D$1 -> 69.32932566 | V103: =V$2*'Load point'!$G97/'Load point'!$D$1 -> 75.35218695 | W103: =W$2*'Load point'!$G97/'Load point'!$D$1 -> 79.46228655 | X103: =X$2*'Load point'!$G97/'Load point'!$D$1 -> 82.19912072 | Y103: =Y$2*'Load point'!$G97/'Load point'!$D$1 -> 82.98571074 | Z103: =Z$2*'Load point'!$G97/'Load point'!$D$1 -> 83.68679417 | AA103: =AA$2*'Load point'!$G97/'Load point'!$D$1 -> 85.18432841 | AB103: =AB$2*'Load point'!$G97/'Load point'!$D$1 -> 85.09989651
A104: 96 | B104: =[4]Strompreise!B99 -> 108 | C104: =[4]Strompreise!C99 -> 0.528 | D104: =[4]Strompreise!D99 -> 0 | G104: =G$2*'Load point'!$G98/'Load point'!$D$1 -> 32.06145674 | H104: =H$2*'Load point'!$G98/'Load point'!$D$1 -> 37.25713912 | I104: =I$2*'Load point'!$G98/'Load point'!$D$1 -> 40.96353023 | J104: =J$2*'Load point'!$G98/'Load point'!$D$1 -> 42.14898252 | K104: =K$2*'Load point'!$G98/'Load point'!$D$1 -> 42.74734116 | L104: =L$2*'Load point'!$G98/'Load point'!$D$1 -> 42.43931725 | M104: =M$2*'Load point'!$G98/'Load point'!$D$1 -> 42.43299459 | N104: =N$2*'Load point'!$G98/'Load point'!$D$1 -> 42.72204228 | O104: =O$2*'Load point'!$G98/'Load point'!$D$1 -> 42.54109453 | P104: =P$2*'Load point'!$G98/'Load point'!$D$1 -> 41.98936826 | Q104: =Q$2*'Load point'!$G98/'Load point'!$D$1 -> 42.22676168 | R104: =R$2*'Load point'!$G98/'Load point'!$D$1 -> 42.40632909 | S104: =S$2*'Load point'!$G98/'Load point'!$D$1 -> 43.52053894 | T104: =T$2*'Load point'!$G98/'Load point'!$D$1 -> 45.13600353 | U104: =U$2*'Load point'!$G98/'Load point'!$D$1 -> 46.38286577 | V104: =V$2*'Load point'!$G98/'Load point'!$D$1 -> 50.41229436 | W104: =W$2*'Load point'!$G98/'Load point'!$D$1 -> 53.1620427 | X104: =X$2*'Load point'!$G98/'Load point'!$D$1 -> 54.99304582 | Y104: =Y$2*'Load point'!$G98/'Load point'!$D$1 -> 55.51929209 | Z104: =Z$2*'Load point'!$G98/'Load point'!$D$1 -> 55.98833255 | AA104: =AA$2*'Load point'!$G98/'Load point'!$D$1 -> 56.99021637 | AB104: =AB$2*'Load point'!$G98/'Load point'!$D$1 -> 56.93372954
A105: 97 | B105: =[4]Strompreise!B100 -> 54 | C105: =[4]Strompreise!C100 -> 1 | D105: =[4]Strompreise!D100 -> 0 | G105: =G$2*'Load point'!$G99/'Load point'!$D$1 -> 63.51907507 | H105: =H$2*'Load point'!$G99/'Load point'!$D$1 -> 73.81258551 | I105: =I$2*'Load point'!$G99/'Load point'!$D$1 -> 81.15556236 | J105: =J$2*'Load point'!$G99/'Load point'!$D$1 -> 83.5041404 | K105: =K$2*'Load point'!$G99/'Load point'!$D$1 -> 84.68958832 | L105: =L$2*'Load point'!$G99/'Load point'!$D$1 -> 84.07934176 | M105: =M$2*'Load point'!$G99/'Load point'!$D$1 -> 84.06681551 | N105: =N$2*'Load point'!$G99/'Load point'!$D$1 -> 84.63946704 | O105: =O$2*'Load point'!$G99/'Load point'!$D$1 -> 84.28097947 | P105: =P$2*'Load point'!$G99/'Load point'!$D$1 -> 83.18791802 | Q105: =Q$2*'Load point'!$G99/'Load point'!$D$1 -> 83.65823384 | R105: =R$2*'Load point'!$G99/'Load point'!$D$1 -> 84.01398674 | S105: =S$2*'Load point'!$G99/'Load point'!$D$1 -> 86.22142165 | T105: =T$2*'Load point'!$G99/'Load point'!$D$1 -> 89.42192553 | U105: =U$2*'Load point'!$G99/'Load point'!$D$1 -> 91.89216687 | V105: =V$2*'Load point'!$G99/'Load point'!$D$1 -> 99.87513468 | W105: =W$2*'Load point'!$G99/'Load point'!$D$1 -> 105.3228432 | X105: =X$2*'Load point'!$G99/'Load point'!$D$1 -> 108.9503647 | Y105: =Y$2*'Load point'!$G99/'Load point'!$D$1 -> 109.9929461 | Z105: =Z$2*'Load point'!$G99/'Load point'!$D$1 -> 110.9221932 | AA105: =AA$2*'Load point'!$G99/'Load point'!$D$1 -> 112.9070916 | AB105: =AB$2*'Load point'!$G99/'Load point'!$D$1 -> 112.7951818
A106: 98 | B106: =[4]Strompreise!B101 -> 36 | C106: =[4]Strompreise!C101 -> 1 | D106: =[4]Strompreise!D101 -> 0 | G106: =G$2*'Load point'!$G100/'Load point'!$D$1 -> 78.03345953 | H106: =H$2*'Load point'!$G100/'Load point'!$D$1 -> 90.6790818 | I106: =I$2*'Load point'!$G100/'Load point'!$D$1 -> 99.69996075 | J106: =J$2*'Load point'!$G100/'Load point'!$D$1 -> 102.5851991 | K106: =K$2*'Load point'!$G100/'Load point'!$D$1 -> 104.041527 | L106: =L$2*'Load point'!$G100/'Load point'!$D$1 -> 103.2918364 | M106: =M$2*'Load point'!$G100/'Load point'!$D$1 -> 103.2764479 | N106: =N$2*'Load point'!$G100/'Load point'!$D$1 -> 103.9799528 | O106: =O$2*'Load point'!$G100/'Load point'!$D$1 -> 103.5395492 | P106: =P$2*'Load point'!$G100/'Load point'!$D$1 -> 102.1967185 | Q106: =Q$2*'Load point'!$G100/'Load point'!$D$1 -> 102.7745035 | R106: =R$2*'Load point'!$G100/'Load point'!$D$1 -> 103.2115475 | S106: =S$2*'Load point'!$G100/'Load point'!$D$1 -> 105.9233909 | T106: =T$2*'Load point'!$G100/'Load point'!$D$1 -> 109.8552238 | U106: =U$2*'Load point'!$G100/'Load point'!$D$1 -> 112.889926 | V106: =V$2*'Load point'!$G100/'Load point'!$D$1 -> 122.6970366 | W106: =W$2*'Load point'!$G100/'Load point'!$D$1 -> 129.3895702 | X106: =X$2*'Load point'!$G100/'Load point'!$D$1 -> 133.8459962 | Y106: =Y$2*'Load point'!$G100/'Load point'!$D$1 -> 135.1268119 | Z106: =Z$2*'Load point'!$G100/'Load point'!$D$1 -> 136.268396 | AA106: =AA$2*'Load point'!$G100/'Load point'!$D$1 -> 138.7068523 | AB106: =AB$2*'Load point'!$G100/'Load point'!$D$1 -> 138.5693706
A107: 99 | B107: =[4]Strompreise!B102 -> 36 | C107: =[4]Strompreise!C102 -> 1 | D107: =[4]Strompreise!D102 -> 0 | G107: =G$2*'Load point'!$G101/'Load point'!$D$1 -> 77.95671859 | H107: =H$2*'Load point'!$G101/'Load point'!$D$1 -> 90.58990469 | I107: =I$2*'Load point'!$G101/'Load point'!$D$1 -> 99.60191218 | J107: =J$2*'Load point'!$G101/'Load point'!$D$1 -> 102.484313 | K107: =K$2*'Load point'!$G101/'Load point'!$D$1 -> 103.9392088 | L107: =L$2*'Load point'!$G101/'Load point'!$D$1 -> 103.1902555 | M107: =M$2*'Load point'!$G101/'Load point'!$D$1 -> 103.1748821 | N107: =N$2*'Load point'!$G101/'Load point'!$D$1 -> 103.8776951 | O107: =O$2*'Load point'!$G101/'Load point'!$D$1 -> 103.4377247 | P107: =P$2*'Load point'!$G101/'Load point'!$D$1 -> 102.0962145 | Q107: =Q$2*'Load point'!$G101/'Load point'!$D$1 -> 102.6734313 | R107: =R$2*'Load point'!$G101/'Load point'!$D$1 -> 103.1100455 | S107: =S$2*'Load point'!$G101/'Load point'!$D$1 -> 105.819222 | T107: =T$2*'Load point'!$G101/'Load point'!$D$1 -> 109.7471882 | U107: =U$2*'Load point'!$G101/'Load point'!$D$1 -> 112.778906 | V107: =V$2*'Load point'!$G101/'Load point'!$D$1 -> 122.5763719 | W107: =W$2*'Load point'!$G101/'Load point'!$D$1 -> 129.2623238 | X107: =X$2*'Load point'!$G101/'Load point'!$D$1 -> 133.7143671 | Y107: =Y$2*'Load point'!$G101/'Load point'!$D$1 -> 134.9939232 | Z107: =Z$2*'Load point'!$G101/'Load point'!$D$1 -> 136.1343847 | AA107: =AA$2*'Load point'!$G101/'Load point'!$D$1 -> 138.5704429 | AB107: =AB$2*'Load point'!$G101/'Load point'!$D$1 -> 138.4330964
A108: 100 | B108: =[4]Strompreise!B103 -> 72 | C108: =[4]Strompreise!C103 -> 1 | D108: =[4]Strompreise!D103 -> 0 | G108: =G$2*'Load point'!$G102/'Load point'!$D$1 -> 71.74558568 | H108: =H$2*'Load point'!$G102/'Load point'!$D$1 -> 83.3722338 | I108: =I$2*'Load point'!$G102/'Load point'!$D$1 -> 91.66621753 | J108: =J$2*'Load point'!$G102/'Load point'!$D$1 -> 94.31896565 | K108: =K$2*'Load point'!$G102/'Load point'!$D$1 -> 95.65794383 | L108: =L$2*'Load point'!$G102/'Load point'!$D$1 -> 94.96866274 | M108: =M$2*'Load point'!$G102/'Load point'!$D$1 -> 94.95451419 | N108: =N$2*'Load point'!$G102/'Load point'!$D$1 -> 95.60133122 | O108: =O$2*'Load point'!$G102/'Load point'!$D$1 -> 95.19641504 | P108: =P$2*'Load point'!$G102/'Load point'!$D$1 -> 93.96178853 | Q108: =Q$2*'Load point'!$G102/'Load point'!$D$1 -> 94.49301611 | R108: =R$2*'Load point'!$G102/'Load point'!$D$1 -> 94.89484343 | S108: =S$2*'Load point'!$G102/'Load point'!$D$1 -> 97.38816863 | T108: =T$2*'Load point'!$G102/'Load point'!$D$1 -> 101.0031776 | U108: =U$2*'Load point'!$G102/'Load point'!$D$1 -> 103.7933459 | V108: =V$2*'Load point'!$G102/'Load point'!$D$1 -> 112.8102074 | W108: =W$2*'Load point'!$G102/'Load point'!$D$1 -> 118.963462 | X108: =X$2*'Load point'!$G102/'Load point'!$D$1 -> 123.0607927 | Y108: =Y$2*'Load point'!$G102/'Load point'!$D$1 -> 124.2384013 | Z108: =Z$2*'Load point'!$G102/'Load point'!$D$1 -> 125.2879975 | AA108: =AA$2*'Load point'!$G102/'Load point'!$D$1 -> 127.5299649 | AB108: =AB$2*'Load point'!$G102/'Load point'!$D$1 -> 127.4035614
A109: 101 | B109: =[4]Strompreise!B104 -> 54 | C109: =[4]Strompreise!C104 -> 1 | D109: =[4]Strompreise!D104 -> 0 | G109: =G$2*'Load point'!$G103/'Load point'!$D$1 -> 74.93267761 | H109: =H$2*'Load point'!$G103/'Load point'!$D$1 -> 87.07580624 | I109: =I$2*'Load point'!$G103/'Load point'!$D$1 -> 95.73822641 | J109: =J$2*'Load point'!$G103/'Load point'!$D$1 -> 98.50881526 | K109: =K$2*'Load point'!$G103/'Load point'!$D$1 -> 99.9072737 | L109: =L$2*'Load point'!$G103/'Load point'!$D$1 -> 99.18737328 | M109: =M$2*'Load point'!$G103/'Load point'!$D$1 -> 99.17259622 | N109: =N$2*'Load point'!$G103/'Load point'!$D$1 -> 99.84814624 | O109: =O$2*'Load point'!$G103/'Load point'!$D$1 -> 99.42524282 | P109: =P$2*'Load point'!$G103/'Load point'!$D$1 -> 98.13577157 | Q109: =Q$2*'Load point'!$G103/'Load point'!$D$1 -> 98.69059741 | R109: =R$2*'Load point'!$G103/'Load point'!$D$1 -> 99.11027476 | S109: =S$2*'Load point'!$G103/'Load point'!$D$1 -> 101.7143588 | T109: =T$2*'Load point'!$G103/'Load point'!$D$1 -> 105.4899541 | U109: =U$2*'Load point'!$G103/'Load point'!$D$1 -> 108.4040677 | V109: =V$2*'Load point'!$G103/'Load point'!$D$1 -> 117.8214774 | W109: =W$2*'Load point'!$G103/'Load point'!$D$1 -> 124.2480727 | X109: =X$2*'Load point'!$G103/'Load point'!$D$1 -> 128.5274155 | Y109: =Y$2*'Load point'!$G103/'Load point'!$D$1 -> 129.757336 | Z109: =Z$2*'Load point'!$G103/'Load point'!$D$1 -> 130.8535575 | AA109: =AA$2*'Load point'!$G103/'Load point'!$D$1 -> 133.1951179 | AB109: =AB$2*'Load point'!$G103/'Load point'!$D$1 -> 133.0630993
A110: 102 | B110: =[4]Strompreise!B105 -> 72 | C110: =[4]Strompreise!C105 -> 0.566 | D110: =[4]Strompreise!D105 -> 0 | G110: =G$2*'Load point'!$G104/'Load point'!$D$1 -> 56.37736303 | H110: =H$2*'Load point'!$G104/'Load point'!$D$1 -> 65.51353156 | I110: =I$2*'Load point'!$G104/'Load point'!$D$1 -> 72.03090719 | J110: =J$2*'Load point'!$G104/'Load point'!$D$1 -> 74.1154249 | K110: =K$2*'Load point'!$G104/'Load point'!$D$1 -> 75.16758801 | L110: =L$2*'Load point'!$G104/'Load point'!$D$1 -> 74.62595399 | M110: =M$2*'Load point'!$G104/'Load point'!$D$1 -> 74.61483612 | N110: =N$2*'Load point'!$G104/'Load point'!$D$1 -> 75.12310208 | O110: =O$2*'Load point'!$G104/'Load point'!$D$1 -> 74.80492074 | P110: =P$2*'Load point'!$G104/'Load point'!$D$1 -> 73.8347567 | Q110: =Q$2*'Load point'!$G104/'Load point'!$D$1 -> 74.25219298 | R110: =R$2*'Load point'!$G104/'Load point'!$D$1 -> 74.56794711 | S110: =S$2*'Load point'!$G104/'Load point'!$D$1 -> 76.52719099 | T110: =T$2*'Load point'!$G104/'Load point'!$D$1 -> 79.367849 | U110: =U$2*'Load point'!$G104/'Load point'!$D$1 -> 81.5603509 | V110: =V$2*'Load point'!$G104/'Load point'!$D$1 -> 88.64576066 | W110: =W$2*'Load point'!$G104/'Load point'!$D$1 -> 93.4809608 | X110: =X$2*'Load point'!$G104/'Load point'!$D$1 -> 96.7006251 | Y110: =Y$2*'Load point'!$G104/'Load point'!$D$1 -> 97.62598472 | Z110: =Z$2*'Load point'!$G104/'Load point'!$D$1 -> 98.45075274 | AA110: =AA$2*'Load point'!$G104/'Load point'!$D$1 -> 100.2124808 | AB110: =AB$2*'Load point'!$G104/'Load point'!$D$1 -> 100.1131535

Sheet Gaspreise
A1: Gaspreise | C1: 1 | G1: =G3/$C$1 -> 16.85771542 | H1: =H3/$C$1 -> 19.95004406 | I1: 21.37115479 | J1: 21.14240742 | K1: 21.00178928 | L1: 20.53910351 | M1: 20.1856596 | N1: 19.94703655 | O1: 19.89378033 | P1: 19.8805521 | Q1: 19.61675148 | R1: 19.36526241 | S1: 19.2803484 | T1: 19.50569687 | U1: 19.85027103 | V1: 21.50204144 | W1: 23.03097267 | X1: 24.45648479 | Y1: 24.87370605 | Z1: 25.31226826 | AA1: 25.93957729 | AB1: 26.38848724
A2: [EUR/GJ] | G2: =G1/0.9/3.6 -> 5.202998585 | H2: =H1/0.9/3.6 -> 6.157421006 | I2: 6.596035428 | J2: 6.525434388 | K2: 6.48203373 | L2: 6.339229478 | M2: 6.230141852 | N2: 6.156492763 | O2: 6.140055656 | P2: 6.135972871 | Q2: 6.054552926 | R2: 5.976932844 | S2: 5.950724814 | T2: 6.020276811 | U2: 6.126626862 | V2: 6.636432542 | W2: 7.108324899 | X2: 7.548297776 | Y2: 7.67706977 | Z2: 7.812428474 | AA2: 8.006042375 | AB2: 8.144594828
G3: 16.85771542 | H3: 19.95004406 | I3: 21.37115479 | J3: 21.14240742 | K3: 21.00178928 | L3: 20.53910351 | M3: 20.1856596 | N3: 19.94703655 | O3: 19.89378033 | P3: 19.8805521 | Q3: 19.61675148 | R3: 19.36526241 | S3: 19.2803484 | T3: 19.50569687 | U3: 19.85027103 | V3: 21.50204144 | W3: 23.03097267 | X3: 24.45648479 | Y3: 24.87370605 | Z3: 25.31226826 | AA3: 25.93957729 | AB3: 26.38848724
A4: Lastpunkt | E4: 2007 | F4: 2008 | G4: 2009 | H4: 2010 | I4: 2011 | J4: 2012 | K4: 2013 | L4: 2014 | M4: 2015 | N4: 2016 | O4: 2017 | P4: 2018 | Q4: 2019 | R4: 2020 | S4: 2021 | T4: 2022 | U4: 2023 | V4: 2024 | W4: 2025 | X4: 2026 | Y4: 2027 | Z4: 2028 | AA4: 2029 | AB4: 2030
A7: Peakprices | E7: 6.585229885 | F7: 6.33027394 | G7: 10.60341704 | H7: 10.28172959 | I7: 10.00515069 | J7: 8.588886569 | K7: 7.173083795 | L7: 5.756014413 | M7: 5.828689343 | N7: 5.88711275 | O7: 5.891138179 | P7: 6.097365227 | Q7: 6.638810557 | R7: 6.235500262 | S7: 6.185814797 | T7: 6.880025375 | U7: 7.77654793 | V7: 8.334443653 | W7: 7.870064886 | X7: 8.306175997 | Y7: 8.511731553 | Z7: 8.725620442 | AA7: 8.942287108 | AB7: 9.142287108
A8: Baseprices | E8: 6.584916286 | F8: 6.329951432 | G8: 10.6027389 | H8: 10.28112476 | I8: 10.0037685 | J8: 8.587534772 | K8: 7.171301044 | L8: 5.755067315 | M8: 5.827431157 | N8: 5.886097488 | O8: 5.889740724 | P8: 6.096477948 | Q8: 6.638096217 | R8: 6.233633431 | S8: 6.18469313 | T8: 6.877874399 | U8: 7.775235223 | V8: 8.333195205 | W8: 7.868056624 | X8: 8.304167735 | Y8: 8.50972329 | Z8: 8.723612179 | AA8: 8.940278846 | AB8: 9.140278846
A9: 1 | E9: =[4]Gaspreise!G4*'DCF (2012)'!$C$20 -> 6.871388889 | F9: =[4]Gaspreise!H4*'DCF (2012)'!$C$20 -> 6.624562215 | G9: =[4]Gaspreise!I4*'DCF (2012)'!$C$20*G$2/G$8 -> 5.506989607 | H9: =[4]Gaspreise!J4*'DCF (2012)'!$C$20*H$2/H$8 -> 6.488319823 | I9: =[4]Gaspreise!K4*'DCF (2012)'!$C$20*I$2/I$8 -> 7.428557704 | J9: =[4]Gaspreise!L4*'DCF (2012)'!$C$20*J$2/J$8 -> 7.463775981 | K9: =[4]Gaspreise!M4*'DCF (2012)'!$C$20*K$2/K$8 -> 7.95405014 | L9: =[4]Gaspreise!N4*'DCF (2012)'!$C$20*L$2/L$8 -> 7.292221631 | M9: =[4]Gaspreise!O4*'DCF (2012)'!$C$20*M$2/M$8 -> 7.458921334 | N9: =[4]Gaspreise!P4*'DCF (2012)'!$C$20*N$2/N$8 -> 7.126539321 | O9: =[4]Gaspreise!Q4*'DCF (2012)'!$C$20*O$2/O$8 -> 7.470884562 | P9: =[4]Gaspreise!R4*'DCF (2012)'!$C$20*P$2/P$8 -> 6.951753244 | Q9: =[4]Gaspreise!S4*'DCF (2012)'!$C$20*Q$2/Q$8 -> 6.649738032 | R9: =[4]Gaspreise!T4*'DCF (2012)'!$C$20*R$2/R$8 -> 7.612056923 | S9: =[4]Gaspreise!U4*'DCF (2012)'!$C$20*S$2/S$8 -> 6.936605584 | T9: =[4]Gaspreise!V4*'DCF (2012)'!$C$20*T$2/T$8 -> 7.74018945 | U9: =[4]Gaspreise!W4*'DCF (2012)'!$C$20*U$2/U$8 -> 7.071523227 | V9: =[4]Gaspreise!X4*'DCF (2012)'!$C$20*V$2/V$8 -> 7.544675788 | W9: =[4]Gaspreise!Y4*'DCF (2012)'!$C$20*W$2/W$8 -> 8.765730409 | X9: =[4]Gaspreise!Z4*'DCF (2012)'!$C$20*X$2/X$8 -> 9.215859419 | Y9: =[4]Gaspreise!AA4*'DCF (2012)'!$C$20*Y$2/Y$8 -> 9.332111827 | Z9: =[4]Gaspreise!AB4*'DCF (2012)'!$C$20*Z$2/Z$8 -> 9.455357073 | AA9: =[4]Gaspreise!AC4*'DCF (2012)'!$C$20*AA$2/AA$8 -> 9.648884404 | AB9: =[4]Gaspreise!AD4*'DCF (2012)'!$C$20*AB$2/AB$8 -> 9.779298448
A10: 2 | E10: =[4]Gaspreise!G5*'DCF (2012)'!$C$20 -> 6.871388889 | F10: =[4]Gaspreise!H5*'DCF (2012)'!$C$20 -> 6.624562215 | G10: =[4]Gaspreise!I5*'DCF (2012)'!$C$20*G$2/G$8 -> 5.506989607 | H10: =[4]Gaspreise!J5*'DCF (2012)'!$C$20*H$2/H$8 -> 6.488319823 | I10: =[4]Gaspreise!K5*'DCF (2012)'!$C$20*I$2/I$8 -> 7.428557704 | J10: =[4]Gaspreise!L5*'DCF (2012)'!$C$20*J$2/J$8 -> 7.463775981 | K10: =[4]Gaspreise!M5*'DCF (2012)'!$C$20*K$2/K$8 -> 7.95405014 | L10: =[4]Gaspreise!N5*'DCF (2012)'!$C$20*L$2/L$8 -> 7.292221631 | M10: =[4]Gaspreise!O5*'DCF (2012)'!$C$20*M$2/M$8 -> 7.458921334 | N10: =[4]Gaspreise!P5*'DCF (2012)'!$C$20*N$2/N$8 -> 7.126539321 | O10: =[4]Gaspreise!Q5*'DCF (2012)'!$C$20*O$2/O$8 -> 7.470884562 | P10: =[4]Gaspreise!R5*'DCF (2012)'!$C$20*P$2/P$8 -> 6.951753244 | Q10: =[4]Gaspreise!S5*'DCF (2012)'!$C$20*Q$2/Q$8 -> 6.649738032 | R10: =[4]Gaspreise!T5*'DCF (2012)'!$C$20*R$2/R$8 -> 7.612056923 | S10: =[4]Gaspreise!U5*'DCF (2012)'!$C$20*S$2/S$8 -> 6.936605584 | T10: =[4]Gaspreise!V5*'DCF (2012)'!$C$20*T$2/T$8 -> 7.74018945 | U10: =[4]Gaspreise!W5*'DCF (2012)'!$C$20*U$2/U$8 -> 7.071523227 | V10: =[4]Gaspreise!X5*'DCF (2012)'!$C$20*V$2/V$8 -> 7.544675788 | W10: =[4]Gaspreise!Y5*'DCF (2012)'!$C$20*W$2/W$8 -> 8.765730409 | X10: =[4]Gaspreise!Z5*'DCF (2012)'!$C$20*X$2/X$8 -> 9.215859419 | Y10: =[4]Gaspreise!AA5*'DCF (2012)'!$C$20*Y$2/Y$8 -> 9.332111827 | Z10: =[4]Gaspreise!AB5*'DCF (2012)'!$C$20*Z$2/Z$8 -> 9.455357073 | AA10: =[4]Gaspreise!AC5*'DCF (2012)'!$C$20*AA$2/AA$8 -> 9.648884404 | AB10: =[4]Gaspreise!AD5*'DCF (2012)'!$C$20*AB$2/AB$8 -> 9.779298448
A11: 3 | E11: =[4]Gaspreise!G6*'DCF (2012)'!$C$20 -> 6.871388889 | F11: =[4]Gaspreise!H6*'DCF (2012)'!$C$20 -> 6.624562215 | G11: =[4]Gaspreise!I6*'DCF (2012)'!$C$20*G$2/G$8 -> 5.506989607 | H11: =[4]Gaspreise!J6*'DCF (2012)'!$C$20*H$2/H$8 -> 6.488319823 | I11: =[4]Gaspreise!K6*'DCF (2012)'!$C$20*I$2/I$8 -> 7.428557704 | J11: =[4]Gaspreise!L6*'DCF (2012)'!$C$20*J$2/J$8 -> 7.463775981 | K11: =[4]Gaspreise!M6*'DCF (2012)'!$C$20*K$2/K$8 -> 7.95405014 | L11: =[4]Gaspreise!N6*'DCF (2012)'!$C$20*L$2/L$8 -> 7.292221631 | M11: =[4]Gaspreise!O6*'DCF (2012)'!$C$20*M$2/M$8 -> 7.458921334 | N11: =[4]Gaspreise!P6*'DCF (2012)'!$C$20*N$2/N$8 -> 7.126539321 | O11: =[4]Gaspreise!Q6*'DCF (2012)'!$C$20*O$2/O$8 -> 7.470884562 | P11: =[4]Gaspreise!R6*'DCF (2012)'!$C$20*P$2/P$8 -> 6.951753244 | Q11: =[4]Gaspreise!S6*'DCF (2012)'!$C$20*Q$2/Q$8 -> 6.649738032 | R11: =[4]Gaspreise!T6*'DCF (2012)'!$C$20*R$2/R$8 -> 7.612056923 | S11: =[4]Gaspreise!U6*'DCF (2012)'!$C$20*S$2/S$8 -> 6.936605584 | T11: =[4]Gaspreise!V6*'DCF (2012)'!$C$20*T$2/T$8 -> 7.74018945 | U11: =[4]Gaspreise!W6*'DCF (2012)'!$C$20*U$2/U$8 -> 7.071523227 | V11: =[4]Gaspreise!X6*'DCF (2012)'!$C$20*V$2/V$8 -> 7.544675788 | W11: =[4]Gaspreise!Y6*'DCF (2012)'!$C$20*W$2/W$8 -> 8.765730409 | X11: =[4]Gaspreise!Z6*'DCF (2012)'!$C$20*X$2/X$8 -> 9.215859419 | Y11: =[4]Gaspreise!AA6*'DCF (2012)'!$C$20*Y$2/Y$8 -> 9.332111827 | Z11: =[4]Gaspreise!AB6*'DCF (2012)'!$C$20*Z$2/Z$8 -> 9.455357073 | AA11: =[4]Gaspreise!AC6*'DCF (2012)'!$C$20*AA$2/AA$8 -> 9.648884404 | AB11: =[4]Gaspreise!AD6*'DCF (2012)'!$C$20*AB$2/AB$8 -> 9.779298448
A12: 4 | E12: =[4]Gaspreise!G7*'DCF (2012)'!$C$20 -> 6.871388889 | F12: =[4]Gaspreise!H7*'DCF (2012)'!$C$20 -> 6.624562215 | G12: =[4]Gaspreise!I7*'DCF (2012)'!$C$20*G$2/G$8 -> 5.506989607 | H12: =[4]Gaspreise!J7*'DCF (2012)'!$C$20*H$2/H$8 -> 6.488319823 | I12: =[4]Gaspreise!K7*'DCF (2012)'!$C$20*I$2/I$8 -> 7.428557704 | J12: =[4]Gaspreise!L7*'DCF (2012)'!$C$20*J$2/J$8 -> 7.463775981 | K12: =[4]Gaspreise!M7*'DCF (2012)'!$C$20*K$2/K$8 -> 7.95405014 | L12: =[4]Gaspreise!N7*'DCF (2012)'!$C$20*L$2/L$8 -> 7.292221631 | M12: =[4]Gaspreise!O7*'DCF (2012)'!$C$20*M$2/M$8 -> 7.458921334 | N12: =[4]Gaspreise!P7*'DCF (2012)'!$C$20*N$2/N$8 -> 7.126539321 | O12: =[4]Gaspreise!Q7*'DCF (2012)'!$C$20*O$2/O$8 -> 7.470884562 | P12: =[4]Gaspreise!R7*'DCF (2012)'!$C$20*P$2/P$8 -> 6.951753244 | Q12: =[4]Gaspreise!S7*'DCF (2012)'!$C$20*Q$2/Q$8 -> 6.649738032 | R12: =[4]Gaspreise!T7*'DCF (2012)'!$C$20*R$2/R$8 -> 7.612056923 | S12: =[4]Gaspreise!U7*'DCF (2012)'!$C$20*S$2/S$8 -> 6.936605584 | T12: =[4]Gaspreise!V7*'DCF (2012)'!$C$20*T$2/T$8 -> 7.74018945 | U12: =[4]Gaspreise!W7*'DCF (2012)'!$C$20*U$2/U$8 -> 7.071523227 | V12: =[4]Gaspreise!X7*'DCF (2012)'!$C$20*V$2/V$8 -> 7.544675788 | W12: =[4]Gaspreise!Y7*'DCF (2012)'!$C$20*W$2/W$8 -> 8.765730409 | X12: =[4]Gaspreise!Z7*'DCF (2012)'!$C$20*X$2/X$8 -> 9.215859419 | Y12: =[4]Gaspreise!AA7*'DCF (2012)'!$C$20*Y$2/Y$8 -> 9.332111827 | Z12: =[4]Gaspreise!AB7*'DCF (2012)'!$C$20*Z$2/Z$8 -> 9.455357073 | AA12: =[4]Gaspreise!AC7*'DCF (2012)'!$C$20*AA$2/AA$8 -> 9.648884404 | AB12: =[4]Gaspreise!AD7*'DCF (2012)'!$C$20*AB$2/AB$8 -> 9.779298448
A13: 5 | E13: =[4]Gaspreise!G8*'DCF (2012)'!$C$20 -> 6.871388889 | F13: =[4]Gaspreise!H8*'DCF (2012)'!$C$20 -> 6.624562215 | G13: =[4]Gaspreise!I8*'DCF (2012)'!$C$20*G$2/G$8 -> 5.506989607 | H13: =[4]Gaspreise!J8*'DCF (2012)'!$C$20*H$2/H$8 -> 6.488319823 | I13: =[4]Gaspreise!K8*'DCF (2012)'!$C$20*I$2/I$8 -> 7.428557704 | J13: =[4]Gaspreise!L8*'DCF (2012)'!$C$20*J$2/J$8 -> 7.463775981 | K13: =[4]Gaspreise!M8*'DCF (2012)'!$C$20*K$2/K$8 -> 7.95405014 | L13: =[4]Gaspreise!N8*'DCF (2012)'!$C$20*L$2/L$8 -> 7.292221631 | M13: =[4]Gaspreise!O8*'DCF (2012)'!$C$20*M$2/M$8 -> 7.458921334 | N13: =[4]Gaspreise!P8*'DCF (2012)'!$C$20*N$2/N$8 -> 7.126539321 | O13: =[4]Gaspreise!Q8*'DCF (2012)'!$C$20*O$2/O$8 -> 7.470884562 | P13: =[4]Gaspreise!R8*'DCF (2012)'!$C$20*P$2/P$8 -> 6.951753244 | Q13: =[4]Gaspreise!S8*'DCF (2012)'!$C$20*Q$2/Q$8 -> 6.649738032 | R13: =[4]Gaspreise!T8*'DCF (2012)'!$C$20*R$2/R$8 -> 7.612056923 | S13: =[4]Gaspreise!U8*'DCF (2012)'!$C$20*S$2/S$8 -> 6.936605584 | T13: =[4]Gaspreise!V8*'DCF (2012)'!$C$20*T$2/T$8 -> 7.74018945 | U13: =[4]Gaspreise!W8*'DCF (2012)'!$C$20*U$2/U$8 -> 7.071523227 | V13: =[4]Gaspreise!X8*'DCF (2012)'!$C$20*V$2/V$8 -> 7.544675788 | W13: =[4]Gaspreise!Y8*'DCF (2012)'!$C$20*W$2/W$8 -> 8.765730409 | X13: =[4]Gaspreise!Z8*'DCF (2012)'!$C$20*X$2/X$8 -> 9.215859419 | Y13: =[4]Gaspreise!AA8*'DCF (2012)'!$C$20*Y$2/Y$8 -> 9.332111827 | Z13: =[4]Gaspreise!AB8*'DCF (2012)'!$C$20*Z$2/Z$8 -> 9.455357073 | AA13: =[4]Gaspreise!AC8*'DCF (2012)'!$C$20*AA$2/AA$8 -> 9.648884404 | AB13: =[4]Gaspreise!AD8*'DCF (2012)'!$C$20*AB$2/AB$8 -> 9.779298448
A14: 6 | E14: =[4]Gaspreise!G9*'DCF (2012)'!$C$20 -> 6.871388889 | F14: =[4]Gaspreise!H9*'DCF (2012)'!$C$20 -> 6.624562215 | G14: =[4]Gaspreise!I9*'DCF (2012)'!$C$20*G$2/G$8 -> 5.506989607 | H14: =[4]Gaspreise!J9*'DCF (2012)'!$C$20*H$2/H$8 -> 6.488319823 | I14: =[4]Gaspreise!K9*'DCF (2012)'!$C$20*I$2/I$8 -> 7.428557704 | J14: =[4]Gaspreise!L9*'DCF (2012)'!$C$20*J$2/J$8 -> 7.463775981 | K14: =[4]Gaspreise!M9*'DCF (2012)'!$C$20*K$2/K$8 -> 7.95405014 | L14: =[4]Gaspreise!N9*'DCF (2012)'!$C$20*L$2/L$8 -> 7.292221631 | M14: =[4]Gaspreise!O9*'DCF (2012)'!$C$20*M$2/M$8 -> 7.458921334 | N14: =[4]Gaspreise!P9*'DCF (2012)'!$C$20*N$2/N$8 -> 7.126539321 | O14: =[4]Gaspreise!Q9*'DCF (2012)'!$C$20*O$2/O$8 -> 7.470884562 | P14: =[4]Gaspreise!R9*'DCF (2012)'!$C$20*P$2/P$8 -> 6.951753244 | Q14: =[4]Gaspreise!S9*'DCF (2012)'!$C$20*Q$2/Q$8 -> 6.649738032 | R14: =[4]Gaspreise!T9*'DCF (2012)'!$C$20*R$2/R$8 -> 7.612056923 | S14: =[4]Gaspreise!U9*'DCF (2012)'!$C$20*S$2/S$8 -> 6.936605584 | T14: =[4]Gaspreise!V9*'DCF (2012)'!$C$20*T$2/T$8 -> 7.74018945 | U14: =[4]Gaspreise!W9*'DCF (2012)'!$C$20*U$2/U$8 -> 7.071523227 | V14: =[4]Gaspreise!X9*'DCF (2012)'!$C$20*V$2/V$8 -> 7.544675788 | W14: =[4]Gaspreise!Y9*'DCF (2012)'!$C$20*W$2/W$8 -> 8.765730409 | X14: =[4]Gaspreise!Z9*'DCF (2012)'!$C$20*X$2/X$8 -> 9.215859419 | Y14: =[4]Gaspreise!AA9*'DCF (2012)'!$C$20*Y$2/Y$8 -> 9.332111827 | Z14: =[4]Gaspreise!AB9*'DCF (2012)'!$C$20*Z$2/Z$8 -> 9.455357073 | AA14: =[4]Gaspreise!AC9*'DCF (2012)'!$C$20*AA$2/AA$8 -> 9.648884404 | AB14: =[4]Gaspreise!AD9*'DCF (2012)'!$C$20*AB$2/AB$8 -> 9.779298448
A15: 7 | E15: =[4]Gaspreise!G10*'DCF (2012)'!$C$20 -> 6.871388889 | F15: =[4]Gaspreise!H10*'DCF (2012)'!$C$20 -> 6.624562215 | G15: =[4]Gaspreise!I10*'DCF (2012)'!$C$20*G$2/G$8 -> 5.506989607 | H15: =[4]Gaspreise!J10*'DCF (2012)'!$C$20*H$2/H$8 -> 6.488319823 | I15: =[4]Gaspreise!K10*'DCF (2012)'!$C$20*I$2/I$8 -> 7.428557704 | J15: =[4]Gaspreise!L10*'DCF (2012)'!$C$20*J$2/J$8 -> 7.463775981 | K15: =[4]Gaspreise!M10*'DCF (2012)'!$C$20*K$2/K$8 -> 7.95405014 | L15: =[4]Gaspreise!N10*'DCF (2012)'!$C$20*L$2/L$8 -> 7.292221631 | M15: =[4]Gaspreise!O10*'DCF (2012)'!$C$20*M$2/M$8 -> 7.458921334 | N15: =[4]Gaspreise!P10*'DCF (2012)'!$C$20*N$2/N$8 -> 7.126539321 | O15: =[4]Gaspreise!Q10*'DCF (2012)'!$C$20*O$2/O$8 -> 7.470884562 | P15: =[4]Gaspreise!R10*'DCF (2012)'!$C$20*P$2/P$8 -> 6.951753244 | Q15: =[4]Gaspreise!S10*'DCF (2012)'!$C$20*Q$2/Q$8 -> 6.649738032 | R15: =[4]Gaspreise!T10*'DCF (2012)'!$C$20*R$2/R$8 -> 7.612056923 | S15: =[4]Gaspreise!U10*'DCF (2012)'!$C$20*S$2/S$8 -> 6.936605584 | T15: =[4]Gaspreise!V10*'DCF (2012)'!$C$20*T$2/T$8 -> 7.74018945 | U15: =[4]Gaspreise!W10*'DCF (2012)'!$C$20*U$2/U$8 -> 7.071523227 | V15: =[4]Gaspreise!X10*'DCF (2012)'!$C$20*V$2/V$8 -> 7.544675788 | W15: =[4]Gaspreise!Y10*'DCF (2012)'!$C$20*W$2/W$8 -> 8.765730409 | X15: =[4]Gaspreise!Z10*'DCF (2012)'!$C$20*X$2/X$8 -> 9.215859419 | Y15: =[4]Gaspreise!AA10*'DCF (2012)'!$C$20*Y$2/Y$8 -> 9.332111827 | Z15: =[4]Gaspreise!AB10*'DCF (2012)'!$C$20*Z$2/Z$8 -> 9.455357073 | AA15: =[4]Gaspreise!AC10*'DCF (2012)'!$C$20*AA$2/AA$8 -> 9.648884404 | AB15: =[4]Gaspreise!AD10*'DCF (2012)'!$C$20*AB$2/AB$8 -> 9.779298448
A16: 8 | E16: =[4]Gaspreise!G11*'DCF (2012)'!$C$20 -> 6.871388889 | F16: =[4]Gaspreise!H11*'DCF (2012)'!$C$20 -> 6.624562215 | G16: =[4]Gaspreise!I11*'DCF (2012)'!$C$20*G$2/G$8 -> 5.506989607 | H16: =[4]Gaspreise!J11*'DCF (2012)'!$C$20*H$2/H$8 -> 6.488319823 | I16: =[4]Gaspreise!K11*'DCF (2012)'!$C$20*I$2/I$8 -> 7.428557704 | J16: =[4]Gaspreise!L11*'DCF (2012)'!$C$20*J$2/J$8 -> 7.463775981 | K16: =[4]Gaspreise!M11*'DCF (2012)'!$C$20*K$2/K$8 -> 7.95405014 | L16: =[4]Gaspreise!N11*'DCF (2012)'!$C$20*L$2/L$8 -> 7.292221631 | M16: =[4]Gaspreise!O11*'DCF (2012)'!$C$20*M$2/M$8 -> 7.458921334 | N16: =[4]Gaspreise!P11*'DCF (2012)'!$C$20*N$2/N$8 -> 7.126539321 | O16: =[4]Gaspreise!Q11*'DCF (2012)'!$C$20*O$2/O$8 -> 7.470884562 | P16: =[4]Gaspreise!R11*'DCF (2012)'!$C$20*P$2/P$8 -> 6.951753244 | Q16: =[4]Gaspreise!S11*'DCF (2012)'!$C$20*Q$2/Q$8 -> 6.649738032 | R16: =[4]Gaspreise!T11*'DCF (2012)'!$C$20*R$2/R$8 -> 7.612056923 | S16: =[4]Gaspreise!U11*'DCF (2012)'!$C$20*S$2/S$8 -> 6.936605584 | T16: =[4]Gaspreise!V11*'DCF (2012)'!$C$20*T$2/T$8 -> 7.74018945 | U16: =[4]Gaspreise!W11*'DCF (2012)'!$C$20*U$2/U$8 -> 7.071523227 | V16: =[4]Gaspreise!X11*'DCF (2012)'!$C$20*V$2/V$8 -> 7.544675788 | W16: =[4]Gaspreise!Y11*'DCF (2012)'!$C$20*W$2/W$8 -> 8.765730409 | X16: =[4]Gaspreise!Z11*'DCF (2012)'!$C$20*X$2/X$8 -> 9.215859419 | Y16: =[4]Gaspreise!AA11*'DCF (2012)'!$C$20*Y$2/Y$8 -> 9.332111827 | Z16: =[4]Gaspreise!AB11*'DCF (2012)'!$C$20*Z$2/Z$8 -> 9.455357073 | AA16: =[4]Gaspreise!AC11*'DCF (2012)'!$C$20*AA$2/AA$8 -> 9.648884404 | AB16: =[4]Gaspreise!AD11*'DCF (2012)'!$C$20*AB$2/AB$8 -> 9.779298448
A17: 9 | E17: =[4]Gaspreise!G12*'DCF (2012)'!$C$20 -> 6.871388889 | F17: =[4]Gaspreise!H12*'DCF (2012)'!$C$20 -> 6.624562215 | G17: =[4]Gaspreise!I12*'DCF (2012)'!$C$20*G$2/G$8 -> 5.506989607 | H17: =[4]Gaspreise!J12*'DCF (2012)'!$C$20*H$2/H$8 -> 6.488319823 | I17: =[4]Gaspreise!K12*'DCF (2012)'!$C$20*I$2/I$8 -> 7.428557704 | J17: =[4]Gaspreise!L12*'DCF (2012)'!$C$20*J$2/J$8 -> 7.463775981 | K17: =[4]Gaspreise!M12*'DCF (2012)'!$C$20*K$2/K$8 -> 7.95405014 | L17: =[4]Gaspreise!N12*'DCF (2012)'!$C$20*L$2/L$8 -> 7.292221631 | M17: =[4]Gaspreise!O12*'DCF (2012)'!$C$20*M$2/M$8 -> 7.458921334 | N17: =[4]Gaspreise!P12*'DCF (2012)'!$C$20*N$2/N$8 -> 7.126539321 | O17: =[4]Gaspreise!Q12*'DCF (2012)'!$C$20*O$2/O$8 -> 7.470884562 | P17: =[4]Gaspreise!R12*'DCF (2012)'!$C$20*P$2/P$8 -> 6.951753244 | Q17: =[4]Gaspreise!S12*'DCF (2012)'!$C$20*Q$2/Q$8 -> 6.649738032 | R17: =[4]Gaspreise!T12*'DCF (2012)'!$C$20*R$2/R$8 -> 7.612056923 | S17: =[4]Gaspreise!U12*'DCF (2012)'!$C$20*S$2/S$8 -> 6.936605584 | T17: =[4]Gaspreise!V12*'DCF (2012)'!$C$20*T$2/T$8 -> 7.74018945 | U17: =[4]Gaspreise!W12*'DCF (2012)'!$C$20*U$2/U$8 -> 7.071523227 | V17: =[4]Gaspreise!X12*'DCF (2012)'!$C$20*V$2/V$8 -> 7.544675788 | W17: =[4]Gaspreise!Y12*'DCF (2012)'!$C$20*W$2/W$8 -> 8.765730409 | X17: =[4]Gaspreise!Z12*'DCF (2012)'!$C$20*X$2/X$8 -> 9.215859419 | Y17: =[4]Gaspreise!AA12*'DCF (2012)'!$C$20*Y$2/Y$8 -> 9.332111827 | Z17: =[4]Gaspreise!AB12*'DCF (2012)'!$C$20*Z$2/Z$8 -> 9.455357073 | AA17: =[4]Gaspreise!AC12*'DCF (2012)'!$C$20*AA$2/AA$8 -> 9.648884404 | AB17: =[4]Gaspreise!AD12*'DCF (2012)'!$C$20*AB$2/AB$8 -> 9.779298448
A18: 10 | E18: =[4]Gaspreise!G13*'DCF (2012)'!$C$20 -> 6.871388889 | F18: =[4]Gaspreise!H13*'DCF (2012)'!$C$20 -> 6.624562215 | G18: =[4]Gaspreise!I13*'DCF (2012)'!$C$20*G$2/G$8 -> 5.506989607 | H18: =[4]Gaspreise!J13*'DCF (2012)'!$C$20*H$2/H$8 -> 6.488319823 | I18: =[4]Gaspreise!K13*'DCF (2012)'!$C$20*I$2/I$8 -> 7.428557704 | J18: =[4]Gaspreise!L13*'DCF (2012)'!$C$20*J$2/J$8 -> 7.463775981 | K18: =[4]Gaspreise!M13*'DCF (2012)'!$C$20*K$2/K$8 -> 7.95405014 | L18: =[4]Gaspreise!N13*'DCF (2012)'!$C$20*L$2/L$8 -> 7.292221631 | M18: =[4]Gaspreise!O13*'DCF (2012)'!$C$20*M$2/M$8 -> 7.458921334 | N18: =[4]Gaspreise!P13*'DCF (2012)'!$C$20*N$2/N$8 -> 7.126539321 | O18: =[4]Gaspreise!Q13*'DCF (2012)'!$C$20*O$2/O$8 -> 7.470884562 | P18: =[4]Gaspreise!R13*'DCF (2012)'!$C$20*P$2/P$8 -> 6.951753244 | Q18: =[4]Gaspreise!S13*'DCF (2012)'!$C$20*Q$2/Q$8 -> 6.649738032 | R18: =[4]Gaspreise!T13*'DCF (2012)'!$C$20*R$2/R$8 -> 7.612056923 | S18: =[4]Gaspreise!U13*'DCF (2012)'!$C$20*S$2/S$8 -> 6.936605584 | T18: =[4]Gaspreise!V13*'DCF (2012)'!$C$20*T$2/T$8 -> 7.74018945 | U18: =[4]Gaspreise!W13*'DCF (2012)'!$C$20*U$2/U$8 -> 7.071523227 | V18: =[4]Gaspreise!X13*'DCF (2012)'!$C$20*V$2/V$8 -> 7.544675788 | W18: =[4]Gaspreise!Y13*'DCF (2012)'!$C$20*W$2/W$8 -> 8.765730409 | X18: =[4]Gaspreise!Z13*'DCF (2012)'!$C$20*X$2/X$8 -> 9.215859419 | Y18: =[4]Gaspreise!AA13*'DCF (2012)'!$C$20*Y$2/Y$8 -> 9.332111827 | Z18: =[4]Gaspreise!AB13*'DCF (2012)'!$C$20*Z$2/Z$8 -> 9.455357073 | AA18: =[4]Gaspreise!AC13*'DCF (2012)'!$C$20*AA$2/AA$8 -> 9.648884404 | AB18: =[4]Gaspreise!AD13*'DCF (2012)'!$C$20*AB$2/AB$8 -> 9.779298448
A19: 11 | E19: =[4]Gaspreise!G14*'DCF (2012)'!$C$20 -> 6.871388889 | F19: =[4]Gaspreise!H14*'DCF (2012)'!$C$20 -> 6.624562215 | G19: =[4]Gaspreise!I14*'DCF (2012)'!$C$20*G$2/G$8 -> 5.506989607 | H19: =[4]Gaspreise!J14*'DCF (2012)'!$C$20*H$2/H$8 -> 6.488319823 | I19: =[4]Gaspreise!K14*'DCF (2012)'!$C$20*I$2/I$8 -> 7.428557704 | J19: =[4]Gaspreise!L14*'DCF (2012)'!$C$20*J$2/J$8 -> 7.463775981 | K19: =[4]Gaspreise!M14*'DCF (2012)'!$C$20*K$2/K$8 -> 7.95405014 | L19: =[4]Gaspreise!N14*'DCF (2012)'!$C$20*L$2/L$8 -> 7.292221631 | M19: =[4]Gaspreise!O14*'DCF (2012)'!$C$20*M$2/M$8 -> 7.458921334 | N19: =[4]Gaspreise!P14*'DCF (2012)'!$C$20*N$2/N$8 -> 7.126539321 | O19: =[4]Gaspreise!Q14*'DCF (2012)'!$C$20*O$2/O$8 -> 7.470884562 | P19: =[4]Gaspreise!R14*'DCF (2012)'!$C$20*P$2/P$8 -> 6.951753244 | Q19: =[4]Gaspreise!S14*'DCF (2012)'!$C$20*Q$2/Q$8 -> 6.649738032 | R19: =[4]Gaspreise!T14*'DCF (2012)'!$C$20*R$2/R$8 -> 7.612056923 | S19: =[4]Gaspreise!U14*'DCF (2012)'!$C$20*S$2/S$8 -> 6.936605584 | T19: =[4]Gaspreise!V14*'DCF (2012)'!$C$20*T$2/T$8 -> 7.74018945 | U19: =[4]Gaspreise!W14*'DCF (2012)'!$C$20*U$2/U$8 -> 7.071523227 | V19: =[4]Gaspreise!X14*'DCF (2012)'!$C$20*V$2/V$8 -> 7.544675788 | W19: =[4]Gaspreise!Y14*'DCF (2012)'!$C$20*W$2/W$8 -> 8.765730409 | X19: =[4]Gaspreise!Z14*'DCF (2012)'!$C$20*X$2/X$8 -> 9.215859419 | Y19: =[4]Gaspreise!AA14*'DCF (2012)'!$C$20*Y$2/Y$8 -> 9.332111827 | Z19: =[4]Gaspreise!AB14*'DCF (2012)'!$C$20*Z$2/Z$8 -> 9.455357073 | AA19: =[4]Gaspreise!AC14*'DCF (2012)'!$C$20*AA$2/AA$8 -> 9.648884404 | AB19: =[4]Gaspreise!AD14*'DCF (2012)'!$C$20*AB$2/AB$8 -> 9.779298448
A20: 12 | E20: =[4]Gaspreise!G15*'DCF (2012)'!$C$20 -> 6.871388889 | F20: =[4]Gaspreise!H15*'DCF (2012)'!$C$20 -> 6.624562215 | G20: =[4]Gaspreise!I15*'DCF (2012)'!$C$20*G$2/G$8 -> 5.506989607 | H20: =[4]Gaspreise!J15*'DCF (2012)'!$C$20*H$2/H$8 -> 6.488319823 | I20: =[4]Gaspreise!K15*'DCF (2012)'!$C$20*I$2/I$8 -> 7.428557704 | J20: =[4]Gaspreise!L15*'DCF (2012)'!$C$20*J$2/J$8 -> 7.463775981 | K20: =[4]Gaspreise!M15*'DCF (2012)'!$C$20*K$2/K$8 -> 7.95405014 | L20: =[4]Gaspreise!N15*'DCF (2012)'!$C$20*L$2/L$8 -> 7.292221631 | M20: =[4]Gaspreise!O15*'DCF (2012)'!$C$20*M$2/M$8 -> 7.458921334 | N20: =[4]Gaspreise!P15*'DCF (2012)'!$C$20*N$2/N$8 -> 7.126539321 | O20: =[4]Gaspreise!Q15*'DCF (2012)'!$C$20*O$2/O$8 -> 7.470884562 | P20: =[4]Gaspreise!R15*'DCF (2012)'!$C$20*P$2/P$8 -> 6.951753244 | Q20: =[4]Gaspreise!S15*'DCF (2012)'!$C$20*Q$2/Q$8 -> 6.649738032 | R20: =[4]Gaspreise!T15*'DCF (2012)'!$C$20*R$2/R$8 -> 7.612056923 | S20: =[4]Gaspreise!U15*'DCF (2012)'!$C$20*S$2/S$8 -> 6.936605584 | T20: =[4]Gaspreise!V15*'DCF (2012)'!$C$20*T$2/T$8 -> 7.74018945 | U20: =[4]Gaspreise!W15*'DCF (2012)'!$C$20*U$2/U$8 -> 7.071523227 | V20: =[4]Gaspreise!X15*'DCF (2012)'!$C$20*V$2/V$8 -> 7.544675788 | W20: =[4]Gaspreise!Y15*'DCF (2012)'!$C$20*W$2/W$8 -> 8.765730409 | X20: =[4]Gaspreise!Z15*'DCF (2012)'!$C$20*X$2/X$8 -> 9.215859419 | Y20: =[4]Gaspreise!AA15*'DCF (2012)'!$C$20*Y$2/Y$8 -> 9.332111827 | Z20: =[4]Gaspreise!AB15*'DCF (2012)'!$C$20*Z$2/Z$8 -> 9.455357073 | AA20: =[4]Gaspreise!AC15*'DCF (2012)'!$C$20*AA$2/AA$8 -> 9.648884404 | AB20: =[4]Gaspreise!AD15*'DCF (2012)'!$C$20*AB$2/AB$8 -> 9.779298448
A21: 13 | E21: =[4]Gaspreise!G16*'DCF (2012)'!$C$20 -> 6.871388889 | F21: =[4]Gaspreise!H16*'DCF (2012)'!$C$20 -> 6.624562215 | G21: =[4]Gaspreise!I16*'DCF (2012)'!$C$20*G$2/G$8 -> 5.506989607 | H21: =[4]Gaspreise!J16*'DCF (2012)'!$C$20*H$2/H$8 -> 6.488319823 | I21: =[4]Gaspreise!K16*'DCF (2012)'!$C$20*I$2/I$8 -> 7.428557704 | J21: =[4]Gaspreise!L16*'DCF (2012)'!$C$20*J$2/J$8 -> 7.463775981 | K21: =[4]Gaspreise!M16*'DCF (2012)'!$C$20*K$2/K$8 -> 7.95405014 | L21: =[4]Gaspreise!N16*'DCF (2012)'!$C$20*L$2/L$8 -> 7.292221631 | M21: =[4]Gaspreise!O16*'DCF (2012)'!$C$20*M$2/M$8 -> 7.458921334 | N21: =[4]Gaspreise!P16*'DCF (2012)'!$C$20*N$2/N$8 -> 7.126539321 | O21: =[4]Gaspreise!Q16*'DCF (2012)'!$C$20*O$2/O$8 -> 7.470884562 | P21: =[4]Gaspreise!R16*'DCF (2012)'!$C$20*P$2/P$8 -> 6.951753244 | Q21: =[4]Gaspreise!S16*'DCF (2012)'!$C$20*Q$2/Q$8 -> 6.649738032 | R21: =[4]Gaspreise!T16*'DCF (2012)'!$C$20*R$2/R$8 -> 7.612056923 | S21: =[4]Gaspreise!U16*'DCF (2012)'!$C$20*S$2/S$8 -> 6.936605584 | T21: =[4]Gaspreise!V16*'DCF (2012)'!$C$20*T$2/T$8 -> 7.74018945 | U21: =[4]Gaspreise!W16*'DCF (2012)'!$C$20*U$2/U$8 -> 7.071523227 | V21: =[4]Gaspreise!X16*'DCF (2012)'!$C$20*V$2/V$8 -> 7.544675788 | W21: =[4]Gaspreise!Y16*'DCF (2012)'!$C$20*W$2/W$8 -> 8.765730409 | X21: =[4]Gaspreise!Z16*'DCF (2012)'!$C$20*X$2/X$8 -> 9.215859419 | Y21: =[4]Gaspreise!AA16*'DCF (2012)'!$C$20*Y$2/Y$8 -> 9.332111827 | Z21: =[4]Gaspreise!AB16*'DCF (2012)'!$C$20*Z$2/Z$8 -> 9.455357073 | AA21: =[4]Gaspreise!AC16*'DCF (2012)'!$C$20*AA$2/AA$8 -> 9.648884404 | AB21: =[4]Gaspreise!AD16*'DCF (2012)'!$C$20*AB$2/AB$8 -> 9.779298448
A22: 14 | E22: =[4]Gaspreise!G17*'DCF (2012)'!$C$20 -> 6.871388889 | F22: =[4]Gaspreise!H17*'DCF (2012)'!$C$20 -> 6.624562215 | G22: =[4]Gaspreise!I17*'DCF (2012)'!$C$20*G$2/G$8 -> 5.506989607 | H22: =[4]Gaspreise!J17*'DCF (2012)'!$C$20*H$2/H$8 -> 6.488319823 | I22: =[4]Gaspreise!K17*'DCF (2012)'!$C$20*I$2/I$8 -> 7.428557704 | J22: =[4]Gaspreise!L17*'DCF (2012)'!$C$20*J$2/J$8 -> 7.463775981 | K22: =[4]Gaspreise!M17*'DCF (2012)'!$C$20*K$2/K$8 -> 7.95405014 | L22: =[4]Gaspreise!N17*'DCF (2012)'!$C$20*L$2/L$8 -> 7.292221631 | M22: =[4]Gaspreise!O17*'DCF (2012)'!$C$20*M$2/M$8 -> 7.458921334 | N22: =[4]Gaspreise!P17*'DCF (2012)'!$C$20*N$2/N$8 -> 7.126539321 | O22: =[4]Gaspreise!Q17*'DCF (2012)'!$C$20*O$2/O$8 -> 7.470884562 | P22: =[4]Gaspreise!R17*'DCF (2012)'!$C$20*P$2/P$8 -> 6.951753244 | Q22: =[4]Gaspreise!S17*'DCF (2012)'!$C$20*Q$2/Q$8 -> 6.649738032 | R22: =[4]Gaspreise!T17*'DCF (2012)'!$C$20*R$2/R$8 -> 7.612056923 | S22: =[4]Gaspreise!U17*'DCF (2012)'!$C$20*S$2/S$8 -> 6.936605584 | T22: =[4]Gaspreise!V17*'DCF (2012)'!$C$20*T$2/T$8 -> 7.74018945 | U22: =[4]Gaspreise!W17*'DCF (2012)'!$C$20*U$2/U$8 -> 7.071523227 | V22: =[4]Gaspreise!X17*'DCF (2012)'!$C$20*V$2/V$8 -> 7.544675788 | W22: =[4]Gaspreise!Y17*'DCF (2012)'!$C$20*W$2/W$8 -> 8.765730409 | X22: =[4]Gaspreise!Z17*'DCF (2012)'!$C$20*X$2/X$8 -> 9.215859419 | Y22: =[4]Gaspreise!AA17*'DCF (2012)'!$C$20*Y$2/Y$8 -> 9.332111827 | Z22: =[4]Gaspreise!AB17*'DCF (2012)'!$C$20*Z$2/Z$8 -> 9.455357073 | AA22: =[4]Gaspreise!AC17*'DCF (2012)'!$C$20*AA$2/AA$8 -> 9.648884404 | AB22: =[4]Gaspreise!AD17*'DCF (2012)'!$C$20*AB$2/AB$8 -> 9.779298448
A23: 15 | E23: =[4]Gaspreise!G18*'DCF (2012)'!$C$20 -> 6.871388889 | F23: =[4]Gaspreise!H18*'DCF (2012)'!$C$20 -> 6.624562215 | G23: =[4]Gaspreise!I18*'DCF (2012)'!$C$20*G$2/G$8 -> 5.506989607 | H23: =[4]Gaspreise!J18*'DCF (2012)'!$C$20*H$2/H$8 -> 6.488319823 | I23: =[4]Gaspreise!K18*'DCF (2012)'!$C$20*I$2/I$8 -> 7.428557704 | J23: =[4]Gaspreise!L18*'DCF (2012)'!$C$20*J$2/J$8 -> 7.463775981 | K23: =[4]Gaspreise!M18*'DCF (2012)'!$C$20*K$2/K$8 -> 7.95405014 | L23: =[4]Gaspreise!N18*'DCF (2012)'!$C$20*L$2/L$8 -> 7.292221631 | M23: =[4]Gaspreise!O18*'DCF (2012)'!$C$20*M$2/M$8 -> 7.458921334 | N23: =[4]Gaspreise!P18*'DCF (2012)'!$C$20*N$2/N$8 -> 7.126539321 | O23: =[4]Gaspreise!Q18*'DCF (2012)'!$C$20*O$2/O$8 -> 7.470884562 | P23: =[4]Gaspreise!R18*'DCF (2012)'!$C$20*P$2/P$8 -> 6.951753244 | Q23: =[4]Gaspreise!S18*'DCF (2012)'!$C$20*Q$2/Q$8 -> 6.649738032 | R23: =[4]Gaspreise!T18*'DCF (2012)'!$C$20*R$2/R$8 -> 7.612056923 | S23: =[4]Gaspreise!U18*'DCF (2012)'!$C$20*S$2/S$8 -> 6.936605584 | T23: =[4]Gaspreise!V18*'DCF (2012)'!$C$20*T$2/T$8 -> 7.74018945 | U23: =[4]Gaspreise!W18*'DCF (2012)'!$C$20*U$2/U$8 -> 7.071523227 | V23: =[4]Gaspreise!X18*'DCF (2012)'!$C$20*V$2/V$8 -> 7.544675788 | W23: =[4]Gaspreise!Y18*'DCF (2012)'!$C$20*W$2/W$8 -> 8.765730409 | X23: =[4]Gaspreise!Z18*'DCF (2012)'!$C$20*X$2/X$8 -> 9.215859419 | Y23: =[4]Gaspreise!AA18*'DCF (2012)'!$C$20*Y$2/Y$8 -> 9.332111827 | Z23: =[4]Gaspreise!AB18*'DCF (2012)'!$C$20*Z$2/Z$8 -> 9.455357073 | AA23: =[4]Gaspreise!AC18*'DCF (2012)'!$C$20*AA$2/AA$8 -> 9.648884404 | AB23: =[4]Gaspreise!AD18*'DCF (2012)'!$C$20*AB$2/AB$8 -> 9.779298448
A24: 16 | E24: =[4]Gaspreise!G19*'DCF (2012)'!$C$20 -> 6.871388889 | F24: =[4]Gaspreise!H19*'DCF (2012)'!$C$20 -> 6.624562215 | G24: =[4]Gaspreise!I19*'DCF (2012)'!$C$20*G$2/G$8 -> 5.506989607 | H24: =[4]Gaspreise!J19*'DCF (2012)'!$C$20*H$2/H$8 -> 6.488319823 | I24: =[4]Gaspreise!K19*'DCF (2012)'!$C$20*I$2/I$8 -> 7.428557704 | J24: =[4]Gaspreise!L19*'DCF (2012)'!$C$20*J$2/J$8 -> 7.463775981 | K24: =[4]Gaspreise!M19*'DCF (2012)'!$C$20*K$2/K$8 -> 7.95405014 | L24: =[4]Gaspreise!N19*'DCF (2012)'!$C$20*L$2/L$8 -> 7.292221631 | M24: =[4]Gaspreise!O19*'DCF (2012)'!$C$20*M$2/M$8 -> 7.458921334 | N24: =[4]Gaspreise!P19*'DCF (2012)'!$C$20*N$2/N$8 -> 7.126539321 | O24: =[4]Gaspreise!Q19*'DCF (2012)'!$C$20*O$2/O$8 -> 7.470884562 | P24: =[4]Gaspreise!R19*'DCF (2012)'!$C$20*P$2/P$8 -> 6.951753244 | Q24: =[4]Gaspreise!S19*'DCF (2012)'!$C$20*Q$2/Q$8 -> 6.649738032 | R24: =[4]Gaspreise!T19*'DCF (2012)'!$C$20*R$2/R$8 -> 7.612056923 | S24: =[4]Gaspreise!U19*'DCF (2012)'!$C$20*S$2/S$8 -> 6.936605584 | T24: =[4]Gaspreise!V19*'DCF (2012)'!$C$20*T$2/T$8 -> 7.74018945 | U24: =[4]Gaspreise!W19*'DCF (2012)'!$C$20*U$2/U$8 -> 7.071523227 | V24: =[4]Gaspreise!X19*'DCF (2012)'!$C$20*V$2/V$8 -> 7.544675788 | W24: =[4]Gaspreise!Y19*'DCF (2012)'!$C$20*W$2/W$8 -> 8.765730409 | X24: =[4]Gaspreise!Z19*'DCF (2012)'!$C$20*X$2/X$8 -> 9.215859419 | Y24: =[4]Gaspreise!AA19*'DCF (2012)'!$C$20*Y$2/Y$8 -> 9.332111827 | Z24: =[4]Gaspreise!AB19*'DCF (2012)'!$C$20*Z$2/Z$8 -> 9.455357073 | AA24: =[4]Gaspreise!AC19*'DCF (2012)'!$C$20*AA$2/AA$8 -> 9.648884404 | AB24: =[4]Gaspreise!AD19*'DCF (2012)'!$C$20*AB$2/AB$8 -> 9.779298448
A25: 17 | E25: =[4]Gaspreise!G20*'DCF (2012)'!$C$20 -> 6.871388889 | F25: =[4]Gaspreise!H20*'DCF (2012)'!$C$20 -> 6.624562215 | G25: =[4]Gaspreise!I20*'DCF (2012)'!$C$20*G$2/G$8 -> 5.506989607 | H25: =[4]Gaspreise!J20*'DCF (2012)'!$C$20*H$2/H$8 -> 6.488319823 | I25: =[4]Gaspreise!K20*'DCF (2012)'!$C$20*I$2/I$8 -> 7.428557704 | J25: =[4]Gaspreise!L20*'DCF (2012)'!$C$20*J$2/J$8 -> 7.463775981 | K25: =[4]Gaspreise!M20*'DCF (2012)'!$C$20*K$2/K$8 -> 7.95405014 | L25: =[4]Gaspreise!N20*'DCF (2012)'!$C$20*L$2/L$8 -> 7.292221631 | M25: =[4]Gaspreise!O20*'DCF (2012)'!$C$20*M$2/M$8 -> 7.458921334 | N25: =[4]Gaspreise!P20*'DCF (2012)'!$C$20*N$2/N$8 -> 7.126539321 | O25: =[4]Gaspreise!Q20*'DCF (2012)'!$C$20*O$2/O$8 -> 7.470884562 | P25: =[4]Gaspreise!R20*'DCF (2012)'!$C$20*P$2/P$8 -> 6.951753244 | Q25: =[4]Gaspreise!S20*'DCF (2012)'!$C$20*Q$2/Q$8 -> 6.649738032 | R25: =[4]Gaspreise!T20*'DCF (2012)'!$C$20*R$2/R$8 -> 7.612056923 | S25: =[4]Gaspreise!U20*'DCF (2012)'!$C$20*S$2/S$8 -> 6.936605584 | T25: =[4]Gaspreise!V20*'DCF (2012)'!$C$20*T$2/T$8 -> 7.74018945 | U25: =[4]Gaspreise!W20*'DCF (2012)'!$C$20*U$2/U$8 -> 7.071523227 | V25: =[4]Gaspreise!X20*'DCF (2012)'!$C$20*V$2/V$8 -> 7.544675788 | W25: =[4]Gaspreise!Y20*'DCF (2012)'!$C$20*W$2/W$8 -> 8.765730409 | X25: =[4]Gaspreise!Z20*'DCF (2012)'!$C$20*X$2/X$8 -> 9.215859419 | Y25: =[4]Gaspreise!AA20*'DCF (2012)'!$C$20*Y$2/Y$8 -> 9.332111827 | Z25: =[4]Gaspreise!AB20*'DCF (2012)'!$C$20*Z$2/Z$8 -> 9.455357073 | AA25: =[4]Gaspreise!AC20*'DCF (2012)'!$C$20*AA$2/AA$8 -> 9.648884404 | AB25: =[4]Gaspreise!AD20*'DCF (2012)'!$C$20*AB$2/AB$8 -> 9.779298448
A26: 18 | E26: =[4]Gaspreise!G21*'DCF (2012)'!$C$20 -> 6.588888889 | F26: =[4]Gaspreise!H21*'DCF (2012)'!$C$20 -> 6.281360217 | G26: =[4]Gaspreise!I21*'DCF (2012)'!$C$20*G$2/G$8 -> 5.220105304 | H26: =[4]Gaspreise!J21*'DCF (2012)'!$C$20*H$2/H$8 -> 6.202319891 | I26: =[4]Gaspreise!K21*'DCF (2012)'!$C$20*I$2/I$8 -> 6.809166618 | J26: =[4]Gaspreise!L21*'DCF (2012)'!$C$20*J$2/J$8 -> 6.754677262 | K26: =[4]Gaspreise!M21*'DCF (2012)'!$C$20*K$2/K$8 -> 6.890512365 | L26: =[4]Gaspreise!N21*'DCF (2012)'!$C$20*L$2/L$8 -> 6.489409112 | M26: =[4]Gaspreise!O21*'DCF (2012)'!$C$20*M$2/M$8 -> 6.606810926 | N26: =[4]Gaspreise!P21*'DCF (2012)'!$C$20*N$2/N$8 -> 6.288201763 | O26: =[4]Gaspreise!Q21*'DCF (2012)'!$C$20*O$2/O$8 -> 6.447737347 | P26: =[4]Gaspreise!R21*'DCF (2012)'!$C$20*P$2/P$8 -> 6.276934525 | Q26: =[4]Gaspreise!S21*'DCF (2012)'!$C$20*Q$2/Q$8 -> 6.105908639 | R26: =[4]Gaspreise!T21*'DCF (2012)'!$C$20*R$2/R$8 -> 6.336130855 | S26: =[4]Gaspreise!U21*'DCF (2012)'!$C$20*S$2/S$8 -> 5.885028441 | T26: =[4]Gaspreise!V21*'DCF (2012)'!$C$20*T$2/T$8 -> 6.338804246 | U26: =[4]Gaspreise!W21*'DCF (2012)'!$C$20*U$2/U$8 -> 6.257592471 | V26: =[4]Gaspreise!X21*'DCF (2012)'!$C$20*V$2/V$8 -> 6.814267293 | W26: =[4]Gaspreise!Y21*'DCF (2012)'!$C$20*W$2/W$8 -> 7.768258773 | X26: =[4]Gaspreise!Z21*'DCF (2012)'!$C$20*X$2/X$8 -> 8.212275547 | Y26: =[4]Gaspreise!AA21*'DCF (2012)'!$C$20*Y$2/Y$8 -> 8.336062582 | Z26: =[4]Gaspreise!AB21*'DCF (2012)'!$C$20*Z$2/Z$8 -> 8.466598036 | AA26: =[4]Gaspreise!AC21*'DCF (2012)'!$C$20*AA$2/AA$8 -> 8.660177467 | AB26: =[4]Gaspreise!AD21*'DCF (2012)'!$C$20*AB$2/AB$8 -> 8.795489427
A27: 19 | E27: =[4]Gaspreise!G22*'DCF (2012)'!$C$20 -> 6.588888889 | F27: =[4]Gaspreise!H22*'DCF (2012)'!$C$20 -> 6.281360217 | G27: =[4]Gaspreise!I22*'DCF (2012)'!$C$20*G$2/G$8 -> 5.220105304 | H27: =[4]Gaspreise!J22*'DCF (2012)'!$C$20*H$2/H$8 -> 6.202319891 | I27: =[4]Gaspreise!K22*'DCF (2012)'!$C$20*I$2/I$8 -> 6.809166618 | J27: =[4]Gaspreise!L22*'DCF (2012)'!$C$20*J$2/J$8 -> 6.754677262 | K27: =[4]Gaspreise!M22*'DCF (2012)'!$C$20*K$2/K$8 -> 6.890512365 | L27: =[4]Gaspreise!N22*'DCF (2012)'!$C$20*L$2/L$8 -> 6.489409112 | M27: =[4]Gaspreise!O22*'DCF (2012)'!$C$20*M$2/M$8 -> 6.606810926 | N27: =[4]Gaspreise!P22*'DCF (2012)'!$C$20*N$2/N$8 -> 6.288201763 | O27: =[4]Gaspreise!Q22*'DCF (2012)'!$C$20*O$2/O$8 -> 6.447737347 | P27: =[4]Gaspreise!R22*'DCF (2012)'!$C$20*P$2/P$8 -> 6.276934525 | Q27: =[4]Gaspreise!S22*'DCF (2012)'!$C$20*Q$2/Q$8 -> 6.105908639 | R27: =[4]Gaspreise!T22*'DCF (2012)'!$C$20*R$2/R$8 -> 6.336130855 | S27: =[4]Gaspreise!U22*'DCF (2012)'!$C$20*S$2/S$8 -> 5.885028441 | T27: =[4]Gaspreise!V22*'DCF (2012)'!$C$20*T$2/T$8 -> 6.338804246 | U27: =[4]Gaspreise!W22*'DCF (2012)'!$C$20*U$2/U$8 -> 6.257592471 | V27: =[4]Gaspreise!X22*'DCF (2012)'!$C$20*V$2/V$8 -> 6.814267293 | W27: =[4]Gaspreise!Y22*'DCF (2012)'!$C$20*W$2/W$8 -> 7.768258773 | X27: =[4]Gaspreise!Z22*'DCF (2012)'!$C$20*X$2/X$8 -> 8.212275547 | Y27: =[4]Gaspreise!AA22*'DCF (2012)'!$C$20*Y$2/Y$8 -> 8.336062582 | Z27: =[4]Gaspreise!AB22*'DCF (2012)'!$C$20*Z$2/Z$8 -> 8.466598036 | AA27: =[4]Gaspreise!AC22*'DCF (2012)'!$C$20*AA$2/AA$8 -> 8.660177467 | AB27: =[4]Gaspreise!AD22*'DCF (2012)'!$C$20*AB$2/AB$8 -> 8.795489427
A28: 20 | E28: =[4]Gaspreise!G23*'DCF (2012)'!$C$20 -> 6.588888889 | F28: =[4]Gaspreise!H23*'DCF (2012)'!$C$20 -> 6.281360217 | G28: =[4]Gaspreise!I23*'DCF (2012)'!$C$20*G$2/G$8 -> 5.220105304 | H28: =[4]Gaspreise!J23*'DCF (2012)'!$C$20*H$2/H$8 -> 6.202319891 | I28: =[4]Gaspreise!K23*'DCF (2012)'!$C$20*I$2/I$8 -> 6.809166618 | J28: =[4]Gaspreise!L23*'DCF (2012)'!$C$20*J$2/J$8 -> 6.754677262 | K28: =[4]Gaspreise!M23*'DCF (2012)'!$C$20*K$2/K$8 -> 6.890512365 | L28: =[4]Gaspreise!N23*'DCF (2012)'!$C$20*L$2/L$8 -> 6.489409112 | M28: =[4]Gaspreise!O23*'DCF (2012)'!$C$20*M$2/M$8 -> 6.606810926 | N28: =[4]Gaspreise!P23*'DCF (2012)'!$C$20*N$2/N$8 -> 6.288201763 | O28: =[4]Gaspreise!Q23*'DCF (2012)'!$C$20*O$2/O$8 -> 6.447737347 | P28: =[4]Gaspreise!R23*'DCF (2012)'!$C$20*P$2/P$8 -> 6.276934525 | Q28: =[4]Gaspreise!S23*'DCF (2012)'!$C$20*Q$2/Q$8 -> 6.105908639 | R28: =[4]Gaspreise!T23*'DCF (2012)'!$C$20*R$2/R$8 -> 6.336130855 | S28: =[4]Gaspreise!U23*'DCF (2012)'!$C$20*S$2/S$8 -> 5.885028441 | T28: =[4]Gaspreise!V23*'DCF (2012)'!$C$20*T$2/T$8 -> 6.338804246 | U28: =[4]Gaspreise!W23*'DCF (2012)'!$C$20*U$2/U$8 -> 6.257592471 | V28: =[4]Gaspreise!X23*'DCF (2012)'!$C$20*V$2/V$8 -> 6.814267293 | W28: =[4]Gaspreise!Y23*'DCF (2012)'!$C$20*W$2/W$8 -> 7.768258773 | X28: =[4]Gaspreise!Z23*'DCF (2012)'!$C$20*X$2/X$8 -> 8.212275547 | Y28: =[4]Gaspreise!AA23*'DCF (2012)'!$C$20*Y$2/Y$8 -> 8.336062582 | Z28: =[4]Gaspreise!AB23*'DCF (2012)'!$C$20*Z$2/Z$8 -> 8.466598036 | AA28: =[4]Gaspreise!AC23*'DCF (2012)'!$C$20*AA$2/AA$8 -> 8.660177467 | AB28: =[4]Gaspreise!AD23*'DCF (2012)'!$C$20*AB$2/AB$8 -> 8.795489427
A29: 21 | E29: =[4]Gaspreise!G24*'DCF (2012)'!$C$20 -> 6.588888889 | F29: =[4]Gaspreise!H24*'DCF (2012)'!$C$20 -> 6.281360217 | G29: =[4]Gaspreise!I24*'DCF (2012)'!$C$20*G$2/G$8 -> 5.220105304 | H29: =[4]Gaspreise!J24*'DCF (2012)'!$C$20*H$2/H$8 -> 6.202319891 | I29: =[4]Gaspreise!K24*'DCF (2012)'!$C$20*I$2/I$8 -> 6.809166618 | J29: =[4]Gaspreise!L24*'DCF (2012)'!$C$20*J$2/J$8 -> 6.754677262 | K29: =[4]Gaspreise!M24*'DCF (2012)'!$C$20*K$2/K$8 -> 6.890512365 | L29: =[4]Gaspreise!N24*'DCF (2012)'!$C$20*L$2/L$8 -> 6.489409112 | M29: =[4]Gaspreise!O24*'DCF (2012)'!$C$20*M$2/M$8 -> 6.606810926 | N29: =[4]Gaspreise!P24*'DCF (2012)'!$C$20*N$2/N$8 -> 6.288201763 | O29: =[4]Gaspreise!Q24*'DCF (2012)'!$C$20*O$2/O$8 -> 6.447737347 | P29: =[4]Gaspreise!R24*'DCF (2012)'!$C$20*P$2/P$8 -> 6.276934525 | Q29: =[4]Gaspreise!S24*'DCF (2012)'!$C$20*Q$2/Q$8 -> 6.105908639 | R29: =[4]Gaspreise!T24*'DCF (2012)'!$C$20*R$2/R$8 -> 6.336130855 | S29: =[4]Gaspreise!U24*'DCF (2012)'!$C$20*S$2/S$8 -> 5.885028441 | T29: =[4]Gaspreise!V24*'DCF (2012)'!$C$20*T$2/T$8 -> 6.338804246 | U29: =[4]Gaspreise!W24*'DCF (2012)'!$C$20*U$2/U$8 -> 6.257592471 | V29: =[4]Gaspreise!X24*'DCF (2012)'!$C$20*V$2/V$8 -> 6.814267293 | W29: =[4]Gaspreise!Y24*'DCF (2012)'!$C$20*W$2/W$8 -> 7.768258773 | X29: =[4]Gaspreise!Z24*'DCF (2012)'!$C$20*X$2/X$8 -> 8.212275547 | Y29: =[4]Gaspreise!AA24*'DCF (2012)'!$C$20*Y$2/Y$8 -> 8.336062582 | Z29: =[4]Gaspreise!AB24*'DCF (2012)'!$C$20*Z$2/Z$8 -> 8.466598036 | AA29: =[4]Gaspreise!AC24*'DCF (2012)'!$C$20*AA$2/AA$8 -> 8.660177467 | AB29: =[4]Gaspreise!AD24*'DCF (2012)'!$C$20*AB$2/AB$8 -> 8.795489427
A30: 22 | E30: =[4]Gaspreise!G25*'DCF (2012)'!$C$20 -> 6.588888889 | F30: =[4]Gaspreise!H25*'DCF (2012)'!$C$20 -> 6.281360217 | G30: =[4]Gaspreise!I25*'DCF (2012)'!$C$20*G$2/G$8 -> 5.220105304 | H30: =[4]Gaspreise!J25*'DCF (2012)'!$C$20*H$2/H$8 -> 6.202319891 | I30: =[4]Gaspreise!K25*'DCF (2012)'!$C$20*I$2/I$8 -> 6.809166618 | J30: =[4]Gaspreise!L25*'DCF (2012)'!$C$20*J$2/J$8 -> 6.754677262 | K30: =[4]Gaspreise!M25*'DCF (2012)'!$C$20*K$2/K$8 -> 6.890512365 | L30: =[4]Gaspreise!N25*'DCF (2012)'!$C$20*L$2/L$8 -> 6.489409112 | M30: =[4]Gaspreise!O25*'DCF (2012)'!$C$20*M$2/M$8 -> 6.606810926 | N30: =[4]Gaspreise!P25*'DCF (2012)'!$C$20*N$2/N$8 -> 6.288201763 | O30: =[4]Gaspreise!Q25*'DCF (2012)'!$C$20*O$2/O$8 -> 6.447737347 | P30: =[4]Gaspreise!R25*'DCF (2012)'!$C$20*P$2/P$8 -> 6.276934525 | Q30: =[4]Gaspreise!S25*'DCF (2012)'!$C$20*Q$2/Q$8 -> 6.105908639 | R30: =[4]Gaspreise!T25*'DCF (2012)'!$C$20*R$2/R$8 -> 6.336130855 | S30: =[4]Gaspreise!U25*'DCF (2012)'!$C$20*S$2/S$8 -> 5.885028441 | T30: =[4]Gaspreise!V25*'DCF (2012)'!$C$20*T$2/T$8 -> 6.338804246 | U30: =[4]Gaspreise!W25*'DCF (2012)'!$C$20*U$2/U$8 -> 6.257592471 | V30: =[4]Gaspreise!X25*'DCF (2012)'!$C$20*V$2/V$8 -> 6.814267293 | W30: =[4]Gaspreise!Y25*'DCF (2012)'!$C$20*W$2/W$8 -> 7.768258773 | X30: =[4]Gaspreise!Z25*'DCF (2012)'!$C$20*X$2/X$8 -> 8.212275547 | Y30: =[4]Gaspreise!AA25*'DCF (2012)'!$C$20*Y$2/Y$8 -> 8.336062582 | Z30: =[4]Gaspreise!AB25*'DCF (2012)'!$C$20*Z$2/Z$8 -> 8.466598036 | AA30: =[4]Gaspreise!AC25*'DCF (2012)'!$C$20*AA$2/AA$8 -> 8.660177467 | AB30: =[4]Gaspreise!AD25*'DCF (2012)'!$C$20*AB$2/AB$8 -> 8.795489427
A31: 23 | E31: =[4]Gaspreise!G26*'DCF (2012)'!$C$20 -> 6.588888889 | F31: =[4]Gaspreise!H26*'DCF (2012)'!$C$20 -> 6.281360217 | G31: =[4]Gaspreise!I26*'DCF (2012)'!$C$20*G$2/G$8 -> 5.220105304 | H31: =[4]Gaspreise!J26*'DCF (2012)'!$C$20*H$2/H$8 -> 6.202319891 | I31: =[4]Gaspreise!K26*'DCF (2012)'!$C$20*I$2/I$8 -> 6.809166618 | J31: =[4]Gaspreise!L26*'DCF (2012)'!$C$20*J$2/J$8 -> 6.754677262 | K31: =[4]Gaspreise!M26*'DCF (2012)'!$C$20*K$2/K$8 -> 6.890512365 | L31: =[4]Gaspreise!N26*'DCF (2012)'!$C$20*L$2/L$8 -> 6.489409112 | M31: =[4]Gaspreise!O26*'DCF (2012)'!$C$20*M$2/M$8 -> 6.606810926 | N31: =[4]Gaspreise!P26*'DCF (2012)'!$C$20*N$2/N$8 -> 6.288201763 | O31: =[4]Gaspreise!Q26*'DCF (2012)'!$C$20*O$2/O$8 -> 6.447737347 | P31: =[4]Gaspreise!R26*'DCF (2012)'!$C$20*P$2/P$8 -> 6.276934525 | Q31: =[4]Gaspreise!S26*'DCF (2012)'!$C$20*Q$2/Q$8 -> 6.105908639 | R31: =[4]Gaspreise!T26*'DCF (2012)'!$C$20*R$2/R$8 -> 6.336130855 | S31: =[4]Gaspreise!U26*'DCF (2012)'!$C$20*S$2/S$8 -> 5.885028441 | T31: =[4]Gaspreise!V26*'DCF (2012)'!$C$20*T$2/T$8 -> 6.338804246 | U31: =[4]Gaspreise!W26*'DCF (2012)'!$C$20*U$2/U$8 -> 6.257592471 | V31: =[4]Gaspreise!X26*'DCF (2012)'!$C$20*V$2/V$8 -> 6.814267293 | W31: =[4]Gaspreise!Y26*'DCF (2012)'!$C$20*W$2/W$8 -> 7.768258773 | X31: =[4]Gaspreise!Z26*'DCF (2012)'!$C$20*X$2/X$8 -> 8.212275547 | Y31: =[4]Gaspreise!AA26*'DCF (2012)'!$C$20*Y$2/Y$8 -> 8.336062582 | Z31: =[4]Gaspreise!AB26*'DCF (2012)'!$C$20*Z$2/Z$8 -> 8.466598036 | AA31: =[4]Gaspreise!AC26*'DCF (2012)'!$C$20*AA$2/AA$8 -> 8.660177467 | AB31: =[4]Gaspreise!AD26*'DCF (2012)'!$C$20*AB$2/AB$8 -> 8.795489427
A32: 24 | E32: =[4]Gaspreise!G27*'DCF (2012)'!$C$20 -> 6.588888889 | F32: =[4]Gaspreise!H27*'DCF (2012)'!$C$20 -> 6.281360217 | G32: =[4]Gaspreise!I27*'DCF (2012)'!$C$20*G$2/G$8 -> 5.220105304 | H32: =[4]Gaspreise!J27*'DCF (2012)'!$C$20*H$2/H$8 -> 6.202319891 | I32: =[4]Gaspreise!K27*'DCF (2012)'!$C$20*I$2/I$8 -> 6.809166618 | J32: =[4]Gaspreise!L27*'DCF (2012)'!$C$20*J$2/J$8 -> 6.754677262 | K32: =[4]Gaspreise!M27*'DCF (2012)'!$C$20*K$2/K$8 -> 6.890512365 | L32: =[4]Gaspreise!N27*'DCF (2012)'!$C$20*L$2/L$8 -> 6.489409112 | M32: =[4]Gaspreise!O27*'DCF (2012)'!$C$20*M$2/M$8 -> 6.606810926 | N32: =[4]Gaspreise!P27*'DCF (2012)'!$C$20*N$2/N$8 -> 6.288201763 | O32: =[4]Gaspreise!Q27*'DCF (2012)'!$C$20*O$2/O$8 -> 6.447737347 | P32: =[4]Gaspreise!R27*'DCF (2012)'!$C$20*P$2/P$8 -> 6.276934525 | Q32: =[4]Gaspreise!S27*'DCF (2012)'!$C$20*Q$2/Q$8 -> 6.105908639 | R32: =[4]Gaspreise!T27*'DCF (2012)'!$C$20*R$2/R$8 -> 6.336130855 | S32: =[4]Gaspreise!U27*'DCF (2012)'!$C$20*S$2/S$8 -> 5.885028441 | T32: =[4]Gaspreise!V27*'DCF (2012)'!$C$20*T$2/T$8 -> 6.338804246 | U32: =[4]Gaspreise!W27*'DCF (2012)'!$C$20*U$2/U$8 -> 6.257592471 | V32: =[4]Gaspreise!X27*'DCF (2012)'!$C$20*V$2/V$8 -> 6.814267293 | W32: =[4]Gaspreise!Y27*'DCF (2012)'!$C$20*W$2/W$8 -> 7.768258773 | X32: =[4]Gaspreise!Z27*'DCF (2012)'!$C$20*X$2/X$8 -> 8.212275547 | Y32: =[4]Gaspreise!AA27*'DCF (2012)'!$C$20*Y$2/Y$8 -> 8.336062582 | Z32: =[4]Gaspreise!AB27*'DCF (2012)'!$C$20*Z$2/Z$8 -> 8.466598036 | AA32: =[4]Gaspreise!AC27*'DCF (2012)'!$C$20*AA$2/AA$8 -> 8.660177467 | AB32: =[4]Gaspreise!AD27*'DCF (2012)'!$C$20*AB$2/AB$8 -> 8.795489427
A33: 25 | E33: =[4]Gaspreise!G28*'DCF (2012)'!$C$20 -> 6.588888889 | F33: =[4]Gaspreise!H28*'DCF (2012)'!$C$20 -> 6.281360217 | G33: =[4]Gaspreise!I28*'DCF (2012)'!$C$20*G$2/G$8 -> 5.220105304 | H33: =[4]Gaspreise!J28*'DCF (2012)'!$C$20*H$2/H$8 -> 6.202319891 | I33: =[4]Gaspreise!K28*'DCF (2012)'!$C$20*I$2/I$8 -> 6.809166618 | J33: =[4]Gaspreise!L28*'DCF (2012)'!$C$20*J$2/J$8 -> 6.754677262 | K33: =[4]Gaspreise!M28*'DCF (2012)'!$C$20*K$2/K$8 -> 6.890512365 | L33: =[4]Gaspreise!N28*'DCF (2012)'!$C$20*L$2/L$8 -> 6.489409112 | M33: =[4]Gaspreise!O28*'DCF (2012)'!$C$20*M$2/M$8 -> 6.606810926 | N33: =[4]Gaspreise!P28*'DCF (2012)'!$C$20*N$2/N$8 -> 6.288201763 | O33: =[4]Gaspreise!Q28*'DCF (2012)'!$C$20*O$2/O$8 -> 6.447737347 | P33: =[4]Gaspreise!R28*'DCF (2012)'!$C$20*P$2/P$8 -> 6.276934525 | Q33: =[4]Gaspreise!S28*'DCF (2012)'!$C$20*Q$2/Q$8 -> 6.105908639 | R33: =[4]Gaspreise!T28*'DCF (2012)'!$C$20*R$2/R$8 -> 6.336130855 | S33: =[4]Gaspreise!U28*'DCF (2012)'!$C$20*S$2/S$8 -> 5.885028441 | T33: =[4]Gaspreise!V28*'DCF (2012)'!$C$20*T$2/T$8 -> 6.338804246 | U33: =[4]Gaspreise!W28*'DCF (2012)'!$C$20*U$2/U$8 -> 6.257592471 | V33: =[4]Gaspreise!X28*'DCF (2012)'!$C$20*V$2/V$8 -> 6.814267293 | W33: =[4]Gaspreise!Y28*'DCF (2012)'!$C$20*W$2/W$8 -> 7.768258773 | X33: =[4]Gaspreise!Z28*'DCF (2012)'!$C$20*X$2/X$8 -> 8.212275547 | Y33: =[4]Gaspreise!AA28*'DCF (2012)'!$C$20*Y$2/Y$8 -> 8.336062582 | Z33: =[4]Gaspreise!AB28*'DCF (2012)'!$C$20*Z$2/Z$8 -> 8.466598036 | AA33: =[4]Gaspreise!AC28*'DCF (2012)'!$C$20*AA$2/AA$8 -> 8.660177467 | AB33: =[4]Gaspreise!AD28*'DCF (2012)'!$C$20*AB$2/AB$8 -> 8.795489427
A34: 26 | E34: =[4]Gaspreise!G29*'DCF (2012)'!$C$20 -> 6.588888889 | F34: =[4]Gaspreise!H29*'DCF (2012)'!$C$20 -> 6.281360217 | G34: =[4]Gaspreise!I29*'DCF (2012)'!$C$20*G$2/G$8 -> 5.220105304 | H34: =[4]Gaspreise!J29*'DCF (2012)'!$C$20*H$2/H$8 -> 6.202319891 | I34: =[4]Gaspreise!K29*'DCF (2012)'!$C$20*I$2/I$8 -> 6.809166618 | J34: =[4]Gaspreise!L29*'DCF (2012)'!$C$20*J$2/J$8 -> 6.754677262 | K34: =[4]Gaspreise!M29*'DCF (2012)'!$C$20*K$2/K$8 -> 6.890512365 | L34: =[4]Gaspreise!N29*'DCF (2012)'!$C$20*L$2/L$8 -> 6.489409112 | M34: =[4]Gaspreise!O29*'DCF (2012)'!$C$20*M$2/M$8 -> 6.606810926 | N34: =[4]Gaspreise!P29*'DCF (2012)'!$C$20*N$2/N$8 -> 6.288201763 | O34: =[4]Gaspreise!Q29*'DCF (2012)'!$C$20*O$2/O$8 -> 6.447737347 | P34: =[4]Gaspreise!R29*'DCF (2012)'!$C$20*P$2/P$8 -> 6.276934525 | Q34: =[4]Gaspreise!S29*'DCF (2012)'!$C$20*Q$2/Q$8 -> 6.105908639 | R34: =[4]Gaspreise!T29*'DCF (2012)'!$C$20*R$2/R$8 -> 6.336130855 | S34: =[4]Gaspreise!U29*'DCF (2012)'!$C$20*S$2/S$8 -> 5.885028441 | T34: =[4]Gaspreise!V29*'DCF (2012)'!$C$20*T$2/T$8 -> 6.338804246 | U34: =[4]Gaspreise!W29*'DCF (2012)'!$C$20*U$2/U$8 -> 6.257592471 | V34: =[4]Gaspreise!X29*'DCF (2012)'!$C$20*V$2/V$8 -> 6.814267293 | W34: =[4]Gaspreise!Y29*'DCF (2012)'!$C$20*W$2/W$8 -> 7.768258773 | X34: =[4]Gaspreise!Z29*'DCF (2012)'!$C$20*X$2/X$8 -> 8.212275547 | Y34: =[4]Gaspreise!AA29*'DCF (2012)'!$C$20*Y$2/Y$8 -> 8.336062582 | Z34: =[4]Gaspreise!AB29*'DCF (2012)'!$C$20*Z$2/Z$8 -> 8.466598036 | AA34: =[4]Gaspreise!AC29*'DCF (2012)'!$C$20*AA$2/AA$8 -> 8.660177467 | AB34: =[4]Gaspreise!AD29*'DCF (2012)'!$C$20*AB$2/AB$8 -> 8.795489427
A35: 27 | E35: =[4]Gaspreise!G30*'DCF (2012)'!$C$20 -> 6.588888889 | F35: =[4]Gaspreise!H30*'DCF (2012)'!$C$20 -> 6.281360217 | G35: =[4]Gaspreise!I30*'DCF (2012)'!$C$20*G$2/G$8 -> 5.220105304 | H35: =[4]Gaspreise!J30*'DCF (2012)'!$C$20*H$2/H$8 -> 6.202319891 | I35: =[4]Gaspreise!K30*'DCF (2012)'!$C$20*I$2/I$8 -> 6.809166618 | J35: =[4]Gaspreise!L30*'DCF (2012)'!$C$20*J$2/J$8 -> 6.754677262 | K35: =[4]Gaspreise!M30*'DCF (2012)'!$C$20*K$2/K$8 -> 6.890512365 | L35: =[4]Gaspreise!N30*'DCF (2012)'!$C$20*L$2/L$8 -> 6.489409112 | M35: =[4]Gaspreise!O30*'DCF (2012)'!$C$20*M$2/M$8 -> 6.606810926 | N35: =[4]Gaspreise!P30*'DCF (2012)'!$C$20*N$2/N$8 -> 6.288201763 | O35: =[4]Gaspreise!Q30*'DCF (2012)'!$C$20*O$2/O$8 -> 6.447737347 | P35: =[4]Gaspreise!R30*'DCF (2012)'!$C$20*P$2/P$8 -> 6.276934525 | Q35: =[4]Gaspreise!S30*'DCF (2012)'!$C$20*Q$2/Q$8 -> 6.105908639 | R35: =[4]Gaspreise!T30*'DCF (2012)'!$C$20*R$2/R$8 -> 6.336130855 | S35: =[4]Gaspreise!U30*'DCF (2012)'!$C$20*S$2/S$8 -> 5.885028441 | T35: =[4]Gaspreise!V30*'DCF (2012)'!$C$20*T$2/T$8 -> 6.338804246 | U35: =[4]Gaspreise!W30*'DCF (2012)'!$C$20*U$2/U$8 -> 6.257592471 | V35: =[4]Gaspreise!X30*'DCF (2012)'!$C$20*V$2/V$8 -> 6.814267293 | W35: =[4]Gaspreise!Y30*'DCF (2012)'!$C$20*W$2/W$8 -> 7.768258773 | X35: =[4]Gaspreise!Z30*'DCF (2012)'!$C$20*X$2/X$8 -> 8.212275547 | Y35: =[4]Gaspreise!AA30*'DCF (2012)'!$C$20*Y$2/Y$8 -> 8.336062582 | Z35: =[4]Gaspreise!AB30*'DCF (2012)'!$C$20*Z$2/Z$8 -> 8.466598036 | AA35: =[4]Gaspreise!AC30*'DCF (2012)'!$C$20*AA$2/AA$8 -> 8.660177467 | AB35: =[4]Gaspreise!AD30*'DCF (2012)'!$C$20*AB$2/AB$8 -> 8.795489427
A36: 28 | E36: =[4]Gaspreise!G31*'DCF (2012)'!$C$20 -> 6.588888889 | F36: =[4]Gaspreise!H31*'DCF (2012)'!$C$20 -> 6.281360217 | G36: =[4]Gaspreise!I31*'DCF (2012)'!$C$20*G$2/G$8 -> 5.220105304 | H36: =[4]Gaspreise!J31*'DCF (2012)'!$C$20*H$2/H$8 -> 6.202319891 | I36: =[4]Gaspreise!K31*'DCF (2012)'!$C$20*I$2/I$8 -> 6.809166618 | J36: =[4]Gaspreise!L31*'DCF (2012)'!$C$20*J$2/J$8 -> 6.754677262 | K36: =[4]Gaspreise!M31*'DCF (2012)'!$C$20*K$2/K$8 -> 6.890512365 | L36: =[4]Gaspreise!N31*'DCF (2012)'!$C$20*L$2/L$8 -> 6.489409112 | M36: =[4]Gaspreise!O31*'DCF (2012)'!$C$20*M$2/M$8 -> 6.606810926 | N36: =[4]Gaspreise!P31*'DCF (2012)'!$C$20*N$2/N$8 -> 6.288201763 | O36: =[4]Gaspreise!Q31*'DCF (2012)'!$C$20*O$2/O$8 -> 6.447737347 | P36: =[4]Gaspreise!R31*'DCF (2012)'!$C$20*P$2/P$8 -> 6.276934525 | Q36: =[4]Gaspreise!S31*'DCF (2012)'!$C$20*Q$2/Q$8 -> 6.105908639 | R36: =[4]Gaspreise!T31*'DCF (2012)'!$C$20*R$2/R$8 -> 6.336130855 | S36: =[4]Gaspreise!U31*'DCF (2012)'!$C$20*S$2/S$8 -> 5.885028441 | T36: =[4]Gaspreise!V31*'DCF (2012)'!$C$20*T$2/T$8 -> 6.338804246 | U36: =[4]Gaspreise!W31*'DCF (2012)'!$C$20*U$2/U$8 -> 6.257592471 | V36: =[4]Gaspreise!X31*'DCF (2012)'!$C$20*V$2/V$8 -> 6.814267293 | W36: =[4]Gaspreise!Y31*'DCF (2012)'!$C$20*W$2/W$8 -> 7.768258773 | X36: =[4]Gaspreise!Z31*'DCF (2012)'!$C$20*X$2/X$8 -> 8.212275547 | Y36: =[4]Gaspreise!AA31*'DCF (2012)'!$C$20*Y$2/Y$8 -> 8.336062582 | Z36: =[4]Gaspreise!AB31*'DCF (2012)'!$C$20*Z$2/Z$8 -> 8.466598036 | AA36: =[4]Gaspreise!AC31*'DCF (2012)'!$C$20*AA$2/AA$8 -> 8.660177467 | AB36: =[4]Gaspreise!AD31*'DCF (2012)'!$C$20*AB$2/AB$8 -> 8.795489427
A37: 29 | E37: =[4]Gaspreise!G32*'DCF (2012)'!$C$20 -> 6.588888889 | F37: =[4]Gaspreise!H32*'DCF (2012)'!$C$20 -> 6.281360217 | G37: =[4]Gaspreise!I32*'DCF (2012)'!$C$20*G$2/G$8 -> 5.220105304 | H37: =[4]Gaspreise!J32*'DCF (2012)'!$C$20*H$2/H$8 -> 6.202319891 | I37: =[4]Gaspreise!K32*'DCF (2012)'!$C$20*I$2/I$8 -> 6.809166618 | J37: =[4]Gaspreise!L32*'DCF (2012)'!$C$20*J$2/J$8 -> 6.754677262 | K37: =[4]Gaspreise!M32*'DCF (2012)'!$C$20*K$2/K$8 -> 6.890512365 | L37: =[4]Gaspreise!N32*'DCF (2012)'!$C$20*L$2/L$8 -> 6.489409112 | M37: =[4]Gaspreise!O32*'DCF (2012)'!$C$20*M$2/M$8 -> 6.606810926 | N37: =[4]Gaspreise!P32*'DCF (2012)'!$C$20*N$2/N$8 -> 6.288201763 | O37: =[4]Gaspreise!Q32*'DCF (2012)'!$C$20*O$2/O$8 -> 6.447737347 | P37: =[4]Gaspreise!R32*'DCF (2012)'!$C$20*P$2/P$8 -> 6.276934525 | Q37: =[4]Gaspreise!S32*'DCF (2012)'!$C$20*Q$2/Q$8 -> 6.105908639 | R37: =[4]Gaspreise!T32*'DCF (2012)'!$C$20*R$2/R$8 -> 6.336130855 | S37: =[4]Gaspreise!U32*'DCF (2012)'!$C$20*S$2/S$8 -> 5.885028441 | T37: =[4]Gaspreise!V32*'DCF (2012)'!$C$20*T$2/T$8 -> 6.338804246 | U37: =[4]Gaspreise!W32*'DCF (2012)'!$C$20*U$2/U$8 -> 6.257592471 | V37: =[4]Gaspreise!X32*'DCF (2012)'!$C$20*V$2/V$8 -> 6.814267293 | W37: =[4]Gaspreise!Y32*'DCF (2012)'!$C$20*W$2/W$8 -> 7.768258773 | X37: =[4]Gaspreise!Z32*'DCF (2012)'!$C$20*X$2/X$8 -> 8.212275547 | Y37: =[4]Gaspreise!AA32*'DCF (2012)'!$C$20*Y$2/Y$8 -> 8.336062582 | Z37: =[4]Gaspreise!AB32*'DCF (2012)'!$C$20*Z$2/Z$8 -> 8.466598036 | AA37: =[4]Gaspreise!AC32*'DCF (2012)'!$C$20*AA$2/AA$8 -> 8.660177467 | AB37: =[4]Gaspreise!AD32*'DCF (2012)'!$C$20*AB$2/AB$8 -> 8.795489427
A38: 30 | E38: =[4]Gaspreise!G33*'DCF (2012)'!$C$20 -> 6.588888889 | F38: =[4]Gaspreise!H33*'DCF (2012)'!$C$20 -> 6.281360217 | G38: =[4]Gaspreise!I33*'DCF (2012)'!$C$20*G$2/G$8 -> 5.220105304 | H38: =[4]Gaspreise!J33*'DCF (2012)'!$C$20*H$2/H$8 -> 6.202319891 | I38: =[4]Gaspreise!K33*'DCF (2012)'!$C$20*I$2/I$8 -> 6.809166618 | J38: =[4]Gaspreise!L33*'DCF (2012)'!$C$20*J$2/J$8 -> 6.754677262 | K38: =[4]Gaspreise!M33*'DCF (2012)'!$C$20*K$2/K$8 -> 6.890512365 | L38: =[4]Gaspreise!N33*'DCF (2012)'!$C$20*L$2/L$8 -> 6.489409112 | M38: =[4]Gaspreise!O33*'DCF (2012)'!$C$20*M$2/M$8 -> 6.606810926 | N38: =[4]Gaspreise!P33*'DCF (2012)'!$C$20*N$2/N$8 -> 6.288201763 | O38: =[4]Gaspreise!Q33*'DCF (2012)'!$C$20*O$2/O$8 -> 6.447737347 | P38: =[4]Gaspreise!R33*'DCF (2012)'!$C$20*P$2/P$8 -> 6.276934525 | Q38: =[4]Gaspreise!S33*'DCF (2012)'!$C$20*Q$2/Q$8 -> 6.105908639 | R38: =[4]Gaspreise!T33*'DCF (2012)'!$C$20*R$2/R$8 -> 6.336130855 | S38: =[4]Gaspreise!U33*'DCF (2012)'!$C$20*S$2/S$8 -> 5.885028441 | T38: =[4]Gaspreise!V33*'DCF (2012)'!$C$20*T$2/T$8 -> 6.338804246 | U38: =[4]Gaspreise!W33*'DCF (2012)'!$C$20*U$2/U$8 -> 6.257592471 | V38: =[4]Gaspreise!X33*'DCF (2012)'!$C$20*V$2/V$8 -> 6.814267293 | W38: =[4]Gaspreise!Y33*'DCF (2012)'!$C$20*W$2/W$8 -> 7.768258773 | X38: =[4]Gaspreise!Z33*'DCF (2012)'!$C$20*X$2/X$8 -> 8.212275547 | Y38: =[4]Gaspreise!AA33*'DCF (2012)'!$C$20*Y$2/Y$8 -> 8.336062582 | Z38: =[4]Gaspreise!AB33*'DCF (2012)'!$C$20*Z$2/Z$8 -> 8.466598036 | AA38: =[4]Gaspreise!AC33*'DCF (2012)'!$C$20*AA$2/AA$8 -> 8.660177467 | AB38: =[4]Gaspreise!AD33*'DCF (2012)'!$C$20*AB$2/AB$8 -> 8.795489427
A39: 31 | E39: =[4]Gaspreise!G34*'DCF (2012)'!$C$20 -> 6.588888889 | F39: =[4]Gaspreise!H34*'DCF (2012)'!$C$20 -> 6.281360217 | G39: =[4]Gaspreise!I34*'DCF (2012)'!$C$20*G$2/G$8 -> 5.220105304 | H39: =[4]Gaspreise!J34*'DCF (2012)'!$C$20*H$2/H$8 -> 6.202319891 | I39: =[4]Gaspreise!K34*'DCF (2012)'!$C$20*I$2/I$8 -> 6.809166618 | J39: =[4]Gaspreise!L34*'DCF (2012)'!$C$20*J$2/J$8 -> 6.754677262 | K39: =[4]Gaspreise!M34*'DCF (2012)'!$C$20*K$2/K$8 -> 6.890512365 | L39: =[4]Gaspreise!N34*'DCF (2012)'!$C$20*L$2/L$8 -> 6.489409112 | M39: =[4]Gaspreise!O34*'DCF (2012)'!$C$20*M$2/M$8 -> 6.606810926 | N39: =[4]Gaspreise!P34*'DCF (2012)'!$C$20*N$2/N$8 -> 6.288201763 | O39: =[4]Gaspreise!Q34*'DCF (2012)'!$C$20*O$2/O$8 -> 6.447737347 | P39: =[4]Gaspreise!R34*'DCF (2012)'!$C$20*P$2/P$8 -> 6.276934525 | Q39: =[4]Gaspreise!S34*'DCF (2012)'!$C$20*Q$2/Q$8 -> 6.105908639 | R39: =[4]Gaspreise!T34*'DCF (2012)'!$C$20*R$2/R$8 -> 6.336130855 | S39: =[4]Gaspreise!U34*'DCF (2012)'!$C$20*S$2/S$8 -> 5.885028441 | T39: =[4]Gaspreise!V34*'DCF (2012)'!$C$20*T$2/T$8 -> 6.338804246 | U39: =[4]Gaspreise!W34*'DCF (2012)'!$C$20*U$2/U$8 -> 6.257592471 | V39: =[4]Gaspreise!X34*'DCF (2012)'!$C$20*V$2/V$8 -> 6.814267293 | W39: =[4]Gaspreise!Y34*'DCF (2012)'!$C$20*W$2/W$8 -> 7.768258773 | X39: =[4]Gaspreise!Z34*'DCF (2012)'!$C$20*X$2/X$8 -> 8.212275547 | Y39: =[4]Gaspreise!AA34*'DCF (2012)'!$C$20*Y$2/Y$8 -> 8.336062582 | Z39: =[4]Gaspreise!AB34*'DCF (2012)'!$C$20*Z$2/Z$8 -> 8.466598036 | AA39: =[4]Gaspreise!AC34*'DCF (2012)'!$C$20*AA$2/AA$8 -> 8.660177467 | AB39: =[4]Gaspreise!AD34*'DCF (2012)'!$C$20*AB$2/AB$8 -> 8.795489427
A40: 32 | E40: =[4]Gaspreise!G35*'DCF (2012)'!$C$20 -> 6.588888889 | F40: =[4]Gaspreise!H35*'DCF (2012)'!$C$20 -> 6.281360217 | G40: =[4]Gaspreise!I35*'DCF (2012)'!$C$20*G$2/G$8 -> 5.220105304 | H40: =[4]Gaspreise!J35*'DCF (2012)'!$C$20*H$2/H$8 -> 6.202319891 | I40: =[4]Gaspreise!K35*'DCF (2012)'!$C$20*I$2/I$8 -> 6.809166618 | J40: =[4]Gaspreise!L35*'DCF (2012)'!$C$20*J$2/J$8 -> 6.754677262 | K40: =[4]Gaspreise!M35*'DCF (2012)'!$C$20*K$2/K$8 -> 6.890512365 | L40: =[4]Gaspreise!N35*'DCF (2012)'!$C$20*L$2/L$8 -> 6.489409112 | M40: =[4]Gaspreise!O35*'DCF (2012)'!$C$20*M$2/M$8 -> 6.606810926 | N40: =[4]Gaspreise!P35*'DCF (2012)'!$C$20*N$2/N$8 -> 6.288201763 | O40: =[4]Gaspreise!Q35*'DCF (2012)'!$C$20*O$2/O$8 -> 6.447737347 | P40: =[4]Gaspreise!R35*'DCF (2012)'!$C$20*P$2/P$8 -> 6.276934525 | Q40: =[4]Gaspreise!S35*'DCF (2012)'!$C$20*Q$2/Q$8 -> 6.105908639 | R40: =[4]Gaspreise!T35*'DCF (2012)'!$C$20*R$2/R$8 -> 6.336130855 | S40: =[4]Gaspreise!U35*'DCF (2012)'!$C$20*S$2/S$8 -> 5.885028441 | T40: =[4]Gaspreise!V35*'DCF (2012)'!$C$20*T$2/T$8 -> 6.338804246 | U40: =[4]Gaspreise!W35*'DCF (2012)'!$C$20*U$2/U$8 -> 6.257592471 | V40: =[4]Gaspreise!X35*'DCF (2012)'!$C$20*V$2/V$8 -> 6.814267293 | W40: =[4]Gaspreise!Y35*'DCF (2012)'!$C$20*W$2/W$8 -> 7.768258773 | X40: =[4]Gaspreise!Z35*'DCF (2012)'!$C$20*X$2/X$8 -> 8.212275547 | Y40: =[4]Gaspreise!AA35*'DCF (2012)'!$C$20*Y$2/Y$8 -> 8.336062582 | Z40: =[4]Gaspreise!AB35*'DCF (2012)'!$C$20*Z$2/Z$8 -> 8.466598036 | AA40: =[4]Gaspreise!AC35*'DCF (2012)'!$C$20*AA$2/AA$8 -> 8.660177467 | AB40: =[4]Gaspreise!AD35*'DCF (2012)'!$C$20*AB$2/AB$8 -> 8.795489427
A41: 33 | E41: =[4]Gaspreise!G36*'DCF (2012)'!$C$20 -> 6.588888889 | F41: =[4]Gaspreise!H36*'DCF (2012)'!$C$20 -> 6.281360217 | G41: =[4]Gaspreise!I36*'DCF (2012)'!$C$20*G$2/G$8 -> 5.220105304 | H41: =[4]Gaspreise!J36*'DCF (2012)'!$C$20*H$2/H$8 -> 6.202319891 | I41: =[4]Gaspreise!K36*'DCF (2012)'!$C$20*I$2/I$8 -> 6.809166618 | J41: =[4]Gaspreise!L36*'DCF (2012)'!$C$20*J$2/J$8 -> 6.754677262 | K41: =[4]Gaspreise!M36*'DCF (2012)'!$C$20*K$2/K$8 -> 6.890512365 | L41: =[4]Gaspreise!N36*'DCF (2012)'!$C$20*L$2/L$8 -> 6.489409112 | M41: =[4]Gaspreise!O36*'DCF (2012)'!$C$20*M$2/M$8 -> 6.606810926 | N41: =[4]Gaspreise!P36*'DCF (2012)'!$C$20*N$2/N$8 -> 6.288201763 | O41: =[4]Gaspreise!Q36*'DCF (2012)'!$C$20*O$2/O$8 -> 6.447737347 | P41: =[4]Gaspreise!R36*'DCF (2012)'!$C$20*P$2/P$8 -> 6.276934525 | Q41: =[4]Gaspreise!S36*'DCF (2012)'!$C$20*Q$2/Q$8 -> 6.105908639 | R41: =[4]Gaspreise!T36*'DCF (2012)'!$C$20*R$2/R$8 -> 6.336130855 | S41: =[4]Gaspreise!U36*'DCF (2012)'!$C$20*S$2/S$8 -> 5.885028441 | T41: =[4]Gaspreise!V36*'DCF (2012)'!$C$20*T$2/T$8 -> 6.338804246 | U41: =[4]Gaspreise!W36*'DCF (2012)'!$C$20*U$2/U$8 -> 6.257592471 | V41: =[4]Gaspreise!X36*'DCF (2012)'!$C$20*V$2/V$8 -> 6.814267293 | W41: =[4]Gaspreise!Y36*'DCF (2012)'!$C$20*W$2/W$8 -> 7.768258773 | X41: =[4]Gaspreise!Z36*'DCF (2012)'!$C$20*X$2/X$8 -> 8.212275547 | Y41: =[4]Gaspreise!AA36*'DCF (2012)'!$C$20*Y$2/Y$8 -> 8.336062582 | Z41: =[4]Gaspreise!AB36*'DCF (2012)'!$C$20*Z$2/Z$8 -> 8.466598036 | AA41: =[4]Gaspreise!AC36*'DCF (2012)'!$C$20*AA$2/AA$8 -> 8.660177467 | AB41: =[4]Gaspreise!AD36*'DCF (2012)'!$C$20*AB$2/AB$8 -> 8.795489427
A42: 34 | E42: =[4]Gaspreise!G37*'DCF (2012)'!$C$20 -> 6.588888889 | F42: =[4]Gaspreise!H37*'DCF (2012)'!$C$20 -> 6.281360217 | G42: =[4]Gaspreise!I37*'DCF (2012)'!$C$20*G$2/G$8 -> 5.220105304 | H42: =[4]Gaspreise!J37*'DCF (2012)'!$C$20*H$2/H$8 -> 6.202319891 | I42: =[4]Gaspreise!K37*'DCF (2012)'!$C$20*I$2/I$8 -> 6.809166618 | J42: =[4]Gaspreise!L37*'DCF (2012)'!$C$20*J$2/J$8 -> 6.754677262 | K42: =[4]Gaspreise!M37*'DCF (2012)'!$C$20*K$2/K$8 -> 6.890512365 | L42: =[4]Gaspreise!N37*'DCF (2012)'!$C$20*L$2/L$8 -> 6.489409112 | M42: =[4]Gaspreise!O37*'DCF (2012)'!$C$20*M$2/M$8 -> 6.606810926 | N42: =[4]Gaspreise!P37*'DCF (2012)'!$C$20*N$2/N$8 -> 6.288201763 | O42: =[4]Gaspreise!Q37*'DCF (2012)'!$C$20*O$2/O$8 -> 6.447737347 | P42: =[4]Gaspreise!R37*'DCF (2012)'!$C$20*P$2/P$8 -> 6.276934525 | Q42: =[4]Gaspreise!S37*'DCF (2012)'!$C$20*Q$2/Q$8 -> 6.105908639 | R42: =[4]Gaspreise!T37*'DCF (2012)'!$C$20*R$2/R$8 -> 6.336130855 | S42: =[4]Gaspreise!U37*'DCF (2012)'!$C$20*S$2/S$8 -> 5.885028441 | T42: =[4]Gaspreise!V37*'DCF (2012)'!$C$20*T$2/T$8 -> 6.338804246 | U42: =[4]Gaspreise!W37*'DCF (2012)'!$C$20*U$2/U$8 -> 6.257592471 | V42: =[4]Gaspreise!X37*'DCF (2012)'!$C$20*V$2/V$8 -> 6.814267293 | W42: =[4]Gaspreise!Y37*'DCF (2012)'!$C$20*W$2/W$8 -> 7.768258773 | X42: =[4]Gaspreise!Z37*'DCF (2012)'!$C$20*X$2/X$8 -> 8.212275547 | Y42: =[4]Gaspreise!AA37*'DCF (2012)'!$C$20*Y$2/Y$8 -> 8.336062582 | Z42: =[4]Gaspreise!AB37*'DCF (2012)'!$C$20*Z$2/Z$8 -> 8.466598036 | AA42: =[4]Gaspreise!AC37*'DCF (2012)'!$C$20*AA$2/AA$8 -> 8.660177467 | AB42: =[4]Gaspreise!AD37*'DCF (2012)'!$C$20*AB$2/AB$8 -> 8.795489427
A43: 35 | E43: =[4]Gaspreise!G38*'DCF (2012)'!$C$20 -> 6.308333333 | F43: =[4]Gaspreise!H38*'DCF (2012)'!$C$20 -> 5.887547786 | G43: =[4]Gaspreise!I38*'DCF (2012)'!$C$20*G$2/G$8 -> 4.933221002 | H43: =[4]Gaspreise!J38*'DCF (2012)'!$C$20*H$2/H$8 -> 5.813399568 | I43: =[4]Gaspreise!K38*'DCF (2012)'!$C$20*I$2/I$8 -> 6.084347263 | J43: =[4]Gaspreise!L38*'DCF (2012)'!$C$20*J$2/J$8 -> 5.93985837 | K43: =[4]Gaspreise!M38*'DCF (2012)'!$C$20*K$2/K$8 -> 5.656048875 | L43: =[4]Gaspreise!N38*'DCF (2012)'!$C$20*L$2/L$8 -> 5.556729862 | M43: =[4]Gaspreise!O38*'DCF (2012)'!$C$20*M$2/M$8 -> 5.38811755 | N43: =[4]Gaspreise!P38*'DCF (2012)'!$C$20*N$2/N$8 -> 5.383577049 | O43: =[4]Gaspreise!Q38*'DCF (2012)'!$C$20*O$2/O$8 -> 5.289494965 | P43: =[4]Gaspreise!R38*'DCF (2012)'!$C$20*P$2/P$8 -> 5.456951315 | Q43: =[4]Gaspreise!S38*'DCF (2012)'!$C$20*Q$2/Q$8 -> 5.485688495 | R43: =[4]Gaspreise!T38*'DCF (2012)'!$C$20*R$2/R$8 -> 5.056290904 | S43: =[4]Gaspreise!U38*'DCF (2012)'!$C$20*S$2/S$8 -> 4.833451298 | T43: =[4]Gaspreise!V38*'DCF (2012)'!$C$20*T$2/T$8 -> 4.783791252 | U43: =[4]Gaspreise!W38*'DCF (2012)'!$C$20*U$2/U$8 -> 5.374538084 | V43: =[4]Gaspreise!X38*'DCF (2012)'!$C$20*V$2/V$8 -> 5.954963181 | W43: =[4]Gaspreise!Y38*'DCF (2012)'!$C$20*W$2/W$8 -> 6.345976671 | X43: =[4]Gaspreise!Z38*'DCF (2012)'!$C$20*X$2/X$8 -> 6.781278085 | Y43: =[4]Gaspreise!AA38*'DCF (2012)'!$C$20*Y$2/Y$8 -> 6.915808648 | Z43: =[4]Gaspreise!AB38*'DCF (2012)'!$C$20*Z$2/Z$8 -> 7.056739117 | AA43: =[4]Gaspreise!AC38*'DCF (2012)'!$C$20*AA$2/AA$8 -> 7.250392836 | AB43: =[4]Gaspreise!AD38*'DCF (2012)'!$C$20*AB$2/AB$8 -> 7.392688672
A44: 36 | E44: =[4]Gaspreise!G39*'DCF (2012)'!$C$20 -> 6.308333333 | F44: =[4]Gaspreise!H39*'DCF (2012)'!$C$20 -> 5.887547786 | G44: =[4]Gaspreise!I39*'DCF (2012)'!$C$20*G$2/G$8 -> 4.933221002 | H44: =[4]Gaspreise!J39*'DCF (2012)'!$C$20*H$2/H$8 -> 5.813399568 | I44: =[4]Gaspreise!K39*'DCF (2012)'!$C$20*I$2/I$8 -> 6.084347263 | J44: =[4]Gaspreise!L39*'DCF (2012)'!$C$20*J$2/J$8 -> 5.93985837 | K44: =[4]Gaspreise!M39*'DCF (2012)'!$C$20*K$2/K$8 -> 5.656048875 | L44: =[4]Gaspreise!N39*'DCF (2012)'!$C$20*L$2/L$8 -> 5.556729862 | M44: =[4]Gaspreise!O39*'DCF (2012)'!$C$20*M$2/M$8 -> 5.38811755 | N44: =[4]Gaspreise!P39*'DCF (2012)'!$C$20*N$2/N$8 -> 5.383577049 | O44: =[4]Gaspreise!Q39*'DCF (2012)'!$C$20*O$2/O$8 -> 5.289494965 | P44: =[4]Gaspreise!R39*'DCF (2012)'!$C$20*P$2/P$8 -> 5.456951315 | Q44: =[4]Gaspreise!S39*'DCF (2012)'!$C$20*Q$2/Q$8 -> 5.485688495 | R44: =[4]Gaspreise!T39*'DCF (2012)'!$C$20*R$2/R$8 -> 5.056290904 | S44: =[4]Gaspreise!U39*'DCF (2012)'!$C$20*S$2/S$8 -> 4.833451298 | T44: =[4]Gaspreise!V39*'DCF (2012)'!$C$20*T$2/T$8 -> 4.783791252 | U44: =[4]Gaspreise!W39*'DCF (2012)'!$C$20*U$2/U$8 -> 5.374538084 | V44: =[4]Gaspreise!X39*'DCF (2012)'!$C$20*V$2/V$8 -> 5.954963181 | W44: =[4]Gaspreise!Y39*'DCF (2012)'!$C$20*W$2/W$8 -> 6.345976671 | X44: =[4]Gaspreise!Z39*'DCF (2012)'!$C$20*X$2/X$8 -> 6.781278085 | Y44: =[4]Gaspreise!AA39*'DCF (2012)'!$C$20*Y$2/Y$8 -> 6.915808648 | Z44: =[4]Gaspreise!AB39*'DCF (2012)'!$C$20*Z$2/Z$8 -> 7.056739117 | AA44: =[4]Gaspreise!AC39*'DCF (2012)'!$C$20*AA$2/AA$8 -> 7.250392836 | AB44: =[4]Gaspreise!AD39*'DCF (2012)'!$C$20*AB$2/AB$8 -> 7.392688672
A45: 37 | E45: =[4]Gaspreise!G40*'DCF (2012)'!$C$20 -> 6.308333333 | F45: =[4]Gaspreise!H40*'DCF (2012)'!$C$20 -> 5.887547786 | G45: =[4]Gaspreise!I40*'DCF (2012)'!$C$20*G$2/G$8 -> 4.933221002 | H45: =[4]Gaspreise!J40*'DCF (2012)'!$C$20*H$2/H$8 -> 5.813399568 | I45: =[4]Gaspreise!K40*'DCF (2012)'!$C$20*I$2/I$8 -> 6.084347263 | J45: =[4]Gaspreise!L40*'DCF (2012)'!$C$20*J$2/J$8 -> 5.93985837 | K45: =[4]Gaspreise!M40*'DCF (2012)'!$C$20*K$2/K$8 -> 5.656048875 | L45: =[4]Gaspreise!N40*'DCF (2012)'!$C$20*L$2/L$8 -> 5.556729862 | M45: =[4]Gaspreise!O40*'DCF (2012)'!$C$20*M$2/M$8 -> 5.38811755 | N45: =[4]Gaspreise!P40*'DCF (2012)'!$C$20*N$2/N$8 -> 5.383577049 | O45: =[4]Gaspreise!Q40*'DCF (2012)'!$C$20*O$2/O$8 -> 5.289494965 | P45: =[4]Gaspreise!R40*'DCF (2012)'!$C$20*P$2/P$8 -> 5.456951315 | Q45: =[4]Gaspreise!S40*'DCF (2012)'!$C$20*Q$2/Q$8 -> 5.485688495 | R45: =[4]Gaspreise!T40*'DCF (2012)'!$C$20*R$2/R$8 -> 5.056290904 | S45: =[4]Gaspreise!U40*'DCF (2012)'!$C$20*S$2/S$8 -> 4.833451298 | T45: =[4]Gaspreise!V40*'DCF (2012)'!$C$20*T$2/T$8 -> 4.783791252 | U45: =[4]Gaspreise!W40*'DCF (2012)'!$C$20*U$2/U$8 -> 5.374538084 | V45: =[4]Gaspreise!X40*'DCF (2012)'!$C$20*V$2/V$8 -> 5.954963181 | W45: =[4]Gaspreise!Y40*'DCF (2012)'!$C$20*W$2/W$8 -> 6.345976671 | X45: =[4]Gaspreise!Z40*'DCF (2012)'!$C$20*X$2/X$8 -> 6.781278085 | Y45: =[4]Gaspreise!AA40*'DCF (2012)'!$C$20*Y$2/Y$8 -> 6.915808648 | Z45: =[4]Gaspreise!AB40*'DCF (2012)'!$C$20*Z$2/Z$8 -> 7.056739117 | AA45: =[4]Gaspreise!AC40*'DCF (2012)'!$C$20*AA$2/AA$8 -> 7.250392836 | AB45: =[4]Gaspreise!AD40*'DCF (2012)'!$C$20*AB$2/AB$8 -> 7.392688672
A46: 38 | E46: =[4]Gaspreise!G41*'DCF (2012)'!$C$20 -> 6.308333333 | F46: =[4]Gaspreise!H41*'DCF (2012)'!$C$20 -> 5.887547786 | G46: =[4]Gaspreise!I41*'DCF (2012)'!$C$20*G$2/G$8 -> 4.933221002 | H46: =[4]Gaspreise!J41*'DCF (2012)'!$C$20*H$2/H$8 -> 5.813399568 | I46: =[4]Gaspreise!K41*'DCF (2012)'!$C$20*I$2/I$8 -> 6.084347263 | J46: =[4]Gaspreise!L41*'DCF (2012)'!$C$20*J$2/J$8 -> 5.93985837 | K46: =[4]Gaspreise!M41*'DCF (2012)'!$C$20*K$2/K$8 -> 5.656048875 | L46: =[4]Gaspreise!N41*'DCF (2012)'!$C$20*L$2/L$8 -> 5.556729862 | M46: =[4]Gaspreise!O41*'DCF (2012)'!$C$20*M$2/M$8 -> 5.38811755 | N46: =[4]Gaspreise!P41*'DCF (2012)'!$C$20*N$2/N$8 -> 5.383577049 | O46: =[4]Gaspreise!Q41*'DCF (2012)'!$C$20*O$2/O$8 -> 5.289494965 | P46: =[4]Gaspreise!R41*'DCF (2012)'!$C$20*P$2/P$8 -> 5.456951315 | Q46: =[4]Gaspreise!S41*'DCF (2012)'!$C$20*Q$2/Q$8 -> 5.485688495 | R46: =[4]Gaspreise!T41*'DCF (2012)'!$C$20*R$2/R$8 -> 5.056290904 | S46: =[4]Gaspreise!U41*'DCF (2012)'!$C$20*S$2/S$8 -> 4.833451298 | T46: =[4]Gaspreise!V41*'DCF (2012)'!$C$20*T$2/T$8 -> 4.783791252 | U46: =[4]Gaspreise!W41*'DCF (2012)'!$C$20*U$2/U$8 -> 5.374538084 | V46: =[4]Gaspreise!X41*'DCF (2012)'!$C$20*V$2/V$8 -> 5.954963181 | W46: =[4]Gaspreise!Y41*'DCF (2012)'!$C$20*W$2/W$8 -> 6.345976671 | X46: =[4]Gaspreise!Z41*'DCF (2012)'!$C$20*X$2/X$8 -> 6.781278085 | Y46: =[4]Gaspreise!AA41*'DCF (2012)'!$C$20*Y$2/Y$8 -> 6.915808648 | Z46: =[4]Gaspreise!AB41*'DCF (2012)'!$C$20*Z$2/Z$8 -> 7.056739117 | AA46: =[4]Gaspreise!AC41*'DCF (2012)'!$C$20*AA$2/AA$8 -> 7.250392836 | AB46: =[4]Gaspreise!AD41*'DCF (2012)'!$C$20*AB$2/AB$8 -> 7.392688672
A47: 39 | E47: =[4]Gaspreise!G42*'DCF (2012)'!$C$20 -> 6.308333333 | F47: =[4]Gaspreise!H42*'DCF (2012)'!$C$20 -> 5.887547786 | G47: =[4]Gaspreise!I42*'DCF (2012)'!$C$20*G$2/G$8 -> 4.933221002 | H47: =[4]Gaspreise!J42*'DCF (2012)'!$C$20*H$2/H$8 -> 5.813399568 | I47: =[4]Gaspreise!K42*'DCF (2012)'!$C$20*I$2/I$8 -> 6.084347263 | J47: =[4]Gaspreise!L42*'DCF (2012)'!$C$20*J$2/J$8 -> 5.93985837 | K47: =[4]Gaspreise!M42*'DCF (2012)'!$C$20*K$2/K$8 -> 5.656048875 | L47: =[4]Gaspreise!N42*'DCF (2012)'!$C$20*L$2/L$8 -> 5.556729862 | M47: =[4]Gaspreise!O42*'DCF (2012)'!$C$20*M$2/M$8 -> 5.38811755 | N47: =[4]Gaspreise!P42*'DCF (2012)'!$C$20*N$2/N$8 -> 5.383577049 | O47: =[4]Gaspreise!Q42*'DCF (2012)'!$C$20*O$2/O$8 -> 5.289494965 | P47: =[4]Gaspreise!R42*'DCF (2012)'!$C$20*P$2/P$8 -> 5.456951315 | Q47: =[4]Gaspreise!S42*'DCF (2012)'!$C$20*Q$2/Q$8 -> 5.485688495 | R47: =[4]Gaspreise!T42*'DCF (2012)'!$C$20*R$2/R$8 -> 5.056290904 | S47: =[4]Gaspreise!U42*'DCF (2012)'!$C$20*S$2/S$8 -> 4.833451298 | T47: =[4]Gaspreise!V42*'DCF (2012)'!$C$20*T$2/T$8 -> 4.783791252 | U47: =[4]Gaspreise!W42*'DCF (2012)'!$C$20*U$2/U$8 -> 5.374538084 | V47: =[4]Gaspreise!X42*'DCF (2012)'!$C$20*V$2/V$8 -> 5.954963181 | W47: =[4]Gaspreise!Y42*'DCF (2012)'!$C$20*W$2/W$8 -> 6.345976671 | X47: =[4]Gaspreise!Z42*'DCF (2012)'!$C$20*X$2/X$8 -> 6.781278085 | Y47: =[4]Gaspreise!AA42*'DCF (2012)'!$C$20*Y$2/Y$8 -> 6.915808648 | Z47: =[4]Gaspreise!AB42*'DCF (2012)'!$C$20*Z$2/Z$8 -> 7.056739117 | AA47: =[4]Gaspreise!AC42*'DCF (2012)'!$C$20*AA$2/AA$8 -> 7.250392836 | AB47: =[4]Gaspreise!AD42*'DCF (2012)'!$C$20*AB$2/AB$8 -> 7.392688672
A48: 40 | E48: =[4]Gaspreise!G43*'DCF (2012)'!$C$20 -> 6.308333333 | F48: =[4]Gaspreise!H43*'DCF (2012)'!$C$20 -> 5.887547786 | G48: =[4]Gaspreise!I43*'DCF (2012)'!$C$20*G$2/G$8 -> 4.933221002 | H48: =[4]Gaspreise!J43*'DCF (2012)'!$C$20*H$2/H$8 -> 5.813399568 | I48: =[4]Gaspreise!K43*'DCF (2012)'!$C$20*I$2/I$8 -> 6.084347263 | J48: =[4]Gaspreise!L43*'DCF (2012)'!$C$20*J$2/J$8 -> 5.93985837 | K48: =[4]Gaspreise!M43*'DCF (2012)'!$C$20*K$2/K$8 -> 5.656048875 | L48: =[4]Gaspreise!N43*'DCF (2012)'!$C$20*L$2/L$8 -> 5.556729862 | M48: =[4]Gaspreise!O43*'DCF (2012)'!$C$20*M$2/M$8 -> 5.38811755 | N48: =[4]Gaspreise!P43*'DCF (2012)'!$C$20*N$2/N$8 -> 5.383577049 | O48: =[4]Gaspreise!Q43*'DCF (2012)'!$C$20*O$2/O$8 -> 5.289494965 | P48: =[4]Gaspreise!R43*'DCF (2012)'!$C$20*P$2/P$8 -> 5.456951315 | Q48: =[4]Gaspreise!S43*'DCF (2012)'!$C$20*Q$2/Q$8 -> 5.485688495 | R48: =[4]Gaspreise!T43*'DCF (2012)'!$C$20*R$2/R$8 -> 5.056290904 | S48: =[4]Gaspreise!U43*'DCF (2012)'!$C$20*S$2/S$8 -> 4.833451298 | T48: =[4]Gaspreise!V43*'DCF (2012)'!$C$20*T$2/T$8 -> 4.783791252 | U48: =[4]Gaspreise!W43*'DCF (2012)'!$C$20*U$2/U$8 -> 5.374538084 | V48: =[4]Gaspreise!X43*'DCF (2012)'!$C$20*V$2/V$8 -> 5.954963181 | W48: =[4]Gaspreise!Y43*'DCF (2012)'!$C$20*W$2/W$8 -> 6.345976671 | X48: =[4]Gaspreise!Z43*'DCF (2012)'!$C$20*X$2/X$8 -> 6.781278085 | Y48: =[4]Gaspreise!AA43*'DCF (2012)'!$C$20*Y$2/Y$8 -> 6.915808648 | Z48: =[4]Gaspreise!AB43*'DCF (2012)'!$C$20*Z$2/Z$8 -> 7.056739117 | AA48: =[4]Gaspreise!AC43*'DCF (2012)'!$C$20*AA$2/AA$8 -> 7.250392836 | AB48: =[4]Gaspreise!AD43*'DCF (2012)'!$C$20*AB$2/AB$8 -> 7.392688672
A49: 41 | E49: =[4]Gaspreise!G44*'DCF (2012)'!$C$20 -> 6.308333333 | F49: =[4]Gaspreise!H44*'DCF (2012)'!$C$20 -> 5.887547786 | G49: =[4]Gaspreise!I44*'DCF (2012)'!$C$20*G$2/G$8 -> 4.933221002 | H49: =[4]Gaspreise!J44*'DCF (2012)'!$C$20*H$2/H$8 -> 5.813399568 | I49: =[4]Gaspreise!K44*'DCF (2012)'!$C$20*I$2/I$8 -> 6.084347263 | J49: =[4]Gaspreise!L44*'DCF (2012)'!$C$20*J$2/J$8 -> 5.93985837 | K49: =[4]Gaspreise!M44*'DCF (2012)'!$C$20*K$2/K$8 -> 5.656048875 | L49: =[4]Gaspreise!N44*'DCF (2012)'!$C$20*L$2/L$8 -> 5.556729862 | M49: =[4]Gaspreise!O44*'DCF (2012)'!$C$20*M$2/M$8 -> 5.38811755 | N49: =[4]Gaspreise!P44*'DCF (2012)'!$C$20*N$2/N$8 -> 5.383577049 | O49: =[4]Gaspreise!Q44*'DCF (2012)'!$C$20*O$2/O$8 -> 5.289494965 | P49: =[4]Gaspreise!R44*'DCF (2012)'!$C$20*P$2/P$8 -> 5.456951315 | Q49: =[4]Gaspreise!S44*'DCF (2012)'!$C$20*Q$2/Q$8 -> 5.485688495 | R49: =[4]Gaspreise!T44*'DCF (2012)'!$C$20*R$2/R$8 -> 5.056290904 | S49: =[4]Gaspreise!U44*'DCF (2012)'!$C$20*S$2/S$8 -> 4.833451298 | T49: =[4]Gaspreise!V44*'DCF (2012)'!$C$20*T$2/T$8 -> 4.783791252 | U49: =[4]Gaspreise!W44*'DCF (2012)'!$C$20*U$2/U$8 -> 5.374538084 | V49: =[4]Gaspreise!X44*'DCF (2012)'!$C$20*V$2/V$8 -> 5.954963181 | W49: =[4]Gaspreise!Y44*'DCF (2012)'!$C$20*W$2/W$8 -> 6.345976671 | X49: =[4]Gaspreise!Z44*'DCF (2012)'!$C$20*X$2/X$8 -> 6.781278085 | Y49: =[4]Gaspreise!AA44*'DCF (2012)'!$C$20*Y$2/Y$8 -> 6.915808648 | Z49: =[4]Gaspreise!AB44*'DCF (2012)'!$C$20*Z$2/Z$8 -> 7.056739117 | AA49: =[4]Gaspreise!AC44*'DCF (2012)'!$C$20*AA$2/AA$8 -> 7.250392836 | AB49: =[4]Gaspreise!AD44*'DCF (2012)'!$C$20*AB$2/AB$8 -> 7.392688672
A50: 42 | E50: =[4]Gaspreise!G45*'DCF (2012)'!$C$20 -> 6.308333333 | F50: =[4]Gaspreise!H45*'DCF (2012)'!$C$20 -> 5.887547786 | G50: =[4]Gaspreise!I45*'DCF (2012)'!$C$20*G$2/G$8 -> 4.933221002 | H50: =[4]Gaspreise!J45*'DCF (2012)'!$C$20*H$2/H$8 -> 5.813399568 | I50: =[4]Gaspreise!K45*'DCF (2012)'!$C$20*I$2/I$8 -> 6.084347263 | J50: =[4]Gaspreise!L45*'DCF (2012)'!$C$20*J$2/J$8 -> 5.93985837 | K50: =[4]Gaspreise!M45*'DCF (2012)'!$C$20*K$2/K$8 -> 5.656048875 | L50: =[4]Gaspreise!N45*'DCF (2012)'!$C$20*L$2/L$8 -> 5.556729862 | M50: =[4]Gaspreise!O45*'DCF (2012)'!$C$20*M$2/M$8 -> 5.38811755 | N50: =[4]Gaspreise!P45*'DCF (2012)'!$C$20*N$2/N$8 -> 5.383577049 | O50: =[4]Gaspreise!Q45*'DCF (2012)'!$C$20*O$2/O$8 -> 5.289494965 | P50: =[4]Gaspreise!R45*'DCF (2012)'!$C$20*P$2/P$8 -> 5.456951315 | Q50: =[4]Gaspreise!S45*'DCF (2012)'!$C$20*Q$2/Q$8 -> 5.485688495 | R50: =[4]Gaspreise!T45*'DCF (2012)'!$C$20*R$2/R$8 -> 5.056290904 | S50: =[4]Gaspreise!U45*'DCF (2012)'!$C$20*S$2/S$8 -> 4.833451298 | T50: =[4]Gaspreise!V45*'DCF (2012)'!$C$20*T$2/T$8 -> 4.783791252 | U50: =[4]Gaspreise!W45*'DCF (2012)'!$C$20*U$2/U$8 -> 5.374538084 | V50: =[4]Gaspreise!X45*'DCF (2012)'!$C$20*V$2/V$8 -> 5.954963181 | W50: =[4]Gaspreise!Y45*'DCF (2012)'!$C$20*W$2/W$8 -> 6.345976671 | X50: =[4]Gaspreise!Z45*'DCF (2012)'!$C$20*X$2/X$8 -> 6.781278085 | Y50: =[4]Gaspreise!AA45*'DCF (2012)'!$C$20*Y$2/Y$8 -> 6.915808648 | Z50: =[4]Gaspreise!AB45*'DCF (2012)'!$C$20*Z$2/Z$8 -> 7.056739117 | AA50: =[4]Gaspreise!AC45*'DCF (2012)'!$C$20*AA$2/AA$8 -> 7.250392836 | AB50: =[4]Gaspreise!AD45*'DCF (2012)'!$C$20*AB$2/AB$8 -> 7.392688672
A51: 43 | E51: =[4]Gaspreise!G46*'DCF (2012)'!$C$20 -> 6.308333333 | F51: =[4]Gaspreise!H46*'DCF (2012)'!$C$20 -> 5.887547786 | G51: =[4]Gaspreise!I46*'DCF (2012)'!$C$20*G$2/G$8 -> 4.933221002 | H51: =[4]Gaspreise!J46*'DCF (2012)'!$C$20*H$2/H$8 -> 5.813399568 | I51: =[4]Gaspreise!K46*'DCF (2012)'!$C$20*I$2/I$8 -> 6.084347263 | J51: =[4]Gaspreise!L46*'DCF (2012)'!$C$20*J$2/J$8 -> 5.93985837 | K51: =[4]Gaspreise!M46*'DCF (2012)'!$C$20*K$2/K$8 -> 5.656048875 | L51: =[4]Gaspreise!N46*'DCF (2012)'!$C$20*L$2/L$8 -> 5.556729862 | M51: =[4]Gaspreise!O46*'DCF (2012)'!$C$20*M$2/M$8 -> 5.38811755 | N51: =[4]Gaspreise!P46*'DCF (2012)'!$C$20*N$2/N$8 -> 5.383577049 | O51: =[4]Gaspreise!Q46*'DCF (2012)'!$C$20*O$2/O$8 -> 5.289494965 | P51: =[4]Gaspreise!R46*'DCF (2012)'!$C$20*P$2/P$8 -> 5.456951315 | Q51: =[4]Gaspreise!S46*'DCF (2012)'!$C$20*Q$2/Q$8 -> 5.485688495 | R51: =[4]Gaspreise!T46*'DCF (2012)'!$C$20*R$2/R$8 -> 5.056290904 | S51: =[4]Gaspreise!U46*'DCF (2012)'!$C$20*S$2/S$8 -> 4.833451298 | T51: =[4]Gaspreise!V46*'DCF (2012)'!$C$20*T$2/T$8 -> 4.783791252 | U51: =[4]Gaspreise!W46*'DCF (2012)'!$C$20*U$2/U$8 -> 5.374538084 | V51: =[4]Gaspreise!X46*'DCF (2012)'!$C$20*V$2/V$8 -> 5.954963181 | W51: =[4]Gaspreise!Y46*'DCF (2012)'!$C$20*W$2/W$8 -> 6.345976671 | X51: =[4]Gaspreise!Z46*'DCF (2012)'!$C$20*X$2/X$8 -> 6.781278085 | Y51: =[4]Gaspreise!AA46*'DCF (2012)'!$C$20*Y$2/Y$8 -> 6.915808648 | Z51: =[4]Gaspreise!AB46*'DCF (2012)'!$C$20*Z$2/Z$8 -> 7.056739117 | AA51: =[4]Gaspreise!AC46*'DCF (2012)'!$C$20*AA$2/AA$8 -> 7.250392836 | AB51: =[4]Gaspreise!AD46*'DCF (2012)'!$C$20*AB$2/AB$8 -> 7.392688672
A52: 44 | E52: =[4]Gaspreise!G47*'DCF (2012)'!$C$20 -> 6.308333333 | F52: =[4]Gaspreise!H47*'DCF (2012)'!$C$20 -> 5.887547786 | G52: =[4]Gaspreise!I47*'DCF (2012)'!$C$20*G$2/G$8 -> 4.933221002 | H52: =[4]Gaspreise!J47*'DCF (2012)'!$C$20*H$2/H$8 -> 5.813399568 | I52: =[4]Gaspreise!K47*'DCF (2012)'!$C$20*I$2/I$8 -> 6.084347263 | J52: =[4]Gaspreise!L47*'DCF (2012)'!$C$20*J$2/J$8 -> 5.93985837 | K52: =[4]Gaspreise!M47*'DCF (2012)'!$C$20*K$2/K$8 -> 5.656048875 | L52: =[4]Gaspreise!N47*'DCF (2012)'!$C$20*L$2/L$8 -> 5.556729862 | M52: =[4]Gaspreise!O47*'DCF (2012)'!$C$20*M$2/M$8 -> 5.38811755 | N52: =[4]Gaspreise!P47*'DCF (2012)'!$C$20*N$2/N$8 -> 5.383577049 | O52: =[4]Gaspreise!Q47*'DCF (2012)'!$C$20*O$2/O$8 -> 5.289494965 | P52: =[4]Gaspreise!R47*'DCF (2012)'!$C$20*P$2/P$8 -> 5.456951315 | Q52: =[4]Gaspreise!S47*'DCF (2012)'!$C$20*Q$2/Q$8 -> 5.485688495 | R52: =[4]Gaspreise!T47*'DCF (2012)'!$C$20*R$2/R$8 -> 5.056290904 | S52: =[4]Gaspreise!U47*'DCF (2012)'!$C$20*S$2/S$8 -> 4.833451298 | T52: =[4]Gaspreise!V47*'DCF (2012)'!$C$20*T$2/T$8 -> 4.783791252 | U52: =[4]Gaspreise!W47*'DCF (2012)'!$C$20*U$2/U$8 -> 5.374538084 | V52: =[4]Gaspreise!X47*'DCF (2012)'!$C$20*V$2/V$8 -> 5.954963181 | W52: =[4]Gaspreise!Y47*'DCF (2012)'!$C$20*W$2/W$8 -> 6.345976671 | X52: =[4]Gaspreise!Z47*'DCF (2012)'!$C$20*X$2/X$8 -> 6.781278085 | Y52: =[4]Gaspreise!AA47*'DCF (2012)'!$C$20*Y$2/Y$8 -> 6.915808648 | Z52: =[4]Gaspreise!AB47*'DCF (2012)'!$C$20*Z$2/Z$8 -> 7.056739117 | AA52: =[4]Gaspreise!AC47*'DCF (2012)'!$C$20*AA$2/AA$8 -> 7.250392836 | AB52: =[4]Gaspreise!AD47*'DCF (2012)'!$C$20*AB$2/AB$8 -> 7.392688672
A53: 45 | E53: =[4]Gaspreise!G48*'DCF (2012)'!$C$20 -> 6.308333333 | F53: =[4]Gaspreise!H48*'DCF (2012)'!$C$20 -> 5.887547786 | G53: =[4]Gaspreise!I48*'DCF (2012)'!$C$20*G$2/G$8 -> 4.933221002 | H53: =[4]Gaspreise!J48*'DCF (2012)'!$C$20*H$2/H$8 -> 5.813399568 | I53: =[4]Gaspreise!K48*'DCF (2012)'!$C$20*I$2/I$8 -> 6.084347263 | J53: =[4]Gaspreise!L48*'DCF (2012)'!$C$20*J$2/J$8 -> 5.93985837 | K53: =[4]Gaspreise!M48*'DCF (2012)'!$C$20*K$2/K$8 -> 5.656048875 | L53: =[4]Gaspreise!N48*'DCF (2012)'!$C$20*L$2/L$8 -> 5.556729862 | M53: =[4]Gaspreise!O48*'DCF (2012)'!$C$20*M$2/M$8 -> 5.38811755 | N53: =[4]Gaspreise!P48*'DCF (2012)'!$C$20*N$2/N$8 -> 5.383577049 | O53: =[4]Gaspreise!Q48*'DCF (2012)'!$C$20*O$2/O$8 -> 5.289494965 | P53: =[4]Gaspreise!R48*'DCF (2012)'!$C$20*P$2/P$8 -> 5.456951315 | Q53: =[4]Gaspreise!S48*'DCF (2012)'!$C$20*Q$2/Q$8 -> 5.485688495 | R53: =[4]Gaspreise!T48*'DCF (2012)'!$C$20*R$2/R$8 -> 5.056290904 | S53: =[4]Gaspreise!U48*'DCF (2012)'!$C$20*S$2/S$8 -> 4.833451298 | T53: =[4]Gaspreise!V48*'DCF (2012)'!$C$20*T$2/T$8 -> 4.783791252 | U53: =[4]Gaspreise!W48*'DCF (2012)'!$C$20*U$2/U$8 -> 5.374538084 | V53: =[4]Gaspreise!X48*'DCF (2012)'!$C$20*V$2/V$8 -> 5.954963181 | W53: =[4]Gaspreise!Y48*'DCF (2012)'!$C$20*W$2/W$8 -> 6.345976671 | X53: =[4]Gaspreise!Z48*'DCF (2012)'!$C$20*X$2/X$8 -> 6.781278085 | Y53: =[4]Gaspreise!AA48*'DCF (2012)'!$C$20*Y$2/Y$8 -> 6.915808648 | Z53: =[4]Gaspreise!AB48*'DCF (2012)'!$C$20*Z$2/Z$8 -> 7.056739117 | AA53: =[4]Gaspreise!AC48*'DCF (2012)'!$C$20*AA$2/AA$8 -> 7.250392836 | AB53: =[4]Gaspreise!AD48*'DCF (2012)'!$C$20*AB$2/AB$8 -> 7.392688672
A54: 46 | E54: =[4]Gaspreise!G49*'DCF (2012)'!$C$20 -> 6.308333333 | F54: =[4]Gaspreise!H49*'DCF (2012)'!$C$20 -> 5.887547786 | G54: =[4]Gaspreise!I49*'DCF (2012)'!$C$20*G$2/G$8 -> 4.933221002 | H54: =[4]Gaspreise!J49*'DCF (2012)'!$C$20*H$2/H$8 -> 5.813399568 | I54: =[4]Gaspreise!K49*'DCF (2012)'!$C$20*I$2/I$8 -> 6.084347263 | J54: =[4]Gaspreise!L49*'DCF (2012)'!$C$20*J$2/J$8 -> 5.93985837 | K54: =[4]Gaspreise!M49*'DCF (2012)'!$C$20*K$2/K$8 -> 5.656048875 | L54: =[4]Gaspreise!N49*'DCF (2012)'!$C$20*L$2/L$8 -> 5.556729862 | M54: =[4]Gaspreise!O49*'DCF (2012)'!$C$20*M$2/M$8 -> 5.38811755 | N54: =[4]Gaspreise!P49*'DCF (2012)'!$C$20*N$2/N$8 -> 5.383577049 | O54: =[4]Gaspreise!Q49*'DCF (2012)'!$C$20*O$2/O$8 -> 5.289494965 | P54: =[4]Gaspreise!R49*'DCF (2012)'!$C$20*P$2/P$8 -> 5.456951315 | Q54: =[4]Gaspreise!S49*'DCF (2012)'!$C$20*Q$2/Q$8 -> 5.485688495 | R54: =[4]Gaspreise!T49*'DCF (2012)'!$C$20*R$2/R$8 -> 5.056290904 | S54: =[4]Gaspreise!U49*'DCF (2012)'!$C$20*S$2/S$8 -> 4.833451298 | T54: =[4]Gaspreise!V49*'DCF (2012)'!$C$20*T$2/T$8 -> 4.783791252 | U54: =[4]Gaspreise!W49*'DCF (2012)'!$C$20*U$2/U$8 -> 5.374538084 | V54: =[4]Gaspreise!X49*'DCF (2012)'!$C$20*V$2/V$8 -> 5.954963181 | W54: =[4]Gaspreise!Y49*'DCF (2012)'!$C$20*W$2/W$8 -> 6.345976671 | X54: =[4]Gaspreise!Z49*'DCF (2012)'!$C$20*X$2/X$8 -> 6.781278085 | Y54: =[4]Gaspreise!AA49*'DCF (2012)'!$C$20*Y$2/Y$8 -> 6.915808648 | Z54: =[4]Gaspreise!AB49*'DCF (2012)'!$C$20*Z$2/Z$8 -> 7.056739117 | AA54: =[4]Gaspreise!AC49*'DCF (2012)'!$C$20*AA$2/AA$8 -> 7.250392836 | AB54: =[4]Gaspreise!AD49*'DCF (2012)'!$C$20*AB$2/AB$8 -> 7.392688672
A55: 47 | E55: =[4]Gaspreise!G50*'DCF (2012)'!$C$20 -> 6.308333333 | F55: =[4]Gaspreise!H50*'DCF (2012)'!$C$20 -> 5.887547786 | G55: =[4]Gaspreise!I50*'DCF (2012)'!$C$20*G$2/G$8 -> 4.933221002 | H55: =[4]Gaspreise!J50*'DCF (2012)'!$C$20*H$2/H$8 -> 5.813399568 | I55: =[4]Gaspreise!K50*'DCF (2012)'!$C$20*I$2/I$8 -> 6.084347263 | J55: =[4]Gaspreise!L50*'DCF (2012)'!$C$20*J$2/J$8 -> 5.93985837 | K55: =[4]Gaspreise!M50*'DCF (2012)'!$C$20*K$2/K$8 -> 5.656048875 | L55: =[4]Gaspreise!N50*'DCF (2012)'!$C$20*L$2/L$8 -> 5.556729862 | M55: =[4]Gaspreise!O50*'DCF (2012)'!$C$20*M$2/M$8 -> 5.38811755 | N55: =[4]Gaspreise!P50*'DCF (2012)'!$C$20*N$2/N$8 -> 5.383577049 | O55: =[4]Gaspreise!Q50*'DCF (2012)'!$C$20*O$2/O$8 -> 5.289494965 | P55: =[4]Gaspreise!R50*'DCF (2012)'!$C$20*P$2/P$8 -> 5.456951315 | Q55: =[4]Gaspreise!S50*'DCF (2012)'!$C$20*Q$2/Q$8 -> 5.485688495 | R55: =[4]Gaspreise!T50*'DCF (2012)'!$C$20*R$2/R$8 -> 5.056290904 | S55: =[4]Gaspreise!U50*'DCF (2012)'!$C$20*S$2/S$8 -> 4.833451298 | T55: =[4]Gaspreise!V50*'DCF (2012)'!$C$20*T$2/T$8 -> 4.783791252 | U55: =[4]Gaspreise!W50*'DCF (2012)'!$C$20*U$2/U$8 -> 5.374538084 | V55: =[4]Gaspreise!X50*'DCF (2012)'!$C$20*V$2/V$8 -> 5.954963181 | W55: =[4]Gaspreise!Y50*'DCF (2012)'!$C$20*W$2/W$8 -> 6.345976671 | X55: =[4]Gaspreise!Z50*'DCF (2012)'!$C$20*X$2/X$8 -> 6.781278085 | Y55: =[4]Gaspreise!AA50*'DCF (2012)'!$C$20*Y$2/Y$8 -> 6.915808648 | Z55: =[4]Gaspreise!AB50*'DCF (2012)'!$C$20*Z$2/Z$8 -> 7.056739117 | AA55: =[4]Gaspreise!AC50*'DCF (2012)'!$C$20*AA$2/AA$8 -> 7.250392836 | AB55: =[4]Gaspreise!AD50*'DCF (2012)'!$C$20*AB$2/AB$8 -> 7.392688672
A56: 48 | E56: =[4]Gaspreise!G51*'DCF (2012)'!$C$20 -> 6.308333333 | F56: =[4]Gaspreise!H51*'DCF (2012)'!$C$20 -> 5.887547786 | G56: =[4]Gaspreise!I51*'DCF (2012)'!$C$20*G$2/G$8 -> 4.933221002 | H56: =[4]Gaspreise!J51*'DCF (2012)'!$C$20*H$2/H$8 -> 5.813399568 | I56: =[4]Gaspreise!K51*'DCF (2012)'!$C$20*I$2/I$8 -> 6.084347263 | J56: =[4]Gaspreise!L51*'DCF (2012)'!$C$20*J$2/J$8 -> 5.93985837 | K56: =[4]Gaspreise!M51*'DCF (2012)'!$C$20*K$2/K$8 -> 5.656048875 | L56: =[4]Gaspreise!N51*'DCF (2012)'!$C$20*L$2/L$8 -> 5.556729862 | M56: =[4]Gaspreise!O51*'DCF (2012)'!$C$20*M$2/M$8 -> 5.38811755 | N56: =[4]Gaspreise!P51*'DCF (2012)'!$C$20*N$2/N$8 -> 5.383577049 | O56: =[4]Gaspreise!Q51*'DCF (2012)'!$C$20*O$2/O$8 -> 5.289494965 | P56: =[4]Gaspreise!R51*'DCF (2012)'!$C$20*P$2/P$8 -> 5.456951315 | Q56: =[4]Gaspreise!S51*'DCF (2012)'!$C$20*Q$2/Q$8 -> 5.485688495 | R56: =[4]Gaspreise!T51*'DCF (2012)'!$C$20*R$2/R$8 -> 5.056290904 | S56: =[4]Gaspreise!U51*'DCF (2012)'!$C$20*S$2/S$8 -> 4.833451298 | T56: =[4]Gaspreise!V51*'DCF (2012)'!$C$20*T$2/T$8 -> 4.783791252 | U56: =[4]Gaspreise!W51*'DCF (2012)'!$C$20*U$2/U$8 -> 5.374538084 | V56: =[4]Gaspreise!X51*'DCF (2012)'!$C$20*V$2/V$8 -> 5.954963181 | W56: =[4]Gaspreise!Y51*'DCF (2012)'!$C$20*W$2/W$8 -> 6.345976671 | X56: =[4]Gaspreise!Z51*'DCF (2012)'!$C$20*X$2/X$8 -> 6.781278085 | Y56: =[4]Gaspreise!AA51*'DCF (2012)'!$C$20*Y$2/Y$8 -> 6.915808648 | Z56: =[4]Gaspreise!AB51*'DCF (2012)'!$C$20*Z$2/Z$8 -> 7.056739117 | AA56: =[4]Gaspreise!AC51*'DCF (2012)'!$C$20*AA$2/AA$8 -> 7.250392836 | AB56: =[4]Gaspreise!AD51*'DCF (2012)'!$C$20*AB$2/AB$8 -> 7.392688672
A57: 49 | E57: =[4]Gaspreise!G52*'DCF (2012)'!$C$20 -> 6.308333333 | F57: =[4]Gaspreise!H52*'DCF (2012)'!$C$20 -> 5.887547786 | G57: =[4]Gaspreise!I52*'DCF (2012)'!$C$20*G$2/G$8 -> 4.933221002 | H57: =[4]Gaspreise!J52*'DCF (2012)'!$C$20*H$2/H$8 -> 5.813399568 | I57: =[4]Gaspreise!K52*'DCF (2012)'!$C$20*I$2/I$8 -> 6.084347263 | J57: =[4]Gaspreise!L52*'DCF (2012)'!$C$20*J$2/J$8 -> 5.93985837 | K57: =[4]Gaspreise!M52*'DCF (2012)'!$C$20*K$2/K$8 -> 5.656048875 | L57: =[4]Gaspreise!N52*'DCF (2012)'!$C$20*L$2/L$8 -> 5.556729862 | M57: =[4]Gaspreise!O52*'DCF (2012)'!$C$20*M$2/M$8 -> 5.38811755 | N57: =[4]Gaspreise!P52*'DCF (2012)'!$C$20*N$2/N$8 -> 5.383577049 | O57: =[4]Gaspreise!Q52*'DCF (2012)'!$C$20*O$2/O$8 -> 5.289494965 | P57: =[4]Gaspreise!R52*'DCF (2012)'!$C$20*P$2/P$8 -> 5.456951315 | Q57: =[4]Gaspreise!S52*'DCF (2012)'!$C$20*Q$2/Q$8 -> 5.485688495 | R57: =[4]Gaspreise!T52*'DCF (2012)'!$C$20*R$2/R$8 -> 5.056290904 | S57: =[4]Gaspreise!U52*'DCF (2012)'!$C$20*S$2/S$8 -> 4.833451298 | T57: =[4]Gaspreise!V52*'DCF (2012)'!$C$20*T$2/T$8 -> 4.783791252 | U57: =[4]Gaspreise!W52*'DCF (2012)'!$C$20*U$2/U$8 -> 5.374538084 | V57: =[4]Gaspreise!X52*'DCF (2012)'!$C$20*V$2/V$8 -> 5.954963181 | W57: =[4]Gaspreise!Y52*'DCF (2012)'!$C$20*W$2/W$8 -> 6.345976671 | X57: =[4]Gaspreise!Z52*'DCF (2012)'!$C$20*X$2/X$8 -> 6.781278085 | Y57: =[4]Gaspreise!AA52*'DCF (2012)'!$C$20*Y$2/Y$8 -> 6.915808648 | Z57: =[4]Gaspreise!AB52*'DCF (2012)'!$C$20*Z$2/Z$8 -> 7.056739117 | AA57: =[4]Gaspreise!AC52*'DCF (2012)'!$C$20*AA$2/AA$8 -> 7.250392836 | AB57: =[4]Gaspreise!AD52*'DCF (2012)'!$C$20*AB$2/AB$8 -> 7.392688672
A58: 50 | E58: =[4]Gaspreise!G53*'DCF (2012)'!$C$20 -> 6.308333333 | F58: =[4]Gaspreise!H53*'DCF (2012)'!$C$20 -> 5.887547786 | G58: =[4]Gaspreise!I53*'DCF (2012)'!$C$20*G$2/G$8 -> 4.933221002 | H58: =[4]Gaspreise!J53*'DCF (2012)'!$C$20*H$2/H$8 -> 5.813399568 | I58: =[4]Gaspreise!K53*'DCF (2012)'!$C$20*I$2/I$8 -> 6.084347263 | J58: =[4]Gaspreise!L53*'DCF (2012)'!$C$20*J$2/J$8 -> 5.93985837 | K58: =[4]Gaspreise!M53*'DCF (2012)'!$C$20*K$2/K$8 -> 5.656048875 | L58: =[4]Gaspreise!N53*'DCF (2012)'!$C$20*L$2/L$8 -> 5.556729862 | M58: =[4]Gaspreise!O53*'DCF (2012)'!$C$20*M$2/M$8 -> 5.38811755 | N58: =[4]Gaspreise!P53*'DCF (2012)'!$C$20*N$2/N$8 -> 5.383577049 | O58: =[4]Gaspreise!Q53*'DCF (2012)'!$C$20*O$2/O$8 -> 5.289494965 | P58: =[4]Gaspreise!R53*'DCF (2012)'!$C$20*P$2/P$8 -> 5.456951315 | Q58: =[4]Gaspreise!S53*'DCF (2012)'!$C$20*Q$2/Q$8 -> 5.485688495 | R58: =[4]Gaspreise!T53*'DCF (2012)'!$C$20*R$2/R$8 -> 5.056290904 | S58: =[4]Gaspreise!U53*'DCF (2012)'!$C$20*S$2/S$8 -> 4.833451298 | T58: =[4]Gaspreise!V53*'DCF (2012)'!$C$20*T$2/T$8 -> 4.783791252 | U58: =[4]Gaspreise!W53*'DCF (2012)'!$C$20*U$2/U$8 -> 5.374538084 | V58: =[4]Gaspreise!X53*'DCF (2012)'!$C$20*V$2/V$8 -> 5.954963181 | W58: =[4]Gaspreise!Y53*'DCF (2012)'!$C$20*W$2/W$8 -> 6.345976671 | X58: =[4]Gaspreise!Z53*'DCF (2012)'!$C$20*X$2/X$8 -> 6.781278085 | Y58: =[4]Gaspreise!AA53*'DCF (2012)'!$C$20*Y$2/Y$8 -> 6.915808648 | Z58: =[4]Gaspreise!AB53*'DCF (2012)'!$C$20*Z$2/Z$8 -> 7.056739117 | AA58: =[4]Gaspreise!AC53*'DCF (2012)'!$C$20*AA$2/AA$8 -> 7.250392836 | AB58: =[4]Gaspreise!AD53*'DCF (2012)'!$C$20*AB$2/AB$8 -> 7.392688672
A59: 51 | E59: =[4]Gaspreise!G54*'DCF (2012)'!$C$20 -> 6.308333333 | F59: =[4]Gaspreise!H54*'DCF (2012)'!$C$20 -> 5.887547786 | G59: =[4]Gaspreise!I54*'DCF (2012)'!$C$20*G$2/G$8 -> 4.933221002 | H59: =[4]Gaspreise!J54*'DCF (2012)'!$C$20*H$2/H$8 -> 5.813399568 | I59: =[4]Gaspreise!K54*'DCF (2012)'!$C$20*I$2/I$8 -> 6.084347263 | J59: =[4]Gaspreise!L54*'DCF (2012)'!$C$20*J$2/J$8 -> 5.93985837 | K59: =[4]Gaspreise!M54*'DCF (2012)'!$C$20*K$2/K$8 -> 5.656048875 | L59: =[4]Gaspreise!N54*'DCF (2012)'!$C$20*L$2/L$8 -> 5.556729862 | M59: =[4]Gaspreise!O54*'DCF (2012)'!$C$20*M$2/M$8 -> 5.38811755 | N59: =[4]Gaspreise!P54*'DCF (2012)'!$C$20*N$2/N$8 -> 5.383577049 | O59: =[4]Gaspreise!Q54*'DCF (2012)'!$C$20*O$2/O$8 -> 5.289494965 | P59: =[4]Gaspreise!R54*'DCF (2012)'!$C$20*P$2/P$8 -> 5.456951315 | Q59: =[4]Gaspreise!S54*'DCF (2012)'!$C$20*Q$2/Q$8 -> 5.485688495 | R59: =[4]Gaspreise!T54*'DCF (2012)'!$C$20*R$2/R$8 -> 5.056290904 | S59: =[4]Gaspreise!U54*'DCF (2012)'!$C$20*S$2/S$8 -> 4.833451298 | T59: =[4]Gaspreise!V54*'DCF (2012)'!$C$20*T$2/T$8 -> 4.783791252 | U59: =[4]Gaspreise!W54*'DCF (2012)'!$C$20*U$2/U$8 -> 5.374538084 | V59: =[4]Gaspreise!X54*'DCF (2012)'!$C$20*V$2/V$8 -> 5.954963181 | W59: =[4]Gaspreise!Y54*'DCF (2012)'!$C$20*W$2/W$8 -> 6.345976671 | X59: =[4]Gaspreise!Z54*'DCF (2012)'!$C$20*X$2/X$8 -> 6.781278085 | Y59: =[4]Gaspreise!AA54*'DCF (2012)'!$C$20*Y$2/Y$8 -> 6.915808648 | Z59: =[4]Gaspreise!AB54*'DCF (2012)'!$C$20*Z$2/Z$8 -> 7.056739117 | AA59: =[4]Gaspreise!AC54*'DCF (2012)'!$C$20*AA$2/AA$8 -> 7.250392836 | AB59: =[4]Gaspreise!AD54*'DCF (2012)'!$C$20*AB$2/AB$8 -> 7.392688672
A60: 52 | E60: =[4]Gaspreise!G55*'DCF (2012)'!$C$20 -> 6.308333333 | F60: =[4]Gaspreise!H55*'DCF (2012)'!$C$20 -> 5.887547786 | G60: =[4]Gaspreise!I55*'DCF (2012)'!$C$20*G$2/G$8 -> 4.933221002 | H60: =[4]Gaspreise!J55*'DCF (2012)'!$C$20*H$2/H$8 -> 5.813399568 | I60: =[4]Gaspreise!K55*'DCF (2012)'!$C$20*I$2/I$8 -> 6.084347263 | J60: =[4]Gaspreise!L55*'DCF (2012)'!$C$20*J$2/J$8 -> 5.93985837 | K60: =[4]Gaspreise!M55*'DCF (2012)'!$C$20*K$2/K$8 -> 5.656048875 | L60: =[4]Gaspreise!N55*'DCF (2012)'!$C$20*L$2/L$8 -> 5.556729862 | M60: =[4]Gaspreise!O55*'DCF (2012)'!$C$20*M$2/M$8 -> 5.38811755 | N60: =[4]Gaspreise!P55*'DCF (2012)'!$C$20*N$2/N$8 -> 5.383577049 | O60: =[4]Gaspreise!Q55*'DCF (2012)'!$C$20*O$2/O$8 -> 5.289494965 | P60: =[4]Gaspreise!R55*'DCF (2012)'!$C$20*P$2/P$8 -> 5.456951315 | Q60: =[4]Gaspreise!S55*'DCF (2012)'!$C$20*Q$2/Q$8 -> 5.485688495 | R60: =[4]Gaspreise!T55*'DCF (2012)'!$C$20*R$2/R$8 -> 5.056290904 | S60: =[4]Gaspreise!U55*'DCF (2012)'!$C$20*S$2/S$8 -> 4.833451298 | T60: =[4]Gaspreise!V55*'DCF (2012)'!$C$20*T$2/T$8 -> 4.783791252 | U60: =[4]Gaspreise!W55*'DCF (2012)'!$C$20*U$2/U$8 -> 5.374538084 | V60: =[4]Gaspreise!X55*'DCF (2012)'!$C$20*V$2/V$8 -> 5.954963181 | W60: =[4]Gaspreise!Y55*'DCF (2012)'!$C$20*W$2/W$8 -> 6.345976671 | X60: =[4]Gaspreise!Z55*'DCF (2012)'!$C$20*X$2/X$8 -> 6.781278085 | Y60: =[4]Gaspreise!AA55*'DCF (2012)'!$C$20*Y$2/Y$8 -> 6.915808648 | Z60: =[4]Gaspreise!AB55*'DCF (2012)'!$C$20*Z$2/Z$8 -> 7.056739117 | AA60: =[4]Gaspreise!AC55*'DCF (2012)'!$C$20*AA$2/AA$8 -> 7.250392836 | AB60: =[4]Gaspreise!AD55*'DCF (2012)'!$C$20*AB$2/AB$8 -> 7.392688672
A61: 53 | E61: =[4]Gaspreise!G56*'DCF (2012)'!$C$20 -> 6.308333333 | F61: =[4]Gaspreise!H56*'DCF (2012)'!$C$20 -> 5.887547786 | G61: =[4]Gaspreise!I56*'DCF (2012)'!$C$20*G$2/G$8 -> 4.933221002 | H61: =[4]Gaspreise!J56*'DCF (2012)'!$C$20*H$2/H$8 -> 5.813399568 | I61: =[4]Gaspreise!K56*'DCF (2012)'!$C$20*I$2/I$8 -> 6.084347263 | J61: =[4]Gaspreise!L56*'DCF (2012)'!$C$20*J$2/J$8 -> 5.93985837 | K61: =[4]Gaspreise!M56*'DCF (2012)'!$C$20*K$2/K$8 -> 5.656048875 | L61: =[4]Gaspreise!N56*'DCF (2012)'!$C$20*L$2/L$8 -> 5.556729862 | M61: =[4]Gaspreise!O56*'DCF (2012)'!$C$20*M$2/M$8 -> 5.38811755 | N61: =[4]Gaspreise!P56*'DCF (2012)'!$C$20*N$2/N$8 -> 5.383577049 | O61: =[4]Gaspreise!Q56*'DCF (2012)'!$C$20*O$2/O$8 -> 5.289494965 | P61: =[4]Gaspreise!R56*'DCF (2012)'!$C$20*P$2/P$8 -> 5.456951315 | Q61: =[4]Gaspreise!S56*'DCF (2012)'!$C$20*Q$2/Q$8 -> 5.485688495 | R61: =[4]Gaspreise!T56*'DCF (2012)'!$C$20*R$2/R$8 -> 5.056290904 | S61: =[4]Gaspreise!U56*'DCF (2012)'!$C$20*S$2/S$8 -> 4.833451298 | T61: =[4]Gaspreise!V56*'DCF (2012)'!$C$20*T$2/T$8 -> 4.783791252 | U61: =[4]Gaspreise!W56*'DCF (2012)'!$C$20*U$2/U$8 -> 5.374538084 | V61: =[4]Gaspreise!X56*'DCF (2012)'!$C$20*V$2/V$8 -> 5.954963181 | W61: =[4]Gaspreise!Y56*'DCF (2012)'!$C$20*W$2/W$8 -> 6.345976671 | X61: =[4]Gaspreise!Z56*'DCF (2012)'!$C$20*X$2/X$8 -> 6.781278085 | Y61: =[4]Gaspreise!AA56*'DCF (2012)'!$C$20*Y$2/Y$8 -> 6.915808648 | Z61: =[4]Gaspreise!AB56*'DCF (2012)'!$C$20*Z$2/Z$8 -> 7.056739117 | AA61: =[4]Gaspreise!AC56*'DCF (2012)'!$C$20*AA$2/AA$8 -> 7.250392836 | AB61: =[4]Gaspreise!AD56*'DCF (2012)'!$C$20*AB$2/AB$8 -> 7.392688672
A62: 54 | E62: =[4]Gaspreise!G57*'DCF (2012)'!$C$20 -> 6.308333333 | F62: =[4]Gaspreise!H57*'DCF (2012)'!$C$20 -> 5.887547786 | G62: =[4]Gaspreise!I57*'DCF (2012)'!$C$20*G$2/G$8 -> 4.933221002 | H62: =[4]Gaspreise!J57*'DCF (2012)'!$C$20*H$2/H$8 -> 5.813399568 | I62: =[4]Gaspreise!K57*'DCF (2012)'!$C$20*I$2/I$8 -> 6.084347263 | J62: =[4]Gaspreise!L57*'DCF (2012)'!$C$20*J$2/J$8 -> 5.93985837 | K62: =[4]Gaspreise!M57*'DCF (2012)'!$C$20*K$2/K$8 -> 5.656048875 | L62: =[4]Gaspreise!N57*'DCF (2012)'!$C$20*L$2/L$8 -> 5.556729862 | M62: =[4]Gaspreise!O57*'DCF (2012)'!$C$20*M$2/M$8 -> 5.38811755 | N62: =[4]Gaspreise!P57*'DCF (2012)'!$C$20*N$2/N$8 -> 5.383577049 | O62: =[4]Gaspreise!Q57*'DCF (2012)'!$C$20*O$2/O$8 -> 5.289494965 | P62: =[4]Gaspreise!R57*'DCF (2012)'!$C$20*P$2/P$8 -> 5.456951315 | Q62: =[4]Gaspreise!S57*'DCF (2012)'!$C$20*Q$2/Q$8 -> 5.485688495 | R62: =[4]Gaspreise!T57*'DCF (2012)'!$C$20*R$2/R$8 -> 5.056290904 | S62: =[4]Gaspreise!U57*'DCF (2012)'!$C$20*S$2/S$8 -> 4.833451298 | T62: =[4]Gaspreise!V57*'DCF (2012)'!$C$20*T$2/T$8 -> 4.783791252 | U62: =[4]Gaspreise!W57*'DCF (2012)'!$C$20*U$2/U$8 -> 5.374538084 | V62: =[4]Gaspreise!X57*'DCF (2012)'!$C$20*V$2/V$8 -> 5.954963181 | W62: =[4]Gaspreise!Y57*'DCF (2012)'!$C$20*W$2/W$8 -> 6.345976671 | X62: =[4]Gaspreise!Z57*'DCF (2012)'!$C$20*X$2/X$8 -> 6.781278085 | Y62: =[4]Gaspreise!AA57*'DCF (2012)'!$C$20*Y$2/Y$8 -> 6.915808648 | Z62: =[4]Gaspreise!AB57*'DCF (2012)'!$C$20*Z$2/Z$8 -> 7.056739117 | AA62: =[4]Gaspreise!AC57*'DCF (2012)'!$C$20*AA$2/AA$8 -> 7.250392836 | AB62: =[4]Gaspreise!AD57*'DCF (2012)'!$C$20*AB$2/AB$8 -> 7.392688672
A63: 55 | E63: =[4]Gaspreise!G58*'DCF (2012)'!$C$20 -> 6.308333333 | F63: =[4]Gaspreise!H58*'DCF (2012)'!$C$20 -> 5.887547786 | G63: =[4]Gaspreise!I58*'DCF (2012)'!$C$20*G$2/G$8 -> 4.933221002 | H63: =[4]Gaspreise!J58*'DCF (2012)'!$C$20*H$2/H$8 -> 5.813399568 | I63: =[4]Gaspreise!K58*'DCF (2012)'!$C$20*I$2/I$8 -> 6.084347263 | J63: =[4]Gaspreise!L58*'DCF (2012)'!$C$20*J$2/J$8 -> 5.93985837 | K63: =[4]Gaspreise!M58*'DCF (2012)'!$C$20*K$2/K$8 -> 5.656048875 | L63: =[4]Gaspreise!N58*'DCF (2012)'!$C$20*L$2/L$8 -> 5.556729862 | M63: =[4]Gaspreise!O58*'DCF (2012)'!$C$20*M$2/M$8 -> 5.38811755 | N63: =[4]Gaspreise!P58*'DCF (2012)'!$C$20*N$2/N$8 -> 5.383577049 | O63: =[4]Gaspreise!Q58*'DCF (2012)'!$C$20*O$2/O$8 -> 5.289494965 | P63: =[4]Gaspreise!R58*'DCF (2012)'!$C$20*P$2/P$8 -> 5.456951315 | Q63: =[4]Gaspreise!S58*'DCF (2012)'!$C$20*Q$2/Q$8 -> 5.485688495 | R63: =[4]Gaspreise!T58*'DCF (2012)'!$C$20*R$2/R$8 -> 5.056290904 | S63: =[4]Gaspreise!U58*'DCF (2012)'!$C$20*S$2/S$8 -> 4.833451298 | T63: =[4]Gaspreise!V58*'DCF (2012)'!$C$20*T$2/T$8 -> 4.783791252 | U63: =[4]Gaspreise!W58*'DCF (2012)'!$C$20*U$2/U$8 -> 5.374538084 | V63: =[4]Gaspreise!X58*'DCF (2012)'!$C$20*V$2/V$8 -> 5.954963181 | W63: =[4]Gaspreise!Y58*'DCF (2012)'!$C$20*W$2/W$8 -> 6.345976671 | X63: =[4]Gaspreise!Z58*'DCF (2012)'!$C$20*X$2/X$8 -> 6.781278085 | Y63: =[4]Gaspreise!AA58*'DCF (2012)'!$C$20*Y$2/Y$8 -> 6.915808648 | Z63: =[4]Gaspreise!AB58*'DCF (2012)'!$C$20*Z$2/Z$8 -> 7.056739117 | AA63: =[4]Gaspreise!AC58*'DCF (2012)'!$C$20*AA$2/AA$8 -> 7.250392836 | AB63: =[4]Gaspreise!AD58*'DCF (2012)'!$C$20*AB$2/AB$8 -> 7.392688672
A64: 56 | E64: =[4]Gaspreise!G59*'DCF (2012)'!$C$20 -> 6.308333333 | F64: =[4]Gaspreise!H59*'DCF (2012)'!$C$20 -> 5.887547786 | G64: =[4]Gaspreise!I59*'DCF (2012)'!$C$20*G$2/G$8 -> 4.933221002 | H64: =[4]Gaspreise!J59*'DCF (2012)'!$C$20*H$2/H$8 -> 5.813399568 | I64: =[4]Gaspreise!K59*'DCF (2012)'!$C$20*I$2/I$8 -> 6.084347263 | J64: =[4]Gaspreise!L59*'DCF (2012)'!$C$20*J$2/J$8 -> 5.93985837 | K64: =[4]Gaspreise!M59*'DCF (2012)'!$C$20*K$2/K$8 -> 5.656048875 | L64: =[4]Gaspreise!N59*'DCF (2012)'!$C$20*L$2/L$8 -> 5.556729862 | M64: =[4]Gaspreise!O59*'DCF (2012)'!$C$20*M$2/M$8 -> 5.38811755 | N64: =[4]Gaspreise!P59*'DCF (2012)'!$C$20*N$2/N$8 -> 5.383577049 | O64: =[4]Gaspreise!Q59*'DCF (2012)'!$C$20*O$2/O$8 -> 5.289494965 | P64: =[4]Gaspreise!R59*'DCF (2012)'!$C$20*P$2/P$8 -> 5.456951315 | Q64: =[4]Gaspreise!S59*'DCF (2012)'!$C$20*Q$2/Q$8 -> 5.485688495 | R64: =[4]Gaspreise!T59*'DCF (2012)'!$C$20*R$2/R$8 -> 5.056290904 | S64: =[4]Gaspreise!U59*'DCF (2012)'!$C$20*S$2/S$8 -> 4.833451298 | T64: =[4]Gaspreise!V59*'DCF (2012)'!$C$20*T$2/T$8 -> 4.783791252 | U64: =[4]Gaspreise!W59*'DCF (2012)'!$C$20*U$2/U$8 -> 5.374538084 | V64: =[4]Gaspreise!X59*'DCF (2012)'!$C$20*V$2/V$8 -> 5.954963181 | W64: =[4]Gaspreise!Y59*'DCF (2012)'!$C$20*W$2/W$8 -> 6.345976671 | X64: =[4]Gaspreise!Z59*'DCF (2012)'!$C$20*X$2/X$8 -> 6.781278085 | Y64: =[4]Gaspreise!AA59*'DCF (2012)'!$C$20*Y$2/Y$8 -> 6.915808648 | Z64: =[4]Gaspreise!AB59*'DCF (2012)'!$C$20*Z$2/Z$8 -> 7.056739117 | AA64: =[4]Gaspreise!AC59*'DCF (2012)'!$C$20*AA$2/AA$8 -> 7.250392836 | AB64: =[4]Gaspreise!AD59*'DCF (2012)'!$C$20*AB$2/AB$8 -> 7.392688672
A65: 57 | E65: =[4]Gaspreise!G60*'DCF (2012)'!$C$20 -> 6.308333333 | F65: =[4]Gaspreise!H60*'DCF (2012)'!$C$20 -> 5.887547786 | G65: =[4]Gaspreise!I60*'DCF (2012)'!$C$20*G$2/G$8 -> 4.933221002 | H65: =[4]Gaspreise!J60*'DCF (2012)'!$C$20*H$2/H$8 -> 5.813399568 | I65: =[4]Gaspreise!K60*'DCF (2012)'!$C$20*I$2/I$8 -> 6.084347263 | J65: =[4]Gaspreise!L60*'DCF (2012)'!$C$20*J$2/J$8 -> 5.93985837 | K65: =[4]Gaspreise!M60*'DCF (2012)'!$C$20*K$2/K$8 -> 5.656048875 | L65: =[4]Gaspreise!N60*'DCF (2012)'!$C$20*L$2/L$8 -> 5.556729862 | M65: =[4]Gaspreise!O60*'DCF (2012)'!$C$20*M$2/M$8 -> 5.38811755 | N65: =[4]Gaspreise!P60*'DCF (2012)'!$C$20*N$2/N$8 -> 5.383577049 | O65: =[4]Gaspreise!Q60*'DCF (2012)'!$C$20*O$2/O$8 -> 5.289494965 | P65: =[4]Gaspreise!R60*'DCF (2012)'!$C$20*P$2/P$8 -> 5.456951315 | Q65: =[4]Gaspreise!S60*'DCF (2012)'!$C$20*Q$2/Q$8 -> 5.485688495 | R65: =[4]Gaspreise!T60*'DCF (2012)'!$C$20*R$2/R$8 -> 5.056290904 | S65: =[4]Gaspreise!U60*'DCF (2012)'!$C$20*S$2/S$8 -> 4.833451298 | T65: =[4]Gaspreise!V60*'DCF (2012)'!$C$20*T$2/T$8 -> 4.783791252 | U65: =[4]Gaspreise!W60*'DCF (2012)'!$C$20*U$2/U$8 -> 5.374538084 | V65: =[4]Gaspreise!X60*'DCF (2012)'!$C$20*V$2/V$8 -> 5.954963181 | W65: =[4]Gaspreise!Y60*'DCF (2012)'!$C$20*W$2/W$8 -> 6.345976671 | X65: =[4]Gaspreise!Z60*'DCF (2012)'!$C$20*X$2/X$8 -> 6.781278085 | Y65: =[4]Gaspreise!AA60*'DCF (2012)'!$C$20*Y$2/Y$8 -> 6.915808648 | Z65: =[4]Gaspreise!AB60*'DCF (2012)'!$C$20*Z$2/Z$8 -> 7.056739117 | AA65: =[4]Gaspreise!AC60*'DCF (2012)'!$C$20*AA$2/AA$8 -> 7.250392836 | AB65: =[4]Gaspreise!AD60*'DCF (2012)'!$C$20*AB$2/AB$8 -> 7.392688672
A66: 58 | E66: =[4]Gaspreise!G61*'DCF (2012)'!$C$20 -> 6.308333333 | F66: =[4]Gaspreise!H61*'DCF (2012)'!$C$20 -> 5.887547786 | G66: =[4]Gaspreise!I61*'DCF (2012)'!$C$20*G$2/G$8 -> 4.933221002 | H66: =[4]Gaspreise!J61*'DCF (2012)'!$C$20*H$2/H$8 -> 5.813399568 | I66: =[4]Gaspreise!K61*'DCF (2012)'!$C$20*I$2/I$8 -> 6.084347263 | J66: =[4]Gaspreise!L61*'DCF (2012)'!$C$20*J$2/J$8 -> 5.93985837 | K66: =[4]Gaspreise!M61*'DCF (2012)'!$C$20*K$2/K$8 -> 5.656048875 | L66: =[4]Gaspreise!N61*'DCF (2012)'!$C$20*L$2/L$8 -> 5.556729862 | M66: =[4]Gaspreise!O61*'DCF (2012)'!$C$20*M$2/M$8 -> 5.38811755 | N66: =[4]Gaspreise!P61*'DCF (2012)'!$C$20*N$2/N$8 -> 5.383577049 | O66: =[4]Gaspreise!Q61*'DCF (2012)'!$C$20*O$2/O$8 -> 5.289494965 | P66: =[4]Gaspreise!R61*'DCF (2012)'!$C$20*P$2/P$8 -> 5.456951315 | Q66: =[4]Gaspreise!S61*'DCF (2012)'!$C$20*Q$2/Q$8 -> 5.485688495 | R66: =[4]Gaspreise!T61*'DCF (2012)'!$C$20*R$2/R$8 -> 5.056290904 | S66: =[4]Gaspreise!U61*'DCF (2012)'!$C$20*S$2/S$8 -> 4.833451298 | T66: =[4]Gaspreise!V61*'DCF (2012)'!$C$20*T$2/T$8 -> 4.783791252 | U66: =[4]Gaspreise!W61*'DCF (2012)'!$C$20*U$2/U$8 -> 5.374538084 | V66: =[4]Gaspreise!X61*'DCF (2012)'!$C$20*V$2/V$8 -> 5.954963181 | W66: =[4]Gaspreise!Y61*'DCF (2012)'!$C$20*W$2/W$8 -> 6.345976671 | X66: =[4]Gaspreise!Z61*'DCF (2012)'!$C$20*X$2/X$8 -> 6.781278085 | Y66: =[4]Gaspreise!AA61*'DCF (2012)'!$C$20*Y$2/Y$8 -> 6.915808648 | Z66: =[4]Gaspreise!AB61*'DCF (2012)'!$C$20*Z$2/Z$8 -> 7.056739117 | AA66: =[4]Gaspreise!AC61*'DCF (2012)'!$C$20*AA$2/AA$8 -> 7.250392836 | AB66: =[4]Gaspreise!AD61*'DCF (2012)'!$C$20*AB$2/AB$8 -> 7.392688672
A67: 59 | E67: =[4]Gaspreise!G62*'DCF (2012)'!$C$20 -> 6.308333333 | F67: =[4]Gaspreise!H62*'DCF (2012)'!$C$20 -> 5.887547786 | G67: =[4]Gaspreise!I62*'DCF (2012)'!$C$20*G$2/G$8 -> 4.933221002 | H67: =[4]Gaspreise!J62*'DCF (2012)'!$C$20*H$2/H$8 -> 5.813399568 | I67: =[4]Gaspreise!K62*'DCF (2012)'!$C$20*I$2/I$8 -> 6.084347263 | J67: =[4]Gaspreise!L62*'DCF (2012)'!$C$20*J$2/J$8 -> 5.93985837 | K67: =[4]Gaspreise!M62*'DCF (2012)'!$C$20*K$2/K$8 -> 5.656048875 | L67: =[4]Gaspreise!N62*'DCF (2012)'!$C$20*L$2/L$8 -> 5.556729862 | M67: =[4]Gaspreise!O62*'DCF (2012)'!$C$20*M$2/M$8 -> 5.38811755 | N67: =[4]Gaspreise!P62*'DCF (2012)'!$C$20*N$2/N$8 -> 5.383577049 | O67: =[4]Gaspreise!Q62*'DCF (2012)'!$C$20*O$2/O$8 -> 5.289494965 | P67: =[4]Gaspreise!R62*'DCF (2012)'!$C$20*P$2/P$8 -> 5.456951315 | Q67: =[4]Gaspreise!S62*'DCF (2012)'!$C$20*Q$2/Q$8 -> 5.485688495 | R67: =[4]Gaspreise!T62*'DCF (2012)'!$C$20*R$2/R$8 -> 5.056290904 | S67: =[4]Gaspreise!U62*'DCF (2012)'!$C$20*S$2/S$8 -> 4.833451298 | T67: =[4]Gaspreise!V62*'DCF (2012)'!$C$20*T$2/T$8 -> 4.783791252 | U67: =[4]Gaspreise!W62*'DCF (2012)'!$C$20*U$2/U$8 -> 5.374538084 | V67: =[4]Gaspreise!X62*'DCF (2012)'!$C$20*V$2/V$8 -> 5.954963181 | W67: =[4]Gaspreise!Y62*'DCF (2012)'!$C$20*W$2/W$8 -> 6.345976671 | X67: =[4]Gaspreise!Z62*'DCF (2012)'!$C$20*X$2/X$8 -> 6.781278085 | Y67: =[4]Gaspreise!AA62*'DCF (2012)'!$C$20*Y$2/Y$8 -> 6.915808648 | Z67: =[4]Gaspreise!AB62*'DCF (2012)'!$C$20*Z$2/Z$8 -> 7.056739117 | AA67: =[4]Gaspreise!AC62*'DCF (2012)'!$C$20*AA$2/AA$8 -> 7.250392836 | AB67: =[4]Gaspreise!AD62*'DCF (2012)'!$C$20*AB$2/AB$8 -> 7.392688672
